Workbook

Sheet VissionMission (hidden)
A1: วิสัยทัศน์ (Vision)
A2: มหาวิทยาลัยชั้นนำในอาเซียนที่มุ่งเน้นการพัฒนาคุณภาพชีวิตให้กับ..และนวัตกรรม
A3: A Leading University in ASEAN, Focusing on Transforming Life Quality and Innovations
A4: มหาวิทยาลัยชั้นนำในอาเซียนที่มุ่งเน้นการสร้างความรู้และนวัตกรรมเพื่อพัฒนาคุณภาพชีวิตของ...
A5: มหาวิทยาลัยชั้นนำในอาเซียนที่มุ่งเน้นการพัฒนาอย่างยั่งยืน
A6: มหาวิทยาลัยชั้นนำในอาเซียนที่มุ่งเน้นการยกระดับคุณภาพชีวิตให้แก่สังคม
A7: ตัวชี้วัดวิสัยทัศน์
A8: University Impact Rankings ของ THE ในลำดับ 101-200 ภายในปี พ.ศ. 2567 และ ในลำดับ 1-100 ภายในปี พ.ศ. 2570
A10: Focus SDGs : 1 No Poverty, 2 Zero Hunger, 3 Good Health and Well-being, 4 Quality Education, 9 Industry, Innovation and Infrastructure, 11 Sustainable Cities and Communities, 17 Partnerships for the Goals
B11: มหาวิทยาลัยชั้นนำในอาเซียนที่มุ่งเน้นการยกระดับคุณภาพชีวิตให้แก่สังคม
A12: พันธกิจ (Mission) เดิม | B12: พันธกิจ (Mission) ใหม่
A13: 1. สร้างบัณฑิตที่มีคุณภาพ มาตรฐาน มุ่งสู่ความเป็นเลิศทางวิชาการและวิชาชีพ | B13: 1. สร้างบัณฑิตที่มีคุณภาพ มุ่งสู่ความเป็นเลิศทางวิชาการและวิชาชีพ
B14: 1. สร้างบัณฑิตที่มีทักษะสูงของแต่ละวิชาชีพเพื่อตอบโจทย์อุตสาหกรรม รวมทั้งการมีทักษะเป็นผู้ประกอบการ
A15: 2. สร้างองค์ความรู้และนวัตกรรมที่นำไปประยุกต์ใช้ประโยชน์เพื่อพัฒนาคุณภาพชีวิตของประชาชนในภาคตะวันออกเฉียงเหนือและภูมิภาคลุ่มน้ำโขง | B15: 2. สร้างองค์ความรู้และนวัตกรรมเพื่อพัฒนาคุณภาพชีวิต
B16: 2. สร้างองค์ความรู้และนวัตกรรมที่สามารถประยุกต์ใช้เพื่อพัฒนาคุณภาพชีวิตให้กับสังคมทั้งระดับท้องถิ่นและระดับประเทศ
A17: 3. บริการวิชาการอย่างมีส่วนร่วมเพื่อเพื่อพัฒนาคุณภาพชีวิตของประชาชนในภาคตะวันออกเฉียงเหนือและภูมิภาคลุ่มน้ำโขง | B17: 3. บริการวิชาการอย่างมีส่วนร่วมเพื่อพัฒนาคุณภาพชีวิต
B18: 3. ถ่ายทอดองค์ความรู้และเทคโนโลยีผ่านการบริการวิชาการที่ตอบสนองความต้องการของผู้รับบริการ สังคมและภาคอุตสาหกรรม
A19: 4. ทำนุบำรุงศิลปวัฒนธรรม ภูมิปัญญาท้องถิ่น และสร้างความเข้าใจในวัฒนธรรมที่หลากหลายของภูมิภาคลุ่มน้ำโขง | B19: 4. สืบสานและสร้างสรรค์ศิลปวัฒนธรรมและภูมิปัญญาอีสานใต้
B20: 4. ส่งเสริมศิลปวัฒนธรรมและภูมิปัญญาอีสานใต้อย่างสร้างสรรค์เพื่อสร้างมูลค่าเพิ่มทางเศรษฐกิจ
A21: เสาหลัก
A22: เสาหลักที่ 1 : Academic Excellence and Entrepreneurship (1)
A23: เสาหลักที่ 2 : Shared Future with Community and Entrepreneur (2 3 4)
A24: เสาหลักที่ 3 : Sustainable Growth and Smart University (5)
A25: ฐาน
A26: Core Competency
A27: Core Value

Sheet Sheet1 (hidden)
B2: มหาวิทยาลัยชั้นนำในอาเซียนที่มุ่งเน้นการยกระดับคุณภาพชีวิตให้แก่สังคม
B5: 1. สร้างบัณฑิตที่มีทักษะสูงของแต่ละวิชาชีพเพื่อตอบโจทย์อุตสาหกรรม รวมทั้งการมีทักษะเป็นผู้ประกอบการ
B6: 2. สร้างองค์ความรู้และนวัตกรรมที่สามารถประยุกต์ใช้เพื่อพัฒนาคุณภาพชีวิตให้กับสังคมทั้งระดับท้องถิ่นและระดับประเทศ
B7: 3. ถ่ายทอดองค์ความรู้ผ่านการบริการวิชาการที่ตอบสนองความต้องการของสังคมและภาคอุตสาหกรรม
B8: 4. ส่งเสริมวัฒนธรรมและภูมิปัญญาอีสานใต้อย่างสร้างสรรค์เพื่อสร้างมูลค่าเพิ่มทางเศรษฐกิจ

Sheet นโยบายสภาฯ2564-2565
A1: นโยบายสภามหาวิทยาลัยอุบลราชธานี พ.ศ. ๒๕๖๔ – ๒๕๖๕
A2: ปรัชญา: มหาวิทยาลัยอุบลราชธานี สร้างสติและปัญญาแก่สังคม บนพื้นฐานความพอเพียง
A3: วิสัยทัศน์: มหาวิทยาลัยชั้นนำในอาเซียนด้านเทคโนโลยีและการสร้างนวัตกรรมเพื่อพัฒนาคุณภาพชีวิตตามแนวทางการพัฒนาที่ยั่งยืน(SDG)
A4: นโยบาย:
A5: 1. พัฒนามหาวิทยาลัยให้เป็นผู้นำทางเทคโนโลยีและนวัตกรรม (Technology and Innovation) ที่สามารถพัฒนาคุณภาพชีวิตของประชาชนตามแนวทางการพัฒนาที่ยั่งยืน (SDG) เป็นที่ยอมรับในแวดวงวิชาการและความเป็นผู้ประกอบการระดับชาติและนานาชาติ
A6: 2. การจัดการศึกษาตามกลุ่มสมรรถนะหลักต้องกำหนดจุดเน้นและ/หรือหลักสูตรเพื่อพัฒนาความเป็นผู้ประกอบการให้ชัดเจน และ ส่งเสริมให้มีการจัดการเรียนการสอนในลักษณะ Blended Learning และTechnology-enhanced Learning เน้นการฝึกปฏิบัติในสถานประกอบการ และชุมชน
A7: 3. พัฒนาระบบบริหารจัดการงานวิจัยและงานบริการวิชาการให้มีประสิทธิภาพ และ ปรับปรุงขั้นตอนงานบริหารเพื่ออำนวยความสะดวกในการสร้างธุรกิจกับภาคส่วนต่างๆและการสร้างผู้ประกอบการ
A8: 4. ส่งเสริมการบริหารงานสู่ความเป็นเลิศ ทั้งด้านหลักสูตร และแนวทางการปฏิบัติงานที่มีคุณภาพซึ่งเป็นการประกันคุณภาพของการจัดการศึกษาและมาตรฐานหลักสูตรตามหลักสากล
A9: 5. พัฒนางานวิจัย เทคโนโลยี และนวัตกรรมที่มุ่งสร้างองค์ความรู้ และทักษะใหม่ๆ ซึ่งสามารถนำไปต่อยอดในการบริการวิชาการสู่ชุมชน สังคมภาคธุรกิจ ภาคอุตสาหกรรม และความเป็นผู้ประกอบการ พร้อมกับการพัฒนาการเรียนการสอนให้มีประสิทธิภาพสูงเพิ่มขึ้น อันนำไปสู่การเพิ่มขึ้นของรายได้
A10: 6. พัฒนาสมรรถนะของบุคลากรทุกระดับให้มีประสิทธิภาพสูงในการปฏิบัติหน้าที่
A11: 7. ส่งเสริมการสร้างรายได้และปรับปรุงแนวทางการใช้ประโยชน์จากทรัพย์สินของมหาวิทยาลัยให้เกิดประโยชน์สูงสุด
A12: 8. พัฒนาแหล่งเรียนรู้ด้านศิลปวัฒนธรรมและภูมิปัญญาท้องถิ่น เพื่อชี้นำ ช่วยเหลือและร่วมกันกับ ท้องถิ่นชุมชนสังคมในการอนุรักษ์ สืบสาน เผยแผ่ และพัฒนาตามแนวทางของวิถีชีวิตของชุมชนอีสานใต้และลุ่มน้ำโขงให้เกิดความยั่งยืน
A13: 9. กำหนดแนวทางปรับโครงสร้างองค์กรของมหาวิทยาลัย แบบพลิกโฉม ปรับเปลี่ยนภารกิจและบทบาทหน้าที่ของหน่วยงาน (Transformation Office) ให้สามารถรองรับการเปลี่ยนแปลงอย่างรวดเร็วของเทคโนโลยี สังคม เศรษฐกิจและสิ่งแวดล้อมของประเทศ
A14: 10. สภามหาวิทยาลัยและมหาวิทยาลัยจะร่วมกันสื่อสารสร้างความเข้าใจสถานการณ์ Disruption ให้ตระหนักรู้ ปรับรูปแบบความคิด (Mindset) ปรับตัว และปรับบทบาทหน้าที่ให้เหมาะสมกับทิศทางการพัฒนาองค์กร โดยให้มหาวิทยาลัยกำหนดเป็นนโยบายและถ่ายทอดสู่การปฏิบัติทุกระดับ

Sheet Vision Mission
A1: แผนกลยุทธ์มหาวิทยาลัยอุบลราชธานี ระยะ 5 ปี พ.ศ. 2566-2570
A2: วิสัยทัศน์
A3: มหาวิทยาลัยชั้นนำในอาเซียนที่มุ่งเน้นการยกระดับคุณภาพชีวิตให้แก่สังคม
A5: พันธกิจ
A6: 1. สร้างบัณฑิตที่มีทักษะสูงของแต่ละวิชาชีพเพื่อตอบโจทย์อุตสาหกรรม รวมทั้งการมีทักษะเป็นผู้ประกอบการ
A7: 2. สร้างองค์ความรู้และนวัตกรรมที่สามารถประยุกต์ใช้เพื่อพัฒนาคุณภาพชีวิตให้กับสังคมทั้งระดับท้องถิ่นและระดับประเทศ
A8: 3. ถ่ายทอดองค์ความรู้และเทคโนโลยีผ่านการบริการวิชาการที่ตอบสนองความต้องการของผู้รับบริการ สังคมและภาคอุตสาหกรรม
A9: 4. ส่งเสริมวัฒนธรรมและภูมิปัญญาอีสานใต้อย่างสร้างสรรค์เพื่อสร้างมูลค่าเพิ่มทางเศรษฐกิจ
A11: วิสัยทัศน์
A12: มหาวิทยาลัยชั้นนำในอาเซียนที่มุ่งเน้นการยกระดับคุณภาพชีวิตให้แก่สังคม
A13: ตัววัดวิสัยทัศน์: University Impact Rankings ของ THE อยู่ในลำดับ 101-200 ภายในปี พ.ศ. 2567 และในลำดับ 1-100 ภายในปี พ.ศ. 2570
A15: เสาหลัก
A16: การจัดการศึกษา (Academic)
A17: วิจัยและนวัตกรรม (Research & Innovation)
A18: บริการวิชาการ (Academic Service)
A19: ศิลปวัฒนธรรม (Preserve Art & Culture)
A21: ตัวชี้วัดขับเคลื่อนวิสัยทัศน์
A22: 1. ร้อยละบัณฑิต ป.ตรี ที่ได้งานทำในองค์กรขนาดใหญ่หรือต่างชาติ
A23: 2. ร้อยละของบัณฑิต ป.ตรี ที่เป็นผู้ประกอบการภายใน 1 ปี หลังสำเร็จการศึกษา
A24: 3. ร้อยละของบทความวิทยานิพนธ์ที่ได้รับการตีพิมพ์ในระดับนานาชาติ (Scopus Q1-Q2) ต่อจำนวนวิทยานิพนธ์ทั้งหมด
A25: 4. จำนวนนักศึกษาหรือศิษย์เก่า ที่ได้รับรางวัลระดับชาติหรือนานาชาติ
A26: 5. รายได้จากทรัพย์สินทางปัญญา งานวิจัยหรือนวัตกรรมที่นำไปใช้ประโยชน์เชิงพาณิชย์ (ล้านบาท)
A27: 6. จำนวนทรัพย์สินทางปัญญา (สิทธิบัตร อนุสิทธิบัตร)
A28: 7. ร้อยละจำนวนบทความวิจัยในฐาน SCOPUS ที่เป็น Q1-Q2 ต่อบทความวิจัยในฐาน SCOPUS ทั้งหมด
A29: 8. ร้อยละของผลงานวิจัยที่สามารถพัฒนาไปสู่ระดับ TRL (6-7) (TRL Technology Readiness Level)
A30: 9. รายได้ที่เพิ่มขึ้นเฉลี่ยต่อเดือนของครัวเรือนในชุมชนเป้าหมาย (บาท)
A31: 10. ร้อยละของประชากรในชุมชนเป้าหมายที่เป็นกลุ่มโรคไม่ติดต่อเรื้อรัง (NCDs) ที่มีสภาวะที่ควบคุมได้ (โรคเบาหวาน ความดัน และไตเรื้อรัง)
A32: 11. รายได้ที่เพิ่มขึ้นเฉลี่ยต่อเดือนของครัวเรือนในชุมชนเป้าหมายที่ได้รับการอนุรักษ์หรือต่อยอดศิลปวัฒนธรรม และภูมิปัญญาท้องถิ่น
A33: 12. จำนวนผลงานด้านศิลปวัฒนธรรมและภูมิปัญญาที่ได้รับการสืบสานและสร้างมูลค่า
A34: 13. จำนวนแหล่งเรียนรู้ด้านศิลปวัฒนธรรรมและภูมิปัญญาท้องถิ่นที่ได้รับการพัฒนาร่วมกับเครือข่าย
A36: ตัววัดระบบบริหารจัดการที่มีประสิทธิภาพ
A37: 1. Productivity per head (ได้แก่ รายได้ของมหาวิทยาลัยต่อจำนวนบุคลากร ผลงานวิจัยที่ตีพิมพ์ในระดับนานาชาติต่อจำนวนอาจารย์)
A38: 2. ระดับความผูกพันของบุคลากรที่มีต่อองค์กร
A39: 3. คะแนน UI Green Metric

Sheet SC-SA-SO ที่สำคัญ (hidden)
A1: ความท้าทาย ความได้เปรียบ และโอกาสเชิงกลยุทธ์ที่สำคัญ
A2: ความท้าทายเชิงกลยุทธ์ (Strategic Challenge; SC)
A3: SC1 Transformation of Learning
A4: SC2 เพิ่มผลงานวิจัยตีพิมพ์ระดับนานาชาติในระดับ Q1-Q2
A5: SC3 เพิ่มจำนวนทรัพย์สินทางปัญญาที่นำไปใช้ประโยชน์เชิงพาณิชย์
A6: SC4 เพิ่มจำนวน spin off ที่เกิดจากผลงานวิจัย
A7: SC5 มีระบบสารสนเทศที่พร้อมใช้สำหรับการบริหาร
A8: SC6 การเพิ่มรายได้เพื่อสนับสนุนการดำเนินงานตามยุทธศาสตร์และพันธกิจ
A9: SC7 การบริหารทรัพยากรบุคคลที่มีประสิทธิภาพ
A10: SC8 เพิ่มการนำผลงานวิจัย/นวัตกรรม/บริการวิชาการ /ทำนุบำรุงศิลปวัฒนธรรมมาใช้เพื่อแก้ไขปัญหาเชิงพื้นที่และมี impact สูง เช่น เพิ่มรายได้ ยกระดับสุขภาวะ และจัดการสิ่งแวดล้อมของชุมชน
A11: ความได้เปรียบเชิงกลยุทธ์ (Strategic Advantage; SA)
A12: SA1 บุคลากรเชี่ยวชาญการวิจัยและนวัตกรรมเชิงพื้นที่ด้าน Bio-Hub, เทคโนโลยีวัสดุ, เมืองน่าอยู่ทันสมัย การท่องเที่ยว, สังคมและธุรกิจชายแดน
A13: SA2 มีระบบนิเวศรองรับการสร้างและพัฒนาผู้ประกอบการ เช่น ผู้เชี่ยวชาญ โรงงานต้นแบบ (Pilot Plant) ด้านผลิตภัณฑ์เนื้อสัตว์ พืชผักผลไม้, ศูนย์เครื่องมือกลางและบริการวิเคราะห์คุณภาพผลิตภัณฑ์
A14: SA3 เป็นที่ยอมรับของชุมชนและพร้อมให้การสนับสนุน
A15: SA4 มีเครือข่ายความร่วมมือด้านวิชาการที่เข้มแข็งทั้งในและต่างประเทศ รวมทั้งมีเครือข่ายความร่วมมือกับผู้ประกอบการและอุตสาหกรรมขนาดใหญ่
A16: SA5 อยู่ในพื้นที่ที่เป็นประตูสู่อาเซียน มีความสำคัญด้านเศรษฐกิจการค้า แหล่งวัฒนธรรมและการท่องเที่ยว
A17: โอกาสเชิงกลยุทธ์ (Strategic objectives; SO)
A18: SO1 การจัดทำข้อเสนอโครงการพลิกโฉมมหาวิทยาลัยที่เน้นด้านการผลิตกำลังนตามกลุ่ม 2 เช่น หลักสูตรสร้างผู้ประกอบการ/นวัตกรรม การสร้างและพัฒนาผู้ประกอบการ
A19: SO2 การจัดทำข้อเสนอโครงการสำคัญที่สอดคล้องกับแผนประเทศฯ และพัฒนาหลักสูตรบัณฑิตพันธุ์ใหม่และกำลังคนที่มีสมรรถนะสูงตาม New S-curve หรือร่วมมือกับมหาวิทยาลัยต่างประเทศ เอกชน ผู้ประกอบการ พัฒนาหลักสูตรเชิงบูรณาการ/Dual Program/Double Degree
A20: SO3 การพัฒนาหลักสูตรระยะสั้น Up-Skill/Re-Skill/New-Skill
A21: SO4 การนำเทคโนโลยีมาใช้ในการเรียนการสอนในรูปแบบผสมผสาน การนำเทคโนโลยีสมัยใหม่ เช่น AI, robot มาใช้ในการเรียนการสอน รวมถึงการปรับสู่ Digital Platform ในทุกพันธกิจ
A22: SO5 การจัดทำข้อเสนอโครงการวิจัยที่สอดคล้องกับทิศทางการให้ทุนของ อว. ที่มุ่งเน้นด้านการเกษตร, สังคมสูงวัย, สร้างและยกระดับ Start Up, ขจัดความยากจน เป็นต้น
A23: SO6 การพัฒนาผลิตภัณฑ์ นวัตกรรม และการบริการสำหรับผู้สูงอายุ
A24: SO7 การจัดทำข้อเสนอโครงการบริการวิชาการหรือทำนุฯ เชิงพื้นที่ตามที่ อว. สนับสนุนงบประมาณ
A25: SO8 การพัฒนาบริษัทร่วมทุนจากนวัตกรรมของ UBU กับผู้ร่วมทุน
A26: SO9 การพัฒนาโรงพยาบาลให้ได้มาตรฐานและรองรับผู้ป่วยเพิ่มขึ้น

Sheet แผนความเป็นเลิศ&ผลิตกำลังคน (hidden)
A1: ยุทธศาสตร์ | B1: กรอบกิจกรรมหลักตามReinventing Platforms | C1: แผนปฏิบัติการ | D1: โครงการ / กิจกรรม | E1: ตัวชี้วัด | F1: หน่วยนับ | I1: เป้าหมาย ปี 2566 | J1: เป้าหมาย ปี 2567 | K1: เป้าหมาย ปี 2568 | L1: เป้าหมาย ปี 2569 | M1: เป้าหมาย ปี 2570 | N1: งบ Reinventing ปี 2566 | O1: งบ Reinventing ปี 2567 | P1: งบ Reinventing ปี 2568 | Q1: งบ Reinventing ปี 2569 | R1: งบ Reinventing ปี 2570 | S1: เงินรายได้ ปี 2566 | T1: เงินรายได้ ปี 2567 | U1: เงินรายได้ ปี 2568 | V1: เงินรายได้ ปี 2569 | W1: เงินรายได้ ปี 2570 | X1: ประเภทแผน
A2: ยุทธศาสตร์ที่ 1 การสร้างนวัตกรรมการเกษตร อาหารและสุขภาพจากฐานทรัพยากรชีวภาพ เทคโนโลยีด้านวัสดุศาสตร์ และนวัตกรรมการพัฒนาสังคม | B2: การพัฒนาและแสวงหาบุคลากร | C2: แผนงานแสวงหาผู้เชี่ยวชาญทั้งในและต่างประเทศ | D2: 1. โครงการแลกเปลี่ยนนักวิจัยและผู้เชี่ยวชาญด้านนวัตกรรมการเกษตร อาหาร และสุขภาพบนฐานความหลากหลายทางชีวภาพ ทั้งจากภาคอุตสาหกรรม ภาควิชาการ ทั้งในและต่างประเทศ | E2: จำนวนความร่วมมือกับ ภาคเอกชนและภาคธุรกิจอุตสาหกรรมขนาดกลางขึ้นไป (เจาะจงเกินไป)/ค่าเป้าหมายน้อยเกินไป | F2: ความร่วมมือ | I2: 2 | J2: 2 | K2: 2 | L2: 2 | M2: 2 | N2: 1 | O2: 0.7 | P2: 0.7 | Q2: 0.7 | R2: 0.7 | S2: 0 | T2: 0.3 | U2: 0.3 | V2: 0.3 | W2: 0.3 | X2: 1
A3: ยุทธศาสตร์ที่ 1 การสร้างนวัตกรรมการเกษตร อาหารและสุขภาพจากฐานทรัพยากรชีวภาพ เทคโนโลยีด้านวัสดุศาสตร์ และนวัตกรรมการพัฒนาสังคม | B3: การพัฒนาและแสวงหาบุคลากร | C3: แผนงานแสวงหาผู้เชี่ยวชาญทั้งในและต่างประเทศ | D3: 1. โครงการแลกเปลี่ยนนักวิจัยและผู้เชี่ยวชาญด้านนวัตกรรมการเกษตร อาหาร และสุขภาพบนฐานความหลากหลายทางชีวภาพ ทั้งจากภาคอุตสาหกรรม ภาควิชาการ ทั้งในและต่างประเทศ | E3: จำนวนศาสตราจารย์อาคันตุกะจากภายในและภายนอกประเทศ | F3: คน | I3: 3 | J3: 6 | K3: 6 | L3: 6 | M3: 6 | N3: 3 | O3: 5 | P3: 4 | Q3: 4 | R3: 4 | S3: 0 | T3: 1 | U3: 2 | V3: 2 | W3: 2 | X3: 1
A4: ยุทธศาสตร์ที่ 1 การสร้างนวัตกรรมการเกษตร อาหารและสุขภาพจากฐานทรัพยากรชีวภาพ เทคโนโลยีด้านวัสดุศาสตร์ และนวัตกรรมการพัฒนาสังคม | B4: การพัฒนาและแสวงหาบุคลากร | C4: แผนงานแสวงหาผู้เชี่ยวชาญทั้งในและต่างประเทศ | D4: 1. โครงการแลกเปลี่ยนนักวิจัยและผู้เชี่ยวชาญด้านนวัตกรรมการเกษตร อาหาร และสุขภาพบนฐานความหลากหลายทางชีวภาพ ทั้งจากภาคอุตสาหกรรม ภาควิชาการ ทั้งในและต่างประเทศ | E4: จำนวนนักวิจัย/ผู้เชี่ยวชาญจากภายในและภายนอกประเทศ | F4: คน | I4: 3 | J4: 6 | K4: 6 | L4: 6 | M4: 6 | N4: 2 | O4: 4 | P4: 4 | Q4: 4 | R4: 4 | S4: 0 | T4: 0 | U4: 0 | V4: 0 | W4: 0 | X4: 1
A5: ยุทธศาสตร์ที่ 1 การสร้างนวัตกรรมการเกษตร อาหารและสุขภาพจากฐานทรัพยากรชีวภาพ เทคโนโลยีด้านวัสดุศาสตร์ และนวัตกรรมการพัฒนาสังคม | B5: การพัฒนาและแสวงหาบุคลากร | C5: แผนงานแสวงหาผู้เชี่ยวชาญทั้งในและต่างประเทศ | D5: 1. โครงการแลกเปลี่ยนนักวิจัยและผู้เชี่ยวชาญด้านนวัตกรรมการเกษตร อาหาร และสุขภาพบนฐานความหลากหลายทางชีวภาพ ทั้งจากภาคอุตสาหกรรม ภาควิชาการ ทั้งในและต่างประเทศ | E5: จำนวนบทความวิชาการนานาชาติในฐาน Q1 / Q2 | F5: เรื่อง | I5: 30 | J5: 60 | K5: 60 | L5: 60 | M5: 60 | N5: 0.15 | O5: 0.2 | P5: 0.2 | Q5: 0.2 | R5: 0.2 | S5: 0 | T5: 0.1 | U5: 0.1 | V5: 0.1 | W5: 0.1 | X5: 1
A6: ยุทธศาสตร์ที่ 1 การสร้างนวัตกรรมการเกษตร อาหารและสุขภาพจากฐานทรัพยากรชีวภาพ เทคโนโลยีด้านวัสดุศาสตร์ และนวัตกรรมการพัฒนาสังคม | B6: การพัฒนาและแสวงหาบุคลากร | C6: แผนงานแสวงหาผู้เชี่ยวชาญทั้งในและต่างประเทศ | D6: 1. โครงการแลกเปลี่ยนนักวิจัยและผู้เชี่ยวชาญด้านนวัตกรรมการเกษตร อาหาร และสุขภาพบนฐานความหลากหลายทางชีวภาพ ทั้งจากภาคอุตสาหกรรม ภาควิชาการ ทั้งในและต่างประเทศ | E6: จำนวนผลงานวิชาการและ/หรือนวัตกรรม | F6: รายการ | I6: - | J6: 6 | K6: 6 | L6: 6 | M6: 6 | N6: 0 | O6: 0 | P6: 0 | Q6: 0 | R6: 0 | S6: 0 | T6: 0 | U6: 0 | V6: 0 | W6: 0 | X6: 1
A7: ยุทธศาสตร์ที่ 1 การสร้างนวัตกรรมการเกษตร อาหารและสุขภาพจากฐานทรัพยากรชีวภาพ เทคโนโลยีด้านวัสดุศาสตร์ และนวัตกรรมการพัฒนาสังคม | B7: การพัฒนาและแสวงหาบุคลากร | C7: แผนงานแสวงหาผู้เชี่ยวชาญทั้งในและต่างประเทศ | D7: 1. โครงการแลกเปลี่ยนนักวิจัยและผู้เชี่ยวชาญด้านนวัตกรรมการเกษตร อาหาร และสุขภาพบนฐานความหลากหลายทางชีวภาพ ทั้งจากภาคอุตสาหกรรม ภาควิชาการ ทั้งในและต่างประเทศ | E7: จำนวนบุคลากรที่แลกเปลี่ยนกระบวนการการดำเนินการร่วมกับ ภาคอุตสาหกรรม ภาควิชาการ | F7: คน | I7: 100 | J7: 100 | K7: 100 | L7: 100 | M7: 100 | N7: 0.6 | O7: 0.3 | P7: 0.3 | Q7: 0.3 | R7: 0.3 | S7: 0 | T7: 0.3 | U7: 0.3 | V7: 0.3 | W7: 0.3 | X7: 1
A8: ยุทธศาสตร์ที่ 1 การสร้างนวัตกรรมการเกษตร อาหารและสุขภาพจากฐานทรัพยากรชีวภาพ เทคโนโลยีด้านวัสดุศาสตร์ และนวัตกรรมการพัฒนาสังคม | B8: การพัฒนาและแสวงหาบุคลากร | C8: แผนงานแสวงหาผู้เชี่ยวชาญทั้งในและต่างประเทศ | D8: 2. โครงการสนับสนุนและแสวงหานักวิจัยหลังปริญญาเอกเพื่อทำงานวิจัยในสาขาที่เกี่ยวข้องกับเศรษฐกิจฐานชีวภาพ | E8: จำนวนนักวิจัยหลังปริญญาเอก | F8: คน | I8: 9 | J8: 9 | K8: 9 | L8: 9 | M8: 9 | N8: 3.78 | O8: 3.78 | P8: 3.78 | Q8: 3.78 | R8: 3.78 | S8: 0 | T8: 0 | U8: 0 | V8: 0 | W8: 0 | X8: 1
A9: ยุทธศาสตร์ที่ 1 การสร้างนวัตกรรมการเกษตร อาหารและสุขภาพจากฐานทรัพยากรชีวภาพ เทคโนโลยีด้านวัสดุศาสตร์ และนวัตกรรมการพัฒนาสังคม | B9: การพัฒนาและแสวงหาบุคลากร | C9: แผนงานแสวงหาผู้เชี่ยวชาญทั้งในและต่างประเทศ | D9: 2. โครงการสนับสนุนและแสวงหานักวิจัยหลังปริญญาเอกเพื่อทำงานวิจัยในสาขาที่เกี่ยวข้องกับเศรษฐกิจฐานชีวภาพ | E9: จำนวนบทความวิชาการนานาชาติในฐาน Q1 /Q2 | F9: เรื่อง | I9: 18 | J9: 18 | K9: 18 | L9: 18 | M9: 18 | N9: 0 | O9: 0 | P9: 0 | Q9: 0 | R9: 0 | S9: 0.9 | T9: 0.9 | U9: 0.9 | V9: 0.9 | W9: 0.9 | X9: 1
A10: ยุทธศาสตร์ที่ 1 การสร้างนวัตกรรมการเกษตร อาหารและสุขภาพจากฐานทรัพยากรชีวภาพ เทคโนโลยีด้านวัสดุศาสตร์ และนวัตกรรมการพัฒนาสังคม | B10: การสร้างแพลทฟอร์มความร่วมมือ | C10: แผนงานสร้างเครือข่ายความร่วมมือการวิจัยกับธุรกิจและอุตสาหกรรมเป้าหมาย | D10: 1. โครงการสนับสนุนการวิจัยและสร้างนวัตกรรม ร่วมกับภาคธุรกิจและอุตสาหกรรมด้านการเกษตร อาหาร และสุขภาพ | E10: จำนวนงบประมาณที่ใช้ร่วมทำวิจัยกับภาคธุรกิจและอุตสาหกรรม | F10: ล้านบาท | I10: - | J10: 1 | K10: 2 | L10: 2 | M10: 3 | N10: 0 | O10: 0 | P10: 0 | Q10: 0 | R10: 0 | S10: 0 | T10: 0.4 | U10: 0.8 | V10: 0.8 | W10: 1.2 | X10: 1
A11: ยุทธศาสตร์ที่ 1 การสร้างนวัตกรรมการเกษตร อาหารและสุขภาพจากฐานทรัพยากรชีวภาพ เทคโนโลยีด้านวัสดุศาสตร์ และนวัตกรรมการพัฒนาสังคม | B11: การสร้างแพลทฟอร์มความร่วมมือ | C11: แผนงานสร้างเครือข่ายความร่วมมือการวิจัยกับธุรกิจและอุตสาหกรรมเป้าหมาย | D11: 1. โครงการสนับสนุนการวิจัยและสร้างนวัตกรรม ร่วมกับภาคธุรกิจและอุตสาหกรรมด้านการเกษตร อาหาร และสุขภาพ | E11: จำนวนความร่วมมือกับภาคเอกชนและภาคธุรกิจอุตสาหกรรมขนาดใหญ่ | F11: ความร่วมมือ | I11: 0 | J11: 3 | K11: 3 | L11: 3 | M11: 3 | N11: 0 | O11: 1.7 | P11: 1.7 | Q11: 1.7 | R11: 1.7 | S11: 0 | T11: 0.3 | U11: 0.3 | V11: 0.3 | W11: 0.3 | X11: 1
A12: ยุทธศาสตร์ที่ 1 การสร้างนวัตกรรมการเกษตร อาหารและสุขภาพจากฐานทรัพยากรชีวภาพ เทคโนโลยีด้านวัสดุศาสตร์ และนวัตกรรมการพัฒนาสังคม | B12: การสร้างแพลทฟอร์มความร่วมมือ | C12: แผนงานสร้างเครือข่ายความร่วมมือการวิจัยกับธุรกิจและอุตสาหกรรมเป้าหมาย | D12: 1. โครงการสนับสนุนการวิจัยและสร้างนวัตกรรม ร่วมกับภาคธุรกิจและอุตสาหกรรมด้านการเกษตร อาหาร และสุขภาพ | E12: จำนวนผลงานวิจัยและหรือนวัตกรรมที่ร่วมกับภาคธุรกิจและอุตสาหกรรม | F12: เรื่อง | I12: 20 | J12: 20 | K12: 20 | L12: 20 | M12: 20 | N12: 0 | O12: 0 | P12: 0 | Q12: 0 | R12: 0 | S12: 2 | T12: 2 | U12: 2 | V12: 2 | W12: 2 | X12: 1
A13: ยุทธศาสตร์ที่ 1 การสร้างนวัตกรรมการเกษตร อาหารและสุขภาพจากฐานทรัพยากรชีวภาพ เทคโนโลยีด้านวัสดุศาสตร์ และนวัตกรรมการพัฒนาสังคม | B13: การสร้างแพลทฟอร์มความร่วมมือ | C13: แผนงานสร้างเครือข่ายความร่วมมือการวิจัยกับธุรกิจและอุตสาหกรรมเป้าหมาย | D13: 2. โครงการพัฒนาและจัดตั้งกลุ่มวิจัยด้านการเกษตร อาหารและสุขภาพจากฐานทรัพยากรชีวภาพ เทคโนโลยีด้านวัสดุศาสตร์ และนวัตกรรมการพัฒนาสังคม | E13: จำนวนกลุ่มวิจัยด้านการเกษตร อาหารและสุขภาพจากฐานทรัพยากรชีวภาพ เทคโนโลยีด้านวัสดุศาสตร์ และนวัตกรรมการพัฒนาสังคม | F13: กลุ่ม | I13: 4 | J13: 6 | K13: 6 | L13: 6 | M13: 6 | N13: 6 | O13: 8 | P13: 8 | Q13: 8 | R13: 8 | S13: 0 | T13: 1 | U13: 1 | V13: 1 | W13: 1 | X13: 1
A14: ยุทธศาสตร์ที่ 1 การสร้างนวัตกรรมการเกษตร อาหารและสุขภาพจากฐานทรัพยากรชีวภาพ เทคโนโลยีด้านวัสดุศาสตร์ และนวัตกรรมการพัฒนาสังคม | B14: การสร้างแพลทฟอร์มความร่วมมือ | C14: แผนงานสร้างเครือข่ายความร่วมมือการวิจัยกับธุรกิจและอุตสาหกรรมเป้าหมาย | D14: 2. โครงการพัฒนาและจัดตั้งกลุ่มวิจัยด้านการเกษตร อาหารและสุขภาพจากฐานทรัพยากรชีวภาพ เทคโนโลยีด้านวัสดุศาสตร์ และนวัตกรรมการพัฒนาสังคม | E14: จำนวนบทความวิชาการนานาชาติในฐาน Q1 /Q2 | F14: เรื่อง | I14: 20 | J14: 30 | K14: 31 | L14: 32 | M14: 33 | N14: 1 | O14: 1 | P14: 1 | Q14: 1 | R14: 1 | S14: 0 | T14: 0.5 | U14: 0.5 | V14: 0.5 | W14: 0.5 | X14: 1
A15: ยุทธศาสตร์ที่ 1 การสร้างนวัตกรรมการเกษตร อาหารและสุขภาพจากฐานทรัพยากรชีวภาพ เทคโนโลยีด้านวัสดุศาสตร์ และนวัตกรรมการพัฒนาสังคม | B15: การสร้างแพลทฟอร์มความร่วมมือ | C15: แผนงานสร้างเครือข่ายความร่วมมือการวิจัยกับธุรกิจและอุตสาหกรรมเป้าหมาย | D15: 2. โครงการพัฒนาและจัดตั้งกลุ่มวิจัยด้านการเกษตร อาหารและสุขภาพจากฐานทรัพยากรชีวภาพ เทคโนโลยีด้านวัสดุศาสตร์ และนวัตกรรมการพัฒนาสังคม | E15: จำนวนผลิตภัณฑ์ ด้านการเกษตร อาหารและสุขภาพจากฐานทรัพยากรชีวภาพ เทคโนโลยีด้านวัสดุศาสตร์และนวัตกรรมการพัฒนาสังคม | F15: ผลงาน | I15: 4 | J15: 12 | K15: 12 | L15: 12 | M15: 12 | N15: 0 | O15: 0 | P15: 0 | Q15: 0 | R15: 0 | X15: 1
A16: ยุทธศาสตร์ที่ 1 การสร้างนวัตกรรมการเกษตร อาหารและสุขภาพจากฐานทรัพยากรชีวภาพ เทคโนโลยีด้านวัสดุศาสตร์ และนวัตกรรมการพัฒนาสังคม | B16: การบริหารงานวิจัยและนวัตกรรม | C16: แผนงานผลักดันงานวิจัยไปสู่นวัตกรรมและการใช้ประโยชน์ | D16: 2. โครงการศูนย์ความเป็นเลิศด้านการเกษตร อาหารและสุขภาพจากฐานทรัพยากรชีวภาพ | E16: จำนวนผลงานที่นำไปใช้ | F16: ผลงาน | I16: 10 | J16: 10 | K16: 10 | L16: 10 | M16: 10 | N16: 6 | O16: 5.5 | P16: 5.5 | Q16: 5.5 | R16: 5.5 | S16: 0 | T16: 0.5 | U16: 0.5 | V16: 0.5 | W16: 0.5 | X16: 1
A17: ยุทธศาสตร์ที่ 1 การสร้างนวัตกรรมการเกษตร อาหารและสุขภาพจากฐานทรัพยากรชีวภาพ เทคโนโลยีด้านวัสดุศาสตร์ และนวัตกรรมการพัฒนาสังคม | B17: การบริหารงานวิจัยและนวัตกรรม | C17: แผนงานผลักดันงานวิจัยไปสู่นวัตกรรมและการใช้ประโยชน์ | D17: 2. โครงการศูนย์ความเป็นเลิศด้านการเกษตร อาหารและสุขภาพจากฐานทรัพยากรชีวภาพ | E17: จำนวนผลงานวิจัยและนวัตกรรมที่ได้รับการผลิตและทดสอบตลาด | F17: ผลงาน | I17: 10 | J17: 10 | K17: 10 | L17: 10 | M17: 10 | S17: 1 | T17: 1 | U17: 1 | V17: 1 | W17: 1 | X17: 1
A18: ยุทธศาสตร์ที่ 1 การสร้างนวัตกรรมการเกษตร อาหารและสุขภาพจากฐานทรัพยากรชีวภาพ เทคโนโลยีด้านวัสดุศาสตร์ และนวัตกรรมการพัฒนาสังคม | B18: การบริหารงานวิจัยและนวัตกรรม | C18: แผนงานผลักดันงานวิจัยไปสู่นวัตกรรมและการใช้ประโยชน์ | D18: 2. โครงการศูนย์ความเป็นเลิศด้านการเกษตร อาหารและสุขภาพจากฐานทรัพยากรชีวภาพ | E18: ร้านหรือพื้นที่จำหน่ายสินค้าและนวัตกรรมของนักศึกษาและบัณฑิตผู้ประกอบการ | F18: แหล่ง | I18: 1 | J18: 1 | K18: 2 | L18: 2 | M18: 2 | S18: 1 | T18: 1 | U18: 0 | V18: 0 | W18: 0 | X18: 1
A19: ยุทธศาสตร์ที่ 1 การสร้างนวัตกรรมการเกษตร อาหารและสุขภาพจากฐานทรัพยากรชีวภาพ เทคโนโลยีด้านวัสดุศาสตร์ และนวัตกรรมการพัฒนาสังคม | B19: การบริหารงานวิจัยและนวัตกรรม | C19: แผนงานผลักดันงานวิจัยไปสู่นวัตกรรมและการใช้ประโยชน์ | D19: 3. โครงการศูนย์ความเป็นเลิศด้านวัสดุศาสตร์ | E19: จำนวนผลงานที่นำไปใช้ | F19: ผลงาน | I19: 10 | J19: 10 | K19: 10 | L19: 10 | M19: 10 | N19: 6 | O19: 5 | P19: 5 | Q19: 5 | R19: 5 | S19: 0 | T19: 1 | U19: 1 | V19: 1 | W19: 1 | X19: 1
A20: ยุทธศาสตร์ที่ 1 การสร้างนวัตกรรมการเกษตร อาหารและสุขภาพจากฐานทรัพยากรชีวภาพ เทคโนโลยีด้านวัสดุศาสตร์ และนวัตกรรมการพัฒนาสังคม | B20: การบริหารงานวิจัยและนวัตกรรม | C20: แผนงานผลักดันงานวิจัยไปสู่นวัตกรรมและการใช้ประโยชน์ | D20: 4. โครงการศูนย์การเรียนรู้นวัตกรรมการพัฒนาสังคมเพื่อพัฒนาพื้นที่ให้เป็นเมืองน่าอยู่อัจฉริยะ | E20: จำนวนผลงานที่นำไปใช้ | F20: ผลงาน | I20: 10 | J20: 10 | K20: 10 | L20: 10 | M20: 10 | N20: 6 | O20: 5 | P20: 5 | Q20: 5 | R20: 5 | S20: 0 | T20: 1 | U20: 1 | V20: 1 | W20: 1 | X20: 1
A21: ยุทธศาสตร์ที่ 2 การสร้างและพัฒนาความเป็นผู้ประกอบการ | B21: การพัฒนาคุณภาพการเรียนการสอน | C21: แผนงานการสร้างหลักสูตรระยะสั้นเพื่อพัฒนาอาชีพและสนับสนุน/เติมเต็มช่องว่างระหว่างทักษะอาชีพเดิมและอาชีพใหม่ที่เกิดขึ้นภายหลังสถานการณ์ COVID-19 | D21: 1. หลักสูตรระยะสั้นด้านการเกษตร อาหารและสุขภาพ จากฐานทรัพยากรชีวภาพ | E21: จำนวนผู้ได้รับการพัฒนา | F21: คน | I21: 700 | J21: 700 | K21: 700 | L21: 700 | M21: 700 | N21: 3 | O21: 2.5 | P21: 2 | Q21: 2 | R21: 2 | S21: 0 | T21: 0.5 | U21: 1 | V21: 1 | W21: 1 | X21: 2
A22: ยุทธศาสตร์ที่ 2 การสร้างและพัฒนาความเป็นผู้ประกอบการ | B22: การพัฒนาคุณภาพการเรียนการสอน | C22: แผนงานการสร้างหลักสูตรระยะสั้นเพื่อพัฒนาอาชีพและสนับสนุน/เติมเต็มช่องว่างระหว่างทักษะอาชีพเดิมและอาชีพใหม่ที่เกิดขึ้นภายหลังสถานการณ์ COVID-19 | D22: 1. หลักสูตรระยะสั้นด้านการเกษตร อาหารและสุขภาพ จากฐานทรัพยากรชีวภาพ | E22: จำนวนผู้ได้รับการพัฒนาที่นำองค์ความรู้ไปใช้ในการดำเนินธุรกิจ | F22: คน | I22: 50 | J22: 50 | K22: 50 | L22: 50 | M22: 50 | X22: 2
A23: ยุทธศาสตร์ที่ 2 การสร้างและพัฒนาความเป็นผู้ประกอบการ | B23: การพัฒนาคุณภาพการเรียนการสอน | C23: แผนงานการสร้างหลักสูตรระยะสั้นเพื่อพัฒนาอาชีพและสนับสนุน/เติมเต็มช่องว่างระหว่างทักษะอาชีพเดิมและอาชีพใหม่ที่เกิดขึ้นภายหลังสถานการณ์ COVID-19 | D23: 2. หลักสูตรระยะสั้นด้านวัสดุศาสตร์ | E23: จำนวนผู้ได้รับการพัฒนา | F23: คน | I23: 300 | J23: 300 | K23: 300 | L23: 300 | M23: 300 | N23: 1.5 | O23: 1.2 | P23: 1.2 | Q23: 1.2 | R23: 1.2 | X23: 2
A24: ยุทธศาสตร์ที่ 2 การสร้างและพัฒนาความเป็นผู้ประกอบการ | B24: การพัฒนาคุณภาพการเรียนการสอน | C24: แผนงานการสร้างหลักสูตรระยะสั้นเพื่อพัฒนาอาชีพและสนับสนุน/เติมเต็มช่องว่างระหว่างทักษะอาชีพเดิมและอาชีพใหม่ที่เกิดขึ้นภายหลังสถานการณ์ COVID-19 | D24: 2. หลักสูตรระยะสั้นด้านวัสดุศาสตร์ | E24: จำนวนผู้ได้รับการพัฒนาที่นำองค์ความรู้ไปใช้ในการดำเนินธุรกิจ | F24: คน | I24: 10 | J24: 10 | K24: 10 | L24: 10 | M24: 10 | S24: 0 | T24: 0.3 | U24: 0.3 | V24: 0.3 | W24: 0.3 | X24: 2
A25: ยุทธศาสตร์ที่ 2 การสร้างและพัฒนาความเป็นผู้ประกอบการ | B25: การพัฒนาคุณภาพการเรียนการสอน | C25: แผนงานการสร้างหลักสูตรระยะสั้นเพื่อพัฒนาอาชีพและสนับสนุน/เติมเต็มช่องว่างระหว่างทักษะอาชีพเดิมและอาชีพใหม่ที่เกิดขึ้นภายหลังสถานการณ์ COVID-19 | D25: 3. หลักสูตรระยะสั้นด้านนวัตกรรมการพัฒนาสังคม เพื่อพัฒนาพื้นที่ให้เป็นเมืองน่าอยู่อัจฉริยะ | E25: จำนวนผู้ได้รับการพัฒนา | F25: คน | I25: 500 | J25: 500 | K25: 500 | L25: 500 | M25: 500 | N25: 2.5 | O25: 2 | P25: 2 | Q25: 2 | R25: 2 | X25: 2
A26: ยุทธศาสตร์ที่ 2 การสร้างและพัฒนาความเป็นผู้ประกอบการ | B26: การพัฒนาคุณภาพการเรียนการสอน | C26: แผนงานการสร้างหลักสูตรระยะสั้นเพื่อพัฒนาอาชีพและสนับสนุน/เติมเต็มช่องว่างระหว่างทักษะอาชีพเดิมและอาชีพใหม่ที่เกิดขึ้นภายหลังสถานการณ์ COVID-19 | D26: 3. หลักสูตรระยะสั้นด้านนวัตกรรมการพัฒนาสังคม เพื่อพัฒนาพื้นที่ให้เป็นเมืองน่าอยู่อัจฉริยะ | E26: จำนวนผู้ได้รับการพัฒนาที่นำองค์ความรู้ไปใช้ในการดำเนินธุรกิจ | F26: คน | I26: 50 | J26: 50 | K26: 50 | L26: 50 | M26: 50 | S26: 0 | T26: 0.5 | U26: 0.5 | V26: 0.5 | W26: 0.5 | X26: 2
A27: ยุทธศาสตร์ที่ 2 การสร้างและพัฒนาความเป็นผู้ประกอบการ | B27: การพัฒนาคุณภาพการเรียนการสอน | C27: แผนงานกิจกรรมเพื่อสร้างนักวิจัย นักศึกษาและศิษย์เก่าเป็นผู้ประกอบการใหม่ | D27: 1. โครงการส่งเสริมและสนับสนุนนักวิจัย นักศึกษาและศิษย์เก่าในการเข้าร่วมกิจกรรมการประกวดและการแข่งขันความเป็นผู้ประกอบการระดับชาติและนานาชาติ | E27: จำนวนผู้เข้าร่วมโครงการ | F27: คน | I27: 200 | J27: 200 | K27: 200 | L27: 200 | M27: 200 | N27: 1 | O27: 1 | P27: 1 | Q27: 1 | R27: 1 | X27: 2
A28: ยุทธศาสตร์ที่ 2 การสร้างและพัฒนาความเป็นผู้ประกอบการ | B28: การพัฒนาคุณภาพการเรียนการสอน | C28: แผนงานกิจกรรมเพื่อสร้างนักวิจัย นักศึกษาและศิษย์เก่าเป็นผู้ประกอบการใหม่ | D28: 1. โครงการส่งเสริมและสนับสนุนนักวิจัย นักศึกษาและศิษย์เก่าในการเข้าร่วมกิจกรรมการประกวดและการแข่งขันความเป็นผู้ประกอบการระดับชาติและนานาชาติ | E28: จำนวนรางวัลด้านผู้ประกอบการ | F28: รางวัล | I28: 50 | J28: 50 | K28: 50 | L28: 50 | M28: 50 | N28: 3 | O28: 3 | P28: 3 | Q28: 3 | R28: 3 | X28: 2
A29: ยุทธศาสตร์ที่ 2 การสร้างและพัฒนาความเป็นผู้ประกอบการ | B29: การพัฒนาคุณภาพการเรียนการสอน | C29: แผนงานกิจกรรมเพื่อสร้างนักวิจัย นักศึกษาและศิษย์เก่าเป็นผู้ประกอบการใหม่ | D29: 1. โครงการส่งเสริมและสนับสนุนนักวิจัย นักศึกษาและศิษย์เก่าในการเข้าร่วมกิจกรรมการประกวดและการแข่งขันความเป็นผู้ประกอบการระดับชาติและนานาชาติ | E29: งบประมาณจากแหล่งทุนภายนอกสนับสนุนการสร้างผู้ประกอบการ | F29: ล้านบาท | I29: 5 | J29: 6 | K29: 11 | L29: 16 | M29: 21 | S29: 2 | T29: 1.5 | U29: 2.5 | V29: 2.5 | W29: 2.5 | X29: 2
A30: ยุทธศาสตร์ที่ 2 การสร้างและพัฒนาความเป็นผู้ประกอบการ | B30: การพัฒนาคุณภาพการเรียนการสอน | C30: แผนงานกิจกรรมเพื่อสร้างนักวิจัย นักศึกษาและศิษย์เก่าเป็นผู้ประกอบการใหม่ | D30: 1. โครงการส่งเสริมและสนับสนุนนักวิจัย นักศึกษาและศิษย์เก่าในการเข้าร่วมกิจกรรมการประกวดและการแข่งขันความเป็นผู้ประกอบการระดับชาติและนานาชาติ | E30: ร้อยละของนักศึกษาชมรม/สมาคมการสร้างผู้ประกอบการนำผลงานเข้าร่วมโครงการ | F30: ร้อยละ | I30: 10 | J30: 10 | K30: 10 | L30: 10 | M30: 10 | S30: 0.3 | T30: 0.3 | U30: 0.3 | V30: 0.3 | W30: 0.3 | X30: 2
A31: ยุทธศาสตร์ที่ 2 การสร้างและพัฒนาความเป็นผู้ประกอบการ | B31: การพัฒนาคุณภาพการเรียนการสอน | C31: แผนงานกิจกรรมเพื่อสร้างนักวิจัย นักศึกษาและศิษย์เก่าเป็นผู้ประกอบการใหม่ | D31: 2. โครงการสร้างผู้ประกอบการใหม่ | E31: จำนวนผู้ได้รับการพัฒนา | F31: คน | I31: 670 | J31: 670 | K31: 670 | L31: 670 | M31: 670 | N31: 7.7 | O31: 7.7 | P31: 9.7 | Q31: 9.7 | R31: 9.7 | X31: 2
A32: ยุทธศาสตร์ที่ 2 การสร้างและพัฒนาความเป็นผู้ประกอบการ | B32: การพัฒนาคุณภาพการเรียนการสอน | C32: แผนงานกิจกรรมเพื่อสร้างนักวิจัย นักศึกษาและศิษย์เก่าเป็นผู้ประกอบการใหม่ | D32: 2. โครงการสร้างผู้ประกอบการใหม่ | E32: จำนวนนักศึกษาและศิษย์เก่าเป็นผู้ประกอบการ | F32: คน | I32: 260 | J32: 260 | K32: 260 | L32: 260 | M32: 260 | S32: 1 | T32: 1 | U32: 2 | V32: 2 | W32: 2 | X32: 2
A33: ยุทธศาสตร์ที่ 2 การสร้างและพัฒนาความเป็นผู้ประกอบการ | B33: การพัฒนาคุณภาพการเรียนการสอน | C33: แผนงานกิจกรรมเพื่อสร้างนักวิจัย นักศึกษาและศิษย์เก่าเป็นผู้ประกอบการใหม่ | D33: 2. โครงการสร้างผู้ประกอบการใหม่ | E33: จำนวน Holding Company | F33: บริษัท | I33: 0 | J33: 0 | K33: 1 | L33: 1 | M33: 1 | X33: 2
A34: ยุทธศาสตร์ที่ 2 การสร้างและพัฒนาความเป็นผู้ประกอบการ | B34: การพัฒนาคุณภาพการเรียนการสอน | C34: แผนงานกิจกรรมเพื่อสร้างนักวิจัย นักศึกษาและศิษย์เก่าเป็นผู้ประกอบการใหม่ | D34: 2. โครงการสร้างผู้ประกอบการใหม่ | E34: จำนวนความร่วมมือในการพัฒนานักศึกษาผู้ประกอบการ ขนาดกลางขึ้นไป | F34: ความร่วมมือ | I34: 10 | J34: 10 | K34: 10 | L34: 10 | M34: 10 | X34: 2
A35: ยุทธศาสตร์ที่ 2 การสร้างและพัฒนาความเป็นผู้ประกอบการ | B35: การพัฒนาคุณภาพการเรียนการสอน | C35: แผนงานการสร้างหลักสูตรเพื่อผลิตกำลังคนสมรรถนะสูงเพียงพอตามเป้าหมายยุทธศาสตร์และการพัฒนาแห่งอนาคต | D35: 1. หลักสูตรการเป็นผู้ประกอบการธุรกิจบริการสุขภาพ | E35: จำนวนนักศึกษาที่เข้าศึกษาในหลักสูตร (ด้านธุรกิจบริการสุขภาพ) | F35: คน | I35: 50 | J35: 100 | K35: 150 | L35: 200 | M35: 200 | N35: 16 | O35: 18 | P35: 18 | Q35: 20 | R35: 5 | S35: 1 | T35: 2 | U35: 3 | V35: 3 | W35: 3 | X35: 2
A36: ยุทธศาสตร์ที่ 2 การสร้างและพัฒนาความเป็นผู้ประกอบการ | B36: การพัฒนาคุณภาพการเรียนการสอน | C36: แผนงานการสร้างหลักสูตรเพื่อผลิตกำลังคนสมรรถนะสูงเพียงพอตามเป้าหมายยุทธศาสตร์และการพัฒนาแห่งอนาคต | D36: 2. หลักสูตรการจัดการเทคโนโลยีสิ่งแวดล้อมเพื่อการท่องเที่ยวและการเป็นผู้ประกอบการเพื่อสังคม | E36: จำนวนนักศึกษาที่เข้าศึกษาในหลักสูตร (ด้านเทคโนโลยีสิ่งแวดล้อมเพื่อการท่องเที่ยว) | F36: คน | I36: 50 | J36: 100 | K36: 150 | L36: 200 | M36: 200 | N36: 5 | O36: 6 | P36: 8 | Q36: 10 | R36: 7 | S36: 0 | T36: 1 | U36: 1 | V36: 1 | W36: 1 | X36: 2
A37: ยุทธศาสตร์ที่ 2 การสร้างและพัฒนาความเป็นผู้ประกอบการ | B37: การพัฒนาคุณภาพการเรียนการสอน | C37: แผนงานการสร้างหลักสูตรเพื่อผลิตกำลังคนสมรรถนะสูงเพียงพอตามเป้าหมายยุทธศาสตร์และการพัฒนาแห่งอนาคต | D37: 2. หลักสูตรการจัดการเทคโนโลยีสิ่งแวดล้อมเพื่อการท่องเที่ยวและการเป็นผู้ประกอบการเพื่อสังคม | E37: จำนวนนักศึกษาที่เข้าศึกษาในหลักสูตร (ด้านการเป็นผู้ประกอบการเพื่อสังคม) | F37: คน | I37: 50 | J37: 100 | K37: 150 | L37: 200 | M37: 200 | N37: 5 | O37: 6 | P37: 8 | Q37: 10 | R37: 7 | S37: 0 | T37: 1 | U37: 1 | V37: 1 | W37: 1 | X37: 2
A38: ยุทธศาสตร์ที่ 2 การสร้างและพัฒนาความเป็นผู้ประกอบการ | B38: การพัฒนาคุณภาพการเรียนการสอน | C38: แผนงานการสร้างหลักสูตรเพื่อผลิตกำลังคนสมรรถนะสูงเพียงพอตามเป้าหมายยุทธศาสตร์และการพัฒนาแห่งอนาคต | D38: 3. หลักสูตรเทคโนโลยีด้านการเกษตร อาหารและสุขภาพจากฐานทรัพยากรชีวภาพ | E38: จำนวนนักศึกษาที่เข้าศึกษาในหลักสูตร (ด้านเทคโนโลยีการผลิตสินค้าเกษตรเพื่อผลิตอาหารฟังก์ชัน (functional foods)) | F38: คน | I38: 50 | J38: 100 | K38: 150 | L38: 200 | M38: 200 | N38: 6 | O38: 8 | P38: 10 | Q38: 12 | R38: 7 | S38: 1 | T38: 1 | U38: 1 | V38: 1 | W38: 1 | X38: 2
A39: ยุทธศาสตร์ที่ 2 การสร้างและพัฒนาความเป็นผู้ประกอบการ | B39: การพัฒนาคุณภาพการเรียนการสอน | C39: แผนงานการสร้างหลักสูตรเพื่อผลิตกำลังคนสมรรถนะสูงเพียงพอตามเป้าหมายยุทธศาสตร์และการพัฒนาแห่งอนาคต | D39: 3. หลักสูตรเทคโนโลยีด้านการเกษตร อาหารและสุขภาพจากฐานทรัพยากรชีวภาพ | E39: จำนวนนักศึกษาที่เข้าศึกษาในหลักสูตร (ด้านผลิตภัณฑ์โภชนเภสัช (nutraceutical)) | F39: คน | I39: 50 | J39: 100 | K39: 150 | L39: 200 | M39: 200 | N39: 6 | O39: 8 | P39: 10 | Q39: 12 | R39: 7 | S39: 1 | T39: 1 | U39: 1 | V39: 1 | W39: 1 | X39: 2
A40: ยุทธศาสตร์ที่ 2 การสร้างและพัฒนาความเป็นผู้ประกอบการ | B40: การพัฒนาคุณภาพการเรียนการสอน | C40: แผนงานการสร้างหลักสูตรเพื่อผลิตกำลังคนสมรรถนะสูงเพียงพอตามเป้าหมายยุทธศาสตร์และการพัฒนาแห่งอนาคต | D40: 3. หลักสูตรเทคโนโลยีด้านการเกษตร อาหารและสุขภาพจากฐานทรัพยากรชีวภาพ | E40: จำนวนนักศึกษาที่เข้าศึกษาในหลักสูตร (ด้านการใช้และการพัฒนาเครื่องมือทางการแพทย์ และเครื่องมือในอุตสาหกรรมอาหารฟังก์ชันและอาหารเป็นยา) | F40: คน | I40: 50 | J40: 100 | K40: 150 | L40: 200 | M40: 200 | N40: 9 | O40: 9 | P40: 9 | Q40: 4 | R40: 2 | S40: 1 | T40: 1 | U40: 1 | V40: 1 | W40: 1 | X40: 2
A41: ยุทธศาสตร์ที่ 2 การสร้างและพัฒนาความเป็นผู้ประกอบการ | B41: การพัฒนาคุณภาพการเรียนการสอน | C41: แผนงานจัดการศึกษาสำหรับผู้สูงอายุ (Education For The Elderly) | D41: 1. โครงการจัดการหลักสูตรระยะสั้นหรือต่อเนื่องสำหรับผู้สูงอายุ (Edutainment for the Elderly) | E41: จำนวนหลักสูตร | F41: หลักสูตร | I41: 5 | J41: 7 | K41: 9 | L41: 10 | M41: 11 | N41: 0.5 | O41: 0.7 | P41: 0.9 | Q41: 1 | R41: 1.1 | X41: 2
A42: ยุทธศาสตร์ที่ 2 การสร้างและพัฒนาความเป็นผู้ประกอบการ | B42: การพัฒนาคุณภาพการเรียนการสอน | C42: แผนงานจัดการศึกษาสำหรับผู้สูงอายุ (Education For The Elderly) | D42: 1. โครงการจัดการหลักสูตรระยะสั้นหรือต่อเนื่องสำหรับผู้สูงอายุ (Edutainment for the Elderly) | E42: จำนวนผู้เข้าร่วมอบรม | F42: คน | I42: 300 | J42: 420 | K42: 540 | L42: 600 | M42: 660 | N42: 0.5 | O42: 0.7 | P42: 0.9 | Q42: 1 | R42: 1.1 | X42: 2
A43: ยุทธศาสตร์ที่ 2 การสร้างและพัฒนาความเป็นผู้ประกอบการ | B43: การพัฒนาคุณภาพการเรียนการสอน | C43: แผนงานจัดการศึกษาสำหรับผู้สูงอายุ (Education For The Elderly) | D43: 2. โครงการเสริมสร้างความรู้เท่าทันสื่อสุขภาพสำหรับผู้สูงวัย | E43: จำนวนผู้เข้าร่วมอบรม | F43: คน | I43: 60 | J43: 60 | K43: 60 | L43: 60 | M43: 60 | S43: 0.1 | T43: 0.1 | U43: 0.1 | V43: 0.1 | W43: 0.1 | X43: 2
A44: ยุทธศาสตร์ที่ 3 การส่งเสริมและผลักดันให้บุคลากรทำงานร่วมกับสถาบันวิจัย ผู้ประกอบการด้านเกษตรอาหาร และสุขภาพบนฐานความหลากหลายทางชีวภาพ | B44: การพัฒนาและแสวงหาบุคลากร | C44: แผนงานการพัฒนาทักษะบุคลากรเพื่อสนับสนุนการผลิตกำลังคนในการเป็นผู้ประกอบการ | D44: 1. โครงการการเพิ่มทักษะ (up skill) อาจารย์เพื่อตอบรับกับแนวโน้มเทคโนโลยี ที่ส่งผลต่อการปรับตัวในการจัดการเรียนการสอน | E44: จำนวนอาจารย์ที่ได้รับการพัฒนา | F44: คน | I44: 100 | J44: 100 | K44: 100 | L44: 100 | M44: 100 | S44: 0.3 | T44: 0.3 | U44: 0.3 | V44: 0.3 | W44: 0.3 | X44: 2
A45: ยุทธศาสตร์ที่ 3 การส่งเสริมและผลักดันให้บุคลากรทำงานร่วมกับสถาบันวิจัย ผู้ประกอบการด้านเกษตรอาหาร และสุขภาพบนฐานความหลากหลายทางชีวภาพ | B45: การพัฒนาและแสวงหาบุคลากร | C45: แผนงานการพัฒนาทักษะบุคลากรเพื่อสนับสนุนการผลิตกำลังคนในการเป็นผู้ประกอบการ | D45: โครงการการเพิ่มทักษะ (up skill) อาจารย์เพื่อสร้างความเป็นผู้ประกอบการ ที่ปรึกษาและโค้ชทางธุรกิจให้แก่อาจารย์และบุคลากรในมหาวิทยาลัย | E45: จำนวนบุคลากรที่เป็นที่ปรึกษาและโค้ชทางธุรกิจให้แก่นักศึกษา/บัณฑิตผู้ประกอบการ | F45: คน | I45: 100 | J45: 100 | K45: 100 | L45: 100 | M45: 100 | N45: 2 | O45: 1.5 | P45: 1.5 | Q45: 1.5 | R45: 1 | S45: 0 | T45: 0.5 | U45: 0.5 | V45: 0.5 | W45: 1 | X45: 2
A46: ยุทธศาสตร์ที่ 3 การส่งเสริมและผลักดันให้บุคลากรทำงานร่วมกับสถาบันวิจัย ผู้ประกอบการด้านเกษตรอาหาร และสุขภาพบนฐานความหลากหลายทางชีวภาพ | B46: การพัฒนาและแสวงหาบุคลากร | C46: แผนงานการพัฒนาทักษะบุคลากรเพื่อสนับสนุนการผลิตกำลังคนในการเป็นผู้ประกอบการ | D46: โครงการการเพิ่มทักษะ (up skill) อาจารย์เพื่อสร้างความเป็นผู้ประกอบการ ที่ปรึกษาและโค้ชทางธุรกิจให้แก่อาจารย์และบุคลากรในมหาวิทยาลัย | E46: จำนวนบุคลากรที่ได้รับการแลกเปลี่ยน | F46: คน | I46: 20 | J46: 20 | K46: 20 | L46: 20 | M46: 20 | N46: 2 | O46: 2 | P46: 2 | Q46: 2 | R46: 2 | X46: 2
A47: ยุทธศาสตร์ที่ 3 การส่งเสริมและผลักดันให้บุคลากรทำงานร่วมกับสถาบันวิจัย ผู้ประกอบการด้านเกษตรอาหาร และสุขภาพบนฐานความหลากหลายทางชีวภาพ | B47: การพัฒนาและแสวงหาบุคลากร | C47: แผนงานส่งเสริมและแลกเปลี่ยนบุคลากรทำงานร่วมกับสถาบันวิจัย ภาคธุรกิจและอุตสาหกรรม | D47: 1. โครงการส่งเสริมให้บุคลากรไปทำงานแบบฝังตัวในภาคอุตสาหกรรมด้านการเกษตร อาหาร และสุขภาพ | E47: จำนวนบุคลากรที่ทำงานร่วมกับภาคธุรกิจ อุตสาหกรรม | F47: คน | I47: 0 | J47: 50 | K47: 50 | L47: 50 | M47: 50 | N47: 0 | O47: 2.5 | P47: 2.5 | Q47: 2.5 | R47: 2.5 | S47: 0 | T47: 0.5 | U47: 0.5 | V47: 0.5 | W47: 0.5 | X47: 2
A48: ยุทธศาสตร์ที่ 3 การส่งเสริมและผลักดันให้บุคลากรทำงานร่วมกับสถาบันวิจัย ผู้ประกอบการด้านเกษตรอาหาร และสุขภาพบนฐานความหลากหลายทางชีวภาพ | B48: ความเป็นนานาชาติ | C48: แผนงานการสนับสนุนกิจกรรมในต่างประเทศ | D48: 1. โครงการแลกเปลี่ยนหรือร่วมมือทางวิชาการกับมหาวิทยาลัยชั้นนำระดับนานาชาติ | E48: จำนวนบุคลากรที่ไปเรียนรู้ | F48: คน | I48: 20 | J48: 20 | K48: 20 | L48: 20 | M48: 20 | N48: 2 | O48: 1.5 | P48: 1.5 | Q48: 1.5 | R48: 1.5 | S48: 0 | T48: 0.5 | U48: 0.5 | V48: 0.5 | W48: 0.5 | X48: 2
A49: ยุทธศาสตร์ที่ 3 การส่งเสริมและผลักดันให้บุคลากรทำงานร่วมกับสถาบันวิจัย ผู้ประกอบการด้านเกษตรอาหาร และสุขภาพบนฐานความหลากหลายทางชีวภาพ | B49: ความเป็นนานาชาติ | C49: แผนงานแลกเปลี่ยนบุคลากรกับภาคการศึกษา วิจัย ธุรกิจและอุตสาหกรรมนานาชาติ | D49: 1. โครงการส่งเสริมให้บุคลากรไปทำงานแบบฝังตัวในภาคอุตสาหกรรมข้ามชาติด้านการเกษตร อาหาร และสุขภาพ | E49: จำนวนนักวิจัยที่ทำงานร่วมกับภาคเอกชน อุตสาหกรรมข้ามชาติ | F49: คน | I49: 0 | J49: 10 | K49: 10 | L49: 10 | M49: 10 | N49: 0 | O49: 2 | P49: 2 | Q49: 2 | R49: 2 | S49: 0 | T49: 0.5 | U49: 0.5 | V49: 0.5 | W49: 0.5 | X49: 2
A50: ยุทธศาสตร์ที่ 3 การส่งเสริมและผลักดันให้บุคลากรทำงานร่วมกับสถาบันวิจัย ผู้ประกอบการด้านเกษตรอาหาร และสุขภาพบนฐานความหลากหลายทางชีวภาพ | B50: การบริหารงานวิจัยและนวัตกรรม | C50: แผนงานการจัดการทรัพย์สินทางปัญญาจากการร่วมวิจัย | D50: 1. โครงการสนับสนุนค่าใช้จ่ายในการจดทรัพย์สินทางปัญญาร่วมกับเอกชน | E50: จำนวนทรัพย์สินทางปัญญาที่จดร่วมกับภาคเอกชน ธุรกิจและ อุตสาหกรรม | F50: ผลงาน | I50: 0 | J50: 5 | K50: 5 | L50: 5 | M50: 5 | S50: 0 | T50: 0.25 | U50: 0.25 | V50: 0.25 | W50: 0.25 | X50: 1
A51: ยุทธศาสตร์ที่ 4 การพัฒนาระบบและกลไกสนับสนุนระบบนิเวศน์ผู้ประกอบการ และนวัตกรรม | B51: การพัฒนาคุณภาพการเรียนการสอน | C51: แผนงานการสร้างและพัฒนาระบบนิเวศน์เพื่อสนับสนุนการผลิตกำลังคนและการเรียนรู้ตลอดชีวิต | D51: 1. จัดตั้งศูนย์นวัตกรรมการเรียนการสอนและการสื่อสาร | E51: จำนวนสื่อหรือนวัตกรรมการเรียนรู้ตลอดชีวิตสำหรับทุกช่วงวัย | F51: ผลงาน | I51: 10 | J51: 15 | K51: 20 | L51: 25 | M51: 30 | N51: 0.3 | O51: 0.35 | P51: 0.5 | Q51: 0.15 | R51: 0.8 | S51: 0 | T51: 0.1 | U51: 0.1 | V51: 0.1 | W51: 0.1 | X51: 2
A52: ยุทธศาสตร์ที่ 4 การพัฒนาระบบและกลไกสนับสนุนระบบนิเวศน์ผู้ประกอบการ และนวัตกรรม | B52: การพัฒนาคุณภาพการเรียนการสอน | C52: แผนงานการสร้างและพัฒนาระบบนิเวศน์เพื่อสนับสนุนการผลิตกำลังคนและการเรียนรู้ตลอดชีวิต | D52: 2. โครงการยกระดับห้องปฏิบัติการเพื่อพัฒนาผลงานวิจัยและนวัตกรรม | E52: จำนวนห้องปฏิบัติการที่ได้รับการยกระดับ | F52: ห้อง | I52: 1 | J52: 2 | K52: 2 | L52: 2 | M52: 2 | N52: 10 | O52: 20 | P52: 20 | Q52: 20 | R52: 20 | X52: 2
A53: ยุทธศาสตร์ที่ 4 การพัฒนาระบบและกลไกสนับสนุนระบบนิเวศน์ผู้ประกอบการ และนวัตกรรม | B53: การพัฒนาคุณภาพการเรียนการสอน | C53: แผนงานการสร้างและพัฒนาระบบนิเวศน์เพื่อสนับสนุนการผลิตกำลังคนและการเรียนรู้ตลอดชีวิต | D53: 3. โครงการจัดทำห้อง Smart Classroom เพื่อจัดการเรียนการสอน | E53: จำนวนห้อง Smart Classroom | F53: ห้อง | I53: 5 | J53: 5 | K53: 5 | L53: 5 | M53: 5 | N53: 2.5 | O53: 2.5 | P53: 2.5 | Q53: 2.5 | R53: 2.5 | X53: 2
A54: ยุทธศาสตร์ที่ 4 การพัฒนาระบบและกลไกสนับสนุนระบบนิเวศน์ผู้ประกอบการ และนวัตกรรม | B54: การพัฒนาคุณภาพการเรียนการสอน | C54: แผนงานการสร้างและพัฒนาระบบนิเวศน์เพื่อสนับสนุนการผลิตกำลังคนและการเรียนรู้ตลอดชีวิต | D54: 4. โครงการพัฒนารูปแบบความร่วมมือด้านจัดการเรียนการสอนสำหรับนักศึกษาและบุคลากร | E54: จำนวนองค์กรที่ให้ความร่วมมือ | F54: องค์กร | I54: 10 | J54: 15 | K54: 20 | L54: 25 | M54: 30 | N54: 0.5 | O54: 1 | P54: 1.5 | Q54: 2.5 | R54: 2.5 | S54: 0.5 | T54: 0.5 | U54: 0.5 | V54: 0.5 | W54: 0.5 | X54: 2
A55: ยุทธศาสตร์ที่ 4 การพัฒนาระบบและกลไกสนับสนุนระบบนิเวศน์ผู้ประกอบการ และนวัตกรรม | B55: การพัฒนาคุณภาพการเรียนการสอน | C55: แผนงานการสร้างและพัฒนาระบบนิเวศน์เพื่อสนับสนุนการผลิตกำลังคนและการเรียนรู้ตลอดชีวิต | D55: 5. โครงการเครือข่ายโรงเรียนมัธยมศึกษา วิทยาลัยการอาชีพ วิทยาลัยอาชีวะ วิทยาลัยเทคนิค | E55: จำนวนสถาบันการศึกษาที่มีความร่วมมือ | F55: สถาบัน | I55: 30 | J55: 30 | K55: 30 | L55: 30 | M55: 30 | S55: 0.45 | T55: 0.45 | U55: 0.45 | V55: 0.45 | W55: 0.45 | X55: 2
A56: ยุทธศาสตร์ที่ 4 การพัฒนาระบบและกลไกสนับสนุนระบบนิเวศน์ผู้ประกอบการ และนวัตกรรม | B56: การพัฒนาคุณภาพการเรียนการสอน | C56: แผนงานการสนับสนุนระบบนิเวศน์เพื่อเพิ่มศักยภาพสำหรับผู้สูงวัย | D56: 1. จัดตั้งศูนย์หรือสถานบริการสุขภาพผู้สูงวัยอย่างครบวงจร | E56: จัดตั้งศูนย์หรือสถานบริการสุขภาพผู้สูงวัยอย่างครบวงจร | F56: ศูนย์ | I56: 0 | J56: 1 | K56: 0 | L56: 0 | M56: 0 | N56: 10.2 | O56: 10.8 | P56: 0.8 | Q56: 0.8 | R56: 0.8 | X56: 2
A57: ยุทธศาสตร์ที่ 4 การพัฒนาระบบและกลไกสนับสนุนระบบนิเวศน์ผู้ประกอบการ และนวัตกรรม | B57: การพัฒนาคุณภาพการเรียนการสอน | C57: แผนงานการสนับสนุนระบบนิเวศน์เพื่อเพิ่มศักยภาพสำหรับผู้สูงวัย | D57: 1. จัดตั้งศูนย์หรือสถานบริการสุขภาพผู้สูงวัยอย่างครบวงจร | E57: จำนวนผู้ใช้งานนวัตกรรมเพื่อสื่อสารสุขภาพทางโทรศัพท์มือถือ | F57: คน | I57: 0 | J57: 100 | K57: 500 | L57: 600 | M57: 700 | S57: 0.5 | T57: 0.1 | U57: 0.5 | V57: 0.6 | W57: 0.7 | X57: 2
A58: ยุทธศาสตร์ที่ 4 การพัฒนาระบบและกลไกสนับสนุนระบบนิเวศน์ผู้ประกอบการ และนวัตกรรม | B58: ความเป็นนานาชาติ | C58: แผนงานสร้างศูนย์ให้บริการภาคเอกชนและอุตสาหกรรมในระดับนานาชาติ | D58: โครงการศูนย์ให้บริการภาคเอกชนและอุตสาหกรรมในระดับนานาชาติ | E58: จำนวนผู้ที่ได้รับการพัฒนา | F58: คน | I58: 250 | J58: 250 | K58: 250 | L58: 250 | M58: 250 | N58: 1.5 | O58: 1.3 | P58: 1.3 | Q58: 1.3 | R58: 1.3 | S58: 0 | T58: 0.2 | U58: 0.2 | V58: 0.2 | W58: 0.2 | X58: 1
A59: ยุทธศาสตร์ที่ 4 การพัฒนาระบบและกลไกสนับสนุนระบบนิเวศน์ผู้ประกอบการ และนวัตกรรม | B59: การสร้างแพลทฟอร์มความร่วมมือ | C59: แผนงานการสนับสนุนระบบนิเวศน์ผู้ประกอบการและนวัตกรรม | D59: 1. โครงการระบบนิเวศและนวัตกรรมเพื่อพัฒนาและส่งเสริมผู้ประกอบการพันธุ์ใหม่ ด้านอุตสาหกรรมอาหารจากวัตถุดิบชีวภาพ | E59: จำนวนนักศึกษา บัณฑิตผู้ประกอบการ | F59: คน | I59: 10 | J59: 10 | K59: 10 | L59: 10 | M59: 10 | N59: 10 | O59: 9 | P59: 9 | Q59: 9 | R59: 9 | X59: 1
A60: ยุทธศาสตร์ที่ 4 การพัฒนาระบบและกลไกสนับสนุนระบบนิเวศน์ผู้ประกอบการ และนวัตกรรม | B60: การสร้างแพลทฟอร์มความร่วมมือ | C60: แผนงานการสนับสนุนระบบนิเวศน์ผู้ประกอบการและนวัตกรรม | D60: 2. ศูนย์กลางพัฒนาอุตสาหกรรม เกษตรแปรรูป อาหารและผลิตภัณฑ์ชุมชนมูลค่าสูงแบบครบวงจร | E60: จำนวนนวัตกรรม/ผลงาน | F60: ผลงาน | I60: 10 | J60: 10 | K60: 10 | L60: 10 | M60: 10 | N60: 5 | O60: 4 | P60: 1.5 | Q60: 1.5 | R60: 1.5 | X60: 1
A61: ยุทธศาสตร์ที่ 4 การพัฒนาระบบและกลไกสนับสนุนระบบนิเวศน์ผู้ประกอบการ และนวัตกรรม | B61: การสร้างแพลทฟอร์มความร่วมมือ | C61: แผนงานการสนับสนุนระบบนิเวศน์ผู้ประกอบการและนวัตกรรม | D61: 2. ศูนย์กลางพัฒนาอุตสาหกรรม เกษตรแปรรูป อาหารและผลิตภัณฑ์ชุมชนมูลค่าสูงแบบครบวงจร | E61: จำนวนผู้ที่ได้รับการพัฒนาจากศูนย์ | F61: คน | I61: 200 | J61: 200 | K61: 200 | L61: 200 | M61: 200 | S61: 0 | T61: 1 | U61: 0.5 | V61: 0.5 | W61: 0.5 | X61: 1

Sheet Key Change
A1: การเปลี่ยนแปลงที่สำคัญที่มีผลกระทบต่อสถานการณ์แข่งขันของมหาวิทยาลัยอุบลราชธานี
A2: KC1 นโยบายภาครัฐ เช่น แผนพัฒนาเศรษฐกิจฯ ฉบับที่ 13 และแผนอุดมศึกษาระยะยาว 20 ปี พ.ศ. 2561-2580 ตลอดจนการพลิกโฉม UBU สู่มหาวิทยาลัยกลุ่ม 2 ที่มุ่งเน้นการพัฒนาเทคโนโลยีและส่งเสริมการสร้างนวัตกรรม ส่งผล 1) การพัฒนาหลักสูตรเพื่อผลิตกำลังคนให้ตอบสนองต่อทิศทางของประเทศ รวมทั้งหลักสูตรที่เน้นการสร้างผู้ประกอบการ 2) การกำหนดทิศทางงานวิจัย นวัตกรรม และการบริการวิชาการร่วมกับภาคธุรกิจและอุตสาหกรรม
A3: KC2 การเปลี่ยนแปลงโครงสร้างประชากร ภาวการณ์เข้าสู่สังคมผู้สูงอายุในประเทศไทย ในปี 2563 ประชากรมีอายุเพิ่มขึ้นร้อยละ 16.8 ซึ่งเข้าใกล้สังคมสูงวัยระดับสูงสุด (ร้อยละ 20) ถือเป็นสิ่งสำคัญอย่างยิ่งในการเตรียมความพร้อมในการสร้างเสริมสุขภาพให้แก่ผู้สูงอายุ และการสร้างนวัตกรรมต่าง ๆ สำหรับผู้สูงอายุ เช่น เทคโนโลยีทางการแพทย์ ยาและอาหารเสริมสุขภาพ รวมถึงการสร้างศูนย์ความเป็นเลิศด้านผู้สูงอายุ ตลอดจนการพัฒนาหลักสูตรผู้ดูแลผู้สูงอายุ
A4: KC3 พฤติกรรมของคนรุ่นใหม่ ที่ให้ความสำคัญกับการสร้างรายได้จากการประกอบธุรกิจมากกว่าปริญญา รวมทั้งนโยบายของกระทรวงฯ ที่เอื้อให้มีการเรียนตามอัธยาศัยที่ไม่กำหนดระยะเวลาสำเร็จการศึกษา ส่งผลต่อการพัฒนาหลักสูตรใหม่ ๆ เช่น หลักสูตร Credit Bank หลักสูตร Personalized Curriculum
A5: KC4 การแข่งขันจากสถาบันการศึกษาที่มีชื่อเสียงทั้งภายในและต่างประเทศทั้งภาครัฐและเอกชน ส่งผลต่อการจัดทำกลยุทธ์ด้านการตลาด ที่ต้องมุ่งเน้นทั้งการพัฒนาหลักสูตรใหม่ ตลอดจนการกำหนด New target customer เช่น หลักสูตร Up-skill Re-Skill
A6: KC5 Technology disruption ส่งผลต่อการปรับเปลี่ยนการดำเนินการในทุกพันธกิจตลอดจนการบริหารจัดการ รวมทั้งการให้ความสำคัญกับ Big Data Analysis เพื่อใช้ประโยชน์จากสารสนเทศดังกล่าวทั้งในการจัดการศึกษา วิจัย บริการวิชาการ รวมถึงการสร้างนวัตกรรม
A7: KC6 การแพร่ระบาดของโรคอุบัติใหม่ เช่น Covid-19 ส่งผลต่อการบริหารจัดการที่ต้องมีความคล่องตัวและทันต่อการเปลี่ยนแปลง
A8: KC7 นโยบายการจัดสรรทุนวิจัย ที่เน้นโครงการวิจัยแบบบูรณาการศาสตร์และการบริการวิชาการที่เน้นการแก้ปัญหาเชิงพื้นที่ ส่งผลให้ต้องกำหนดทิศทางการวิจัยและบริการวิชาการที่ตอบสนองนโยบายดังกล่าว
A9: KC8 การจัดอันดับและการเทียบเคียงสมรรถนะระหว่างสถาบันอุดมศึกษา เช่น THE Impact rankings, Scimago, QS ranking

Sheet SC SA SOp
A1: Strategic Challenges: ความท้าทายเชิงกลยุทธ์
A2: SC1 Transformation of Learning
A3: SC2 เพิ่มผลงานวิจัยตีพิมพ์ระดับนานาชาติในระดับ Q1-Q2
A4: SC3 เพิ่มจำนวนนวัตกรรม/ ทรัพย์สินทางปัญญาที่นำไปใช้ประโยชน์เชิงพาณิชย์
A5: SC4 เพิ่มจำนวน spin off ที่เกิดจากผลงานวิจัย
A6: SC5 เพิ่มการนำผลงานวิจัย/นวัตกรรม/บริการวิชาการ /ทำนุบำรุงศิลปวัฒนธรรมมาใช้เพื่อแก้ไขปัญหาเชิงพื้นที่และมี impact สูง เช่น เพิ่มรายได้ ยกระดับสุขภาวะ และจัดการสิ่งแวดล้อมของชุมชน
A7: SC6 มีระบบสารสนเทศที่พร้อมใช้สำหรับการบริหาร
A8: SC7 การเพิ่มรายได้เพื่อสนับสนุนการดำเนินงานตามยุทธศาสตร์และพันธกิจ
A9: SC8 การบริหารทรัพยากรบุคคลที่มีประสิทธิภาพ
A11: Strategic Advantages: ความได้เปรียบเชิงกลยุทธ์
A12: SA1 บุคลากรมีความเชี่ยวชาญหลากหลายสาขา
A13: SA2 มีระบบนิเวศรองรับการสร้างและพัฒนาผู้ประกอบการ เช่น โรงงานต้นแบบ (Pilot Plant) ด้านผลิตภัณฑ์เนื้อสัตว์ พืชผักผลไม้, ศูนย์เครื่องมือกลาง และบริการวิเคราะห์คุณภาพผลิตภัณฑ์
A14: SA3 เป็นที่ยอมรับของชุมชนและพร้อมให้การสนับสนุน
A15: SA4 มีเครือข่ายความร่วมมือด้านวิชาการที่เข้มแข็งทั้งในและต่างประเทศ รวมทั้งผู้ประกอบการและอุตสาหกรรมขนาดใหญ่
A16: SA5 อยู่ในพื้นที่ที่เป็นประตูสู่อาเซียน มีความสำคัญด้านเศรษฐกิจการค้า แหล่งวัฒนธรรมและการท่องเที่ยว
A18: Strategic opportunities: โอกาสเชิงกลยุทธ์
A19: SOp.1 การพัฒนาหลักสูตรทั้งระยะสั้น/ ระยะยาวที่ตอบสนองต่อทิศทางของประเทศ เช่น หลักสูตรบัณฑิตพันธุ์ใหม่ หลักสูตรที่เน้นการเป็นผู้ประกอบการ เช่น หลักสูตร Credit Bank หลักสูตร Up-skill/ Re-Skill
A20: SOp.2 การใช้ Digital technology ในทุกพันธกิจ รวมทั้งการบริหารจัดการ
A21: SOp.3 การกำหนดทิศทางวิจัย/ บริการวิชาการที่สอดคล้องกับนโยบายของแหล่งทุน เช่น การเกษตร, สังคมสูงวัย, สร้างและยกระดับ Start Up, ขจัดความยากจน
A22: SOp.4 การพัฒนาผลิตภัณฑ์ นวัตกรรมและการบริการสำหรับผู้สูงอายุ

Sheet กลยุทธ์ที่ 1 ผลิตบัณฑิต
A1: วัตถุประสงค์เชิงกลยุทธ์ที่ 1: บัณฑิตมีคุณภาพอย่างโดดเด่น และพัฒนาการเรียนรู้สำหรับคนทุกช่วงวัย (ผู้รับผิดชอบ: รองฯฝ่ายวิชาการ/รองฯฝ่ายวิจัย/ผช.บริการวิชาการ) การอ่าน (1.1.1.1) : กลยุทธ์.วัตถุประสงค์เชิงกลยุทธ์ (SO).แผนปฏิบัติการ.โครงการหลัก
A2: เป้าประสงค์ | B2: ตัววัดวัตถุประสงค์เชิงกลยุทธ์/ แผนปฏิบัติการระยะสั้น (S) ระยะยาว (L) | C2: ตัววัดแผนปฏิบัติการ | D2: หน่วย | E2: Based line | H2: ค่าคาดการณ์ | M2: งบประมาณ (แผ่นดิน/รายได้) หน่วย: ล้านบาท | W2: แผนบุคลากร | Y2: Base line | AB2: ค่าเป้าหมาย
D3: นับ | E3: 2563 | F3: 2564 | G3: 2565 | H3: 2566 | I3: 2567 | J3: 2568 | K3: 2569 | L3: 2570 | M3: 2566 | O3: 2567 | Q3: 2568 | S3: 2569 | U3: 2570 | Y3: 2563 | Z3: 2564 | AA3: 2565 | AB3: 2566 | AC3: 2567 | AD3: 2568 | AE3: 2569 | AF3: 2570
M4: แผ่นดิน | N4: รายได้ | O4: แผ่นดิน | P4: รายได้ | Q4: แผ่นดิน | R4: รายได้ | S4: แผ่นดิน | T4: รายได้ | U4: แผ่นดิน | V4: รายได้
A5: 1.1) บัณฑิตมีความโดดเด่น ตรงความต้องการของตลาดแรงงานและการพัฒนาประเทศหรือเป็นผู้ประกอบการ ตอบสนองต่อ - SC1 - SA1, SA2, SA4 - SOp1, SOp2 - นโยบายสภามหาวิทยาลัย 1, 2, 4, 5 - SDG 4 | B5: SI 1.1.1 ร้อยละบัณฑิต ป.ตรี ที่ได้งานทำในองค์กรขนาดใหญ่หรือต่างชาติ | D5: ร้อยละ | H5: 10 | I5: 12 | J5: 14 | K5: 16 | L5: 20 | M5: ="งบประมาณขับเคลื่อน ระยะ 5 ปี (พ.ศ. 2566-2570) เป้าประสงค์ที่ 1.1 รวมทั้งสิ้น "&TEXT((M7+O7+Q7+S7+U7),"#.00")&" (ล้านบาท)" -> งบประมาณขับเคลื่อน ระยะ 5 ปี (พ.ศ. 2566-2570) เป้าประสงค์ที่ 1.1 รวมทั้งสิ้น 557.90 (ล้านบาท)
B6: SI 1.1.2 ร้อยละของบัณฑิต ป.ตรี ที่เป็นผู้ประกอบการภายใน 1 ปี หลังสำเร็จการศึกษา | D6: ร้อยละ | E6: 20.81 | F6: 23.39 | H6: 25 | I6: 30 | J6: 35 | K6: 40 | L6: 50 | M6: =+M15+M41+M47+M48+M51+M66+M72+M81 -> 48.7 | N6: 14.8 | O6: 88.7 | P6: 35.3 | Q6: 91.55 | R6: 31.15 | S6: 93.05 | T6: 34.65 | U6: 82.7 | V6: 37.3
B7: SI 1.1.3 จำนวนนักศึกษาหรือศิษย์เก่า ที่ได้รับรางวัลระดับชาติหรือนานาชาติ (นักศึกษา ศิษย์เก่า) | D7: คน | F7: =+F8+F9 -> 67 | H7: =+H8+H9 -> 74 | I7: =+I8+I9 -> 78 | J7: 82 | K7: 86 | L7: 90 | M7: =+M6+N6 -> 63.5 | O7: =+O6+P6 -> 124 | Q7: =+Q6+R6 -> 122.7 | S7: =+S6+T6 -> 127.7 | U7: =+U6+V6 -> 120
C8: นักศึกษา | D8: คน | E8: - | F8: 36 | G8: - | H8: 42 | I8: 44 | J8: 46 | K8: 48 | L8: 50
C9: ศิษย์เก่า | D9: คน | E9: - | F9: 31 | G9: - | H9: 32 | I9: 34 | J9: 36 | K9: 38 | L9: 40
B10: SI 1.1.4 ร้อยละของบทความวิทยานิพนธ์ที่ได้รับการตีพิมพ์ในระดับนานาชาติ (Scopus Q1-Q2) ต่อจำนวนวิทยานิพนธ์ทั้งหมด | D10: ร้อยละ | H10: 10 | I10: 15 | J10: 20 | K10: 25 | L10: 30
B11: SI 1.1.5 ร้อยละของบัณฑิตที่มีเงินเดือนเกินเกณฑ์อัตรามาตรฐานระดับปริญญาตรี โดยแยกตามกลุ่มสาขาวิชา (วิทยาศาสตร์เทคโนโลยี วิทยาศาสตร์สุขภาพ และมนุษยศาสตร์สังคมศาสตร์) | D11: ร้อยละ | H11: 70 | I11: 75 | J11: 80 | K11: 85 | L11: 90
C12: กลุ่มวิทยาศาสตร์เทคโนโลยี | D12: บาท | E12: =AVERAGE(13638,17758,15514,16188) -> 15774.5 | F12: =AVERAGE(19480,15227,17362,15024) -> 16773.25 | G12: -
C13: กลุ่มวิทยาศาสตร์สุขภาพ | D13: บาท | E13: =AVERAGE(31827,26223,18072) -> 25374 | F13: =AVERAGE(32907,24092,22393) -> 26464 | G13: -
C14: กลุ่มมนุษยศาสตร์สังคมศาสตร์ | D14: บาท | E14: =AVERAGE(14209,14425,13923,11267) -> 13456 | F14: =AVERAGE(17042,14640,13994,10505) -> 14045.25 | G14: -
B15: แผนปฏิบัติการ 1.1.1) แผนพัฒนาหลักสูตรที่ตอบโจทย์อุตสาหกรรม และตอบสนองความต้องการของประเทศ (L) | C15: PI 1.1.1.1 จำนวนหลักสูตรที่ตอบโจทย์อุตสาหกรรม (ไม่นับรวม sandbox) | D15: หลักสูตร | H15: 10 | I15: 15 | J15: 20 | K15: 25 | L15: 30 | M15: =+M18+M31+M40 -> 30 | N15: 2 | O15: 67.5 | P15: 22.5 | Q15: 68 | R15: 16 | S15: 67 | T15: 17 | U15: 54 | V15: 17 | W15: 1) แผนพัฒนาขีดความสามารถอาจารย์ (รวมทั้งอาจารย์ในสถานประกอบการ) ให้สามารถจัดการเรียนการสอนในสถานประกอบการ เช่น พัฒนาทักษะพี่เลี้ยงแหล่งฝึก (เช่น การวัดและประเมินผล) พัฒนาทักษะอาจารย์ (เช่น ทักษะในการปฏิบัติในสถานประกอบการจริง ทักษะในการทำงานร่วมกับสถานประกอบการ ทักษะในการนิเทศงาน) 2) แผนการให้ความรู้กับอาจารย์เกี่ยวกับแนวคิดในการสร้างหลักสูตร sandbox
C16: PI 1.1.1.2 จำนวนหลักสูตร Dual Program/Double Degree | D16: หลักสูตร | I16: 6 | J16: 3 | K16: 3 | L16: 3
C17: PI 1.1.1.3 จำนวนหลักสูตร sandbox (นับสะสม) | D17: หลักสูตร | H17: 1 | I17: 4 | J17: 6 | K17: 8 | L17: 10
B18: 1.1.1.1) โครงการพัฒนาหลักสูตรที่ตอบโจทย์อุตสาหกรรม ส่งเสริมการเป็นผู้ประกอบการ และตอบสนองความต้องการของประเทศ | M18: =+M19+M20+M21+M22+M23+M24+M25+M26+M27+M28+M29 -> 30 | N18: 2 | O18: 67.5 | P18: 22.5 | Q18: 68 | R18: 16 | S18: 67 | T18: 17 | U18: 54 | V18: 17
B19: ปีการศึกษา 2566 - หลักสูตรโลจิสติกส์และห่วงโซ่อุปทาน (ป.ตรี-โท) | H19: 2 | M19: 0 | N19: 0 | O19: 0 | P19: 0 | Q19: 0 | R19: 0 | S19: 0 | T19: 0 | U19: 0 | V19: 0
B20: - หลักสูตรเกษตรวิศว์อัจฉริยะ | H20: 1 | M20: 5 | N20: 0 | O20: 5 | P20: 0 | Q20: 5 | R20: 0 | S20: 3 | T20: 0 | U20: 1 | V20: 0
B21: ปีการศึกษา 2567 - หลักสูตรการเป็นผู้ประกอบการธุรกิจบริการสุขภาพ (Reinventing) | I21: 1 | M21: 0 | N21: 0 | O21: 16 | P21: 1 | Q21: 18 | R21: 2 | S21: 18 | T21: 3 | U21: 20 | V21: 3
B22: - หลักสูตรเชิงบูรณาการที่เน้นการจัดการเทคโนโลยีสิ่งแวดล้อมเพื่อการท่องเที่ยว (ศิลปศาสตร์ วิทยาศาสตร์ บริหารศาสตร์) เช่น หลักสูตรการจัดการเทคโนโลยีสิ่งแวดล้อมเพื่อการท่องเที่ยวและการเป็นผู้ประกอบการเพื่อสังคม (Reinventing) | I22: 1 | M22: 10 | N22: 0 | O22: 12 | P22: 2 | Q22: 16 | R22: 2 | S22: 20 | T22: 2 | U22: 14 | V22: 2
B23: - หลักสูตรเชิงบูรณาการที่เน้นเทคโนโลยีการผลิตด้านการเกษตรเพื่อผลิตอาหารฟังก์ชัน (functional foods) เช่น หลักสูตรเทคโนโลยีด้านการเกษตร อาหารและสุขภาพจากฐานทรัพยากรชีวภาพ (Reinventing) | I23: 1 | M23: 15 | N23: 2 | O23: 17 | P23: 2 | Q23: 19 | R23: 2 | S23: 16 | T23: 2 | U23: 9 | V23: 2
B24: - หลักสูตรกายภาพบำบัด | I24: 1 | M24: 0 | N24: 0 | O24: =15/2 -> 7.5 | P24: =15/2 -> 7.5 | Q24: 5 | R24: 5 | S24: 5 | T24: 5 | U24: 5 | V24: 5 | W24: อาจารย์ด้านกายภาพบำบัด จำนวน 10 อัตรา (นักศึกษา 60 คน)
B25: - หลักสูตรรังสีเทคนิค | I25: 1 | M25: 0 | N25: 0 | O25: 10 | P25: 10 | Q25: 5 | R25: 5 | S25: 5 | T25: 5 | U25: 5 | V25: 5 | W25: อาจารย์ด้านรังสีเทคนิค จำนวน 5 อัตรา (นักศึกษา 40 คน)
B26: - หลักสูตรเชิงบูรณาการที่เน้นผลิตภัณฑ์โภชนเภสัช (Nutraceutical) เช่น หลักสูตรวิทยาศาสตรบัณฑิต สาขาวิชานวัตกรรมผลิตภัณฑ์โภชนเภสัชและโภชนบำบัด (เกษตรศาสตร์ วิศวกรรมศาสตร์ เภสัชศาสตร์ วิทยาศาสตร์-เคมี) | M26: 0 | N26: 0 | O26: 0 | P26: 0 | Q26: 0 | R26: 0 | S26: 0 | T26: 0 | U26: 0 | V26: 0
B27: - หลักสูตรวิทยาศาสตรบัณฑิต สาขาวิชาวัสดุศาสตร์ทางการแพทย์ | M27: 0 | N27: 0 | O27: 0 | P27: 0 | Q27: 0 | R27: 0 | S27: 0 | T27: 0 | U27: 0 | V27: 0
B28: - หลักสูตรวิศวกรรมศาสตรบัณฑิต สาขาวิชาวิศวการแพทย์ | M28: 0 | N28: 0 | O28: 0 | P28: 0 | Q28: 0 | R28: 0 | S28: 0 | T28: 0 | U28: 0 | V28: 0
B29: - หลักสูตรวิทยาศาสตรบัณฑิต สาขาวิชาคณิตศาสตร์การเงินในยุคดิจิทัล | M29: 0 | N29: 0 | O29: 0 | P29: 0 | Q29: 0 | R29: 0 | S29: 0 | T29: 0 | U29: 0 | V29: 0
B30: ปีการศึกษา 2568 - หลักสูตรทันตแพทยศาสตร์ - หลักสูตรสัตวแพทยศาสตร์ | J30: 1 | M30: 0 | N30: 0 | O30: 0 | P30: 0 | Q30: 0 | R30: 28 | S30: 0 | T30: 65 | U30: 0 | V30: 100 | W30: อาจารย์ทันตแพทย์ 7 คน ต่อจำนวนนักศึกษา 40 คน (สัดส่วน 1:6)
B31: 1.1.1.2) โครงการพัฒนาหลักสูตรบูรณาการศาสตร์ (Dual Program/Double Degree) | M31: 0 | N31: 0 | O31: 0 | P31: 0 | Q31: 0 | R31: 0 | S31: 0 | T31: 0 | U31: 0 | V31: 0
B32: ปีการศึกษา 2566 - หลักสูตรศึกษาศาสตรบัณฑิต และ หลักสูตรสาขาวิชาเอกทุกสาขา (คณิตศาสตร์ เคมี ชีววิทยา ฟิสิกส์ เทคโนโลยี ภาษาไทย ภาษาอังกฤษ สังคมศึกษา นวัตกรรมการพัฒนาสังคม) (หลักสูตร 4+1) (ปีการศึกษา 2566 คณิตศาสตร์ เคมี /ปีการศึกษา 2567 ภาษาไทย ภาษาอังกฤษ ) | H32: 2 | I32: 2 | M32: 0 | N32: 0 | O32: 0 | P32: 0 | Q32: 0 | R32: 0 | S32: 0 | T32: 0 | U32: 0 | V32: 0
B33: ปีการศึกษา 2567 - หลักสูตรเภสัชศาสตรบัณฑิต และหลักสูตรบริหารธุรกิจบัณฑิต (หลักสูตร 6+1 ปี) | I33: 1 | M33: 0 | N33: 0 | O33: 0 | P33: 0 | Q33: 0 | R33: 0 | S33: 0 | T33: 0 | U33: 0 | V33: 0
B34: - หลักสูตรสถาปัตกรรมศาสตรบัณฑิต และ หลักสูตรศิลปศาสตรบัณฑิต สาขาวิชาการท่องเที่ยว (หลักสูตร 5+1) | I34: 1 | M34: 0 | N34: 0 | O34: 0 | P34: 0 | Q34: 0 | R34: 0 | S34: 0 | T34: 0 | U34: 0 | V34: 0
B35: - หลักสูตรแพทยศาสตรบัณฑิต และ หลักสูตรวิทยาศาสตรมหาบัณฑิต สาขาวิชาเทคโนโลยีสารสนเทศและนวัตกรรมดิจิทัล (หลักสูตร 6+1) | C35: ย้าย | M35: 0 | N35: 0 | O35: 0 | P35: 0 | Q35: 0 | R35: 0 | S35: 0 | T35: 0 | U35: 0 | V35: 0
B36: - หลักสูตรเภสัชศาสตรบัณฑิต และ หลักสูตรวิทยาศาสตรมหาบัณฑิต สาขาวิชาเทคโนโลยีสารสนเทศและนวัตกรรมดิจิทัล (หลักสูตร 6+1) | C36: ย้าย | M36: 0 | N36: 0 | O36: 0 | P36: 0 | Q36: 0 | R36: 0 | S36: 0 | T36: 0 | U36: 0 | V36: 0
B37: หลักสูตร ปริญญาตรีควบโท (โดยใช้วิธีการจัดการเรียนการสอนข้ามระดับ) | M37: 0 | N37: 0 | O37: 0 | P37: 0 | Q37: 0 | R37: 0 | S37: 0 | T37: 0 | U37: 0 | V37: 0
B38: - หลักสูตรแพทยศาสตรบัณฑิต และ หลักสูตรวิทยาศาสตรมหาบัณฑิต สาขาวิชาเทคโนโลยีสารสนเทศและนวัตกรรมดิจิทัล (หลักสูตร 6+1) | I38: 1 | M38: 0 | N38: 0 | O38: 0 | P38: 0 | Q38: 0 | R38: 0 | S38: 0 | T38: 0 | U38: 0 | V38: 0
B39: - หลักสูตรเภสัชศาสตรบัณฑิต และ หลักสูตรวิทยาศาสตรมหาบัณฑิต สาขาวิชาเทคโนโลยีสารสนเทศและนวัตกรรมดิจิทัล (หลักสูตร 6+1) | I39: 1 | M39: 0 | N39: 0 | O39: 0 | P39: 0 | Q39: 0 | R39: 0 | S39: 0 | T39: 0 | U39: 0 | V39: 0
B40: 1.1.1.3) โครงการส่งเสริมหลักสูตร Sandbox | M40: 0 | N40: 0 | O40: 0 | P40: 0 | Q40: 0 | R40: 0 | S40: 0 | T40: 0 | U40: 0 | V40: 0
B41: 1.1.2) แผนพัฒนาหลักสูตรประกาศนียบัตร เพื่อเพิ่มสมรรถนะของบัณฑิตให้พร้อมต่อการทำงานในองค์กรขนาดใหญ่หรือต่างชาติ (L) เช่น | C41: PI 1.1.2.1 จำนวนหลักสูตรประกาศนียบัตรสำหรับนักศึกษาปริญญาตรี (นับสะสม) | D41: จำนวน | H41: 10 | I41: 20 | J41: 30 | K41: 30 | L41: 40 | M41: =+M42+M43+M44+M45+M46 -> 0 | N41: =+N42+N43+N44+N45+N46 -> 0 | O41: 0 | P41: 0 | Q41: 0 | R41: 0 | S41: 0 | T41: 0 | U41: 0 | V41: 0
B42: - หลักสูตรระยะสั้นด้านภาษาอังกฤษหรือภาษาที่ 3 เช่น ญี่ปุ่น (ระดับต้น กลาง สูง) จีน (ระดับต้น กลาง สูง) เวียดนาม (ระดับต้น กลาง สูง) ภาษาอังกฤษ (ภาษาอังกฤษในชีวิตประจำวัน /สำหรับธรุกิจ /โทเฟล Toefl Toeic IELTS) | M42: 0 | N42: 0 | O42: 0 | P42: 0 | Q42: 0 | R42: 0 | S42: 0 | T42: 0 | U42: 0 | V42: 0
B43: - หลักสูตรระยะสั้นด้านกฏหมาย (กฏหมายระหว่างประเทศ/กฏหมายธุรกิจ/ภาษี) | M43: 0 | N43: 0 | O43: 0 | P43: 0 | Q43: 0 | R43: 0 | S43: 0 | T43: 0 | U43: 0 | V43: 0
B44: - หลักสูตรระยะสั้นด้านเทคโนโลยีสารสนเทศ (เกมส์/แอนิเมชั่น/บิกเดต้า/iot/data analytic | M44: 0 | N44: 0 | O44: 0 | P44: 0 | Q44: 0 | R44: 0 | S44: 0 | T44: 0 | U44: 0 | V44: 0
B45: - หลักสูตรระยะสั้นการเป็นผู้ประกอบการ /แผนธุรกิจ/โลจิสติกส์/บัญชี/ภาษี | M45: 0 | N45: 0 | O45: 0 | P45: 0 | Q45: 0 | R45: 0 | S45: 0 | T45: 0 | U45: 0 | V45: 0
B46: - หลักสูตรระยะสั้น เกษตร วิศวะ เภสัช พยาบาล บริหารศาสตร์ ศิลปประยุกต์ | M46: 0 | N46: 0 | O46: 0 | P46: 0 | Q46: 0 | R46: 0 | S46: 0 | T46: 0 | U46: 0 | V46: 0
B47: 1.1.3) แผนส่งเสริมการสร้างระบบนิเวศด้านการจัดการเรียนการสอนที่ใช้ Technology-enhanced Learning หรือเทคโนโลยีในอนาคต (L) | C47: PI 1.1.3.1 ร้อยละของหลักสูตรที่มีการจัดการเรียนการสอนโดยใช้ Technology-enhanced Learning หรือการใช้เทคโนโลยีในอนาคต (ปริญญาตรี) | D47: ร้อยละ | H47: 10 | I47: 20 | J47: 30 | K47: 35 | L47: 40 | M47: 0 | N47: 0 | O47: 0 | P47: 0 | Q47: 0 | R47: 0 | S47: 0 | T47: 0 | U47: 0 | V47: 0 | W47: 1) แผนส่งเสริมทักษะให้กับอาจารย์ - ด้าน Technology-enhanced Learning หรือเทคโนโลยีในอนาคต
B48: 1.1.4) แผนพัฒนาการจัดการเรียนการสอนเพื่อส่งเสริมการเป็นผู้ประกอบการ (L) | C48: PI 1.1.4.1 ร้อยละของหลักสูตรระดับปริญญาตรีที่มีรายวิชาที่ส่งเสริมการเป็นผู้ประกอบการ | D48: ร้อยละ | H48: 5 | I48: 10 | J48: 15 | K48: 20 | L48: 25 | M48: =+M49+M50 -> 5 | N48: =+N49+N50 -> 0 | O48: 5 | P48: 0 | Q48: 5 | R48: 0 | S48: 5 | T48: 0 | U48: 5 | V48: 0 | W48: 1) แผนพัฒนาอาจารย์ให้มีความรู้และทักษะการเป็นผู้ประกอบการ (แลกเปลี่ยนกับสถานประกอบการ, KM, อบรม)
B49: 1.1.4.1) โครงการเชิญหรือแลกเปลี่ยนผู้ประกอบการ ผู้เชี่ยวชาญทั้งจากภาครัฐ สถาบันการศึกษา ภาคเอกชนทั้งในและต่างประเทศ | M49: 5 | N49: 0 | O49: 5 | P49: 0 | Q49: 5 | R49: 0 | S49: 5 | T49: 0 | U49: 5 | V49: 0
B50: 1.1.4.2) โครงการพัฒนาการเรียนการสอนที่ส่งเสริมการเป็นผู้ประกอบการ | M50: 0 | N50: 0 | O50: 0 | P50: 0 | Q50: 0 | R50: 0 | S50: 0 | T50: 0 | U50: 0 | V50: 0
B51: 1.1.5) แผนส่งเสริมการเป็นผู้ประกอบการผ่านกิจกรรมเสริมหลักสูตร (L) | C51: PI 1.1.5.1 ร้อยละของนักศึกษาระดับปริญญาตรีที่เข้าร่วมกิจกรรมเสริมหลักสูตรเพื่อการเป็นผู้ประกอบการ | D51: ร้อยละ | H51: 5 | I51: 10 | J51: 15 | K51: 20 | L51: 25 | M51: =+M52+M53+M54+M55+M56+M57 -> 12.7 | N51: =+N52+N53+N54+N55+N56+N57 -> 6.3 | O51: 15.2 | P51: 6.3 | Q51: 17.55 | R51: 8.65 | S51: 20.05 | T51: 11.15 | U51: 22.7 | V51: 13.8 | W51: 1) แผนส่งเสริมทักษะให้กับอาจารย์ - ด้านการเป็นผู้ประกอบการ และการเป็นที่ปรึกษาทางธุรกิจ 2) แผนส่งเสริมให้บุคลากรไปทำงานแบบฝังตัวในภาคอุตสาหกรรม
B52: 1.1.5.1) โครงการจัดตั้งศูนย์ส่งเสริมความเป็นผู้ประกอบการของนักศึกษา (Student and Graduate Entrepreneurship Promotion Center) | M52: 0 | N52: 0 | O52: 0 | P52: 0 | Q52: 0 | R52: 0 | S52: 0 | T52: 0 | U52: 0 | V52: 0
B53: 1.1.5.2) โครงการจัดตั้งกองทุนเพื่อการลงทุนในการสร้างและพัฒนานักศึกษาผู้ประกอบการของมหาวิทยาลัย (UBU Startup Fund) | M53: 0 | N53: 2 | O53: 2.5 | P53: 2.5 | Q53: 2.5 | R53: 2.5 | S53: 5 | T53: 5 | U53: 7.5 | V53: 7.5
B54: 1.1.5.3) โครงการบริษัทจำลอง | M54: 0.5 | N54: 0.5 | O54: 0.5 | P54: 0.5 | Q54: 0.5 | R54: 0.5 | S54: 0.5 | T54: 0.5 | U54: 0.5 | V54: 0.5
B55: 1.1.5.4) โครงการพัฒนาทักษะการเป็นผู้ประกอบการ Startup | M55: 0.25 | N55: 0.25 | O55: 0.25 | P55: 0.25 | Q55: =0.7/2 -> 0.35 | R55: =0.7/2 -> 0.35 | S55: =0.7/2 -> 0.35 | T55: 0.35 | U55: 0.5 | V55: 0.5
B56: 1.1.5.5) โครงการส่งเสริมและสนับสนุนนักศึกษาและบัณฑิตในการเข้าร่วมกิจกรรมการแข่งขันความเป็นผู้ประกอบการระดับนานาชาติ | M56: 0.25 | N56: 0.25 | O56: 0.25 | P56: 0.25 | Q56: 0.5 | R56: 0.5 | S56: 0.5 | T56: 0.5 | U56: 0.5 | V56: 0.5
B57: 1.1.5.6) โครงการพัฒนาทักษะการเป็นผู้ประกอบการในสถานประกอบการทั้งในและต่างประเทศ (นอกเหนือจากการฝึกงานในหลักสูตร) | M57: 11.7 | N57: 3.3 | O57: 11.7 | P57: 2.8 | Q57: 13.7 | R57: 4.8 | S57: 13.7 | T57: 4.8 | U57: 13.7 | V57: 4.8
A58: แผนงานกิจกรรมเพื่อสร้างนักวิจัย นักศึกษาและศิษย์เก่าเป็นผู้ประกอบการใหม่ | B58: 2. โครงการสร้างผู้ประกอบการใหม่ | C58: จำนวนผู้ได้รับการพัฒนา | D58: คน | H58: 670 | I58: 670 | J58: 670 | K58: 670 | L58: 670 | M58: 7.7 | O58: 7.7 | Q58: 9.7 | S58: 9.7 | U58: 9.7
A59: แผนงานกิจกรรมเพื่อสร้างนักวิจัย นักศึกษาและศิษย์เก่าเป็นผู้ประกอบการใหม่ | B59: 2. โครงการสร้างผู้ประกอบการใหม่ | C59: จำนวนนักศึกษาและศิษย์เก่าเป็นผู้ประกอบการ | D59: คน | H59: 260 | I59: 260 | J59: 260 | K59: 260 | L59: 260
A60: แผนงานกิจกรรมเพื่อสร้างนักวิจัย นักศึกษาและศิษย์เก่าเป็นผู้ประกอบการใหม่ | B60: 2. โครงการสร้างผู้ประกอบการใหม่ | C60: จำนวน Holding Company | D60: บริษัท | H60: 0 | I60: 0 | J60: 1 | K60: 1 | L60: 1
A61: แผนงานกิจกรรมเพื่อสร้างนักวิจัย นักศึกษาและศิษย์เก่าเป็นผู้ประกอบการใหม่ | B61: 2. โครงการสร้างผู้ประกอบการใหม่ | C61: จำนวนความร่วมมือในการพัฒนานักศึกษาผู้ประกอบการ ขนาดกลางขึ้นไป | D61: ความร่วมมือ | H61: 10 | I61: 10 | J61: 10 | K61: 10 | L61: 10
A62: แผนงานกิจกรรมเพื่อสร้างนักวิจัย นักศึกษาและศิษย์เก่าเป็นผู้ประกอบการใหม่ | B62: 1. โครงการส่งเสริมและสนับสนุนนักวิจัย นักศึกษาและศิษย์เก่าในการเข้าร่วมกิจกรรมการประกวดและการแข่งขันความเป็นผู้ประกอบการระดับชาติและนานาชาติ | C62: จำนวนผู้เข้าร่วมโครงการ | D62: คน | H62: 200 | I62: 200 | J62: 200 | K62: 200 | L62: 200 | M62: 1 | O62: 1 | Q62: 1 | S62: 1 | U62: 1
A63: แผนงานกิจกรรมเพื่อสร้างนักวิจัย นักศึกษาและศิษย์เก่าเป็นผู้ประกอบการใหม่ | B63: 1. โครงการส่งเสริมและสนับสนุนนักวิจัย นักศึกษาและศิษย์เก่าในการเข้าร่วมกิจกรรมการประกวดและการแข่งขันความเป็นผู้ประกอบการระดับชาติและนานาชาติ | C63: จำนวนรางวัลด้านผู้ประกอบการ | D63: รางวัล | H63: 50 | I63: 50 | J63: 50 | K63: 50 | L63: 50 | M63: 3 | O63: 3 | Q63: 3 | S63: 3 | U63: 3
A64: แผนงานกิจกรรมเพื่อสร้างนักวิจัย นักศึกษาและศิษย์เก่าเป็นผู้ประกอบการใหม่ | B64: 1. โครงการส่งเสริมและสนับสนุนนักวิจัย นักศึกษาและศิษย์เก่าในการเข้าร่วมกิจกรรมการประกวดและการแข่งขันความเป็นผู้ประกอบการระดับชาติและนานาชาติ | C64: งบประมาณจากแหล่งทุนภายนอกสนับสนุนการสร้างผู้ประกอบการ | D64: ล้านบาท | H64: 5 | I64: 6 | J64: 11 | K64: 16 | L64: 21
A65: แผนงานกิจกรรมเพื่อสร้างนักวิจัย นักศึกษาและศิษย์เก่าเป็นผู้ประกอบการใหม่ | B65: 1. โครงการส่งเสริมและสนับสนุนนักวิจัย นักศึกษาและศิษย์เก่าในการเข้าร่วมกิจกรรมการประกวดและการแข่งขันความเป็นผู้ประกอบการระดับชาติและนานาชาติ | C65: ร้อยละของนักศึกษาชมรม/สมาคมการสร้างผู้ประกอบการนำผลงานเข้าร่วมโครงการ | D65: ร้อยละ | H65: 10 | I65: 10 | J65: 10 | K65: 10 | L65: 10
B66: 1.1.6) แผนการเพิ่มจำนวนนักศึกษาระดับบัณฑิตศึกษาและเพิ่มผลงานวิทยานิพนธ์ที่ตีพิมพ์ในฐานข้อมูลนานาชาติ (L) | C66: PI 1.1.6.1 ร้อยละของนักศึกษาบัณฑิตศึกษาที่มีผลงานวิทยานิพนธ์ที่ตีพิมพ์ในฐานข้อมูลนานาชาติต่อนักศึกษาระดับบัณฑิตศึกษาที่สำเร็จการศึกษาในปีนั้น | D66: ร้อยละ | H66: 30 | I66: 35 | J66: 40 | K66: 45 | L66: 50 | M66: =+M68+M69+M70+M71 -> 1 | N66: =+N68+N69+N70+N71 -> 1 | O66: 1 | P66: 1 | Q66: 1 | R66: 1 | S66: 1 | T66: 1 | U66: 1 | V66: 1 | W66: 1) แผนการจ้างผู้เชี่ยวชาญชาวต่างประเทศหรือในประเทศ จำนวน 2 อัตรา เพื่อพัฒนาการเขียนผลงานทางวิชาการ
C67: PI 1.1.6.2 ร้อยละของนักศึกษาระดับบัณฑิตศึกษาที่เพิ่มขึ้นเมื่อเทียบกับปีที่ผ่านมา | D67: ร้อยละ | E67: (131 คน ) | F67: (147 คน) | H67: 10 (160 คน) | I67: 15 | J67: 20 | K67: 25 | L67: 30
B68: 1.1.6.1) โครงการคลินิควิชาการสำหรับอาจารย์และบัณฑิตศึกษาเพื่อตีพิมพ์หรือเผยแพร่ผลงานในระดับนานาชาติ (ภาษา การเขียนงานวิจัย รูปภาพ การตีพิมพ์ ชิ้นงาน ฯลฯ) | M68: 1 | N68: 0 | O68: 1 | P68: 0 | Q68: 1 | R68: 0 | S68: 1 | T68: 0 | U68: 1 | V68: 0
B69: 1.1.6.2) โครงการสนับสนุนทุนการศึกษานักศึกษาระดับบัณฑิตศึกษา | M69: 0 | N69: 1 | O69: 0 | P69: 1 | Q69: 0 | R69: 1 | S69: 0 | T69: 1 | U69: 0 | V69: 1
B70: 1.1.6.3) โครงการเชิงรุกในการรับนักศึกษาระดับบัณฑิตศึกษา เช่น การสร้างความร่วมมือกับภาครัฐและเอกชน | M70: 0 | N70: 0 | O70: 0 | P70: 0 | Q70: 0 | R70: 0 | S70: 0 | T70: 0 | U70: 0 | V70: 0
B71: 1.1.6.4) โครงการพัฒนาหลักสูตร ป.บัณฑิต ที่มีการทำวิจัยและมีการตีพิมพ์ผลงานวิทยานิพนธ์ในฐานข้อมูลนานาชาติ | M71: 0 | N71: 0 | O71: 0 | P71: 0 | Q71: 0 | R71: 0 | S71: 0 | T71: 0 | U71: 0 | V71: 0
B72: 1.1.7) แผนพัฒนาทักษะภาษาอังกฤษให้กับนักศึกษาระดับปริญญาตรี (L) | C72: PI 1.1.7.1 ร้อยละของนักศึกษาระดับ ป.ตรีที่มีทักษะทางภาษาอังกฤษระดับ B1 ขึ้นไป | D72: ร้อยละ | E72: 15.19 | F72: 9.21 | H72: 35 | I72: 40 | J72: 45 | K72: 50 | L72: 55 | M72: =+M73+M74+M75+M76+M77+M78+M79+M80 -> 0 | N72: =+N73+N74+N75+N76+N77+N78+N79+N80 -> 5.4 | O72: 0 | P72: 5.4 | Q72: 0 | R72: 5.4 | S72: 0 | T72: 5.4 | U72: 0 | V72: 5.4 | W72: 1) แผนส่งเสริมอาจารย์ด้านการจัดการเรียนการสอนโดยใช้ภาษาอังกฤษ
B73: 1.1.7.1) โครงการการจัดห้องเรียนพิเศษสำหรับนักศึกษาเพื่อส่งเสริมทักษะภาษาอังกฤษที่เป็นเลิศ (วัดระดับทางภาษาก่อนเข้าเรียนในโครงการ โดยแบ่งกลุ่มนักศึกษาที่เข้าเรียน 3 กลุ่ม เช่น A0 A1 A2 B1 B2 C1 (B1 B2 C1 สู่ความเป็นเลิศ) | M73: 0 | N73: 0 | O73: 0 | P73: 0 | Q73: 0 | R73: 0 | S73: 0 | T73: 0 | U73: 0 | V73: 0
B74: 1.1.7.2) โครงการจัดหาโปรแกรมเพื่อใช้ในการเรียนการสอนและฝึกทักษะภาษาอังกฤษตามหลัก CEFR (ใช้งบประมาณของสำนักวิทยบริการ/คณะศิลปศาสตร์) | M74: 0 | N74: 2 | O74: 0 | P74: 2 | Q74: 0 | R74: 2 | S74: 0 | T74: 2 | U74: 0 | V74: 2
B75: 1.1.7.3) โครงการเตรียมความพร้อมภาษาอังกฤษนักศึกษาแรกเข้าตามมาตรฐาน CEFR (ห้องขนาดเล็ก) | M75: 0 | N75: 1 | O75: 0 | P75: 1 | Q75: 0 | R75: 1 | S75: 0 | T75: 1 | U75: 0 | V75: 1
B76: 1.1.7.4) โครงการกระตุ้นและการสร้างแรงบันดาลใจในการเพิ่มทักษะทางภาษาอังกฤษ เช่น การเชิญศิษย์เก่าที่ประสบผลสำเร็จในการทำงานในองค์กรต่างประเทศในการใช้ทักษะทางภาษาอังกฤษ | M76: 0 | N76: 0.1 | O76: 0 | P76: 0.1 | Q76: 0 | R76: 0.1 | S76: 0 | T76: 0.1 | U76: 0 | V76: 0.1
B77: 1.1.7.5) โครงการส่งเสริมให้รายวิชาสอนเป็นภาษาอังกฤษในบางหัวข้อหรือทั้งรายวิชา (ฟัง พูด อ่าน เขียน อย่างน้อย 2 ทักษะ) | M77: 0 | N77: 0 | O77: 0 | P77: 0 | Q77: 0 | R77: 0 | S77: 0 | T77: 0 | U77: 0 | V77: 0
B78: 1.1.7.6) โครงการสร้างบรรยากาศการเรียนรู้ด้านภาษาอังกฤษในระดับคณะ/หลักสูตร/สำนักวิเทศสัมพันธ์/สำนักพัฒนานักศึกษาโดยจัด International Day of Faculty เป็นต้น (คณะละ 1 เดือน เดือนละ 2 ครั้ง 11 คณะ มหาวิทยาลัย 1 กิจกรรมของคณะ ให้ใช้งบประมาณคณะ) | M78: 0 | N78: 0.3 | O78: 0 | P78: 0.3 | Q78: 0 | R78: 0.3 | S78: 0 | T78: 0.3 | U78: 0 | V78: 0.3
B79: 1.1.7.7) โครงการกิจกรรมเสริมหลักสูตรด้านภาษาอังกฤษในระดับคณะ/หลักสูตร/สำนักวิทยบริการ/สำนักวิเทศสัมพันธ์/สำนักพัฒนานักศึกษา เช่น English minute English camp English table English corner และอบรมพัฒนาศักยภาพทักษะทางภาษาอังกฤษนักศึกษา เตรียมความพร้อมสู่ตลาดแรงงาน | M79: 0 | N79: 0.5 | O79: 0 | P79: 0.5 | Q79: 0 | R79: 0.5 | S79: 0 | T79: 0.5 | U79: 0 | V79: 0.5
B80: 1.1.7.8) โครงการแลกเปลี่ยนหรือร่วมมือทางวิชาการกับมหาวิทยาลัย/หน่วยงานระดับนานาชาติ | M80: 0 | N80: 1.5 | O80: 0 | P80: 1.5 | Q80: 0 | R80: 1.5 | S80: 0 | T80: 1.5 | U80: 0 | V80: 1.5
B81: 1.1.8) แผนพัฒนานักศึกษาระดับปริญญาตรีให้มีสมรรถนะและทักษะที่จำเป็นในอนาคต Future skills (L) | C81: PI 1.1.8.1 ร้อยละของนักศึกษาที่สอบผ่านทักษะ Future skills ที่มหาวิทยาลัยกำหนดเทียบกับนักศึกษาที่เข้ารับการทดสอบทั้งหมด | D81: ร้อยละ | H81: 80 | I81: 85 | J81: 90 | K81: 95 | L81: 95 | M81: =+M82+M83 -> 0 | N81: =+N82+N83 -> 0.1 | O81: 0 | P81: 0.1 | Q81: 0 | R81: 0.1 | S81: 0 | T81: 0.1 | U81: 0 | V81: 0.1
B82: 1.1.8.1) โครงการพัฒนาทักษะใหม่เพื่อการทำงานในอนาคตของนักศึกษา เช่น 1) IT Support Professional Certificate หรือ 2) Data Analytics Professional Certificate หรือ 3) Digital Marketing & E-commerce Certificate | M82: 0 | N82: 0.1 | O82: 0 | P82: 0.1 | Q82: 0 | R82: 0.1 | S82: 0 | T82: 0.1 | U82: 0 | V82: 0.1
B83: 1.1.8.2) โครงการพัฒนาศักยภาพนักศึกษาและกระบวนการจัดกิจกรรมนักศึกษาให้ตอบสนองต่อการเป็น Global citizen (ตัดออกเป็นงานประจำ) | M83: 0 | N83: 0 | O83: 0 | P83: 0 | Q83: 0 | R83: 0 | S83: 0 | T83: 0 | U83: 0 | V83: 0
B84: 1.1.9) แผนส่งเสริมนักศึกษาและศิษย์เก่าให้สามารถเข้าร่วมแข่งขันในระดับชาติและนานาชาติ (L) | C84: PI 1.1.9.1 จำนวนนักศึกษาที่ได้รับการสนับสนุนการเข้าร่วมแข่งขันระดับชาติหรือนานาชาติ | D84: คน | H84: =15000*0.5/100 -> 75 | I84: =15000*0.6/100 -> 90 | J84: =15000*0.7/100 -> 105 | K84: =15000*0.8/100 -> 120 | L84: =15000*0.9/100 -> 135
C85: PI 1.1.9.2 จำนวนศิษย์เก่าที่เข้าร่วมแข่งขันระดับชาติหรือนานาชาติ | D85: คน | H85: =3000*1/100 -> 30 | I85: =3000*1.1/100 -> 33 | J85: =3000*1.2/100 -> 36 | K85: =3000*1.4/100 -> 42 | L85: =3000*1.5/100 -> 45
B86: 1.1.9.1) โครงการส่งเสริม สนับสนุนกิจกรรม 5 ด้าน | M86: 0 | N86: 0 | O86: 0 | P86: 0 | Q86: 0 | R86: 0 | S86: 0 | T86: 0 | U86: 0 | V86: 0
A87: 1.2) การพัฒนาการจัดการศึกษาเข้าสู่ระดับสากลหรือระดับนานาชาติ ตอบสนองต่อ - SC1 - SA4 - SOp.1 - นโยบายสภามหาวิทยาลัย 4 - SDG 4 | B87: SI 1.2.1 Academic Reputation ของ QS Ranking | D87: คะแนน | F87: 5.9 | G87: 7 | H87: 10 | I87: 15 | J87: 20 | K87: 25 | L87: 35
B88: แผนปฏิบัติการ 1.2.1) แผนพัฒนาหลักสูตรให้ได้ตามมาตรฐานสากล (AUN, AACSB, ABET, WFME) (S) | C88: PI 1.2.1.1 จำนวนหลักสูตรที่ได้รับการรับรองตามมาตรฐานสากล (นับสะสม) | D88: หลักสูตร | E88: 1 | F88: 1 | G88: 1 (แพทย) | H88: 1 | I88: 2 | J88: 6 | K88: 10 | L88: 21 | M88: =+M89+M90 -> 0 | N88: =+N89+N90 -> 0.5 | W88: 1) แผนพัฒนาอาจารย์เพื่อให้มีความรู้ และสามารถจัดการเรียนการสอนให้ได้มาตรฐาน AUN QA 2) แผนพัฒนาอาจารย์(ผู้รับผิดชอบหลักสูตร) ด้านการบริหารหลักสูตรให้ได้มาตรฐาน AUN QA 3) แผนพัฒนาอาจารย์เพื่อเตรียมผู้ตรวจประเมินตามมาตรฐาน AUN QA
B89: 1.2.1.1) โครงการนำร่องและส่งเสริมการเตรียมความพร้อมในการพัฒนาหลักสูตรตามมาตรฐาน AUN | M89: 0 | N89: 0.5
B90: 1.2.1.2) โครงการพัฒนาหลักสูตรให้ได้ตามมาตรฐานสากล (AACSB, TABEE, WFME) (อาจเพิ่มนักศึกษาต่างชาติได้) | M90: 0 | N90: 0
B91: 1.2.2) แผนสร้างความร่วมมือทางวิชาการกับสถาบันต่างประเทศ (L) | C91: PI 1.2.2.1 จำนวนหลักสูตรที่พัฒนาร่วมกันกับต่างประเทศ | D91: หลักสูตร | I91: 1 | J91: 1 | K91: 1 | L91: 1 | M91: =+M93+M94+M95 -> 0 | N91: =+N93+N94+N95 -> 0 | O91: 0 | P91: 0 | Q91: 0 | R91: 0 | S91: 0 | T91: 0 | U91: 0 | V91: 0
C92: PI 1.2.2.2 จำนวนนักศึกษาแลกเปลี่ยน (inbound/outbound student) | D92: คน | H92: 10/10 | I92: 20/20 | J92: 20/20 | K92: 25/25 | L92: 30/30
B93: 1.2.2.1 โครงการแลกเปลี่ยนนักศึกษา ด้านการจัดการเรียนการสอน | M93: 0 | N93: 0 | O93: 0 | P93: 0 | Q93: 0 | R93: 0 | S93: 0 | T93: 0 | U93: 0 | V93: 0
B94: 1.2.2.2 โครงการแลกเปลี่ยนอาคันตุกะ | M94: 0 | N94: 0 | O94: 0 | P94: 0 | Q94: 0 | R94: 0 | S94: 0 | T94: 0 | U94: 0 | V94: 0
B95: 1.2.2.3 โครงการพัฒนาหลักสูตรร่วมกับสถาบันต่างประเทศ | M95: 0 | N95: 0 | O95: 0 | P95: 0 | Q95: 0 | R95: 0 | S95: 0 | T95: 0 | U95: 0 | V95: 0
B96: 1.2.3) แผนการดำเนินการเชิงรุกเพื่อเพิ่มนักศึกษาต่างชาติ (L) | C96: PI 1.2.3.1 จำนวนนักศึกษาต่างชาติ (ไม่นับสะสม) | D96: คน | E96: 9 | H96: 15 | I96: 20 | J96: 25 | K96: 30 | L96: 35 | M96: =+M97+M98+M99+M100 -> 0 | N96: =+N97+N98+N99+N100 -> 0 | O96: 0 | P96: 0 | Q96: 0 | R96: 0 | S96: 0 | T96: 0 | U96: 0 | V96: 0
B97: 1.2.3.1) โครงการพัฒนาหลักสูตรนานาชาติ เพื่อรองรับนักศึกษาต่างชาติ กลุ่มเป้าหมายคือ เน้นในกลุ่มประเทศอาเชียน -ปีการศึกษา 2567 หลักสูตรด้านวิศวะ -ปีการศึกษา 2568 หลักสูตรด้านวิทยาศาสตร์ (เคมี โท-เอก) /ด้านเกษตรศาสตร์ | M97: 0 | N97: 0 | O97: 0 | P97: 0 | Q97: 0 | R97: 0 | S97: 0 | T97: 0 | U97: 0 | V97: 0
B98: 1.2.3.2) โครงการพัฒนาหลักสูตรสอนเป็นภาษาอังกฤษ (เป้าหมายคือ เพิ่มจำนวนนักศึกษาต่างชาติ โดยเน้นในกลุ่มประเทศอาเชียน) | M98: 0 | N98: 0 | O98: 0 | P98: 0 | Q98: 0 | R98: 0 | S98: 0 | T98: 0 | U98: 0 | V98: 0
B99: 1.2.3.3) โครงการจัดหาผู้ช่วยสอนที่สนับสนุนทางด้านภาษา | M99: 0 | N99: 0 | O99: 0 | P99: 0 | Q99: 0 | R99: 0 | S99: 0 | T99: 0 | U99: 0 | V99: 0
B100: 1.2.3.4) โครงการดำเนินการเชิงรุกเพื่อรับนักศึกษาต่างชาติ เช่น การใช้ตัวแทนหรือผู้แทนจากมหาวิทยาลัย การกำหนดหน่วยงานเพื่อรับนักศึกษาต่างชาติ เป็นต้น | M100: 0 | N100: 0 | O100: 0 | P100: 0 | Q100: 0 | R100: 0 | S100: 0 | T100: 0 | U100: 0 | V100: 0
A101: 1.3) จัดการศึกษาสำหรับประชาชนทุกช่วงวัยตามความต้องการ ตอบสนองต่อ - SC1, SA1, SOp1 - นโยบายสภามหาวิทยาลัย 1, 2, 4 - SDG 4 | B101: SI 1.3.1 ร้อยละรายได้ที่เพิ่มขึ้นจากการจัดการศึกษาทุกช่วงวัย | D101: ร้อยละ | F101: 1.185 | H101: 5 | I101: 7 | J101: 9 | K101: 11 | L101: 15 | M101: ="งบประมาณขับเคลื่อน ระยะ 5 ปี (พ.ศ. 2566-2570) เป้าประสงค์ที่ 1.3 รวมทั้งสิ้น "&TEXT((M103+O103+Q103+S103+U103),"#.00")&" (ล้านบาท)" -> งบประมาณขับเคลื่อน ระยะ 5 ปี (พ.ศ. 2566-2570) เป้าประสงค์ที่ 1.3 รวมทั้งสิ้น 35.00 (ล้านบาท)
B102: SI 1.3.2 ร้อยละของผู้เข้าศึกษาหลักสูตรระยะสั้น (credit/non-credit) หรือ Credit bank ที่เพิ่มขึ้น (เทียบกับปีที่ผ่านมา) | D102: ร้อยละ | H102: 20 | I102: 20 | J102: 20 | K102: 20 | L102: 20 | M102: =+M104+M140 -> 7 | N102: =+N104+N140 -> 0 | O102: 5.7 | P102: 1.3 | Q102: 5.2 | R102: 1.8 | S102: 5.2 | T102: 1.8 | U102: 5.2 | V102: 1.8
M103: =+M102+N102 -> 7 | O103: =+O102+P102 -> 7 | Q103: =+Q102+R102 -> 7 | S103: =+S102+T102 -> 7 | U103: =+U102+V102 -> 7
B104: แผนปฏิบัติการ 1.3.1) แผนพัฒนาหลักสูตรระยะสั้น New skill/Up-skill/Re-skill ที่ตรงต่อความต้องการของตลาด (L) | C104: PI 1.3.1.1 จำนวนหลักสูตรระยะสั้น (นับสะสม) | D104: หลักสูตร | H104: 50 | I104: 70 | J104: 80 | K104: 90 | L104: 100 | M104: =+M105+M117+M139 -> 7 | N104: =+N105+N117+N139 -> 0 | O104: 5.7 | P104: 1.3 | Q104: 5.2 | R104: 1.8 | S104: 5.2 | T104: 1.8 | U104: 5.2 | V104: 1.8
B105: 1.3.1.1) โครงการพัฒนาหลักสูตรระยะสั้น Newskill (credit/non-credit) | M105: 7 | N105: 0 | O105: 5.7 | P105: 1.3 | Q105: 5.2 | R105: 1.8 | S105: 5.2 | T105: 1.8 | U105: 5.2 | V105: 1.8
B106: ปีการศึกษา 2566
B107: - หลักสูตรการจัดการธุรกิจบริการสุขภาพ
B108: - หลักสูตรเกษตรอัฉริยะ
B109: - หลักสูตรวิทยาการข้อมูลและอินเทอร์เน็ตเพื่อสนับสนุบเศรษฐกิจดิจิทัล
B110: - หลักสูตรระยะสั้นผู้ช่วยกายภาพบำบัด ***
B111: 1. หลักสูตรระยะสั้นด้านการเกษตร อาหารและสุขภาพ จากฐานทรัพยากรชีวภาพ | C111: จำนวนผู้ได้รับการพัฒนา | D111: คน | H111: 700 | I111: 700 | J111: 700 | K111: 700 | L111: 700 | M111: 3 | O111: 2.5 | Q111: 2 | S111: 2 | U111: 2
B112: 1. หลักสูตรระยะสั้นด้านการเกษตร อาหารและสุขภาพ จากฐานทรัพยากรชีวภาพ | C112: จำนวนผู้ได้รับการพัฒนาที่นำองค์ความรู้ไปใช้ในการดำเนินธุรกิจ | D112: คน | H112: 50 | I112: 50 | J112: 50 | K112: 50 | L112: 50
B113: 2. หลักสูตรระยะสั้นด้านวัสดุศาสตร์ | C113: จำนวนผู้ได้รับการพัฒนา | D113: คน | H113: 300 | I113: 300 | J113: 300 | K113: 300 | L113: 300 | M113: 1.5 | O113: 1.2 | Q113: 1.2 | S113: 1.2 | U113: 1.2
B114: 2. หลักสูตรระยะสั้นด้านวัสดุศาสตร์ | C114: จำนวนผู้ได้รับการพัฒนาที่นำองค์ความรู้ไปใช้ในการดำเนินธุรกิจ | D114: คน | H114: 10 | I114: 10 | J114: 10 | K114: 10 | L114: 10
B115: 3. หลักสูตรระยะสั้นด้านนวัตกรรมการพัฒนาสังคม เพื่อพัฒนาพื้นที่ให้เป็นเมืองน่าอยู่อัจฉริยะ | C115: จำนวนผู้ได้รับการพัฒนา | D115: คน | H115: 500 | I115: 500 | J115: 500 | K115: 500 | L115: 500 | M115: 2.5 | O115: 2 | Q115: 2 | S115: 2 | U115: 2
B116: 3. หลักสูตรระยะสั้นด้านนวัตกรรมการพัฒนาสังคม เพื่อพัฒนาพื้นที่ให้เป็นเมืองน่าอยู่อัจฉริยะ | C116: จำนวนผู้ได้รับการพัฒนาที่นำองค์ความรู้ไปใช้ในการดำเนินธุรกิจ | D116: คน | H116: 50 | I116: 50 | J116: 50 | K116: 50 | L116: 50
B117: 1.3.1.2) โครงการพัฒนาหลักสูตรระยะสั้น Newskill (credit/non-credit) ร่วมกับภาคเอกชน | M117: 0 | N117: 0 | O117: 0 | P117: 0 | Q117: 0 | R117: 0 | S117: 0 | T117: 0 | U117: 0 | V117: 0
B118: 1.3.1.2.1) โครงการพัฒนาหลักสูตรระยะสั้น Up-skill/Re-skill (credit/non-credit) | M118: - | O118: - | Q118: - | S118: - | U118: -
B119: - หลักสูตรระยะสั้นเรื่อง การสร้างผู้ประกอบการไม้ดอก
B120: - หลักสูตรระยะสั้นเรื่อง การยกระดับการท่องเที่ยวเชิงวัฒนธรรมและสุขภาพสู่ความเป็นสากล (กลุ่มเป้าหมาย : ผู้ประกอบการ)
B121: - หลักสูตรระยะสั้นเรื่อง การสร้างผู้ประกอบการโคนม
B122: - หลักสูตรระยะสั้นเรื่อง การจัดการระบบการผลิตของตลาดสีเขียวด้วยระบบอัจฉริยะ (Smart Farming)
B123: - หลักสูตรระยะสั้นเรื่อง พัฒนาเกษตรกรรุ่นเยาว์ให้เป็นมืออาชีพ (Young Smart Farmer)
B124: - หลักสูตรระยะสั้นเรื่อง การพัฒนาผู้ประกอบการอุตสาหกรรมสีเขียวโดยใช้วัตถุดิบในพื้นที่
B125: - หลักสูตรระยะสั้นเรื่อง การพัฒนาผลิตภัณฑ์เกษตรและอาหารสำเร็จรูปที่มีมูลค่าสูง
B126: - หลักสูตรระยะสั้นเรื่อง การพัฒนาทักษะภาษาญี่ปุ่นเพื่อการสื่อสารในอุตสาหกรรม
B127: - หลักสูตรระยะสั้นเรื่อง การเป็นผู้ประกอบการด้านการท่องเที่ยวเพื่อสุขภาพ (health tourism)
B128: - หลักสูตรระยะสั้นเรื่อง การเป็นผู้ประกอบการด้านอาหารฟังก์ชั่นและผลิตภัณฑ์โภชนเภสัช
B129: - หลักสูตรระยะสั้นเรื่อง การเป็นผู้ประกอบการด้านการบริหารจัดการธุรกิจยุคใหม่
B130: - หลักสูตรระยะสั้นเรื่อง การผู้ประกอบการด้านการบริหารจัดการระบบภาษี
B131: - หลักสูตรระยะสั้นเรื่อง การเป็นผู้ประกอบการเพื่อสังคม
B132: - หลักสูตรระยะสั้นเรื่อง การวาดเพื่องานสร้างสรรค์ (APA)
B133: - หลักสูตรระยะสั้นเรื่อง ศิลปะพื้นบ้านสร้างสรรค์ (APA)
B134: - หลักสูตรระยะสั้นด้านภาษา เช่น ภาษาจีน ภาษาเวียดนาม ภาษาลาว ภาษาเขมร ภาษาอังกฤษ ภาษาญี่ปุ่น เป็นต้น
B135: - หลักสูตรการเป็นผู้ประกอบการด้านการดูแลสุขภาพผู้สูงวัย ด้านระบบสารสนเทศและเทคโนโลยีดิจิทัล
A136: แผนงานจัดการศึกษาสำหรับผู้สูงอายุ (Education For The Elderly) | B136: 1. โครงการจัดการหลักสูตรระยะสั้นหรือต่อเนื่องสำหรับผู้สูงอายุ (Edutainment for the Elderly) | C136: จำนวนหลักสูตร | D136: หลักสูตร | H136: 5 | I136: 7 | J136: 9 | K136: 10 | L136: 11 | M136: 0.5 | O136: 0.7 | Q136: 0.9 | S136: 1 | U136: 1.1
A137: แผนงานจัดการศึกษาสำหรับผู้สูงอายุ (Education For The Elderly) | B137: 1. โครงการจัดการหลักสูตรระยะสั้นหรือต่อเนื่องสำหรับผู้สูงอายุ (Edutainment for the Elderly) | C137: จำนวนผู้เข้าร่วมอบรม | D137: คน | H137: 300 | I137: 420 | J137: 540 | K137: 600 | L137: 660 | M137: 0.5 | O137: 0.7 | Q137: 0.9 | S137: 1 | U137: 1.1
A138: แผนงานจัดการศึกษาสำหรับผู้สูงอายุ (Education For The Elderly) | B138: 2. โครงการเสริมสร้างความรู้เท่าทันสื่อสุขภาพสำหรับผู้สูงวัย | C138: จำนวนผู้เข้าร่วมอบรม | D138: คน | H138: 60 | I138: 60 | J138: 60 | K138: 60 | L138: 60
B139: 1.3.1.3) โครงการพัฒนาหลักสูตรระยะสั้น Up-skill/Re-skill (credit/non-credit) ร่วมกับภาคเอกชน | M139: 0 | N139: 0 | O139: 0 | P139: 0 | Q139: 0 | R139: 0 | S139: 0 | T139: 0 | U139: 0 | V139: 0
B140: 1.3.2) แผนพัฒนาระบบ credit bank เพื่อเอื้อต่อเรียนรู้และการเรียนข้ามสถาบัน (L) | C140: PI 1.3.2.1 จำนวนรายวิชาที่เป็น Credit bank | D140: รายวิชา | H140: 30 | I140: 40 | J140: 50 | K140: 50 | L140: 50 | M140: =+M142 -> 0 | N140: =+N142 -> 0 | O140: 0 | P140: 0 | Q140: 0 | R140: 0 | S140: 0 | T140: 0 | U140: 0 | V140: 0
C141: PI 1.3.2.2 จำนวนนักศึกษาที่นำรายวิชา Credit bank มาใช้ในการจบหลักสูตร | D141: คน | I141: 10 | J141: 15 | K141: 20 | L141: 25
B142: 1.3.2.1) โครงการพัฒนารายวิชาเพื่อเข้าสู่ระบบ credit bank และประชาสัมพันธ์รูปแบบการจัดการศึกษา (Pre-Bachelor Degree, Pre-Master Degree) | M142: 0 | N142: 0 | O142: 0 | P142: 0 | Q142: 0 | R142: 0 | S142: 0 | T142: 0 | U142: 0 | V142: 0

Sheet กลยุทธ์ที่ 2 วิจัย
A1: วัตถุประสงค์เชิงกลยุทธ์ที่ 2 การวิจัยที่มีคุณภาพสูงและสร้างองค์ความรู้เพื่อพัฒนาคุณภาพชีวิตและเศรษฐกิจของพื้นที่
A2: เป้าประสงค์ | B2: ตัววัดวัตถุประสงค์เชิงกลยุทธ์/ แผนปฏิบัติการระยะสั้น (S) ระยะยาว (L) | C2: ตัววัดแผนปฏิบัติการ | D2: หน่วย | E2: Based line | H2: ค่าคาดการณ์ | M2: งบประมาณ (แผ่นดิน/รายได้) หน่วย: ล้านบาท | W2: แผนบุคลากร | Y2: Base line | AB2: ค่าเป้าหมาย
D3: นับ | E3: 2563 | F3: 2564 | G3: 2565 | H3: 2566 | I3: 2567 | J3: 2568 | K3: 2569 | L3: 2570 | M3: 2566 | O3: 2567 | Q3: 2568 | S3: 2569 | U3: 2570 | Y3: 2563 | Z3: 2564 | AA3: 2565 | AB3: 2566 | AC3: 2567 | AD3: 2568 | AE3: 2569 | AF3: 2570
M4: แผ่นดิน | N4: รายได้ | O4: แผ่นดิน | P4: รายได้ | Q4: แผ่นดิน | R4: รายได้ | S4: แผ่นดิน | T4: รายได้ | U4: แผ่นดิน | V4: รายได้
A5: 2.1) เพิ่มผลงาน วิจัย/นวัตกรรมที่นำไปใช้ประโยชน์เพื่อพัฒนาคุณภาพชีวิตและเศรษฐกิจของพื้นที่ ตอบสนองต่อ - SC3, SC4, SC5 - SA1, SA4 - SOp3 - นโยบายสภามหาวิทยาลัย 1, 3, 5 - All SDGs | B5: SI 2.1.1 รายได้จากทรัพย์สินทางปัญญา งานวิจัยหรือนวัตกรรมที่นำไปใช้ประโยชน์เชิงพาณิชย์ | D5: ล้านบาท | E5: 1.75 | F5: 2.25 | H5: 4 | I5: 6 | J5: 9 | K5: 11 | L5: 15 | M5: ="งบประมาณขับเคลื่อน ระยะ 5 ปี (พ.ศ. 2566-2570) เป้าประสงค์ที่ 2.1 รวมทั้งสิ้น "&TEXT((M7+O7+Q7+S7+U7),"#.00")&" (ล้านบาท)" -> งบประมาณขับเคลื่อน ระยะ 5 ปี (พ.ศ. 2566-2570) เป้าประสงค์ที่ 2.1 รวมทั้งสิ้น 114.70 (ล้านบาท)
B6: SI 2.1.2 ร้อยละของผลงานวิจัยหรือนวัตกรรมที่นำไปใช้เพื่อพัฒนาคุณภาพชีวิตและเศรษฐกิจของพื้นที่ | D6: ร้อยละ | E6: 28 | F6: 30 | H6: 40 | I6: 50 | J6: 60 | K6: 70 | L6: 80 | M6: =+M8+M11+M13+M18+M22+M26 -> 20 | N6: 3.34 | O6: 17.5 | P6: 6.09 | Q6: 17.5 | R6: 5.09 | S6: 17.5 | T6: 5.09 | U6: 17.5 | V6: 5.09
B7: SI 2.1.3 ร้อยละของผลงานวิจัยที่สามารถพัฒนาไปสู่ระดับ TRL (6-7) (TRL Technology Readiness Level) | D7: ร้อยละ | H7: 5 (6 ชิ้น) | I7: 5 (6 ชิ้น) | J7: 5 (6 ชิ้น) | K7: 5 (6 ชิ้น) | L7: 5 (6 ชิ้น) | M7: =+M6+N6 -> 23.34 | O7: =+O6+P6 -> 23.59 | Q7: =+Q6+R6 -> 22.59 | S7: =+S6+T6 -> 22.59 | U7: =+U6+V6 -> 22.59
B8: แผนปฏิบัติการ 2.1.1) แผนการส่งเสริมและสนับสนุนโครงการวิจัย เทคโนโลยีเชิงลึกที่มีศักยภาพในเชิงพาณิชย์ (L) | C8: PI 2.1.1.1 ร้อยละของโครงการวิจัยที่เป็นผลงานวิจัยเชิงลึกที่มีศักยภาพเชิงพาณิชย์ต่อโครงการวิจัยทั้งหมด | D8: ร้อยละ | H8: 2 (4 โครงการ) | I8: 2.5 (5 โครงการ) | J8: 3 (6 โครงการ) | K8: 5 (10 โครงการ) | L8: 7.5 (15 โครงการ) | M8: =+M9+M10 -> 0 | N8: =+N9+N10 -> 0 | O8: 0 | P8: 0 | Q8: 0 | R8: 0 | S8: 0 | T8: 0 | U8: 0 | V8: 0
B9: 2.1.1.1) โครงการสนับสนุนการทำแผนที่นำทางเทคโนโลยี และจัดทำ patant landscape | M9: 0 | N9: 0 | O9: 0 | P9: 0 | Q9: 0 | R9: 0 | S9: 0 | T9: 0 | U9: 0 | V9: 0
B10: 2.1.1.2) โครงการสนับสนุนงบประมาณโครงการวิจัยเทคโนโลยีเชิงลึก | M10: 0 | N10: 0 | O10: 0 | P10: 0 | Q10: 0 | R10: 0 | S10: 0 | T10: 0 | U10: 0 | V10: 0
B11: 2.1.2) แผนพัฒนาโครงการวิจัยเพื่อพัฒนาคุณภาพชีวิต และเศรษฐกิจของพื้นที่ (L) | C11: PI 2.1.2.1 ร้อยละโครงการวิจัยเพื่อพัฒนาคุณภาพชีวิต และเศรษฐกิจของพื้นที่ต่อโครงการวิจัยทั้งหมด | D11: ร้อยละ | E11: =(63*100)/145 -> 43.44827586 | F11: =(86*100)/162 -> 53.08641975 | H11: 55 | I11: 60 | J11: 65 | K11: 70 | L11: 75 | M11: =+M12 -> 0 | N11: =+N12 -> 0.1 | O11: 0 | P11: 0.1 | Q11: 0 | R11: 0.1 | S11: 0 | T11: 0.1 | U11: 0 | V11: 0.1 | W11: 1) แผนพัฒนาอาจารย์ด้านทักษะการวิจัยแบบบูรณาการเพื่อพัฒนาคุณภาพชีวิตและเศรษฐกิจของพื้นที่
B12: 2.1.2.1) โครงการส่งเสริมการขึ้นโจทย์วิจัยแบบบูรณาการศาสตร์เพื่อพัฒนาคุณภาพชีวิตและเศรษฐกิจของพื้นที่ | M12: 0 | N12: 0.1 | O12: 0 | P12: 0.1 | Q12: 0 | R12: 0.1 | S12: 0 | T12: 0.1 | U12: 0 | V12: 0.1
B13: 2.1.3) แผนพัฒนาเครือข่ายความร่วมมือการวิจัยกับภาคเอกชนและอุตสาหกรรม(L) เพื่อร่วมวิจัยหรือพัฒนาเป็นต้นแบบภาคสนาม (TRL 6-7) | C13: PI 2.1.3.1 จำนวนผลงานวิจัยจากความร่วมมือของภาคเอกชนหรืออุตสาหกรรม (นับรวมโครงการที่ผ่านอุทยานวิทยาศาสตร์/ITAP) | D13: ผลงาน | E13: 8 | F13: 20 | H13: 25 | I13: 30 | J13: 35 | K13: 40 | L13: 45 | M13: =+M16+M17 -> 2 | N13: =+N16+N17 -> 1.24 | O13: 2 | P13: 1.24 | Q13: 2 | R13: 1.24 | S13: 2 | T13: 1.24 | U13: 2 | V13: 1.24 | W13: 1) แผนพัฒนาอาจารย์ให้มีศักยภาพในการทำงานร่วมกับภาคเอกชนและอุตสาหกรรม 2) แผนพัฒนาอาจารย์และบุคลากรสายสนับสนุนที่สามารถพัฒนาผลงานวิจัยให้เป็นต้นแบบภาคสนาม (TRL 6-7)
C14: PI 2.1.3.2 จำนวนผลงานวิจัยที่ถูกพัฒนาเป็นต้นแบบภาคสนาม (Prototype) | D14: ผลงาน | H14: 5 | I14: 8 | J14: 10 | K14: 15 | L14: 20
C15: PI 2.1.3.3 งบประมาณสนับสนุนการวิจัยที่ได้รับจากภาคเอกชนหรืออุตสาหกรรม (นับแค่ incash) | D15: ล้านบาท | E15: 0.44 | F15: 0.46 | H15: 2 | I15: 3 | J15: 4 | K15: 5 | L15: 6
B16: 2.1.3.1) โครงการแสวงหาโจทย์วิจัยและสนับสนุนการวิจัยและสร้างนวัตกรรมร่วมกับภาคเอกชนหรืออุตสาหกรรม ได้แก่ กิจกรรมภาคเอกชนหรืออุตสาหกรรมพบนักวิจัย | M16: 0 | N16: 0.24 | O16: 0 | P16: 0.24 | Q16: 0 | R16: 0.24 | S16: 0 | T16: 0.24 | U16: 0 | V16: 0.24
B17: 2.1.3.2) โครงการจัดตั้งกองทุนวิจัยและนวัตกรรม เพื่อสนับสนุนการวิจัยและสร้างนวัตกรรม ร่วมกับภาคธุรกิจและอุตสาหกรรม โดยเฉพาะด้านการเกษตร อาหาร และสุขภาพ (Matching Fund) | M17: 2 | N17: 1 | O17: 2 | P17: 1 | Q17: 2 | R17: 1 | S17: 2 | T17: 1 | U17: 2 | V17: 1
B18: 2.1.4) แผนเพิ่มทรัพย์สินทางปัญญา (สิทธิบัตร อนุสิทธิบัตร) (L) | C18: PI 2.1.4.1 จำนวนทรัพย์สินทางปัญญา (สิทธิบัตร อนุสิทธิบัตร) ในแต่ละปี | D18: ผลงาน | E18: 7 | F18: 12 | H18: 15 | I18: 20 | J18: 30 | K18: 40 | L18: 50 | M18: =+M20+M21 -> 0 | N18: =+N20+N21 -> 0 | O18: 0 | P18: 0.25 | Q18: 0 | R18: 0.25 | S18: 0 | T18: 0.25 | U18: 0 | V18: 0.25 | W18: 1) แผนพัฒนาอาจารย์ให้มีศักยภาพในการสร้างนวัตกรรมและเข้าใจระบบการรับรองทรัพย์สินทางปัญญา - โครงการอบรม : การขึ้นทะเบียนทรัพย์สินทางปัญญา
C19: PI 2.1.4.2 จำนวนผลงานวิจัยที่ยื่นขอทรัพย์สินทางปัญญา (สิทธิบัตร อนุสิทธิบัตร) | D19: ผลงาน | E19: 23 | F19: 30 | H19: 40 | I19: 40 | J19: 60 | K19: 80 | L19: 100
B20: 2.1.4.1) โครงการอบรมการขึ้นทะเบียนทรัพย์สินทางปัญญา | M20: 0 | N20: 0 | O20: 0 | P20: 0 | Q20: 0 | R20: 0 | S20: 0 | T20: 0 | U20: 0 | V20: 0
B21: 2.1.4.2) โครงการเฟ้นหาผลงานวิจัยหรือนวัตกรรมที่มีศักยภาพเพื่อพัฒนา และจดสิทธิบัตร/จัดทำต้นแบบ | M21: 0 | N21: 0 | O21: 0 | P21: 0.25 | Q21: 0 | R21: 0.25 | S21: 0 | T21: 0.25 | U21: 0 | V21: 0.25
B22: 2.1.5) แผนส่งเสริมการนำผลงานวิจัยหรือนวัตกรรมไปใช้ประโยชน์เชิงพาณิชย์และพัฒนาคุณภาพชีวิต (L) | C22: PI 2.1.5.1 จำนวนผลงานวิจัย/นวัตกรรมที่ต่อยอดเชิงพาณิชย์ | D22: ผลงาน | E22: 4 | F22: 6 | H22: 10 | I22: 15 | J22: 20 | K22: 25 | L22: 30 | M22: =+M24+M25 -> 18 | N22: =+N24+N25 -> 2 | O22: 15.5 | P22: 4.5 | Q22: 15.5 | R22: 3.5 | S22: 15.5 | T22: 3.5 | U22: 15.5 | V22: 3.5
C23: PI 2.1.5.2 จำนวนผลงานวิจัย/นวัตกรรมที่นำไปใช้ประโยชน์ในการพัฒนาคุณภาพชีวิต | D23: ผลงาน | F23: 29.4 | H23: 15 | I23: 20 | J23: 25 | K23: 30 | L23: 35
B24: 2.1.5.1) โครงการเจรจาจับคู่ธุรกิจ โครงการ pitching | M24: 0 | N24: 0 | O24: 0 | P24: 0 | Q24: 0 | R24: 0 | S24: 0 | T24: 0 | U24: 0 | V24: 0
B25: 2.1.5.2) โครงการส่งเสริมการใช้ประโยชน์งานวิจัยและนวัตกรรมเพื่อพัฒนาคุณภาพชีวิต | M25: 18 | N25: 2 | O25: 15.5 | P25: 4.5 | Q25: 15.5 | R25: 3.5 | S25: 15.5 | T25: 3.5 | U25: 15.5 | V25: 3.5
B26: 2.1.6) แผนพัฒนาผู้ประกอบการ (Spin Off) จากผลงานวิจัยหรือนวัตกรรม (L) | C26: PI 2.1.6.1 จำนวน Spin Off | D26: ผลงาน | E26: 4 | F26: 8 | H26: 15 | I26: 20 | J26: 25 | K26: 30 | L26: 40 | M26: =+M27+M28 -> 0 | N26: =+N27+N28 -> 0 | O26: 0 | P26: 0 | Q26: 0 | R26: 0 | S26: 0 | T26: 0 | U26: 0 | V26: 0
B27: 2.1.6.1) โครงการนวัตวณิชย์ | M27: 0 | N27: 0 | O27: 0 | P27: 0 | Q27: 0 | R27: 0 | S27: 0 | T27: 0 | U27: 0 | V27: 0
B28: 2.1.6.2) โครงการ Innovation Sandbox เพื่อสร้างผู้ประกอบการใหม่จากผลงานวิจัยหรือนวัตกรรมของมหาวิทยาลัย | M28: 0 | N28: 0 | O28: 0 | P28: 0 | Q28: 0 | R28: 0 | S28: 0 | T28: 0 | U28: 0 | V28: 0
A29: 2.2) เพิ่มจำนวนผลงานวิจัยที่ตีพิมพ์ในระดับนานาชาติและมีคุณภาพในระดับ Q1-Q2 ตอบสนองต่อ - SC2 - SA1, SA4 - นโยบายสภามหาวิทยาลัย 4, 5 - All SDGs | B29: SI 2.2.1 ร้อยละจำนวนบทความวิจัยในฐาน SCOPUS ที่เป็น Q1-Q2 ต่อบทความวิจัยในฐาน SCOPUS ทั้งหมด | D29: ร้อยละ | E29: 26.88 (มข.33.15) | F29: 21.08 (มข.38.92) | H29: 80 | I29: 82 | J29: 84 | K29: 86 | L29: 90 | M29: ="งบประมาณขับเคลื่อน ระยะ 5 ปี (พ.ศ. 2566-2570) เป้าประสงค์ที่ 2.2 รวมทั้งสิ้น "&TEXT((M31+O31+Q31+S31+U31),"#.00")&" (ล้านบาท)" -> งบประมาณขับเคลื่อน ระยะ 5 ปี (พ.ศ. 2566-2570) เป้าประสงค์ที่ 2.2 รวมทั้งสิ้น 91.45 (ล้านบาท)
M30: =+M32+M35 -> 22.5 | N30: =+N32+N35 -> 2.7 | O30: 28.5 | P30: 6.05 | Q30: 19.5 | R30: 7.3 | S30: 0 | T30: 2.45 | U30: 0 | V30: 2.45
M31: =+M30+N30 -> 25.2 | O31: =+O30+P30 -> 34.55 | Q31: =+Q30+R30 -> 26.8 | S31: =+S30+T30 -> 2.45 | U31: =+U30+V30 -> 2.45
B32: แผนปฏิบัติการ 2.2.1) แผนกระตุ้นและส่งเสริมการตีพิมพ์บทความในระดับนานาชาติ (L) | C32: PI 2.2.1.1 ร้อยละผลงานวิจัยที่ตีพิมพ์ในฐาน SCOPUS ต่อผลงานวิจัยที่ตีพิมพ์ทั้งหมด (รวมระดับชาติและนานาชาติที่พิมพ์ในฐาน SCOPUS) | D32: ร้อยละ | E32: =(163*100)/238 -> 68.48739496 | F32: =(204*100)/277 -> 73.64620939 | H32: 40 | I32: 45 | J32: 50 | K32: 55 | L32: 60 | M32: =+M33+M34 -> 0 | N32: =+N33+N34 -> 1.7 | O32: 0 | P32: 1.95 | Q32: 0 | R32: 2.2 | S32: 0 | T32: 2.45 | U32: 0 | V32: 2.45 | W32: 1) แผนพัฒนาอาจารย์ให้สามารถตีพิมพ์บทความในระดับนานาชาติ เช่น หลักสูตรหรือค่ายพัฒนาอาจารย์เพื่อการตีพิมพ์ผลงานระดับนานาชาติ
B33: 2.2.1.1) โครงการสนับสนุนการตีพิมพ์บทความในระดับนานาชาติในฐาน SCOPUS | M33: 0 | N33: 1.5 | O33: 0 | P33: 1.75 | Q33: 0 | R33: 2 | S33: 0 | T33: 2.25 | U33: 0 | V33: 2.25
B34: 2.2.1.2) โครงการสร้างระบบและกลไกการสนับสนุนนักวิจัยพี่เลี้ยงเพื่อการตีพิมพ์ผลงานระดับนานาชาติในฐาน SCOPUS | M34: 0 | N34: 0.2 | O34: 0 | P34: 0.2 | Q34: 0 | R34: 0.2 | S34: 0 | T34: 0.2 | U34: 0 | V34: 0.2
B35: 2.2.2) แผนการจัดตั้งกลุ่มวิจัยเฉพาะทางเพื่อเพิ่มศักยภาพงานวิจัยที่สามารถตีพิมพ์ในระดับนานาชาติ (S) | C35: PI 2.2.2.1 จำนวนกลุ่มวิจัย (นับจำนวนในปีนั้น) | D35: กลุ่ม | G35: 5 | H35: 8 | I35: 10 | J35: 12 | K35: 15 | L35: 20 | M35: =+M37+M38 -> 22.5 | N35: 1 | O35: 28.5 | P35: 4.1 | Q35: 19.5 | R35: 5.1
C36: PI 2.2.2.2 ร้อยละของผลงานวิจัยของกลุ่มวิจัยเฉพาะทางที่ตีพิมพ์ในระดับนานาชาติ (ต่อผลงานวิจัยที่ตีพิมพ์ทั้งหมดของกลุ่มวิจัย) | D36: ร้อยละ | H36: 60 | I36: 70 | J36: 80 | K36: 80 | L36: 80
B37: 2.2.2.1) โครงการส่งเสริมการจัดตั้งและยกระดับกลุ่มวิจัยที่สำคัญ | M37: 11 | N37: 0 | O37: 14 | P37: 1.5 | Q37: 6 | R37: 1.5
B38: 2.2.2.2) โครงการส่งเสริมความร่วมมือด้านการวิจัยกับต่างประเทศ | M38: 11.5 | N38: 1 | O38: 14.5 | P38: 2.6 | Q38: 13.5 | R38: 3.6

Sheet กลยุทธ์ที่ 3 บริการวิชาการ
A1: วัตถุประสงค์เชิงกลยุทธ์ที่ 3 การบริการวิชาการเพื่อยกระดับคุณภาพชีวิตให้แก่สังคม
A2: เป้าประสงค์ | B2: ตัววัดวัตถุประสงค์เชิงกลยุทธ์/ แผนปฏิบัติการระยะสั้น (S) ระยะยาว (L) | C2: ตัววัดแผนปฏิบัติการ | D2: หน่วย | E2: Based line | H2: ค่าคาดการณ์ | M2: งบประมาณ (แผ่นดิน/รายได้) หน่วย: ล้านบาท | W2: แผนบุคลากร | Y2: Base line | AB2: ค่าเป้าหมาย
D3: นับ | E3: 2563 | F3: 2564 | G3: 2565 | H3: 2566 | I3: 2567 | J3: 2568 | K3: 2569 | L3: 2570 | M3: 2566 | O3: 2567 | Q3: 2568 | S3: 2569 | U3: 2570 | Y3: 2563 | Z3: 2564 | AA3: 2565 | AB3: 2566 | AC3: 2567 | AD3: 2568 | AE3: 2569 | AF3: 2570
M4: แผ่นดิน | N4: รายได้ | O4: แผ่นดิน | P4: รายได้ | Q4: แผ่นดิน | R4: รายได้ | S4: แผ่นดิน | T4: รายได้ | U4: แผ่นดิน | V4: รายได้
A5: 3.1) เพื่อพัฒนาคุณภาพชีวิตและเศรษฐกิจในชุมชนเป้าหมาย (ชุมชนรอบมหาวิทยาลัย) ตอบสนองต่อ - SC5 - SA1, SA2, SA3, SA4 - SOp3, SOp4 - นโยบายสภามหาวิทยาลัย 1, 3, 5 - SDG 1, 2, 3, 11 | B5: SI 3.1.1 รายได้ที่เพิ่มขึ้นเฉลี่ยต่อเดือนของครัวเรือนในชุมชนเป้าหมาย (บาท) | D5: บาท | E5: 2250 | F5: 3000 | H5: 4000 | I5: 4500 | J5: 5000 | K5: 5500 | L5: 6000 | M5: ="งบประมาณขับเคลื่อน ระยะ 5 ปี (พ.ศ. 2566-2570) เป้าประสงค์ที่ 3.1 รวมทั้งสิ้น "&TEXT((M7+O7+Q7+S7+U7),"#.00")&" (ล้านบาท)" -> งบประมาณขับเคลื่อน ระยะ 5 ปี (พ.ศ. 2566-2570) เป้าประสงค์ที่ 3.1 รวมทั้งสิ้น 210.00 (ล้านบาท)
B6: SI 3.1.2 ร้อยละของประชากรในชุมชนเป้าหมายที่เป็นกลุ่มโรคไม่ติดต่อเรื้อรัง (NCDs) ที่มีสภาวะที่ควบคุมได้ (โรคเบาหวาน ความดัน และไตเรื้อรัง) | D6: ร้อยละ | H6: 60 | I6: 70 | J6: 80 | K6: 90 | L6: 90 | M6: =+M8 -> 31 | N6: =+N8 -> 0 | O6: 36.5 | P6: 0 | Q6: 42 | R6: 0 | S6: 47.5 | T6: 0 | U6: 53 | V6: 0
B7: SI 3.1.3 จำนวนชุมชนเป้าหมายที่มีการจัดการสิ่งแวดล้อมตามมาตรฐานหรือมีที่อยู่อาศัยที่ดีขึ้น | D7: ชุมชน | E7: 5 | F7: 2 | H7: 5 | I7: 5 | J7: 5 | K7: 5 | L7: 5 | M7: =+M6+N6 -> 31 | O7: =+O6+P6 -> 36.5 | Q7: =+Q6+R6 -> 42 | S7: =+S6+T6 -> 47.5 | U7: =+U6+V6 -> 53
B8: แผนปฏิบัติการ 3.1.1) แผนบริการวิชาการเพื่อยกระดับคุณภาพชีวิต (L) | C8: PI 3.1.1.1 จำนวนผู้เข้าร่วมโครงการที่มีรายได้เพิ่มขึ้นจากการรับบริการ (ด้านเศรษฐกิจ) | D8: คน | E8: 904 | F8: 605 | H8: 300 | I8: 500 | J8: 700 | K8: 900 | L8: 1500 | M8: =+M12+M13+M14+M15 -> 31 | N8: =+N12+N13+N14+N15 -> 0 | O8: 36.5 | P8: 0 | Q8: 42 | R8: 0 | S8: 47.5 | T8: 0 | U8: 53 | V8: 0 | W8: 1) แผนพัฒนาอาจารย์ด้านการบริการวิชาการอย่างมืออาชีพ เช่น การประเมินผลกระทบ (Impact) ที่เกิดจากโครงการที่ดำเนินการ การบูรณาการกับงานวิจัย หรือการเรียนการสอน เป็นต้น
C9: PI 3.1.1.2 จำนวนผู้เข้าร่วมโครงการกลุ่มโรคไม่ติดต่อเรื้อรัง (NCDs) ที่มีสุขภาวะที่ควบคุมได้ | D9: คน | H9: 300 | I9: 400 | J9: 500 | K9: 600 | L9: 1000
C10: PI 3.1.1.3 จำนวนชุมชนที่เข้าร่วมโครงการที่มีการจัดการสิ่งแวดล้อม (ขยะ/น้ำเสีย) ที่ดีขึ้นเทียบก่อนและหลังเข้าร่วมโครงการ | D10: ชุมชน | H10: 5 | I10: 5 | J10: 5 | K10: 5 | L10: 5
C11: PI 3.1.1.4 จำนวนผลงานด้านการพัฒนาที่อยู่อาศัยสำหรับผู้มีรายได้น้อย ผู้ด้อยโอกาส หรือผู้สูงอายุที่ถูกนำไปขยายผล | D11: ผลงาน | H11: 2 | I11: 4 | J11: 6 | K11: 8 | L11: 10
B12: 3.1.1.1) โครงการเสริมสร้างความเข้มแข็งเศรษฐกิจฐานราก | M12: 30 | N12: 0 | O12: 35 | P12: 0 | Q12: 40 | R12: 0 | S12: 45 | T12: 0 | U12: 50 | V12: 0
B13: 3.1.1.2) โครงการสร้างเสริมสุขภาวะที่ดีเน้นกลุ่มโรคไม่ติดต่อเรื้อรัง NCDs) ที่มีสภาวะที่ควบคุมได้ เช่น โรคเบาหวาน ความดัน หลอดเลือดสมองและหัวใจ | M13: 1 | N13: 0 | O13: 1.5 | P13: 0 | Q13: 2 | R13: 0 | S13: 2.5 | T13: 0 | U13: 3 | V13: 0
B14: 3.1.1.3) โครงการจัดการทรัพยากรธรรมชาติและสิ่งแวดล้อม | M14: 0 | N14: 0 | O14: 0 | P14: 0 | Q14: 0 | R14: 0 | S14: 0 | T14: 0 | U14: 0 | V14: 0
B15: 3.1.1.4) โครงการสนับสนุนการสร้างหรือพัฒนาที่พักอาศัย สำหรับผู้มีรายได้น้อย เช่น การออกแบบบ้านราคาประหยัด สำหรับผู้สูงอายุ/ผู้พิการ/ผู้มีรายได้น้อย การออกแบบบ้านหรือวัสดุประหยัดพลังงานสำหรับที่พักอาศัย | M15: 0 | N15: 0 | O15: 0 | P15: 0 | Q15: 0 | R15: 0 | S15: 0 | T15: 0 | U15: 0 | V15: 0
A16: 3.2) พัฒนาผู้ประกอบการเพื่อเพิ่มขีดความสามารถในการแข่งขัน ตอบสนองต่อ | B16: SI 3.2.1 ร้อยละของผู้ประกอบการที่เข้ารับบริการมีรายได้เพิ่มขึ้นไม่น้อยกว่า 10% | D16: ร้อยละ | E16: 39.02 | F16: 37.73 | H16: 45 | I16: 50 | J16: 55 | K16: 60 | L16: 80 | M16: ="งบประมาณขับเคลื่อน ระยะ 5 ปี (พ.ศ. 2566-2570) เป้าประสงค์ที่ 3.2 รวมทั้งสิ้น "&TEXT((M18+O18+Q18+S18+U18),"#.00")&" (ล้านบาท)" -> งบประมาณขับเคลื่อน ระยะ 5 ปี (พ.ศ. 2566-2570) เป้าประสงค์ที่ 3.2 รวมทั้งสิ้น 175.60 (ล้านบาท)
M17: =+M19+M23 -> 3 | N17: 1.1 | O17: 93.5 | P17: 1.1 | Q17: 35.1 | R17: 1.1 | S17: 19 | T17: 1.1 | U17: 19.5 | V17: 1.1
M18: =+M17+N17 -> 4.1 | O18: =+O17+P17 -> 94.6 | Q18: =+Q17+R17 -> 36.2 | S18: =+S17+T17 -> 20.1 | U18: =+U17+V17 -> 20.6
B19: แผนปฏิบัติการ 3.2.1) แผนสร้างผู้ประกอบการ Start Up ระดับ SMEs Size S (L) | C19: PI 3.2.1.1 จำนวนผู้ประกอบการ Start Up ที่ได้รับการสร้าง | D19: คน | E19: 16 | F19: 20 | G19: 25 | H19: 30 | I19: 40 | J19: 50 | K19: 60 | L19: 70 | M19: =+M20+M21+M22 -> 3 | N19: =+N20+N21+N22 -> 0 | O19: 3.5 | P19: 0 | Q19: 4 | R19: 0 | S19: 4.5 | T19: 0 | U19: 5 | V19: 0 | W19: 1) แผนพัฒนาทักษะอาจารย์ให้สามารถทำงานร่วมกับผู้ประกอบการ
B20: 3.1.2.1) โครงการ Innovation Sandbox เพื่อพัฒนาผลิตภัณฑ์ต้นแบบและสร้างผู้ประกอบการใหม่ | M20: 3 | N20: 0 | O20: 3.5 | P20: 0 | Q20: 4 | R20: 0 | S20: 4.5 | T20: 0 | U20: 5 | V20: 0
B21: 3.1.2.2) โครงการความร่วมมือกับหน่วยงานภาครัฐหรือเอกชนเพื่อสร้างผู้ประกอบการใหม่ | M21: 0 | N21: 0 | O21: 0 | P21: 0 | Q21: 0 | R21: 0 | S21: 0 | T21: 0 | U21: 0 | V21: 0
B22: 3.1.2.3) โครงการบ่มเพาะผู้ประกอบการรุ่นใหม่ | M22: 0 | N22: 0 | O22: 0 | P22: 0 | Q22: 0 | R22: 0 | S22: 0 | T22: 0 | U22: 0 | V22: 0
B23: 3.2.2) แผนยกระดับผู้ประกอบการ SMEs (L) | C23: PI 3.2.2.1 จำนวนผู้ประกอบการที่ได้รับการยกระดับ | D23: คน | E23: 25 | F23: 33 | G23: 34 | H23: 40 | I23: 50 | J23: 60 | K23: 70 | L23: 80 | M23: =+M25+M26+M27+M28 -> 0 | N23: =+N25+N26+N27+N28 -> 1.1 | O23: 90 | P23: 1.1 | Q23: 31.1 | R23: 1.1 | S23: 14.5 | T23: 1.1 | U23: 14.5 | V23: 1.1 | W23: 1) แผนพัฒนาความรู้ความเข้าใจและทักษะอาจารย์ด้านการรับรองมาตรฐานและการตรวจวิเคราะห์ผลิตภัณฑ์
C24: PI 3.2.2.2 จำนวนผลิตภัณฑ์ที่ได้รับการยกระดับ | D24: ชิ้น | E24: 25 | F24: 32 | G24: 32 | H24: 40 | I24: 50 | J24: 60 | K24: 70 | L24: 80
B25: 3.2.2.1) โครงการความร่วมมือกับหน่วยงานภาครัฐหรือเอกชนเพื่อยกระดับผู้ประกอบการ | M25: 0 | N25: 0.1 | O25: 0 | P25: 0.1 | Q25: 0 | R25: 0.1 | S25: 0 | T25: 0.1 | U25: 0 | V25: 0.1
B26: 3.2.2.2) โครงการยกระดับหน่วยบริการวิเคราะห์ทดสอบเพื่อยกระดับมูลค่าผลิตภัณฑ์ | M26: 0 | N26: 0.5 | O26: 0 | P26: 0.5 | Q26: 0 | R26: 0.5 | S26: 0 | T26: 0.5 | U26: 0 | V26: 0.5
B27: 3.2.2.3) โครงการส่งเสริมการจัดตั้งและยกระดับกลุ่มบริการวิชาการ (เช่น กลุ่มบริการข้อมูลและการบริการธุรกิจและอุตสาหกรรมนานาชาติ กลุ่มบริการวิชาการด้านกฎหมาย กลุ่มบริการวิชาการด้านพัฒนาผู้ประกอบการ) | M27: 0 | N27: 0.5 | O27: 0 | P27: 0.5 | Q27: 0 | R27: 0.5 | S27: 0 | T27: 0.5 | U27: 0 | V27: 0.5
B28: 3.2.2.4) โครงการยกระดับการบริการและศักยภาพของโรงงานต้นแบบ (Pilot plant) เพื่อตอบสนองความต้องการของผู้ประกอบการ เช่น การสร้างโรงงานต้นแบบด้านผลิตภัณฑ์สุขภาพ การยกระดับการให้บริการโรงงานต้นแบบด้านเนื้อสัตว์และผักผลไม้ให้ตอบสนองความต้องการของผู้ประกอบการ เป็นต้น | M28: 0 | N28: 0 | O28: 90 | P28: 0 | Q28: 31.1 | R28: 0 | S28: 14.5 | T28: 0 | U28: 14.5 | V28: 0
A29: 3.3) เพื่อพัฒนาคุณภาพบริการให้ผ่านเกณฑ์มาตรฐานสากล และขยายขอบเขตการให้บริการทางการแพทย์ ตอบสนองต่อ | B29: SI 3.3.1 รายได้สุทธิจากการให้บริการทางการแพทย์ (รายได้-ค่าใช้จ่ายทั้งหมด-ค่าเสื่อม) | D29: ล้านบาท | E29: 11.6 | F29: -5 | G29: 15 | H29: 15 | I29: 16 | J29: 17 | K29: 18 | L29: 19 | M29: ="งบประมาณขับเคลื่อน ระยะ 5 ปี (พ.ศ. 2566-2570) เป้าประสงค์ที่ 3.3 รวมทั้งสิ้น "&TEXT((M33+O33+Q33+S33+U33),"#.00")&" (ล้านบาท)" -> งบประมาณขับเคลื่อน ระยะ 5 ปี (พ.ศ. 2566-2570) เป้าประสงค์ที่ 3.3 รวมทั้งสิ้น .00 (ล้านบาท)
B30: SI 3.3.2 ร้อยละของผู้รับบริการทางการแพทย์ที่เพิ่มขึ้น (จำแนกตามผู้ป่วยนอก ผู้ป่วยใน) | M30: =+M37+M38+M40 -> 0 | N30: =+N37+N38+N40 -> 0 | O30: 0 | P30: 0 | Q30: 20.9 | R30: 0 | S30: 0 | T30: 0 | U30: 21.7 | V30: 0
B31: SI 3.3.2.1 ร้อยละของผู้รับบริการทางการแพทย์ผู้ป่วยนอกที่เพิ่มขึ้น | D31: ร้อยละ | E31: 20 | F31: 5 | G31: 10 | H31: 30 | I31: 35 | J31: 40 | K31: 45 | L31: 50 | M31: =+M30+N30 -> 0 | O31: =+O30+P30 -> 0 | Q31: =+Q30+R30 -> 20.9 | S31: =+S30+T30 -> 0 | U31: =+U30+V30 -> 21.7
B32: SI 3.3.2.2 ร้อยละของผู้รับบริการทางการแพทย์ผู้ป่วยในที่เพิ่มขึ้น | D32: ร้อยละ | G32: 20 | H32: 40 | I32: 60 | J32: 80 | K32: 80 | L32: 80
B33: SI 3.3.3 ความพึงพอใจของผู้รับบริการทางการแพทย์ (จำแนกตามผู้ป่วยนอก ผู้ป่วยใน ผู้รับบริการตรวจสุขภาพ ผู้รับบริการสร้างเสริมสุขภาพ)
B34: SI 3.3.3.1 ระดับความพึงพอใจของผู้รับบริการผู้ป่วยนอก | D34: ระดับ | E34: 4.5 | F34: 4.4 | G34: 4.55 | H34: 4.5 | I34: 4.5 | J34: 4.5 | K34: 4.5 | L34: 4.5
B35: SI 3.3.3.2 ระดับความพึงพอใจของผู้รับบริการผู้ป่วยใน | D35: ระดับ | F35: 4.75 | G35: 4.9 | H35: 4.5 | I35: 4.5 | J35: 4.5 | K35: 4.5 | L35: 4.5
B36: SI 3.3.3.3 ระดับความพึงพอใจของผู้รับบริการตรวจสุขภาพ | D36: ระดับ | E36: 4.45 | F36: 4.55 | G36: 4.7 | H36: 4.5 | I36: 4.5 | J36: 4.5 | K36: 4.5 | L36: 4.5
B37: แผนปฏิบัติการ 3.3.1) แผนขยายการให้บริการผู้ป่วยใน (L) | C37: PI 3.3.1.1 จำนวนเตียงผู้ป่วยใน (Active Bed) | D37: เตียง | E37: 24 | F37: 24 | G37: 46 | H37: 60 | I37: 90 | J37: 112 | K37: 150 | L37: 250 | W37: 1) แผนพัฒนาบุคลากรด้านความรู้ความเข้าใจมาตรฐานคุณภาพโรงพยาบาลระดับสากล เช่น HA และ ISO 2) แผนอัตรากำลังโรงพยาบาล ปีงบประมาณ 2567-2570 (เล่มแผนอัตรากำลังโรงพยาบาล) 3) แผนพัฒนาสมรรถนะด้านบุคลากรทางการแพทย์เฉพาะทางสำหรับ Disease specific certification และ Excellence centre 4) แผนพัฒนาศักยภาพหัวหน้างานและผู้บริหารระดับต้น (โรงพยาบาล)
B38: 3.3.2) แผนสร้างศูนย์ความเป็นเลิศ (L) | C38: PI 3.3.2.1 จำนวนศูนย์ความเป็นเลิศการให้บริการทางการแพทย์ (นับสะสม) | D38: จำนวน | H38: 1 | I38: 2 | J38: 3 | K38: 4 | L38: 6 | Q38: 20.9 | U38: 21.7
B39: ปี 2566 - ศูนย์ความเป็นเลิศด้านรังสีวินิจฉัยขั้นสูง ปี 2567 - ศูนย์ความเป็นเลิศด้านจักษุวิทยา ปี 2568 - ศูนย์ความเป็นเลิศด้านผู้สูงอายุ ปี 2569 - ศูนย์ความเป็นเลิศด้านผิวหนังและเลเซอร์ ปี 2570 - ศูนย์ความเป็นเลิศด้านศัลยกรรมตกแต่ง - ศูนย์ความเป็นเลิศด้านวัยรุ่นและวัยทำงาน
B40: 3.3.3) แผนพัฒนาโรงพยาบาลตามมาตรฐาน HA (S) | C40: PI 3.3.3.1 ผลการรับรองคุณภาพ HA | D40: ระดับ | G40: (เป้า ผ่าน ขั้นที่ 2 ) | H40: ผ่าน ขั้นที่ 2 | I40: ผ่านขั้นที่ 3 | K40: Re-Accreditation ครั้งที่ 1
B41: 3.3.4) แผนพัฒนาระบบสนับสนุน ISO 15189 (L) | C41: PI 3.3.4.1 จำนวนห้องปฏิบัติการที่ผ่านการรับรองคุณภาพตามมาตรฐาน ISO 15189 (นับสะสม) | D41: ห้อง | G41: (เป้า 1) | H41: 2 | I41: 3 | J41: 4 | K41: 5 | L41: 6

Sheet กลยุทธ์ที่ 4 ทำนุฯ
A1: วัตถุประสงค์เชิงกลยุทธ์ที่ 4 อนุรักษ์ สืบสานและสร้างมูลค่าให้แก่ศิลปวัฒนธรรม และภูมิปัญญาท้องถิ่น
A2: เป้าประสงค์ | B2: ตัววัดวัตถุประสงค์เชิงกลยุทธ์/ แผนปฏิบัติการระยะสั้น (S) ระยะยาว (L) | C2: ตัววัดแผนปฏิบัติการ | D2: หน่วยนับ | E2: Based line | H2: ค่าคาดการณ์ | M2: งบประมาณ (แผ่นดิน/รายได้) หน่วย: ล้านบาท | W2: แผนบุคลากร | Y2: Base line | AB2: ค่าเป้าหมาย
E3: 2563 | F3: 2564 | G3: 2565 | H3: 2566 | I3: 2567 | J3: 2568 | K3: 2569 | L3: 2570 | M3: 2566 | O3: 2567 | Q3: 2568 | S3: 2569 | U3: 2570 | Y3: 2563 | Z3: 2564 | AA3: 2565 | AB3: 2566 | AC3: 2567 | AD3: 2568 | AE3: 2569 | AF3: 2570
M4: แผ่นดิน | N4: รายได้ | O4: แผ่นดิน | P4: รายได้ | Q4: แผ่นดิน | R4: รายได้ | S4: แผ่นดิน | T4: รายได้ | U4: แผ่นดิน | V4: รายได้
A5: 4.1) ศิลปวัฒนธรรม และภูมิปัญญาท้องถิ่น ได้รับการอนุรักษ์ สืบสานและสร้างมูลค่า ตอบสนองต่อ - SC5 - SA1, SA5 - นโยบายสภามหาวิทยาลัย 8 - SDG 11 | B5: SI 4.1.1 ร้อยละการเพิ่มขึ้นของผู้เข้าเรียนรู้ เยี่ยมชมแหล่งเรียนรู้ด้านศิลปวัฒนธรรมและภูมิปัญญาท้องถิ่น (เทียบกับปีที่ผ่านมา) | D5: ร้อยละ | E5: 100 | F5: -69.19 | H5: 10 | I5: 10 | J5: 10 | K5: 10 | L5: 10 | M5: ="งบประมาณขับเคลื่อน ระยะ 5 ปี (พ.ศ. 2566-2570) เป้าประสงค์ที่ 4.1 รวมทั้งสิ้น "&TEXT((M7+O7+Q7+S7+U7),"#.00")&" (ล้านบาท)" -> งบประมาณขับเคลื่อน ระยะ 5 ปี (พ.ศ. 2566-2570) เป้าประสงค์ที่ 4.1 รวมทั้งสิ้น 23.50 (ล้านบาท)
B6: SI 4.1.2 จำนวนผลงานด้านศิลปวัฒนธรรมและภูมิปัญญาที่ได้รับการสืบสานและสร้างมูลค่า (นับจำนวนผลงานที่เกิดขึ้นต่อปี) | D6: ผลงาน | E6: 5 | F6: 11 | H6: 10 | I6: 10 | J6: 15 | K6: 15 | L6: 20 | M6: =+M9+M14 -> 0 | N6: =+N9+N14 -> 9.3 | O6: 0 | P6: 3.3 | Q6: 0 | R6: 3.3 | S6: 0 | T6: 3.3 | U6: 0 | V6: 4.3
B7: SI 4.1.3 รายได้ที่เพิ่มขึ้นเฉลี่ยต่อเดือนของครัวเรือนในชุมชนเป้าหมายที่ได้รับการอนุรักษ์หรือต่อยอดศิลปวัฒนธรรม และภูมิปัญญาท้องถิ่น | D7: บาท | H7: 4000 | I7: 4500 | J7: 5000 | K7: 5500 | L7: 6000 | M7: =+M6+N6 -> 9.3 | O7: =+O6+P6 -> 3.3 | Q7: =+Q6+R6 -> 3.3 | S7: =+S6+T6 -> 3.3 | U7: =+U6+V6 -> 4.3
B8: ได้แก่ ชุมชนวัดศรีประดู่ ชุมชนวัดหนองบัว ชุมชนบ้านโพธิ์ใหญ่ ชุมชนบ้านปะอาว
B9: แผนปฏิบัติการ 4.1.1) แผนพัฒนาและยกระดับแหล่งเรียนรู้ด้านศิลปวัฒนธรรมและภูมิปัญญาท้องถิ่น (L) | C9: PI 4.1.1.1 จำนวนแหล่งเรียนรู้ด้านศิลปวัฒนธรรรมและภูมิปัญญาท้องถิ่น (นับสะสมทั้งภายในภายนอก) | D9: แหล่ง | E9: 4 | F9: 5 | H9: 9 | I9: 10 | J9: 12 | K9: 15 | L9: 20 | M9: =+M11+M13 -> 0 | N9: =+N11+N13 -> 8.3 | O9: 0 | P9: 2.3 | Q9: 0 | R9: 2.3 | S9: 0 | T9: 2.3 | U9: 0 | V9: 3.3 | W9: 1) แผนพัฒนาอาจารย์ด้านการยกระดับแหล่งเรียนรู้ร่วมกับชุมชน 2) แผนพัฒนาอาจารย์ด้านการประเมินผลกระทบ (Impact) ของโครงการทำนุศิลปวัฒนธรรมที่ได้ดำเนินการ
C10: PI 4.1.1.2 จำนวนฐานข้อมูลสารสนเทศด้านศิลปวัฒนธรรมและภูมิปัญญาท้องถิ่น (นับสะสม) | D10: ฐาน ข้อมูล | E10: 5 | F10: 6 | H10: 9 | I10: 10 | J10: 12 | K10: 14 | L10: 16
B11: 4.1.1.1) โครงการพัฒนาแหล่งเรียนรู้ด้านศิลปวัฒนธรรมและภูมิปัญญาท้องถิ่น ในรูปแบบชิ้นงานจริง แบบเสมือนจริง หอศิลปวัฒนธรรม หรือพิพิธภัณฑ์ ปี 2566 เพิ่ม 4 แหล่ง ได้แก่ 1) แหล่งเรียนรู้ข้าวพันธุ์พื้นเมือง 2) อาคารแสดงผลงานด้านศิลปวัฒนธรรม ณ อุทยานศิลปวัฒนธรรมอีสานและลุ่มน้ำโขง มหาวิทยาลัยอุบลราชธานี 3) แหล่งเรียนรู้แมลงกินได้ 4) ใบลาน ปี 2567 เพิ่ม 2 แหล่ง ได้แก่ 1) ประวัติศาสตร์ชุมชนรอบมหาวิทยาลัยอุบลราชธานี 2) แหล่งเรียนรู้พุทธสถาปัตย์และสถาปัตยกรรมอีสาน ปี 2568 เพิ่ม 2 แหล่ง ได้แก่ 1) แหล่งเรียนรู้เรื่้องผ้าพื้นเมือง 2) ศูนย์การเรียนรู้เครื่องทองเหลืืองบ้านปะอาว | M11: 0 | N11: 8 | O11: 0 | P11: 2 | Q11: 0 | R11: 2 | S11: 0 | T11: 2 | U11: 0 | V11: 3
B12: ปี 2569 เพิ่ม 3 แหล่ง ได้แก่ 1) แหล่งเรียนรู้งานประเพณีแห่เทียนพรรษา จังหวัดอุบลราชธานี 2) ศูนย์การเรียนรู้เทียนพรรษา วัดศรีประดู่ 3) ศูนย์การเรียนรู้เทียนพรรษา วัดหนองบัว ปี 2570 เพิ่ม 5 แหล่ง ได้แก่ 1) แหล่งเรียนรู้วิถีชีวิตอีสานจากเครื่องมือเครื่องใช้ในตครัวเรือน 2) แหล่งเรียนรู้วิถีชีวิตอีสานจากเครื่องมือประมง เครื่องมือล่าสัตว์ 3) แหล่งเรียนรู้ประเพณีฮีต 12 คอง 14 4) แหล่งเรียนรู้การอนุรักษ์ม้าพันธุ์พื้นบ้านสิรินธร อำเภอสิรินธร 5) แหล่งเรียนรู้การแปรรูปสัตว์น้ำ อ.โขงเจียม
B13: 4.1.1.2) โครงการพัฒนาฐานข้อมูลสารสนเทศด้านศิลปวัฒนธรรมอีสานและลุ่มน้ำโขง ปี 2566 เพิ่ม 3 ฐาน ได้แก่ 1) เห็ดในพื้นที่ภาคอีสาน 2) หมอยาพื้นบ้าน 3) ปลาเสือตอลายเล็ก ปี 2567 เพิ่ม 1. ฐาน ได้แก่ 1) ภูมิปัญญาจากเอกสารใบลาน อ.เมืองอุบล ปี 2568 เพิ่ม 2.. ฐาน ได้แก่ 1) ภูมิปัญญาจากเอกสารใบลาน อ.วารินชำราบ 2) ข้อมูลเครื่องมือเครื่องใช้ในท้องถิ่นอีสาน ปี 2569 เพิ่ม .2.. ฐาน ได้แก่ 1) ลายผ้าท้องถิ่นอีสาน... 2) อาหารท้องถิ่นอีสาน ปี 2570 เพิ่ม ..2. ฐาน ได้แก่ 1) ..วัดในเมืองอุบล 2) ดอนปู่ตาในจังหวัดอุบลราชธานี | M13: 0 | N13: 0.3 | O13: 0 | P13: 0.3 | Q13: 0 | R13: 0.3 | S13: 0 | T13: 0.3 | U13: 0 | V13: 0.3
B14: 4.1.2) แผนพัฒนาเศรษฐกิจสร้างสรรค์บนฐานศิลปวัฒนธรรมและภูมิปัญญาท้องถิ่น (L) | C14: PI 4.1.2.1 จำนวนผลิตภัณฑ์ที่พัฒนาจากศิลปวัฒนธรรมและภูมิปัญญาท้องถิ่น (นับจำนวนผลิตภัณฑ์ต่อปี) | D14: ชิ้น | E14: 5 | F14: 3 | H14: 3 | I14: 3 | J14: 3 | K14: 3 | L14: 3 | M14: =+M16+M19 -> 0 | N14: =+N16+N19 -> 1 | O14: 0 | P14: 1 | Q14: 0 | R14: 1 | S14: 0 | T14: 1 | U14: 0 | V14: 1
C15: PI 4.1.2.2 จำนวนแหล่งท่องเที่ยวเชิงวัฒนธรรมที่เกิดจากการยกระดับ (นับสะสม) | D15: แหล่ง | E15: - | F15: 1 | H15: 7 | I15: 9 | J15: 11 | K15: 13 | L15: 15
B16: 4.1.2.1) โครงการพัฒนาผลิตภัณฑ์จากภูมิปัญญาท้องถิ่น ปี 2566 จำนวน .3. ชิ้น ได้แก่ 1) พัฒนาผลิตภัณฑ์ของที่ระลึกจากชุมชนทำเทียน 1) วัดศรีประดู่ 2) วัดหนองบัว 3) พัฒนาผลิตภัณฑ์ของที่ระลึกจากชุมชนบ้านหนองบ่อ (ฟ้อนกลองตุ้ม) | M16: 0 | N16: 0.5 | O16: 0 | P16: 0.5 | Q16: 0 | R16: 0.5 | S16: 0 | T16: 0.5 | U16: 0 | V16: 0.5
B17: ปี 2567 จำนวน 3 ชิ้น ได้แก่ 1) พัฒนาผลิตภัณฑ์ของที่ระลึกจากเครื่องทองเหลืองบ้านปะอาว 2) พัฒนาผลิตภัณฑ์เทียนหอม บ้านหัวขัว ต.เหล่าเสือโก้ก 3) พัฒนาผลิตภัณฑ์ของที่ระลึกจากหุ่นเชิดหนังบักตื้อ ปี 2568 จำนวน 3 ชิ้น ได้แก่ 1) พัฒนาผลิตภัณฑ์ของที่ระลึกจากการทอเสื่อเตย เสื่อผือ บ้านโนนจิก ตำบลคูเมือง 2) พัฒนาผลิตภัณฑ์ของที่ระลึกจากผ้าฝ้ายเข็นมือ ย้อมสีธรรมชาติ อำเภอโขงเจียม 3) พัฒนาผลิตภัณฑ์แปรรูปสัตว์น้ำ (ปลาส้ม)อ.โขงเจียม ปี 2569 จำนวน 3 ชิ้น ได้แก่ 1) พัฒนาผลิตภัณฑ์ของที่ระลึกจากผ้าทอพื้นถิ่นอำเภอพิบูลมังสาหาร จังหวัดอุบลราชธานี 2) หมวกใบตาล ผลิตภัณฑ์ชุมชนบ้านหนองคู ตำบลโนนโหนน 3) พัฒนาผลิตภัณฑ์ของที่ระลึกจากหมู่บ้านผลิตฆ้อง อำเภอพิบูลมังสาหาร
B18: ปี 2570 จำนวน 3 ชิ้น ได้แก่ 1) การพัฒนาผลิตภัณฑ์จักสานไม้ไผ่ ต.โพธิ์ใหญ่... 2) พัฒนาผลิตภัณฑ์ของที่ระลึกจากของใช้ในครัวเรือนของท้องถิ่นอีสาน 3) พัฒนาผลิตภัณฑ์ของที่ระลึกจากเครื่องมือประมง ล่าสัตว์ ของท้องถิ่นอีสาน
B19: 4.1.2.2) โครงการพัฒนาแหล่งท่องเที่ยวเชิงวัฒนธรรม ปี 2566 จำนวน 2 แหล่ง ได้แก่ ชุมชนทำเทียน 1) วัดศรีประดู่ และ วัดหนองบัว 2) เส้นทางการศึกษาวัฒนธรรมใบลาน ปี 2567 จำนวน .2.. แหล่ง ได้แก่ 1) แหล่งเรียงนรู้หนังบักตื้อ 2) ประเพณีการแห่ปราสาทผึ้ง บ่้านโพนทราย อ.เขื่องใน ปี 2568 จำนวน ..2. แหล่ง ได้แก่ 1) พิพิธภัณฑ์วัดมณีวณาราม 2) แหล่งโบราณคดีวัดป่าบึงเขาหลวง ปี 2569 จำนวน 2 แหล่ง ได้แก่ 1) พัฒนาแหล่งท่องเที่ยวเมืองเก่าอุบลราชธานี 2) พัฒนาแหล่งท่องเที่ยวเมืองริมฝั่งน้ำมูลอุบล-วารินชำราบ ปี 2570 จำนวน 2 แหล่ง ได้แก่ แหล่งเรียนรู้วิถีชีวิตของชาวอีสาน 1) เครื่องใช้ในครัวเรือน 2) เครื่องมือประมง | M19: 0 | N19: 0.5 | O19: 0 | P19: 0.5 | Q19: 0 | R19: 0.5 | S19: 0 | T19: 0.5 | U19: 0 | V19: 0.5

Sheet กลยุทธ์ที่ 5 บริหารจัดการ
A1: วัตถุประสงค์เชิงกลยุทธ์ที่ 5 การบริหารจัดการองค์กรที่มีประสิทธิภาพและประสิทธิผล (ผู้รับผิดชอบ: ผู้บริหารมหาวิทยาลัย)
A2: เป้าประสงค์ | B2: ตัววัดวัตถุประสงค์เชิงกลยุทธ์/ แผนปฏิบัติการระยะสั้น (S) ระยะยาว (L) | C2: ตัววัดแผนปฏิบัติการ | D2: หน่วยนับ | E2: Based line | H2: ค่าคาดการณ์ | M2: งบประมาณ (แผ่นดิน/รายได้) หน่วย: ล้านบาท | W2: แผนบุคลากร | Y2: Base line | AB2: ค่าเป้าหมาย
E3: 2563 | F3: 2564 | G3: 2565 | H3: 2566 | I3: 2567 | J3: 2568 | K3: 2569 | L3: 2570 | M3: 2566 | O3: 2567 | Q3: 2568 | S3: 2569 | U3: 2570 | Y3: 2563 | Z3: 2564 | AA3: 2565 | AB3: 2566 | AC3: 2567 | AD3: 2568 | AE3: 2569 | AF3: 2570
M4: แผ่นดิน | N4: รายได้ | O4: แผ่นดิน | P4: รายได้ | Q4: แผ่นดิน | R4: รายได้ | S4: แผ่นดิน | T4: รายได้ | U4: แผ่นดิน | V4: รายได้
A5: 5.1) Smart University ตอบสนองต่อ - SC6, SC7, SC8 - SOp2 - นโยบายสภามหาวิทยาลัย 4, 7, 9, 10 | B5: SI 5.1.1 ความพึงพอใจของผู้รับบริการต่อการใช้ระบบ Digital platform (เลือกระบบเพื่อประเมินผล) | D5: ระดับ | H5: 4 | I5: 4.15 | J5: 4.2 | K5: 4.25 | L5: 4.5 | M5: ="งบประมาณขับเคลื่อน ระยะ 5 ปี (พ.ศ. 2566-2570) เป้าประสงค์ที่ 5.2 รวมทั้งสิ้น "&TEXT((M7+O7+Q7+S7+U7),"#.00")&" (ล้านบาท)" -> งบประมาณขับเคลื่อน ระยะ 5 ปี (พ.ศ. 2566-2570) เป้าประสงค์ที่ 5.2 รวมทั้งสิ้น 72.25 (ล้านบาท)
B6: SI 5.1.2 ร้อยละของต้นทุนโดยรวมที่ลดลงจากการนำระบบ Digital platform ที่ได้รับการพัฒนามาใช้ (ใช้ฐานต้นทุนของปี 2565) | D6: ร้อยละ | H6: 20 | I6: 30 | J6: 40 | M6: =+M9+M35+M36 -> 0 | N6: 17.848 | O6: 7.6 | P6: 5.6 | Q6: 8.5 | R6: 5.6 | S6: 8 | T6: 5.6 | U6: 7.4 | V6: 6.1
M7: =+M6+N6 -> 17.848 | O7: =+O6+P6 -> 13.2 | Q7: =+Q6+R6 -> 14.1 | S7: =+S6+T6 -> 13.6 | U7: =+U6+V6 -> 13.5
B8: SI 5.1.3 คะแนน UI Green Metric (คะแนนเต็ม 10,000 คะแนน) | D8: คะแนน | E8: 5400 | F8: 6150 | H8: 7000 | I8: 8000
B9: แผนปฏิบัติการ 5.1.1) แผนพัฒนา IT Architecture เพื่อรองรับสถาปัตยกรรมองค์กร (Enterprise Architecture: EA) ของมหาวิทยาลัย (L) ได้แก่ | C9: PI 5.1.1.1 ร้อยละกระบวนการทำงานที่พัฒนาให้เป็น Digital plaltform | D9: ร้อยละ | H9: 100 | M9: =SUM(M11:M34) -> 0 | N9: =SUM(N11:N34) -> 17.748 | O9: 7.6 | P9: 5.5 | Q9: 8.5 | R9: 5.5 | S9: 8 | T9: 5.5 | U9: 7.4 | V9: 6 | W9: 1) แผนพัฒนาบุคลากรเพื่อส่งเสริมการสร้างนวัตกรรมการทำงานด้วยเทคโนโลยีสารสนเทศ/เทคโนโลยีดิจิทัล หรือการทำวิจัยสถาบัน (R2R) 2) แผนการพัฒนาสมรรถนะบุคลากรด้านการรู้เท่าทันและการใช้งานเทคโนโลยีดิจิทัล (Digital Literacy) และความปลอดภัยไซเบอร์และกฎหมายด้านดิจิทัล 3) แผนพัฒนาการสร้างความรู้เรื่องเครื่องมือและการประมวลผลข้อมูลเบื้องต้น และการประมวลผลข้อมูลขนาดใหญ่ (Big Data)
B11: 5.1.1.1) โครงการพัฒนากระบวนการทำงานด้วยระบบ Digital plaltform
B12: ปี 2566 1) โครงสร้างพื้นฐาน (การเรียนแบบผสมผสาน) | N12: 1.5
B13: 2) โครงสร้างพื้นฐาน (การเรียนรู้แบบเสมือนจริง) | N13: 1.5
B14: 3) โครงสร้างพื้นฐานด้านเครือข่ายอินเตอร์เน็ต | N14: 7.698 | O14: 7.6 | P14: 5 | Q14: 8.5 | R14: 5 | S14: 8 | T14: 5 | U14: 7.4 | V14: 5.5
B15: 3) ระบบการพัฒนาบุคลากร
B16: 4) ระบบบริหารจัดการแผนกลยุทธ์และแผนปฏิบัติการ(outsource) | N16: 0.5
B17: 5) ระบบ UBU-Test
B18: 6) ระบบฐานข้อมูลงานวิจัย/ระบบฐานข้อมูลงานวิจัยเงินรายได้/ระบบฐานข้อมูลงานวิจัยระดับประเทศ
B19: 7) ระบบฐานข้อมูลด้านศิลปวัฒนธรรม | N19: 0.05
B20: 8) ระบบแนะนำทรัพยากรสารสนเทศอัตโนมัติ
B21: 9) ระบบบริการการศึกษา REG (outsource) | N21: 0.5 | P21: 0.5 | R21: 0.5 | T21: 0.5 | V21: 0.5
B22: 10) ระบบรับสมัครนักศึกษา (รองรับนักศึกษาต่างชาติ)
B23: 11) ระบบวิเคราะห์ข้อมูลภายนอกขนาดใหญ่ (Big Data) ด้วย AI ได้แก่ การวิเคราะห์ข้อมูลจากสื่อโซเซี่ยล ที่กล่าวถึงมหาวิทยาลัย การวิเคราะห์ข้อมูลของคู่แข่ง | N23: 1
B24: 12) ระบบการให้บริการเอกสาร/คำร้องออนไลน์
B25: 13) ระบบฐานข้อมูลบริการวิชาการแก่ชุมชน
B26: 14) ระบบติดตาม/ฐานข้อมูลการให้บริการตรวจบทคัดย่อ/บทความวิชาการ
B27: 15) ระบบข้อมูลความร่วมมือทางวิชาการกับหน่วยงานต่างประเทศ
B28: 16) ระบบยื่นขอรับรองจริยธรรมการวิจัย
B29: ปี 2567 1) ระบบฐานข้อมูลสินทรัพย์
B30: 2) ระบบรักษาความปลอดภัย (Digital CCTV) | N30: 5
B31: 3) ระบบการตรวจสอบหลักสูตร
B32: 4) ระบบบริหารจัดการงานซ่อมบำรุง/ปรับปรุงอาคารและสิ่งก่อสร้าง (บูรณาการระบบอาคาร 3 มิติ )
B33: ปี 2568 1) ระบบวิทยานิพนธ์/การค้นคว้าอิสระ
B34: 2) ระบบประเมินความพึงพอใจ One stop service
B35: 5.1.2) แผนพัฒนาธรรมภิบาลข้อมูล Digital governance และความปลอดภัยของข้อมูล (L) | C35: PI 5.1.2.1 ผลการรับรองมาตรฐาน ISO 38500 | D35: ระดับ | J35: ผ่านการรับรอง | N35: 0.1 | P35: 0.1 | R35: 0.1 | T35: 0.1 | V35: 0.1
C36: PI 5.1.2.2 ผลการรับรองมาตรฐาน ISO 27001 | D36: ระดับ | I36: ผ่านการรับรอง
B37: โครงการบริหารจัดการข้อมูลอย่างมีธรรมาภิบาลและมีความมั่นคง ปลอดภัย และได้มาตรฐานสากล | N37: 0.1 | P37: 0.1 | R37: 0.1 | T37: 0.1 | V37: 0.1
B38: 5.1.3) แผนการจัดการน้ำเสีย ขยะ และทรัพยากรแบบหมุนเวียน (Circular Living) (S) | C38: PI 5.1.3.1 ร้อยละของปริมาณน้ำที่ผ่านการบำบัดและนำมาใช้ประโยชน์ | D38: ร้อยละ | E38: 42.27 | F38: 50.74 | H38: 60 | I38: 70 | M38: =+M40+M41 -> 5.01 | N38: =+N40+N41 -> 5.01 | O38: 4.01 | P38: 4.01 | Q38: 0 | R38: 0 | S38: 0 | T38: 0 | U38: 0 | V38: 0
C39: PI 5.1.3.2 รายได้ที่เกิดจากการบริหารจัดการขยะ | D39: แสนบาท | H39: 1 | I39: 2
B40: 5.1.3.1) โครงการจัดการน้ำเสีย | M40: 5 | N40: 5 | O40: 4 | P40: 4
B41: 5.1.3.2) โครงการบริหารจัดการขยะเพื่อสร้างรายได้ เช่น ปุ๋ยหมักจากเศษอาหาร/ใบไม้ ขวดพลาสติก กระดาษ | M41: 0.01 | N41: 0.01 | O41: 0.01 | P41: 0.01
B42: 5.1.4) แผนการผลิตและการใช้พลังงานทดแทน (S) | C42: PI 5.1.4.1 ร้อยละของพลังงานทดแทนที่ผลิตได้ | D42: ร้อยละ | E42: 0.59 | F42: 0.83 | H42: 10 | I42: 15 | M42: =+M44 -> 5 | N42: =+N44 -> 5 | O42: 5 | P42: 5 | Q42: 0 | R42: 0 | S42: 0 | T42: 0 | U42: 0 | V42: 0
C43: PI 5.1.4.2 ร้อยละของค่าไฟฟ้าที่ลดลงจากการใช้พลังงานทดแทน | D43: ร้อยละ | H43: 0.5 | I43: 1.5
B44: 5.1.4.1) โครงการผลิตพลังงานทดแทน เช่น Solar floating/ Rooftop/ Solar farm | M44: 5 | N44: 5 | O44: 5 | P44: 5
B45: 5.1.5) แผนการลดมลพิษจากยานพาหนะ (S) | C45: PI 5.1.5.1 จำนวน zero emission vehicles ต่อจำนวนประชากรทั้งหมด | D45: ตัน CO2/ คน | E45: 0.83 | F45: 1 | H45: 1.2 | I45: 1.6 | M45: =+M46+M47 -> 6.5 | N45: =+N46+N47 -> 6.5 | O45: 6.5 | P45: 6.5 | Q45: 0 | R45: 0 | S45: 0 | T45: 0 | U45: 0 | V45: 0
B46: 5.1.5.1) โครงการส่งเสริมการใช้ พัฒนาระบบเช่ายืม หรือพัฒนานวัตกรรม รถยนต์ไฟฟ้า มอเตอร์ไซด์ไฟฟ้า สกูตเตอร์ไฟฟ้า จักรยานไฟฟ้า หรือจักรยาน และจัดตั้งจุดชาร์ตไฟฟ้า (Fast charge) | M46: 5 | N46: 5 | O46: 5 | P46: 5
B47: 5.1.5.2) โครงการส่งเสริมระบบการขนส่งสาธารณะ เช่น รถรางไฟฟ้า | M47: 1.5 | N47: 1.5 | O47: 1.5 | P47: 1.5
A48: 5.2) มหาวิทยาลัยมีความยั่งยืนด้านการเงิน ตอบสนองต่อ - SC6, SC7, SC8 - SOp2 - นโยบายสภามหาวิทยาลัย 4, 7, 9, 10 | B48: SI 5.2.1 กำไรสุทธิ (ล้านบาท) (รายได้-ค่าใช้จ่ายทั้งหมด-ค่าเสื่อม) | D48: ล้านบาท | E48: 114 | F48: 138 | H48: 200 | I48: 300 | J48: 400 | K48: 500 | L48: 600 | M48: ="งบประมาณขับเคลื่อน ระยะ 5 ปี (พ.ศ. 2566-2570) เป้าประสงค์ที่ 5.2 รวมทั้งสิ้น "&TEXT((M50+O50+Q50+S50+U50),"#.00")&" (ล้านบาท)" -> งบประมาณขับเคลื่อน ระยะ 5 ปี (พ.ศ. 2566-2570) เป้าประสงค์ที่ 5.2 รวมทั้งสิ้น 56.00 (ล้านบาท)
B49: SI 5.2.2 จำนวนเงินทุนสำรองสะสม (ล้านบาท) | D49: ล้านบาท | E49: 475 | F49: 563 | H49: 600 | I49: 650 | J49: 680 | K49: 720 | L49: 750 | M49: =+M52 -> 2.5 | N49: =+N52 -> 8.7 | O49: 2.5 | P49: 8.7 | Q49: 2.5 | R49: 8.7 | S49: 2.5 | T49: 8.7 | U49: 2.5 | V49: 8.7
M50: =+M49+N49 -> 11.2 | O50: =+O49+P49 -> 11.2 | Q50: =+Q49+R49 -> 11.2 | S50: =+S49+T49 -> 11.2 | U50: =+U49+V49 -> 11.2
B51: SI 5.2.3 รายได้ทั้งหมดต่อจำนวนบุคลากรทั้งหมด (ล้านบาท) | D51: ล้านบาท | E51: =864.815646/1500 -> 0.576543764 | F51: =886.6732/1500 -> 0.5911154667 | H51: 0.6 | I51: 0.62 | J51: 0.64 | K51: 0.66 | L51: 0.68
B52: แผนปฏิบัติการ 5.2.1) แผนการสร้างรายได้เชิงธุรกิจและบริหารสินทรัพย์ (L) ได้แก่ | C52: PI 5.2.1.1 รายได้สุทธิจากการบริหารธุรกิจและสินทรัพย์ | D52: ล้านบาท | E52: 12.64 | F52: 9.91 | H52: 20 | I52: 25 | J52: 30 | K52: 35 | L52: 40 | M52: =+M53+M54+M55+M56 -> 2.5 | N52: =+N53+N54+N55+N56 -> 8.7 | O52: 2.5 | P52: 8.7 | Q52: 2.5 | R52: 8.7 | S52: 2.5 | T52: 8.7 | U52: 2.5 | V52: 8.7 | W52: แผนกรอบอัตรากำลังสำหรับหน่วยธุรกิจที่จะเกิดใหม่
B53: 5.2.1.1) โครงการสร้างรายได้จากทรัพย์สิน เช่น ฟาร์มคณะเกษตร พื้นที่ Outlet หน้ามหาวิทยาลัย ศูนย์ประชุม โรงแรม หรือจัดอีเว้นท์ (MICE) ศูนย์กีฬา | M53: 2.5 | N53: 2.5 | O53: 2.5 | P53: 2.5 | Q53: 2.5 | R53: 2.5 | S53: 2.5 | T53: 2.5 | U53: 2.5 | V53: 2.5
B54: 5.2.1.2) โครงการจัดตั้งบริษัทโฮลดิ้งเพื่อร่วมลงทุนในการพัฒนานวัตกรรมของมหาวิทยาลัยร่วมกับภาคเอกชน (UBU Holding Company) | M54: 0 | N54: 5 | O54: 0 | P54: 5 | Q54: 0 | R54: 5 | S54: 0 | T54: 5 | U54: 0 | V54: 5
B55: 5.2.1.3) โครงการเพิ่มและพัฒนาศักยภาพหน่วยวิสาหกิจ เช่น ศูนย์บริการวิชาการ (ภายในปี 66) ศูนย์บริบาลผู้สูงอายุ (ภายในปี 67) | M55: 0 | N55: 1 | O55: 0 | P55: 1 | Q55: 0 | R55: 1 | S55: 0 | T55: 1 | U55: 0 | V55: 1
B56: 5.2.1.4) โครงการสร้างรายได้จากผลิตภัณฑ์และนวัตกรรมของมหาวิทยาลัย ผ่านร้านจำหน่ายผลิตภัณฑ์และนวัตกรรมของมหาวิทยาลัย (UBU Innovation Store) | M56: 0 | N56: 0.2 | O56: 0 | P56: 0.2 | Q56: 0 | R56: 0.2 | S56: 0 | T56: 0.2 | U56: 0 | V56: 0.2
A57: 5.3) การบริหารทรัพยากรบุคคลมีประสิทธิภาพ ตอบสนองต่อ - SC8 - นโยบายสภามหาวิทยาลัย 6, 9, 10 | B57: SI 5.3.1 ร้อยละของอาจารย์ที่มีผลงานตีพิมพ์หรือสร้างสรรค์เทียบกับอาจารย์ทั้งหมด | D57: ร้อยละ | E57: 19.43 | F57: 16.77 | H57: 60 | I57: 70 | J57: 80 | K57: 80 | L57: 80 | M57: ="งบประมาณขับเคลื่อน ระยะ 5 ปี (พ.ศ. 2566-2570) เป้าประสงค์ที่ 5.3 รวมทั้งสิ้น "&TEXT((M59+O59+Q59+S59+U59),"#.00")&" (ล้านบาท)" -> งบประมาณขับเคลื่อน ระยะ 5 ปี (พ.ศ. 2566-2570) เป้าประสงค์ที่ 5.3 รวมทั้งสิ้น 21.65 (ล้านบาท)
B58: SI 5.3.2 ร้อยละของอาจารย์ที่มีผลงานนวัตกรรมเทียบกับอาจารย์ทั้งหมด | D58: ร้อยละ | E58: 16 ผลงาน | F58: 48 ผลงาน | G58: 11 ผลงาน | H58: 20 | I58: 25 | J58: 30 | K58: 35 | L58: 40 | M58: =+M61+M69 -> 0 | N58: =+N61+N69 -> 5.45 | O58: 0 | P58: 4.05 | Q58: 0 | R58: 4.05 | S58: 0 | T58: 4.05 | U58: 0 | V58: 4.05
B59: SI 5.3.3 รายได้อื่นของมหาวิทยาลัยนอกเหนือจากค่าธรรมเนียมการศึกษา (วงเงินรวม) ต่อจำนวนบุคลากร | D59: แสนบาท | E59: =(330000000/1499)/100000 -> 2.201467645 | F59: =(400000000/1499)/100000 -> 2.66844563 | H59: 3 | I59: 3.2 | J59: 3.4 | K59: 3.6 | L59: 3.8 | M59: =+M58+N58 -> 5.45 | O59: =+O58+P58 -> 4.05 | Q59: =+Q58+R58 -> 4.05 | S59: =+S58+T58 -> 4.05 | U59: =+U58+V58 -> 4.05
B60: SI 5.3.4 ระดับความผูกพันของบุคลากร | D60: ระดับ | E60: 3.59 | F60: 4 | H60: 4.3 | I60: 4.35 | J60: 4.4 | K60: 4.45 | L60: 4.51
B61: แผนปฏิบัติการ 5.3.1) แผนการพัฒนาความก้าวหน้าของบุคลากร (L) ได้แก่ | C61: PI 5.3.1.1 ร้อยละของอาจารย์ที่มีคุณวุฒิปริญญาเอก | D61: ร้อยละ | E61: 54 | F61: 60 | H61: 66 | I61: 67 | J61: 68 | K61: 69 | L61: 70 | M61: =+M64+M65 -> 0 | N61: =+N64+N65 -> 3.75 | O61: 0 | P61: 3.75 | Q61: 0 | R61: 3.75 | S61: 0 | T61: 3.75 | U61: 0 | V61: 3.75 | W61: 1) แผนพัฒนาความก้าวหน้าของบุคลากร (ตำแหน่งทางวิชาการ /คุณวุฒิ) 2) แผนพัฒนาความเป็นมืออาชีพด้านการจัดการเรียนรู้ของอาจารย์ตามกรอบมาตรฐานสากล (PSF)
C62: PI 5.3.1.2 ร้อยละของอาจารย์ที่มีตำแหน่งทางวิชาการ | D62: ร้อยละ | E62: 42 | F62: 45 | H62: 50 | I62: 55 | J62: 60 | K62: 65 | L62: 70
C63: ร้อยละของบุคลากรสายสนับสนุนที่มีระดับตำแหน่งสูงขึ้นต่อปี (ตามเกณฑ์/ตามเกณฑ์และมีกรอบ) <== ตัด เปลี่ยนหมวด 7 | D63: ร้อยละ | E63: - | F63: - | H63: 80 | I63: 80 | J63: 90 | K63: 90 | L63: 90
B64: 5.3.1.1) โครงการสนับสนุนทุนพัฒนาบุคลากร (สายวิชาการ) | M64: 0 | N64: 2 | O64: 0 | P64: 2 | Q64: 0 | R64: 2 | S64: 0 | T64: 2 | U64: 0 | V64: 2
B65: 5.3.1.2) โครงการเสริมสร้างความก้าวหน้าบุคลากรรายบุคคล (สายวิชาการ) | M65: 0 | N65: 1.75 | O65: 0 | P65: 1.75 | Q65: 0 | R65: 1.75 | S65: 0 | T65: 1.75 | U65: 0 | V65: 1.75
B66: 5.2.2.3) โครงการเสริมสร้างความก้าวหน้าบุคลากรรายบุคคล (สายสนับสนุน)
B67: 5.3.2) แผนการพัฒนาสมรรถนะผู้บริหาร (L) ตัดออกสู่งานประจำ | C67: ร้อยละของผู้บริหารที่มี Competency ตามระดับที่คาดหวังและครบตามที่กำหนด | D67: ร้อยละ | E67: - | F67: - | H67: 60 | I67: 70 | J67: 80 | K67: 90 | L67: 100 | W67: 1) แผนพัฒนาสมรรถนะผู้บริหาร
B68: 5.3.2.1) โครงการพัฒนาสมรรถนะผู้บริหาร ประกอบด้วย 1) สามารถจัดทำแผนกลยุทธ์และถ่ายทอดแผนปฏิบัติการ 2) สามารถบริหารทรัพยากรมนุษย์ได้อย่างมีประสิทธิภาพ 3) สามารถเป็นตัวอย่างที่ดีในการปฏิบัติตามกฎหมายและจริยธรรม 4) สามารถตัดสินใจและแก้ไขปัญหาได้อย่างมีประสิทธิภาพ 5) สามารถจัดการเรียนรู้และการคิดเชิงนวัตกรรม | M68: 1 ลบ. (ร) | O68: 1 ลบ. (ร) | Q68: 1 ลบ. (ร) | S68: 1 ลบ. (ร) | U68: 1 ลบ. (ร)
B69: 5.3.2) แผนพัฒนาทักษะใหม่ของบุคลากรเพื่อการทำงานในอนาคต (L) | C69: PI 5.3.2.1 ร้อยละของบุคลากรที่มี Future Skill ตามระดับที่คาดหวังและครบตามที่กำหนด | D69: ร้อยละ | H69: 60 | I69: 70 | J69: 80 | K69: 90 | L69: 100 | M69: =+M70 -> 0 | N69: =+N70 -> 1.7 | O69: 0 | P69: 0.3 | Q69: 0 | R69: 0.3 | S69: 0 | T69: 0.3 | U69: 0 | V69: 0.3 | W69: 1) แผนพัฒนา Future Skill ของบุคลากร
B70: 5.3.2.1) โครงการพัฒนาทักษะใหม่เพื่อการทำงานในอนาคต (Future Skill) ประกอบด้วย (สายสนับสนุน) 1) ทักษะการประสานความร่วมมือ (Collaborations at Work) 2) ความสามารถในการปรับตัวยุคดิจิทัล (Adaptability Skills) 3) ทักษะการโน้มน้าวใจในการทำงาน (Influencing At Work) 4) ทักษะการคิดเชิงวิเคราะห์ (Analytical Thinking) 5) เทคนิคการแก้ไขปัญหาที่ซับซ้อน (Complex Problem Solving) 6) จุดประกายความคิดสร้างสรรค์ (Creative Thinking) 7) ลับความคิด พัฒนาความคิดเชิงตรรกะ (Logical Thinking) 8) การใช้ภาษาอังกฤษระดับ B1 ขึ้นไป | M70: 0 | N70: 1.7 | O70: 0 | P70: 0.3 | Q70: 0 | R70: 0.3 | S70: 0 | T70: 0.3 | U70: 0 | V70: 0.3

Sheet คำอธิบายตัวชี้วัด
A1: S5B51 | B1: ="ชื่อตัวชี้วัด : "&VLOOKUP(A1,คำอธิบาย1!$C$2:$M$190,3,0) -> ชื่อตัวชี้วัด : SI 5.2.3 รายได้ทั้งหมดต่อจำนวนบุคลากรทั้งหมด (ล้านบาท) | D1: =MID(B1,20,1) -> 5
B2: ประเภทตัวชี้วัด : | C2: =VLOOKUP($A$1,คำอธิบาย1!$C$2:$M$96,2,0) -> ตัวชี้วัดเชิงกลยุทธ์
B3: คำนิยาม : | C3: =VLOOKUP($A$1,คำอธิบาย1!$C$2:$M$96,5,0) -> 1. รายได้ทั้งหมด หมายถึง รายได้จากค่าธรรมเนียมการศึกษา และรายได้จากแหล่งอื่นทั้งหมดของมหาวิทยาลัย ทุกประเภท รวมทั้งดอกเบี้ยรับต่างๆ 2. บุคลากร หมายถึง อาจารย์ประจำ นักวิจัย และบุคลากรสายสนับสนุนวิชาการ (ข้าราชการ และพนักงานมหาวิทยาลัย) ที่มีหน้าที่รับผิดชอบ ตามพันธกิจของมหาวิทยาลัย และปฏิบัติหน้าที่เต็มเวลา
B4: รูปแบบการเก็บข้อมูล : | C4: =VLOOKUP($A$1,คำอธิบาย1!$C$2:$M$96,6,0) -> 1. ข้อมูลค่าธรรมเนียมการศึกษา ในรอบปีงบประมาณ 2. ข้อมูลรายได้ จากแหล่งเงินต่างๆ ได้แก่ เงินงบประมาณแผ่นดิน และเงินรายได้มหาวิทยาลัย แยกตามหมวดเงิน และประเภทบัญชี ในรอบปีงบประมาณ 3. ข้อมูลจำนวนอาจารย์ประจำและนักวิจัยทั้งหมด 4. ข้อมูลจำนวนบุคลากรสายสนับสนุนวิชาการทั้งหมด
B5: ตัวตั้ง : | C5: =VLOOKUP($A$1,คำอธิบาย1!$C$2:$M$190,7,0) -> ค่าธรรมเนียมการศึกษา +รายได้จากแหล่งเงินต่างๆ ในรอบปีงบประมาณ
B6: ตัวหาร : | C6: =VLOOKUP($A$1,คำอธิบาย1!$C$2:$M$190,8,0) -> จำนวนอาจารย์ประจำและนักวิจัยทั้งหมด + จำนวนบุคลากรสายสนับสนุนวิชาการ
B7: ระยะเวลาการเก็บข้อมูล : | C7: =VLOOKUP($A$1,คำอธิบาย1!$C$2:$M$190,9,0) -> ทุกไตรมาส
B8: ผู้รับผิดชอบหลัก : | C8: =VLOOKUP($A$1,คำอธิบาย1!$C$2:$M$190,10,0) -> กองแผนงาน
B9: ผู้รับผิดชอบรอง : | C9: =VLOOKUP($A$1,คำอธิบาย1!$C$2:$M$190,11,0) -> -

Sheet กำหนดค่าเป้าหมาย66 (hidden)

Sheet คำอธิบาย1
A1: ชื่อกลยุทธ์ | B1: ชื่อเป้าประสงค์ | C1: KPIsID | D1: ระดับตัวชี้วัด | E1: ชื่อตัวชี้วัด | F1: หน่วยนับ | G1: นิยาม/คำอธิบายตัวชี้วัด | H1: รูปแบบการเก็บข้อมูล | I1: ตัวตั้ง | J1: ตัวหาร | K1: ระยะเวลาการเก็บข้อมูล | L1: หน่วยงานหลักที่รับผิดชอบ | M1: หน่วยงานรอง/ชื่อผู้รับผิดชอบ | O1: ข้อมูลที่ต้องจัดเก็บ | P1: ประเภท | Q1: id_ตัวชี้วัด
A2: กลยุทธ์ที่ 1: บัณฑิตมีคุณภาพอย่างโดดเด่น และพัฒนาการเรียนรู้สำหรับคนทุกช่วงวัย | B2: 1.1) บัณฑิตมีความโดดเด่น ตรงความต้องการของตลาดแรงงานและการพัฒนาประเทศ/เป็นผู้ประกอบการ | C2: S1B5 | D2: ตัวชี้วัดเชิงกลยุทธ์ | E2: SI 1.1.1 ร้อยละบัณฑิต ป.ตรี ที่ได้งานทำในองค์กรขนาดใหญ่หรือต่างชาติ | F2: ร้อยละ | G2: 1. บัณฑิตระดับปริญญาตรี คือ ผู้สำเร็จการศึกษาในหลักสูตรภาคปกติ ภาคพิเศษ และภาคนอกเวลาในสาขา และหลักสูตรนั้นๆ ที่ได้งานทำ หรือมีกิจการของตนเองที่มีรายได้ประจำ ภายในระยะเวลา 1 ปี นับจากวันที่สำเร็จการศึกษา 2. องค์กรขนาดใหญ่หรือต่างชาติ หมายถึง องค์กรที่มีจำนวนเงินทุนจดทะเบียนตั้งแต่ 200 ล้านบาทขึ้นไป หรือมีจำนวนพนักงานตั้งแต่ 200 คนขึ้นไปตามเกณฑ์กระทรวงอุตสาหกรรม | H2: 1. ข้อมูลบัณฑิตระดับปริญญาตรี รอบปีการศึกษา (1 มิ.ย.ปีปัจจุบัน ถึง 31 พ.ค.ปีถัดไป) 2. ข้อมูลผลการสำรวจภาวะการมีงานทำภายใน 1 ปีหลังสำเร็จการศึกษา 3. ข้อมูลสถานประกอบการของบัณฑิตระดับปริญญาตรี ในรอบปีการศึกษาที่สำเร็จการศึกษา | I2: จำนวนบัณฑิตระดับปริญญาตรี ที่มีงานทำในองค์กรขนาดใหญ่หรือต่างชาติ X 100 | J2: จำนวนบัณฑิตระดับปริญญาตรีทั้งหมดในปีการศึกษา (ที่ตอบแบบสำรวจ) | K2: ทุกไตรมาส | L2: กองแผนงาน | M2: - | O2: จำนวนบัณฑิตระดับปริญญาตรี ที่มีงานทำในองค์กรขนาดใหญ่หรือต่างชาติ; จำนวนบัณฑิตระดับปริญญาตรีทั้งหมดในปีการศึกษา | P2: กลยุทธ์ที่ 1 | Q2: =Table3[[#This Row],[KPIsID]] -> S1B5
A3: กลยุทธ์ที่ 1: บัณฑิตมีคุณภาพอย่างโดดเด่น และพัฒนาการเรียนรู้สำหรับคนทุกช่วงวัย | B3: 1.1) บัณฑิตมีความโดดเด่น ตรงความต้องการของตลาดแรงงานและการพัฒนาประเทศ/เป็นผู้ประกอบการ | C3: S1B6 | D3: ตัวชี้วัดเชิงกลยุทธ์ | E3: SI 1.1.2 ร้อยละของบัณฑิต ป.ตรี ที่เป็นผู้ประกอบการภายใน 1 ปี หลังสำเร็จการศึกษา | F3: ร้อยละ | G3: 1. บัณฑิตระดับปริญญาตรี คือ ผู้สำเร็จการศึกษาในหลักสูตรภาคปกติ ภาคพิเศษ และภาคนอกเวลาในสาขา และหลักสูตรนั้นๆ ที่ได้งานทำ หรือมีกิจการของตนเองที่มีรายได้ประจำ ภายในระยะเวลา 1 ปี นับจากวันที่สำเร็จการศึกษา 2. ผู้ประกอบการ (Entrepreneurs) หมายถึง ผู้ที่เริ่มก่อตั้งธุรกิจโดยใช้เงินทุนของตัวเองหรือจากแหล่งเงินทุนอื่นๆ และนำความรู้ความสามารถที่ได้ศึกษาเรียนรู้มาใช้ในการบริหารจัดการโดยมุ่งหวังผลกำไร 3. การประกอบอาชีพอิสระ คือ การประกอบกิจการส่วนตัวต่าง ๆ ในการผลิตสินค้าหรือบริการที่ถูกต้องตามกฎหมาย เป็นธุรกิจของตนเองไม่ว่าธุรกิจนั้นจะเล็กหรือใหญ่ก็ตาม | H3: 1. ข้อมูลบัณฑิตระดับปริญญาตรี รอบปีการศึกษา (1 มิ.ย.ปีปัจจุบัน ถึง 31 พ.ค.ปีถัดไป) 2. ข้อมูลผลการสำรวจภาวะการมีงานทำภายใน 1 ปีหลังสำเร็จการศึกษา 3. ข้อมูลบัณฑิตระดับปริญญา ที่เป็นผู้ประกอบการ และประกอบอาชีพอิสระ ภายใน 1 ปีหลังสำเร็จการศึกษา | I3: จำนวนบัณฑิตปริญญาตรี ที่เป็นผู้ประกอบการหรือประกอบอาชีพอิสระ X 100 | J3: จำนวนบัณฑิตระดับปริญญาตรีทั้งหมดในปีการศึกษา (ที่ตอบแบบสำรวจ) | K3: ทุกไตรมาส | L3: กองแผนงาน | M3: คณะ/วิทยาลัย | O3: จำนวนบัณฑิตปริญญาตรี ที่เป็นผู้ประกอบการหรือประกอบอาชีพอิสระใน 1 ปี; จำนวนบัณฑิตระดับปริญญาตรีทั้งหมดในปีการศึกษา | P3: กลยุทธ์ที่ 1 | Q3: =Table3[[#This Row],[KPIsID]] -> S1B6
A4: กลยุทธ์ที่ 1: บัณฑิตมีคุณภาพอย่างโดดเด่น และพัฒนาการเรียนรู้สำหรับคนทุกช่วงวัย | B4: 1.1) บัณฑิตมีความโดดเด่น ตรงความต้องการของตลาดแรงงานและการพัฒนาประเทศ/เป็นผู้ประกอบการ | C4: S1B7: | D4: ตัวชี้วัดเชิงกลยุทธ์ | E4: SI 1.1.3 จำนวนนักศึกษาหรือศิษย์เก่า ที่ได้รับรางวัลระดับชาติหรือนานาชาติ (นักศึกษา ศิษย์เก่า) | F4: คน | G4: 1. นักศึกษา คือ นักศึกษาทุกระดับที่ลงทะเบียนเรียนในหลักสูตร/สาขาที่มหาวิทยาลัยเปิดการเรียนการสอน 2. ศิษย์เก่า คือ ผู้ที่เคยศึกษา/ผู้สำเร็จการศึกษาในหลักสูตร สาขาที่มหาวิทยาลัยเปิด/เคยเปิดการเรียนการสอน 3. รางวัลระดับชาติ หมายถึง รางวัลจากการแข่งขัน การประกวด การยกย่องเชิดชูเกียรติจาก หน่วยงานภาครัฐในระดับกระทรวง ทบวง กรม หรือจังหวัด หน่วยงานของรัฐและเอกชนที่เป็นองค์กรทางวิชาการหรือวิชาชีพ ที่ได้รับการยอมรับในระดับชาติ 4. รางวัลระดับนานาชาติ หมายถึง รางวัลจากการแข่งขัน การประกวด การยกย่องเชิดชูเกียรติจาก หน่วยงานภาครัฐในระดับกระทรวง ทบวง กรม หรือหน่วยงานของรัฐและเอกชนที่เป็นองค์กรทางวิชาการหรือองค์กรทางวิชาชีพ ที่ดำเนินการเอง หรือดำเนินการร่วมกับสถาบันหรือองค์กรต่างประเทศ ที่ได้รับการยอมรับในระดับนานาชาติ หรือจัดโดยสถาบันหรือองค์กรในระดับนานาชาติ | H4: 1. ข้อมูลนักศึกษา รอบปีการศึกษา (1 มิ.ย.ปีปัจจุบัน ถึง 31 พ.ค.ปีถัดไป) 2. ข้อมูลศิษย์เก่า ปีการศึกษาปัจจุบัน และย้อนหลัง 3. ข้อมูลรายงานของนักศึกษาและศิษย์เก่าที่ได้รับรางวัลระดับชาติและนานาชาติ (แยกเก็บชาติ นานาชาติ นักศึกษา ศิษย์เก่า) | I4: จำนวนนักศึกษาหรือศิษย์เก่าที่ได้รับรางวัลระดับชาติและนานาชาติ ในรอบปีงบประมาณ (ไม่นับสะสม) | J4: - ไม่มี - | K4: ทุกไตรมาส | L4: สำนักงานพัฒนานักศึกษา | M4: คณะ/วิทยาลัย | O4: 1) จำนวนนักศึกษาที่ได้รับรางวัลระดับชาติและนานาชาติ ในรอบปีงบประมาณ; 2) จำนวนศิษย์เก่าที่ได้รับรางวัลระดับชาติและนานาชาติ ในรอบปีงบประมาณ | P4: กลยุทธ์ที่ 1 | Q4: =Table3[[#This Row],[KPIsID]] -> S1B7:
A5: กลยุทธ์ที่ 1: บัณฑิตมีคุณภาพอย่างโดดเด่น และพัฒนาการเรียนรู้สำหรับคนทุกช่วงวัย | B5: 1.1) บัณฑิตมีความโดดเด่น ตรงความต้องการของตลาดแรงงานและการพัฒนาประเทศ/เป็นผู้ประกอบการ | C5: S1B10 | D5: ตัวชี้วัดเชิงกลยุทธ์ | E5: SI 1.1.4 ร้อยละของบทความวิทยานิพนธ์ที่ได้รับการตีพิมพ์ในระดับนานาชาติ (Scopus Q1-Q2) ต่อจำนวนวิทยานิพนธ์ทั้งหมด | F5: ร้อยละ | G5: 1. วิทยานิพนธ์ (Thesis) หมายถึง การศึกษาวิจัยที่ค้นคว้าวิจัยมาได้ โดยเขียนอย่างเป็นระบบ มีแบบแผน ของนักศึกษาในสถาบันอุดมศึกษา ซึ่งวิทยานิพนธ์เป็นเอกสารเงื่อนใขในการสำเร็จการศึกษา 2. วิทยานิพนธ์ที่ได้รับการตีพิมพ์ หมายถึง วิทยานิพนธ์ที่ได้รับการนำเสนอในการประชุม/สัมมนาวิชาการระดับชาติ หรือนานาชาติ การตีพิมพ์บทความจากวิทยานิพนธ์ของนักศึกษา/ผู้สำเร็จการศึกษา ระดับบัณฑิตศึกษา ในฐานข้อมูล Scopus Q1-Q2 โดย >> Scopus Q1 หมายถึง Top position (highest 25% of data) เป็นกลุ่มวารสารที่ดีที่สุดในสาขา >> Scopus Q2 หมายถึง Middle-high position (อยู่ระหว่าง top 50% และ top 25%) | H5: 1. ข้อมูลวิทยานิพนธ์ของนักศึกษาระดับบัณฑิตศึกษา รอบปีการศึกษา (1 มิ.ย.ปีปัจจุบัน ถึง 31 พ.ค.ปีถัดไป) (แยกระดับปริญญาโท และปริญญาเอก) 2. ข้อมูลของบทความระดับบัณฑิตศึกษาจากผลงานวิทยานิพนธ์ที่ตีพิมพ์ในระดับนานาชาติ (Scopus Q1-Q2)ทั้งหมด | I5: จำนวนบทความระดับบัณฑิตศึกษาจากผลงานวิทยานิพนธ์ทั้งหมดที่ตีพิมพ์ในระดับนานาชาติ (Scopus Q1-Q2) ในปีการศึกษา X 100 | J5: จำนวนวิทยานิพนธ์ทั้งหมด ในปีการศึกษา (แยกระดับ ป.โท / ป.เอก) | K5: ทุกไตรมาส | L5: กองบริการการศึกษา | M5: คณะ/วิทยาลัย | O5: จำนวนบทความระดับบัณฑิตศึกษาจากผลงานวิทยานิพนธ์ทั้งหมดที่ตีพิมพ์ในระดับนานาชาติ (Scopus Q1-Q2) ในปีการศึกษา; จำนวนวิทยานิพนธ์ทั้งหมด ในปีการศึกษา | P5: กลยุทธ์ที่ 1 | Q5: =Table3[[#This Row],[KPIsID]] -> S1B10
A6: กลยุทธ์ที่ 1: บัณฑิตมีคุณภาพอย่างโดดเด่น และพัฒนาการเรียนรู้สำหรับคนทุกช่วงวัย | B6: 1.1) บัณฑิตมีความโดดเด่น ตรงความต้องการของตลาดแรงงานและการพัฒนาประเทศ/เป็นผู้ประกอบการ | C6: S1B11: | D6: ตัวชี้วัดเชิงกลยุทธ์ | E6: SI 1.1.5 ร้อยละของบัณฑิตที่มีเงินเดือนเกินเกณฑ์อัตรามาตรฐานระดับปริญญาตรี โดยแยกตามกลุ่มสาขาวิชา (วิทยาศาสตร์เทคโนโลยี วิทยาศาสตร์สุขภาพ และมนุษยศาสตร์สังคมศาสตร์) | F6: ร้อยละ | G6: 1. บัณฑิตระดับปริญญาตรี คือ ผู้สำเร็จการศึกษาในหลักสูตรภาคปกติ ภาคพิเศษ และภาคนอกเวลาในสาขา และหลักสูตรนั้นๆ ที่ได้งานทำ หรือมีกิจการของตนเองที่มีรายได้ประจำ ภายในระยะเวลา 1 ปี นับจากวันที่สำเร็จการศึกษา 2. รายได้ตามเกณฑ์อัตรามาตรฐานระดับปริญญาตรี อ้างอิงเกณฑ์อัตราเงินเดือนสำหรับคุณวุฒิที่ ก.พ. รับรองฯ ดังนี้ 2.1 หลักสูตร 4 ปี 15,000 บาท 2.2 เภสัชศาสตร์บัณฑิต 6 ปี 17,500 บาท 2.3 แพทยศาสตร์บัณฑิต 18,020 บาท 2.4 สถาปัตยกรรมศาสตร์บัณฑิต อัตรา...บาท | H6: 1. ข้อมูลบัณฑิตระดับปริญญาตรี รอบปีการศึกษา (1 มิ.ย.ปีปัจจุบัน ถึง 31 พ.ค.ปีถัดไป) 2. ข้อมูลผลการสำรวจภาวะการมีงานทำภายใน 1 ปีหลังสำเร็จการศึกษา 3. ข้อมูลบัณฑิตระดับปริญญาที่มีรายได้เฉลี่ยเกินเกณฑ์อัตรามาตรฐานระดับปริญญาตรี โดยแยกตามกลุ่มสาขาวิชา | I6: จำนวนบัณฑิตระดับปริญญาตรีที่มีรายได้เฉลี่ยเกินเกณฑ์อัตรามาตรฐานระดับปริญญาตรี(แยกตามกลุ่มสาขาวิชา) x 100 | J6: จำนวนบัณฑิตระดับปริญญาตรีทั้งหมด(แยกตามกลุ่มสาขาวิชา) (ที่ตอบแบบสำรวจ) | K6: ทุกไตรมาส | L6: กองแผนงาน | M6: คณะ/วิทยาลัย | O6: จำนวนบัณฑิตระดับปริญญาตรีที่มีรายได้เฉลี่ยเกินเกณฑ์อัตรามาตรฐานระดับปริญญาตรี; จำนวนบัณฑิตระดับปริญญาตรีทั้งหมดในปีการศึกษา | P6: กลยุทธ์ที่ 1 | Q6: =Table3[[#This Row],[KPIsID]] -> S1B11:
A7: กลยุทธ์ที่ 1: บัณฑิตมีคุณภาพอย่างโดดเด่น และพัฒนาการเรียนรู้สำหรับคนทุกช่วงวัย | B7: 1.1) บัณฑิตมีความโดดเด่น ตรงความต้องการของตลาดแรงงานและการพัฒนาประเทศ/เป็นผู้ประกอบการ | C7: S1C15 | D7: ตัวชี้วัดแผนปฏิบัติการ | E7: PI 1.1.1.1 จำนวนหลักสูตรที่ตอบโจทย์อุตสาหกรรม (ไม่นับรวม sandbox) | F7: หลักสูตร | G7: หลักสูตรที่ตอบโจทย์อุตสาหกรรม หมายถึง หลักสูตรระดับปริญญาตรี และระดับบัณฑิตศึกษา ที่มีความสอดคล้องและตอบโจทย์กับอุตสาหกรรมเป้าหมายของประเทศ ดังนี้ 1. First s-curve: นั้นเป็นการลงทุนในกลุ่มอุตสาหกรรมที่มีอยู่แล้วในประเทศ ซึ่งเป็นปัจจัยที่จะเพิ่มประสิทธิภาพในการผลิต โดยจะกำหนดอุตสาหกรรมเป้าหมายของประเทศได้ดังนี้ 1) อุตสาหกรรมยานยนต์สมัยใหม่ (Next – Generation Automotive) 2) อุตสาหกรรมอิเล็กทรอนิกส์อัจฉริยะ (Smart Electronics) 3) อุตสาหกรรมการท่องเที่ยวกลุ่มรายได้ดีและการท่องเที่ยวเชิงสุขภาพ (Affluent, Medical and Wellness Tourism) 4) การเกษตรและเทคโนโลยีชีวภาพ (Agriculture and Biotechnology) 5) อุตสาหกรรมการแปรรูปอาหาร (Food for the Future) 2. New S-curve: เป็นรูปแบบการลงทุนในอุตสาหกรรมใหม่ เพื่อพัฒนาหรือเปลี่ยนแปลงรูปแบบสินค้าและเทคโนโลยี โดยกำหนดอุตสาหกรรมอนาคต ได้ดังนี้ 1) อุตสาหกรรมหุ่นยนต์ (Robotics) 2) อุตสาหกรรมการบินและโลจิสติกส์ (Aviation and Logistics) 3) อุตสาหกรรมเชื้อเพลิงชีวภาพและเคมีชีวภาพ (Biofuels and Biochemicals) 4) อุตสาหกรรมดิจิตอล (Digital) 5) อุตสาหกรรมการแพทย์ครบวงจร (Medical Hub) | H7: 1. ข้อมูลจำนวนหลักสูตรทั้งหมดที่มหาวิทยาลัยเปิดสอน แยกระดับการศึกษา (ตรี/โท/เอก) ที่เปิดรับนักศึกษา (1 มิ.ย.ปีปัจจุบัน ถึง 31 พ.ค.ปีถัดไป) 2. ข้อมูลจำนวนหลักสูตรที่ตอบโจทย์อุตสาหกรรมของมหาวิทยาลัย แยกระดับการศึกษา (ตรี/โท/เอก) ที่เปิดรับนักศึกษา (1 มิ.ย.ปีปัจจุบัน ถึง 31 พ.ค.ปีถัดไป) | I7: จำนวนหลักสูตรที่ตอบโจทย์อุตสาหกรรม ของมหาวิทยาลัย แยกระดับการศึกษา (ตรี/โท/เอก) ที่เปิดรับนักศึกษา ในรอบปีการศึกษา | J7: - ไม่มี - | K7: ปลายปีการศึกษาเทอมต้น (ก.ย.) และเทอมปลาย (มี.ค.) | L7: กองบริการการศึกษา | M7: คณะ/วิทยาลัย | O7: จำนวนหลักสูตรที่ตอบโจทย์อุตสาหกรรมทุกระดับในรอบปีงบประมาณ; จำนวนหลักสูตรทั้งหมดทุกระดับในรอบปีงบประมาณ | P7: กลยุทธ์ที่ 1 | Q7: =Table3[[#This Row],[KPIsID]] -> S1C15
A8: กลยุทธ์ที่ 1: บัณฑิตมีคุณภาพอย่างโดดเด่น และพัฒนาการเรียนรู้สำหรับคนทุกช่วงวัย | B8: 1.1) บัณฑิตมีความโดดเด่น ตรงความต้องการของตลาดแรงงานและการพัฒนาประเทศ/เป็นผู้ประกอบการ | C8: S1C16 | D8: ตัวชี้วัดแผนปฏิบัติการ | E8: PI 1.1.1.2 จำนวนหลักสูตร Dual Program/Double Degree | F8: หลักสูตร | G8: 1. หลักสูตร Dual Program/Double Degree - เป็นการเรียนควบ 2 สาขาซึ่งปริญญาได้รับการรับรองร่วมกันจากสองสถาบันร่วมกัน อาจได้รับปริญญาจากสถาบันเดียวกันหรือต่างสถาบัน หรือ 2 ประเทศ นอกจากนั้นนักศึกษายังได้วุฒิปริญญาบัตร 2 ใบจากแต่ละสาขาที่เรียนจากแต่ละสถาบันอีกด้วย ตัวอย่าง เช่น หลักสูตรสหวิชาปริญญาควบระหว่างคณะรัฐศาสตร์ หลักสูตรนานาชาติ จุฬาลงกรณ์มหาวิทยาลัย กับมหาวิทยาลัย University of Essex ประเทศอังกฤษ โดยเรียนปี 1-2 ที่ University of Essex และปี 3-4 เรียนที่จุฬาฯ เป็นต้น | H8: 1. ข้อมูลจำนวนหลักสูตร Dual Program/Double Degree แยกระดับการศึกษา (ตรี โท เอก) ปีการศึกษา (1 มิ.ย.ปีปัจจุบัน ถึง 31 พ.ค.ปีถัดไป) | I8: จำนวนหลักสูตร Dual Program/Double Degree แยกระดับการศึกษา (ตรี โท เอก) ในรอบปีการศึกษา | J8: - ไม่มี - | K8: ปลายปีการศึกษาเทอมต้น (ก.ย.) และเทอมปลาย (มี.ค.) | L8: กองบริการการศึกษา | M8: คณะ/วิทยาลัย | O8: จำนวนหลักสูตร Dual Program/Double Degree ทุกระดับ | P8: กลยุทธ์ที่ 1 | Q8: =Table3[[#This Row],[KPIsID]] -> S1C16
A9: กลยุทธ์ที่ 1: บัณฑิตมีคุณภาพอย่างโดดเด่น และพัฒนาการเรียนรู้สำหรับคนทุกช่วงวัย | B9: 1.1) บัณฑิตมีความโดดเด่น ตรงความต้องการของตลาดแรงงานและการพัฒนาประเทศ/เป็นผู้ประกอบการ | C9: S1C17 | D9: ตัวชี้วัดแผนปฏิบัติการ | E9: PI 1.1.1.3 จำนวนหลักสูตร sandbox (นับสะสม) | F9: หลักสูตร | G9: 1. หลักสูตร Sandbox คือ หลักสูตรนวัตกรรมการจัดการศึกษารูปแบบใหม่ ออกแบบหลักสูตรได้โดยไม่มีข้อจำกัด ก้าวข้ามข้อจำกัดของมาตรฐานการอุดมศึกษาแบบเดิม ส่งเสริมการสร้างนวัตกรรมการอุดมศึกษาและการผลิตกำลังคนให้ “ตอบโจทย์” ความต้องการของภาคอุตสาหกรรมมากยิ่งขึ้น ตัวอย่าง เช่น สอวช. มีตัวอย่างแนวทางการจัดทำหลักสูตรที่ขับเคลื่อนโดยกระทรวงการอุดมศึกษา วิทยาศาสตร์ วิจัยและนวัตกรรม เช่น หลักสูตรผลิตกำลังคนรองรับการลงทุน : สายงานวิศวกร และนักวิทยาศาสตร์ / หลักสูตรผลิตกำลังคนด้าน Cybersecurity : สายงานด้านความปลอดภัยไซเบอร์ / หลักสูตรผลิตกำลังคนกลุ่มอุตสาหกรรมไฟฟ้า อิเล็กทรอนิกส์ และโทรคมนาคม - และแนวทางการจัดทำหลักสูตรที่เสนอโดยสถาบันอุดมศึกษา เช่น หลักสูตรผลิตกำลังคนสาขาดิจิทัล : สายงานเทคโนโลยี และโซเชียลมีเดีย / หลักสูตรผลิตกำลังคน Tech Startup : สายงานธุรกิจสตาร์ทอัพใหม่ๆ เป็นต้น | H9: 1. ข้อมูลจำนวนหลักสูตร sandbox ของมหาวิทยาลัย โดยนับรวมหลักสูตรทั้งหมดที่มีการเปิดหลักสูตรตามที่สภามหาวิทยาลัยอนุมัติปีการศึกษา (1 มิ.ย.ปีปัจจุบัน ถึง 31 พ.ค.ปีถัดไป) | I9: จำนวนหลักสูตร sandbox ของมหาวิทยาลัย ในรอบปีการศึกษา | J9: - ไม่มี - | K9: ปลายปีการศึกษาเทอมต้น (ก.ย.) และเทอมปลาย (มี.ค.) | L9: กองบริการการศึกษา | M9: คณะ/วิทยาลัย | O9: จำนวนหลักสูตร sandbox ของมหาวิทยาลัย ทุกระดับ | P9: กลยุทธ์ที่ 1 | Q9: =Table3[[#This Row],[KPIsID]] -> S1C17
A10: กลยุทธ์ที่ 1: บัณฑิตมีคุณภาพอย่างโดดเด่น และพัฒนาการเรียนรู้สำหรับคนทุกช่วงวัย | B10: 1.1) บัณฑิตมีความโดดเด่น ตรงความต้องการของตลาดแรงงานและการพัฒนาประเทศ/เป็นผู้ประกอบการ | C10: S1C41 | D10: ตัวชี้วัดแผนปฏิบัติการ | E10: PI 1.1.2.1 จำนวนหลักสูตรประกาศนียบัตรสำหรับนักศึกษาปริญญาตรี (นับสะสม) | F10: จำนวน | G10: หลักสูตรประกาศนียบัตร (Certificate) คือ หลักสูตรที่มอบใบประกาศนียบัตรให้แก่นักศึกษาระดับปริญญาตรี หลังจากที่เรียนจบคอร์สเกี่ยวกับเรื่องใดเรื่องหนึ่ง เช่น คอร์สภาษาอังกฤษ คอร์สภาษาญี่ปุ่น คอร์สการสร้างเกมส์คอมพิวเตอร์ เป็นต้น | H10: 1. ข้อมูลหลักสูตรประกาศนียบัตร (Certificate) สำหรับนักศึกษาปริญญาตรี ทั้งหมด | I10: จำนวนหลักสูตรประกาศนียบัตรสำหรับนักศึกษาปริญญาตรี ทั้งหมด (นับสะสม) | J10: - ไม่มี - | K10: ทุกไตรมาส | L10: กองบริการการศึกษา | M10: คณะ/วิทยาลัย | O10: จำนวนหลักสูตรประกาศนียบัตรสำหรับนักศึกษาปริญญาตรี ทั้งหมด | P10: กลยุทธ์ที่ 1 | Q10: =Table3[[#This Row],[KPIsID]] -> S1C41
A11: กลยุทธ์ที่ 1: บัณฑิตมีคุณภาพอย่างโดดเด่น และพัฒนาการเรียนรู้สำหรับคนทุกช่วงวัย | B11: 1.1) บัณฑิตมีความโดดเด่น ตรงความต้องการของตลาดแรงงานและการพัฒนาประเทศ/เป็นผู้ประกอบการ | C11: S1C47 | D11: ตัวชี้วัดแผนปฏิบัติการ | E11: PI 1.1.3.1 ร้อยละของหลักสูตรที่มีการจัดการเรียนการสอนโดยใช้ Technology-enhanced Learning หรือการใช้เทคโนโลยีในอนาคต (ปริญญาตรี) | F11: ร้อยละ | G11: Technology Enhanced Learning หมายถึง การนำเทคโนโลยีมาใช้ในการเรียนการสอน โดยให้อาจารย์นำความรู้และประสบการณ์เกี่ยวกับเทคโนโลยีไปประยุกต์ใช้ในการพัฒนาการจัดการเรียนการสอนให้มีประสิทธิภาพ ตัวอย่าง: เทคโนโลยีที่ใช้ในการเรียนการสอน เช่น Virtual Reality (VR), Augmented Reality (AR), Artificial Intelligence (AI), Robot, Virtual laboratory, Metaverse เทคโนโลยีขั้นสูง หรือเทคโนโลยีใหม่ๆ ที่เกี่ยวข้องกับวิชาชีพ | H11: 1. ข้อมูลจำนวนหลักสูตรระดับปริญญาตรี ที่เปิดรับนักศึกษาทั้งหมด ในรอบปีงบประมาณ (1 มิ.ย.ปีปัจจุบัน ถึง 31 พ.ค.ปีถัดไป) 2. ข้อมูลหลักสูตรที่จัดการศึกษาแบบ Technology- enhanced Learning (แยกระดับการศึกษา) ในรอบปีงบประมาณ (1 มิ.ย.ปีปัจจุบัน ถึง 31 พ.ค.ปีถัดไป) | I11: จำนวนหลักสูตรที่จัดการศึกษาแบบ Technology-enhanced Learning (แยกระดับการศึกษา) ในรอบปีการศึกษา X 100 | J11: จำนวนหลักสูตรระดับปริญญาตรีที่เปิดรับ นักศึกษาทั้งหมด ในรอบปีการศึกษา | K11: ปลายปีการศึกษาเทอมต้น (ก.ย.) และเทอมปลาย (มี.ค.) | L11: กองบริการการศึกษา | M11: คณะ/วิทยาลัย | O11: จำนวนหลักสูตรที่จัดการศึกษาแบบ Technology-enhanced Learning ทุกระดับ; จำนวนหลักสูตรทั้งหมดทุกระดับในรอบปีงบประมาณ | P11: กลยุทธ์ที่ 1 | Q11: =Table3[[#This Row],[KPIsID]] -> S1C47
A12: กลยุทธ์ที่ 1: บัณฑิตมีคุณภาพอย่างโดดเด่น และพัฒนาการเรียนรู้สำหรับคนทุกช่วงวัย | B12: 1.1) บัณฑิตมีความโดดเด่น ตรงความต้องการของตลาดแรงงานและการพัฒนาประเทศ/เป็นผู้ประกอบการ | C12: S1C48 | D12: ตัวชี้วัดแผนปฏิบัติการ | E12: PI 1.1.4.1 ร้อยละของหลักสูตรระดับปริญญาตรีที่มีรายวิชาที่ส่งเสริมการเป็นผู้ประกอบการ | F12: ร้อยละ | G12: การจัดการเรียนการสอนเพื่อส่งเสริมความเป็นผู้ประกอบการ มีดังนี้ 1. การจัดเนื้อหาในรายวิชาให้มีการสอนพื้นฐานความรู้เกี่ยวกับการทำธุรกิจ ควรเตรียมเนื้อหาพื้นฐานเกี่ยวกับการจัดตั้งและดำเนินกิจการให้ผู้เรียนได้เรียนรู้ 2. การจัดประสบการณ์การทำธุรกิจจริงให้ผู้เรียน ควรให้ผู้เรียนได้ลงมือปฏิบัติเขียนแผนธุรกิจ ทำโครงการ หรือธุรกิจขนาดเล็กด้วยตนเอง 3. การจัดกิจกรรมให้ผู้เรียนได้แสดงออกถึงความสนใจของตนเอง ร่วมกับการให้ผู้เรียนวิเคราะห์และวางแผนในการพัฒนาตนเองและการทำงาน 4. การสร้างทัศนคติที่ดีต่อการเป็นผู้ประกอบการ และ 5. การใช้กรณีศึกษา/สถานการณ์จำลองประกอบการจัดการเรียนการสอน | H12: 1. ข้อมูลจำนวนหลักสูตรระดับปริญญาตรี ที่เปิดรับนักศึกษาทั้งหมด ในรอบปีงบประมาณ (1 มิ.ย.ปีปัจจุบัน ถึง 31 พ.ค.ปีถัดไป) 2. ข้อมูลรายวิชาที่ส่งเสริมการเป็นผู้ประกอบการ ในแต่ละหลักสูตรระดับปริญญาตรี (1 มิ.ย.ปีปัจจุบัน ถึง 31 พ.ค.ปีถัดไป) | I12: จำนวนหลักสูตรระดับปริญญาตรี ที่มีรายวิชาที่ส่งเสริมการเป็นผู้ประกอบการ ในรอบปีการศึกษา X 100 | J12: จำนวนหลักสูตรระดับปริญญาตรีที่เปิดรับ นักศึกษาทั้งหมด ในรอบปีการศึกษา | K12: ปลายปีการศึกษาเทอมต้น (ก.ย.) และเทอมปลาย (มี.ค.) | L12: กองบริการการศึกษา | M12: คณะ/วิทยาลัย | O12: จำนวนหลักสูตรระดับปริญญาตรี ที่มีรายวิชาที่ส่งเสริมการเป็นผู้ประกอบการ; จำนวนหลักสูตรทั้งหมดทุกระดับในรอบปีงบประมาณ | P12: กลยุทธ์ที่ 1 | Q12: =Table3[[#This Row],[KPIsID]] -> S1C48
A13: กลยุทธ์ที่ 1: บัณฑิตมีคุณภาพอย่างโดดเด่น และพัฒนาการเรียนรู้สำหรับคนทุกช่วงวัย | B13: 1.1) บัณฑิตมีความโดดเด่น ตรงความต้องการของตลาดแรงงานและการพัฒนาประเทศ/เป็นผู้ประกอบการ | C13: S1C51 | D13: ตัวชี้วัดแผนปฏิบัติการ | E13: PI 1.1.5.1 ร้อยละของนักศึกษาระดับปริญญาตรีที่เข้าร่วมกิจกรรมเสริมหลักสูตรเพื่อการเป็นผู้ประกอบการ | F13: ร้อยละ | G13: กิจกรรมเสริมหลักสูตรเพื่อการเป็นผู้ประกอบการ หมายถึง กิจกรรม/โครงการอบรมที่จัดขึ้นเพื่อส่งเสริมการเป็นผู้ประกอบการ โดยมีวัตถุประสงค์ดังนี้ 1. เพื่อเสริมสร้างสมรรถนะที่สำคัญของการเป็นผู้ประกอบการด้วยแนวคิดนวัตกรรมให้ประสบความสำเร็จ 2. เพื่อเสริมสร้างทักษะที่สำคัญในการสร้างนวตกรรมในธุรกิจและผลิตภัณฑ์ 3. เพื่อให้สามารถวิเคราะห์ความเป็นไปได้ของธุรกิจทั้งด้านการตลาด การปฏิบัติการ การเงิน และวางแผนธุรกิจ 4. เพื่อให้เข้าใจในลักษณะที่สำคัญของธุรกิจขนาดกลางและขนาดย่อม เพื่อจะได้บริหารธุรกิจขนาดกลางและขนาดย่อมได้ดียิ่งขี้น ตัวอย่าง เช่น แนวคิดในการพัฒนาผลิตภัณฑ์ใหม่, การวิเคราะห์ความเป็นไปได้และการวางแผนธุรกิจ, การทำ Digital Marketing สำหรับผู้ประกอบการ, การบัญชีที่ควรรู้สำหรับผู้ประกอบการ เป็นต้น | H13: 1. ข้อมูลกิจกรรมเสริมหลักสูตรเพื่อการเป็นผู้ประกอบการ หรือกิจกรรม/โครงการอบรมที่จัดขึ้นเพื่อส่งเสริมการเป็นผู้ประกอบการ 2. ข้อมูลนักศึกษาระดับปริญญาตรี ที่เข้าร่วมการอบรมที่เข้าร่วมโครงการอบรมการส่งเสริมการเป็นผู้ประกอบการ (นับกิจกรรม/โครงการ ที่เสียค่าลงทะเบียนและไม่เสียค่าลงทะเบียน) | I13: จำนวนนักศึกษาระดับปริญญาตรี ที่เข้าร่วมการอบรมที่เข้าร่วมโครงการอบรมการส่งเสริมการเป็นผู้ประกอบการ (ไม่นับซ้ำคน) ในรอบปีการศึกษา X 100 | J13: จำนวนนักศึกษาระดับปริญญาตรี ทั้งหมดในรอบปีการศึกษา | K13: ทุกไตรมาส | L13: สำนักงานส่งเสริมและบริหารงานวิจัยฯ | M13: คณะ/วิทยาลัย | O13: จำนวนนักศึกษาระดับปริญญาตรี ที่เข้าร่วมการอบรมการส่งเสริมการเป็นผู้ประกอบการ; จำนวนนักศึกษาทั้งหมด ทุกระดับ | P13: กลยุทธ์ที่ 1 | Q13: =Table3[[#This Row],[KPIsID]] -> S1C51
A14: กลยุทธ์ที่ 1: บัณฑิตมีคุณภาพอย่างโดดเด่น และพัฒนาการเรียนรู้สำหรับคนทุกช่วงวัย | B14: 1.1) บัณฑิตมีความโดดเด่น ตรงความต้องการของตลาดแรงงานและการพัฒนาประเทศ/เป็นผู้ประกอบการ | C14: S1C66 | D14: ตัวชี้วัดแผนปฏิบัติการ | E14: PI 1.1.6.1 ร้อยละของนักศึกษาบัณฑิตศึกษาที่มีผลงานวิทยานิพนธ์ที่ตีพิมพ์ในฐานข้อมูลนานาชาติต่อนักศึกษาระดับบัณฑิตศึกษาที่สำเร็จการศึกษาในปีนั้น | F14: ร้อยละ | G14: 1. นักศึกษาระดับบัณฑิตศึกษา คือ ผู้ที่ลงทะเบียนเรียนหรือมีสถานภาพการเป็นนักศึกษาในหลักสูตร ในระดับปริญญาโท และปริญญาเอก ที่มหาวิทยาลัยเปิดการเรียนการสอน ที่สำเร็จการศึกษา 2. ผลงานวิทยานิพน์ที่ได้รับการตีพิมพ์ในระดับนานาชาติ ในปีการศึกษานั้น การตีพิมพ์ระดับนานาชาติ โดยที่ งานวิจัยที่ได้รับการตีพิมพ์ในวารสารระดับนานาชาติ หมายถึง บทความจากผลงานวิจัยที่ได้รับการตีพิมพ์ในวารสวารวิชาการ (Journal) ที่ปรากฏในฐานข้อมูลสากลได้แก่ ฐานข้อมูล Scopus ฐานข้อมูลการจัดอันดับวารสาร SJR (SCImago Journal Rank: www.scimagojr.com) หรือฐานข้อมูล ISI Web of science(Science Citation Index Expand,Social Sciences Citation Index,Art and Humanities Citation Index) ** หมายเหตุ ควรส่งเสริมให้นักศึกษาตีพิมพ์ในฐานข้อมูล Scopus | H14: 1. ข้อมูลนักศึกษาระดับปริญญาโท ที่มีผลงานวิทยานิพนธ์ที่ตีพิมพ์ในระดับนานาชาติในปีการศึกษา (1 มิ.ย.ปีปัจจุบัน ถึง 31 พ.ค.ปีถัดไป) 2. ข้อมูลนักศึกษาระดับปริญญาเอก ที่มีผลงานวิทยานิพนธ์ที่ตีพิมพ์ในระดับนานาชาติในปีการศึกษา (1 มิ.ย.ปีปัจจุบัน ถึง 31 พ.ค.ปีถัดไป) 3.ข้อมูลนักศึกษาระดับบัณฑิตศึกษาที่สำเร็จการศึกษา (แยกระดับ) ในปีการศึกษา (1 มิ.ย.ปีนี้ ถึง 31 พ.ค.ปีถัดไป) | I14: จำนวนนักศึกษาระดับบัณฑิตศึกษา (แยกระดับ) ที่มีผลงานวิทยานิพนธ์ที่ตีพิมพ์ในระดับนานาชาติ ในรอบปีการศึกษา X 100 | J14: จำนวนนักศึกษาระดับบัณฑิตศึกษาที่สำเร็จการศึกษา (แยกระดับ) ในรอบปีการศึกษา | K14: ปลายปีการศึกษาเทอมต้น (ก.ย.) และเทอมปลาย (มี.ค.) | L14: กองบริการการศึกษา | M14: คณะ/วิทยาลัย | O14: จำนวนนักศึกษาระดับบัณฑิตศึกษาที่มีบทความระดับบัณฑิตศึกษาระดับ Q1-Q2; จำนวนผู้สำเร็จการศึกษา ระดับบัณฑิตศึกษา | P14: กลยุทธ์ที่ 1 | Q14: =Table3[[#This Row],[KPIsID]] -> S1C66
A15: กลยุทธ์ที่ 1: บัณฑิตมีคุณภาพอย่างโดดเด่น และพัฒนาการเรียนรู้สำหรับคนทุกช่วงวัย | B15: 1.1) บัณฑิตมีความโดดเด่น ตรงความต้องการของตลาดแรงงานและการพัฒนาประเทศ/เป็นผู้ประกอบการ | C15: S1C67 | D15: ตัวชี้วัดแผนปฏิบัติการ | E15: PI 1.1.6.2 ร้อยละของนักศึกษาระดับบัณฑิตศึกษาที่เพิ่มขึ้นเมื่อเทียบกับปีที่ผ่านมา | F15: ร้อยละ | G15: นักศึกษาระดับบัณฑิตศึกษา คือ ผู้ที่ลงทะเบียนเรียนหรือมีสถานภาพการเป็นนักศึกษาในหลักสูตร สาขาในระดับปริญญาโท และปริญญาเอก ที่มหาวิทยาลัยเปิดการเรียนการสอน ในปีการศึกษา | H15: 1. ข้อมูลนักศึกษาระดับบัณฑิตศึกษา (แยกระดับ) ในปีการศึกษาปัจจุบัน 2. ข้อมูลนักศึกษาระดับบัณฑิตศึกษา (แยกระดับ) ในปีการศึกษาที่ผ่านมา | I15: (จำนวนนักศึกษาระดับบัณฑิตศึกษา (แยกระดับ) ในปีการศึกษาปัจจุบัน - จำนวนนักศึกษาระดับบัณฑิตศึกษา (แยกระดับ) ในปีการศึกษาที่ผ่านมา) X 100 | J15: จำนวนนักศึกษาระดับบัณฑิตศึกษา (แยกระดับ) ในปีการศึกษาที่ผ่านมา | K15: ปลายปีการศึกษาเทอมต้น (ก.ย.) และเทอมปลาย (มี.ค.) | L15: กองบริการการศึกษา | M15: คณะ/วิทยาลัย | O15: จำนวนนักศึกษาใหม่ระดับบัณฑิตศึกษา; จำนวนนักศึกษาทั้งหมดระดับบัณฑิตศึกษา ในปีที่ผ่านมา | P15: กลยุทธ์ที่ 1 | Q15: =Table3[[#This Row],[KPIsID]] -> S1C67
A16: กลยุทธ์ที่ 1: บัณฑิตมีคุณภาพอย่างโดดเด่น และพัฒนาการเรียนรู้สำหรับคนทุกช่วงวัย | B16: 1.1) บัณฑิตมีความโดดเด่น ตรงความต้องการของตลาดแรงงานและการพัฒนาประเทศ/เป็นผู้ประกอบการ | C16: S1C72 | D16: ตัวชี้วัดแผนปฏิบัติการ | E16: PI 1.1.7.1 ร้อยละของนักศึกษาระดับ ป.ตรีที่มีทักษะทางภาษาอังกฤษระดับ B1 ขึ้นไป | F16: ร้อยละ | G16: ภาษาอังกฤษระดับ B1 คือภาษาอังกฤษระดับที่ 3 ตาม กรอบมาตรฐานการประเมินความสามารถทางภาษาจากประเทศในกลุ่มสหภาพยุโรป หรือ CEFR (Common European Framework of Reference) โดยทั่วไปเรียกระดับนี้ว่า “ระดับกลาง” | H16: 1. ข้อมูลนักศึกษาระดับปริญญาตรี ที่สอบผ่านการทดสอบทักษะทางด้านภาษาต่างประเทศ ในระดับ B1 ขึ้นไปในปีการปัจจุบัน 2. ข้อมูลนักศึกษาระดับปริญญาตรี ที่เข้าทำการทดสอบทักษะทางด้านภาษาต่างประเทศ (CEFR) ทั้งหมดในปีการปัจจุบัน | I16: จำนวนนักศึกษาปริญญาตรี ที่สอบผ่านการทดสอบทักษะทภาษาต่างประเทศ ในระดับ B1 ขึ้นไป ในปีการศึกษา X 100 | J16: จำนวนนักศึกษาปริญญาตรี ที่เข้าทำการทดสอบทักษะภาษาต่างประเทศ (CEFR) ทั้งหมด ในปีการศึกษา | K16: ปลายปีการศึกษาเทอมต้น (ก.ย.) และเทอมปลาย (มี.ค.) | L16: กองบริการการศึกษา | M16: สำนักงานวิเทศสัมพันธ์/คณะ/วิทยาลัย | O16: จำนวนนักศึกษาปริญญาตรี ที่สอบผ่านการทดสอบทักษะทภาษาต่างประเทศ ในระดับ B1 ขึ้นไป ในปีการศึกษา; จำนวนนักศึกษาปริญญาตรี ที่เข้าทดสอบทักษะทภาษาต่างประเทศทั้งหมดในปีการศึกษา | P16: กลยุทธ์ที่ 1 | Q16: =Table3[[#This Row],[KPIsID]] -> S1C72
A17: กลยุทธ์ที่ 1: บัณฑิตมีคุณภาพอย่างโดดเด่น และพัฒนาการเรียนรู้สำหรับคนทุกช่วงวัย | B17: 1.1) บัณฑิตมีความโดดเด่น ตรงความต้องการของตลาดแรงงานและการพัฒนาประเทศ/เป็นผู้ประกอบการ | C17: S1C81 | D17: ตัวชี้วัดแผนปฏิบัติการ | E17: PI 1.1.8.1 ร้อยละของนักศึกษาที่สอบผ่านทักษะ Future skills ที่มหาวิทยาลัยกำหนดเทียบกับนักศึกษาที่เข้ารับการทดสอบทั้งหมด | F17: ร้อยละ | G17: นักศึกษาที่สอบผ่านทักษะ Future skills หมายถึง นักศึกษาที่สอบผ่านหลักสูตรที่มหาวิทยาลัยได้กำหนดความคาดหวังให้นักศึกษาได้มีทักษะที่โดดเด่นก่อนสำเร็จการศึกษา และตรงตามต้องการของตลาดแรงงานและการพัฒนาประเทศ ตามสถานการณ์ในปัจจุบัน ทั้งนี้ให้เป็นไปตามประกาศของมหาวิทยาลัย เรื่องการกำหนดทักษะ Future Skill (ทักษะแห่งอนาคต) ของนักศึกษา | H17: 1. ข้อมูลรายละเอียดนักศึกษาที่เข้าร่วมรับการอบรมในหลักสูตรทักษะ Future skills ที่มหาวิทยาลัยกำหนด 2. ข้อมูลรายละเอียดของนักศึกษาที่เข้าเรียนและสอบผ่านได้คะแนนไม่ต่ำกว่า 60% ในแต่ละคอร์สที่เรียน | I17: จำนวนนักศึกษาที่เข้าร่วมรับการอบรมและสอบผ่านได้คะแนนไม่ต่ำกว่า 60% ในแต่ละคอร์สที่เรียน X 100 | J17: จำนวนนักศึกษาที่เข้าร่วมรับการอบรมในหลักสูตรทักษะทักษะ Future skills ที่มหาวิทยาลัยกำหนด ทั้งหมด | K17: ทุกไตรมาส | L17: กองบริการการศึกษา | M17: สำนักงานพัฒนานักศึกษา/สำนักคอมพิวเตอร์และเครือข่าย | O17: จำนวนนักศึกษาปริญญาตรี ที่ผ่านการอบรมพัฒนาทักษะ Future Skills ในปีการศึกษานั้น; จำนวนนักศึกษาปริญญาตรี ที่เข้าอบรมพัฒนาทักษะ Future Skills ในปีการศึกษานั้น | P17: กลยุทธ์ที่ 1 | Q17: =Table3[[#This Row],[KPIsID]] -> S1C81
A18: กลยุทธ์ที่ 1: บัณฑิตมีคุณภาพอย่างโดดเด่น และพัฒนาการเรียนรู้สำหรับคนทุกช่วงวัย | B18: 1.1) บัณฑิตมีความโดดเด่น ตรงความต้องการของตลาดแรงงานและการพัฒนาประเทศ/เป็นผู้ประกอบการ | C18: S1C84 | D18: ตัวชี้วัดแผนปฏิบัติการ | E18: PI 1.1.9.1 จำนวนนักศึกษาที่ได้รับการสนับสนุนการเข้าร่วมแข่งขันระดับชาติหรือนานาชาติ | F18: คน | G18: 1. นักศึกษา คือ นักศึกษาทุกระดับที่ลงทะเบียนเรียนในหลักสูตร/สาขาที่มหาวิทยาลัยเปิดการเรียนการสอน 2. ระดับชาติ หมายถึง การแข่งขัน การประกวด การยกย่องเชิดชูเกียรติจาก หน่วยงานภาครัฐในระดับกระทรวง ทบวง กรม หรือจังหวัด หน่วยงานของรัฐและเอกชนที่เป็นองค์กรทางวิชาการหรือวิชาชีพ ที่ได้รับการยอมรับในระดับชาติ 3. ระดับนานาชาติ หมายถึง การแข่งขัน การประกวด การยกย่องเชิดชูเกียรติจาก หน่วยงานภาครัฐในระดับกระทรวง ทบวง กรม หรือหน่วยงานของรัฐและเอกชนที่เป็นองค์กรทางวิชาการหรือองค์กรทางวิชาชีพ ที่ดำเนินการเอง หรือดำเนินการร่วมกับสถาบันหรือองค์กรต่างประเทศ ที่ได้รับการยอมรับในระดับนานาชาติ หรือจัดโดยสถาบันหรือองค์กรในระดับนานาชาติ | H18: 1. ข้อมูลรายละเอียดกิจกรรม/โครงการที่มีการสนับสนุนการเข้าร่วมแข่งขันระดับชาติหรือนานาชาติ ในปีการศึกษา (1 มิ.ย.ปีปัจจุบัน ถึง 31 พ.ค.ปีถัดไป) 2. ข้อมูลนักศึกษาทุกระดับที่ได้รับการสนับสนุนการเข้าร่วมแข่งขันระดับชาติหรือนานาชาติ ในปีการศึกษา (1 มิ.ย.ปีปัจจุบัน ถึง 31 พ.ค.ปีถัดไป) | I18: จำนวนนักศึกษา (ทุกระดับ) ที่ได้รับการสนับสนุนการเข้าร่วมแข่งขันระดับชาติหรือนานาชาติ ในปีการศึกษา (1 มิ.ย.ปีปัจจุบัน ถึง 31 พ.ค.ปีถัดไป) | J18: - ไม่มี - | K18: ทุกไตรมาส | L18: สำนักงานพัฒนานักศึกษา | M18: คณะ/วิทยาลัย | O18: จำนวนนักศึกษา (ทุกระดับ) ที่ได้รับการสนับสนุนการเข้าร่วมแข่งขันระดับชาติหรือนานาชาติ | P18: กลยุทธ์ที่ 1 | Q18: =Table3[[#This Row],[KPIsID]] -> S1C84
A19: กลยุทธ์ที่ 1: บัณฑิตมีคุณภาพอย่างโดดเด่น และพัฒนาการเรียนรู้สำหรับคนทุกช่วงวัย | B19: 1.1) บัณฑิตมีความโดดเด่น ตรงความต้องการของตลาดแรงงานและการพัฒนาประเทศ/เป็นผู้ประกอบการ | C19: S1C85 | D19: ตัวชี้วัดแผนปฏิบัติการ | E19: PI 1.1.9.2 จำนวนศิษย์เก่าที่เข้าร่วมแข่งขันระดับชาติหรือนานาชาติ | F19: คน | G19: 1. ศิษย์เก่า คือ ผู้ที่เคยศึกษา/ผู้สำเร็จการศึกษาในหลักสูตร/สาขาที่มหาวิทยาลัยเปิด/เคยเปิดการเรียนการสอน 2. ระดับชาติ หมายถึง การแข่งขัน การประกวด การยกย่องเชิดชูเกียรติจาก หน่วยงานภาครัฐในระดับกระทรวง ทบวง กรม หรือจังหวัด หน่วยงานของรัฐและเอกชนที่เป็นองค์กรทางวิชาการหรือวิชาชีพ ที่ได้รับการยอมรับในระดับชาติ 3. ระดับนานาชาติ หมายถึง การแข่งขัน การประกวด การยกย่องเชิดชูเกียรติจาก หน่วยงานภาครัฐในระดับกระทรวง ทบวง กรม หรือหน่วยงานของรัฐและเอกชนที่เป็นองค์กรทางวิชาการหรือองค์กรทางวิชาชีพ ที่ดำเนินการเอง หรือดำเนินการร่วมกับสถาบันหรือองค์กรต่างประเทศ ที่ได้รับการยอมรับในระดับนานาชาติ หรือจัดโดยสถาบันหรือองค์กรในระดับนานาชาติ | H19: 1. ข้อมูลรายละเอียดกิจกรรม/โครงการที่มีการสนับสนุนการเข้าร่วมแข่งขันระดับชาติหรือนานาชาติ ในปีการศึกษา (1 มิ.ย.ปีปัจจุบัน ถึง 31 พ.ค.ปีถัดไป) 2. ข้อมูลศิษย์เก่าที่ได้รับการสนับสนุนการเข้าร่วมแข่งขันระดับชาติหรือนานาชาติ ในปีการศึกษา (1 มิ.ย.ปีปัจจุบัน ถึง 31 พ.ค.ปีถัดไป) | I19: จำนวนศิษย์เก่า (ทุกระดับ) ที่ได้เข้าร่วมแข่งขันระดับชาติหรือนานาชาติ ในปีการศึกษา (1 มิ.ย.ปีปัจจุบัน ถึง 31 พ.ค.ปีถัดไป) | J19: - ไม่มี - | K19: ทุกไตรมาส | L19: สำนักงานพัฒนานักศึกษา | M19: คณะ/วิทยาลัย | O19: จำนวนศิษย์เก่า (ทุกระดับ) ที่ได้เข้าร่วมแข่งขันระดับชาติหรือนานาชาติ | P19: กลยุทธ์ที่ 1 | Q19: =Table3[[#This Row],[KPIsID]] -> S1C85
A20: กลยุทธ์ที่ 1: บัณฑิตมีคุณภาพอย่างโดดเด่น และพัฒนาการเรียนรู้สำหรับคนทุกช่วงวัย | B20: 1.2) การพัฒนาการจัดการศึกษาเข้าสู่ระดับสากลหรือระดับนานาชาติ | C20: S1B87 | D20: ตัวชี้วัดเชิงกลยุทธ์ | E20: SI 1.2.1 Academic Reputation ของ QS Ranking | F20: คะแนน | G20: Academic reputation: ความมีชื่อเสียงทางวิชาการของมหาวิทยาลัย โดยพิจารณาจากทัศนคติของนักวิชาการ/stakeholder ของมหาวิทยาลัย สำรวจออนไลน์โดย QS Ranking | H20: 1. ข้อมูลจากผลการจัดอันดับ Academic Reputation ของ QS Ranking (1 มิ.ย.ปีปัจจุบัน ถึง 31 พ.ค.ปีถัดไป) | I20: ข้อมูลจากผลการจัดอันดับ Academic Reputation ของ QS Ranking (1 มิ.ย.ปีปัจจุบัน ถึง 31 พ.ค.ปีถัดไป) | J20: - ไม่มี - | K20: ทุกไตรมาส | L20: กองแผนงาน | M20: - | O20: ข้อมูลจากผลการจัดอันดับ Academic Reputation ของ QS Ranking | P20: กลยุทธ์ที่ 1 | Q20: =Table3[[#This Row],[KPIsID]] -> S1B87
A21: กลยุทธ์ที่ 1: บัณฑิตมีคุณภาพอย่างโดดเด่น และพัฒนาการเรียนรู้สำหรับคนทุกช่วงวัย | B21: 1.2) การพัฒนาการจัดการศึกษาเข้าสู่ระดับสากลหรือระดับนานาชาติ | C21: S1C88 | D21: ตัวชี้วัดแผนปฏิบัติการ | E21: PI 1.2.1.1 จำนวนหลักสูตรที่ได้รับการรับรองตามมาตรฐานสากล (นับสะสม) | F21: ร้อยละ | G21: การรับรองมาตรฐานสากล ที่เป็นที่ยอมรับระดับชาติหรือนานาชาติ เช่นเกณฑ์ WFME, ABET, AACSB , AUN-QA (inter) ** หมายเหตุ ไม่นับ TABEE | H21: 1. ข้อมูลหลักสูตรที่ได้รับการรับรองตามมาตรฐานสากล นับรวมการรับรองต่อเนื่องจากที่มีการรับรองมาตรฐาน (1 มิ.ย.ปีปัจจุบัน ถึง 31 พ.ค.ปีถัดไป) | I21: จำนวนหลักสูตรที่ได้รับการรับรองตามมาตรฐานสากล (นับสะสม) | J21: - ไม่มี - | K21: ทุกไตรมาส | L21: กองแผนงาน | M21: - | O21: จำนวนหลักสูตรทุกระดับที่ได้รับการรับรองตามมาตรฐานสากล | P21: กลยุทธ์ที่ 1 | Q21: =Table3[[#This Row],[KPIsID]] -> S1C88
A22: กลยุทธ์ที่ 1: บัณฑิตมีคุณภาพอย่างโดดเด่น และพัฒนาการเรียนรู้สำหรับคนทุกช่วงวัย | B22: 1.2) การพัฒนาการจัดการศึกษาเข้าสู่ระดับสากลหรือระดับนานาชาติ | C22: S1C91 | D22: ตัวชี้วัดแผนปฏิบัติการ | E22: PI 1.2.2.1 จำนวนหลักสูตรที่พัฒนาร่วมกันกับต่างประเทศ | F22: หลักสูตร | G22: จำนวนหลักสูตรที่พัฒนาร่วมกันต่างประเทศ หรือหลักสูตร Dual Program/ Double Degree (ตรี โท เอก) เป็นการเรียนควบ 2 สาขาซึ่งปริญญาได้รับการรับรองร่วมกันจากสองสถาบันร่วมกัน อาจได้รับปริญญาจากสถาบันเดียวกันหรือต่างสถาบัน หรือ 2 ประเทศ นอกจากนั้นนักศึกษายังได้วุฒิปริญญาบัตร 2 ใบจากแต่ละสาขาที่เรียนจากแต่ละสถาบันอีกด้วย ตัวอย่าง เช่น หลักสูตรสหวิชาปริญญาควบระหว่างคณะรัฐศาสตร์ หลักสูตรนานาชาติ จุฬาลงกรณ์มหาวิทยาลัย กับมหาวิทยาลัย University of Essex ประเทศอังกฤษ โดยเรียนปี 1,-2 ที่ University of Essex และปี 3,-4 เรียนที่จุฬาฯ เป็นต้น | H22: 1. ข้อมูลหลักสูตรที่พัฒนาร่วมกันต่างประเทศ ซึ่งนับรวมสะสมหลักสูตรทั้งหมดที่มีความร่วมมือแบบ Dual Program/Double Degree (1 มิ.ย.ปีปัจจุบัน ถึง 31 พ.ค.ปีถัดไป) | I22: จำนวนหลักสูตรที่พัฒนาร่วมกันต่างประเทศ ในรอบปีการศึกษา | J22: - ไม่มี - | K22: ทุกไตรมาส | L22: กองบริการการศึกษา | M22: คณะ/วิทยาลัย | O22: จำนวนหลักสูตรที่พัฒนาร่วมกันต่างประเทศ ในรอบปีการศึกษา | P22: กลยุทธ์ที่ 1 | Q22: =Table3[[#This Row],[KPIsID]] -> S1C91
A23: กลยุทธ์ที่ 1: บัณฑิตมีคุณภาพอย่างโดดเด่น และพัฒนาการเรียนรู้สำหรับคนทุกช่วงวัย | B23: 1.2) การพัฒนาการจัดการศึกษาเข้าสู่ระดับสากลหรือระดับนานาชาติ | C23: S1C92 | D23: ตัวชี้วัดแผนปฏิบัติการ | E23: PI 1.2.2.2 จำนวนนักศึกษาแลกเปลี่ยน (inbound/outbound student) | F23: คน | G23: นักศึกษาแลกเปลี่ยน (inbound /outbound students) หมายถึง นักศึกษาทุกระดับจากสถาบัน/องค์กรในต่างประเทศที่มาแลกเปลี่ยนในมหาวิทยาลัยอุบลราชธานี (inbound) หรือนักศึกษามหาวิทยาลัยอุบลราชธานีที่ไปแลกเปลี่ยนกับสถาบัน/องค์กรในต่างประเทศ (outbound) เพื่อทำวิจัย การเรียนการสอน ฝึกงานหรือกิจกรรมอย่างอื่นใด ที่เป็นข้อตกลงระหว่างสถาบัน ทั้งแบบมีหน่วยกิตและไม่มีหน่วยกิตในทุกระดับ ระยะเวลาตั้งแต่ 3 เดือนขึ้นไป | H23: 1. ข้อมูลนักศึกษาต่างชาติ (แยกระดับ) ที่มีการแลกเปลี่ยนทั้งหมด ในปีการศึกษานั้น (1 มิ.ย.ปีปัจจุบัน ถึง 31 พ.ค.ปีถัดไป) | I23: จำนวนนักศึกษาแลกเปลี่ยนทั้งหมด ในปีการศึกษา (แยกระดับ และประเภท) (1 มิ.ย.ปีปัจจุบัน ถึง 31 พ.ค.ปีถัดไป) | J23: - ไม่มี - | K23: ทุกไตรมาส | L23: สำนักงานวิเทศสัมพันธ์ | M23: คณะ/วิทยาลัย | O23: จำนวนนักศึกษา inbound ทุกระดับ; จำนวนนักศึกษา outbound ทุกระดับ | P23: กลยุทธ์ที่ 1 | Q23: =Table3[[#This Row],[KPIsID]] -> S1C92
A24: กลยุทธ์ที่ 1: บัณฑิตมีคุณภาพอย่างโดดเด่น และพัฒนาการเรียนรู้สำหรับคนทุกช่วงวัย | B24: 1.2) การพัฒนาการจัดการศึกษาเข้าสู่ระดับสากลหรือระดับนานาชาติ | C24: S1C96 | D24: ตัวชี้วัดแผนปฏิบัติการ | E24: PI 1.2.3.1 จำนวนนักศึกษาต่างชาติ (ไม่นับสะสม) | F24: คน | G24: นักศึกษาต่างชาติ หมายถึง บุคคลที่ไม่ได้มีภูมิลำเนาในประเทศไทย ไม่ได้มีสัญชาติไทย ไม่ได้เป็นคนไทยหรือเกิดที่ประเทศไทย แต่มีสัญชาติและเชื้อชาติต่างประเทศและเดินทางมาศึกษาในมหาวิทยาลัยอุบลราชธานีในหลักสูตรระยะยาว 1 ปีขึ้นไป | H24: 1. ข้อมูลนักศึกษาต่างชาติ (แยกระดับ) ทั้งหมดที่ลงทะเบียนเรียนในปีการศึกษานั้น (1 มิ.ย.ปีปัจจุบัน ถึง 31 พ.ค.ปีถัดไป) | I24: จำนวนนักศึกษาต่างชาติ (แยกระดับ) ทั้งหมด ในรอบปีการศึกษา | J24: - ไม่มี - | K24: ทุกไตรมาส | L24: สำนักงานวิเทศสัมพันธ์ | M24: คณะ/วิทยาลัย | O24: จำนวนนักศึกษาต่างชาติทั้งหมด ทุกระดับ | P24: กลยุทธ์ที่ 1 | Q24: =Table3[[#This Row],[KPIsID]] -> S1C96
A25: กลยุทธ์ที่ 1: บัณฑิตมีคุณภาพอย่างโดดเด่น และพัฒนาการเรียนรู้สำหรับคนทุกช่วงวัย | B25: 1.3) จัดการศึกษาสำหรับประชาชนทุกช่วงวัยตามความต้องการ | C25: S1B101 | D25: ตัวชี้วัดเชิงกลยุทธ์ | E25: SI 1.3.1 ร้อยละรายได้ที่เพิ่มขึ้นจากการจัดการศึกษาทุกช่วงวัย | F25: ร้อยละ | G25: 1. การศึกษาทุกช่วงวัย คือ การศึกษาที่มุ่งเน้นความเสมอภาค ความเท่าเทียมกัน ในด้านของโอกาสทางการศึกษาของบุคคลทุกช่วงชีวิต ตั้งแต่เกิดจนตาย เป็นภาพรวมของการศึกษาทั้งหมด หลากหลายทั้งรูปแบบและวิธีการ เพื่อให้บุคคลได้พัฒนาคุณภาพชีวิต สามารถพึ่งตนเองได้อย่างมีคุณภาพ 2. รายได้จากหลักสูตรระยะสั้น (Up-skill/Re-skill/New-skill) ทั้งที่เป็น credit และ non-credit รวมทั้ง credit bank | H25: 1. ข้อมูลหลักสูตรระยะสั้น (สำหรับทุกช่วงวัย) ที่เปิดให้บริการในปีงบประมาณปัจจุบัน (แยกเก็บข้อมูล credit และ non-credit) 2. ข้อมูลรายได้ที่เกิดจากการจัดอบรมหลักสูตรต่างๆ ให้กับบุคคลภายนอก ในปีงบประมาณปัจจุบัน (แยกเก็บข้อมูล credit และ non-credit) 3. ข้อมูลรายได้ที่เกิดจากการจัดอบรมหลักสูตรต่างๆ ให้กับบุคคลภายนอก ในปีงบประมาณก่อน (แยกเก็บข้อมูล credit และ non-credit) | I25: (รายได้ที่เกิดจากการจัดอบรมหลักสูตรต่างๆ ให้กับบุคคลภายนอก ในปีงบประมาณปัจจุบัน - รายได้ที่เกิดจากการจัดอบรมหลักสูตรต่างๆให้กับกลุ่มบุคคลภายนอก ในปีงบประมาณก่อน) X 100 | J25: รายได้ที่เกิดจากการจัดอบรมหลักสูตรต่างๆให้กับกลุ่มบุคลาภายนอก ในปีงบประมาณก่อน | K25: ทุกไตรมาส | L25: สำนักงานส่งเสริมและบริหารงานวิจัยฯ | M25: - | O25: 1) รายได้ที่เกิดจากการจัดอบรมหลักสูตรต่างๆ ให้กับบุคคลภายนอก ในปีงบประมาณปัจจุบัน; 2) รายได้ที่เกิดจากการจัดอบรมหลักสูตรต่างๆ ให้กับบุคคลภายนอก ในปีงบประมาณที่ผ่านมา | P25: กลยุทธ์ที่ 1 | Q25: =Table3[[#This Row],[KPIsID]] -> S1B101
A26: กลยุทธ์ที่ 1: บัณฑิตมีคุณภาพอย่างโดดเด่น และพัฒนาการเรียนรู้สำหรับคนทุกช่วงวัย | B26: 1.3) จัดการศึกษาสำหรับประชาชนทุกช่วงวัยตามความต้องการ | C26: S1B102: | D26: ตัวชี้วัดเชิงกลยุทธ์ | E26: SI 1.3.2 ร้อยละของผู้เข้าศึกษาหลักสูตรระยะสั้น (credit/non-credit) หรือ Credit bank ที่เพิ่มขึ้น (เทียบกับปีที่ผ่านมา) | F26: ร้อยละ | G26: 1. ผู้เข้าศึกษา หมายถึง นักศึกษาและบุคคลภายนอกหรือบุคคลทั่วไปที่เข้าศึกษา ที่เข้าศึกษาในหลักสูตรระยะสั้น (credit/non-credit) หรือ Credit bank 2. หลักสูตรระยะสั้น หมายถึง หลักสูตรที่ระยะสั้นที่ทั้งแบบมีเครดิต (credit) และไม่มีเครคิต (non-credit) ซึ่งเป็นหลักสูตรที่มีวัตถุประสงค์การเรียนรู้ให้มีความรู้ ทักษะ ความสามารถในงาน หรือกิจกรรมเฉพาะอย่างที่ตอบสนองความต้องการเฉพาะ มีผลการเรียนรู้ที่ชัดเจน ประเมินผลการเรียนรู้ได้ ทันที เป็นหลักสูตรที่มีลักษณะเพื่อพัฒนาคุณภาพชีวิต การทำงาน เสริมสร้างสมรรถภาพของคนวัยทำงานและอาชีพ 3. Credit bank หมายถึง รายวิชาที่มีการจัดการเรียนการสอนของมหาวิทยาลัย ที่ให้ผู้เรียนสามารถนำผลการเรียนที่ได้จากการศึกษาในระบบ และผลการเรียนรู้ที่ได้จากการศึกษานอกระบบ การศึกษาตามอัธยาศัย มาเก็บสะสมไว้ในธนาคารหน่วยกิต ของสถาบันอุดมศึกษา เพื่อรับประกาศนียบัตร วุฒิบัตร สัมฤทธิบัตร อนุปริญญา หรือปริญญาตรี ตามหลักสูตรของสถาบันอุดมศึกษา โดยไม่จำกัดอายุของผู้เรียน คุณวุฒิผู้เรียน ระยะเวลาในการสะสมหน่วยกิต และระยะเวลาในการเรียน | H26: 1. ข้อมูลหลักสูตรระยะสั้น หรือ Credit bank ที่เปิดให้บริการในปีงบประมาณปัจจุบัน 2. ข้อมูลนักศึกษาที่เข้าศึกษาในหลักสูตรระยะสั้นหรือ Credit bank ในปีงบประมาณปัจจุบัน 3. ข้อมูลบุคคลภายนอกหรือบุคคลทั่วไป ที่เข้าศึกษาในหลักสูตรระยะสั้นหรือ Credit bank ในปีงบประมาณปัจจุบัน 4. ข้อมูลนักศึกษาที่เข้าศึกษา ที่เข้าศึกษาในหลักสูตรระยะสั้นหรือ Credit bank ในปีงบประมาณก่อน 5. ข้อมูลบุคคลภายนอกหรือบุคคลทั่วไป ที่เข้าศึกษา ในหลักสูตรระยะสั้นหรือ Credit bank ในปีงบประมาณก่อน | I26: (จำนวนนักศึกษาและบุคคลภายนอกหรือบุคคลทั่วไป เข้าศึกษาในหลักสูตรระยะสั้นหรือ Credit bank ในปีงบประมาณปัจจุบัน - จำนวนนักศึกษาและบุคคลภายนอกหรือบุคคลทั่วไป เข้าศึกษาในหลักสูตรระยะสั้นหรือ Credit bank ในปีงบประมาณก่อน) X 100 | J26: จำนวนนักศึกษาและบุคคลภายนอกหรือบุคคลทั่วไป เข้าศึกษาในหลักสูตรระยะสั้นหรือ Credit bank ในปีงบประมาณก่อน | K26: ทุกไตรมาส | L26: กองบริการการศึกษา | M26: คณะ/วิทยาลัย | O26: 1) จำนวนนักศึกษาและบุคคลภายนอกหรือบุคคลทั่วไป เข้าศึกษาในหลักสูตรระยะสั้นหรือ Credit bank ในปีงบประมาณปัจจุบัน; 2) จำนวนนักศึกษาและบุคคลภายนอกหรือบุคคลทั่วไป เข้าศึกษาในหลักสูตรระยะสั้นหรือ Credit bank ในปีงบประมาณที่ผ่านมา | P26: กลยุทธ์ที่ 1 | Q26: =Table3[[#This Row],[KPIsID]] -> S1B102:
A27: กลยุทธ์ที่ 1: บัณฑิตมีคุณภาพอย่างโดดเด่น และพัฒนาการเรียนรู้สำหรับคนทุกช่วงวัย | B27: 1.3) จัดการศึกษาสำหรับประชาชนทุกช่วงวัยตามความต้องการ | C27: S1C104 | D27: ตัวชี้วัดแผนปฏิบัติการ | E27: PI 1.3.1.1 จำนวนหลักสูตรระยะสั้น (นับสะสม) | F27: หลักสูตร | G27: หลักสูตรระยะสั้น (Up-skill/Re-skill/New-skill) เป็นการพัฒนาทักษะของผู้เรียน 1. Upskill คือ การพัฒนาเพื่อยกระดับทักษะที่เรามีให้ดีกว่าเดิม 2. Reskill คือ การสร้างทักษะขึ้นมาใหม่ที่จำเป็นต่อการทำงาน 3. Newskill คือ การเรียนรู้เทคโนโลยีใหม่ๆ ที่ต้องนำมาประยุกต์ใช้กับการทำงาน เช่น ทักษะทางด้านดิจิทัล หรือทำงานร่วมกับ AI | H27: 1. ข้อมูลหลักสูตรหลักสูตรระยะสั้น Up skill/Re-skilll/ New-skill หมายเหตุ: (นับรวมแบบมี credit และ ไม่มี credit ที่มีการเปิด โยนับสะสมหลักสูตรทั้งหมดของมหาวิทยาลัย) | I27: จำนวนหลักสูตรหลักสูตรระยะสั้น Up skill/Re-skilll/New-skill (นับสะสม) | J27: - ไม่มี - | K27: ทุกไตรมาส | L27: กองบริการการศึกษา | M27: คณะ/วิทยาลัย | O27: จำนวนหลักสูตรหลักสูตรระยะสั้น Up skill/Re-skilll/New-skill | P27: กลยุทธ์ที่ 1 | Q27: =Table3[[#This Row],[KPIsID]] -> S1C104
A28: กลยุทธ์ที่ 1: บัณฑิตมีคุณภาพอย่างโดดเด่น และพัฒนาการเรียนรู้สำหรับคนทุกช่วงวัย | B28: 1.3) จัดการศึกษาสำหรับประชาชนทุกช่วงวัยตามความต้องการ | C28: S1C140 | D28: ตัวชี้วัดแผนปฏิบัติการ | E28: PI 1.3.2.1 จำนวนรายวิชาที่เป็น Credit bank | F28: รายวิชา | G28: รายวิชาที่เป็น Credit bank หมายถึง รายวิชาที่มีการจัดการเรียนการสอนของมหาวิทยาลัย ที่ให้ผู้เรียนสามารถนำผลการเรียนที่ได้จากการศึกษาในระบบ และผลการเรียนรู้ที่ได้จากการศึกษานอกระบบ การศึกษาตามอัธยาศัย มาเก็บสะสมไว้ในธนาคารหน่วยกิต ของสถาบันอุดมศึกษา เพื่อรับประกาศนียบัตร วุฒิบัตร สัมฤทธิบัตร อนุปริญญา หรือปริญญาตรี ตามหลักสูตรของสถาบันอุดมศึกษา โดยไม่จำกัดอายุของผู้เรียน คุณวุฒิผู้เรียน ระยะเวลาในการสะสมหน่วยกิต และระยะเวลาในการเรียน | H28: 1. ข้อมูลรายวิชาที่เป็น Credit bank ในปีการศึกษา (1 มิ.ย.ปีปัจจุบัน ถึง 31 พ.ค.ปีถัดไป) | I28: จำนวนรายวิชาที่เป็น Credit bank | J28: - ไม่มี - | K28: ทุกไตรมาส | L28: กองบริการการศึกษา | M28: คณะ/วิทยาลัย | O28: จำนวนรายวิชาที่เป็น Credit bank | P28: กลยุทธ์ที่ 1 | Q28: =Table3[[#This Row],[KPIsID]] -> S1C140
A29: กลยุทธ์ที่ 1: บัณฑิตมีคุณภาพอย่างโดดเด่น และพัฒนาการเรียนรู้สำหรับคนทุกช่วงวัย | B29: 1.3) จัดการศึกษาสำหรับประชาชนทุกช่วงวัยตามความต้องการ | C29: S1C141 | D29: ตัวชี้วัดแผนปฏิบัติการ | E29: PI 1.3.2.2 จำนวนนักศึกษาที่นำรายวิชา Credit bank มาใช้ในการจบหลักสูตร | F29: คน | G29: นักศึกษาที่นำรายวิชา Credit bank มาใช้ในการจบหลักสูตร หมายถึง นักศึกษาที่ได้ลงทะเบียนเรียนล่วงหน้า ในรายวิชาที่เป็นรายวิชา Credit bank ที่มหาวิทยาลัยกำหนด และนักศึกษาได้นำรายวิชา Credit bank ที่ได้เรียนล่วงหน้า มาประกอบการยื่นขอสำเร็จการศึกษาในหลักสูตร | H29: 1. ข้อมูลรายวิชาที่เป็น Credit bank ในปีการศึกษา (1 มิ.ย.ปีปัจจุบัน ถึง 31 พ.ค.ปีถัดไป) 2. ข้อมูลนักศึกษา (ทุกระดับ) ที่นำรายวิชาการ Credit bank มาใช้ประกอบในการขอสำเร็จการศึกษา | I29: จำนวนนักศึกษา (ทุกระดับ) ที่นำรายวิชาการ Credit bank มาใช้ประกอบในการขอสำเร็จการศึกษา ในรอบปีการศึกษา | J29: - ไม่มี - | K29: ทุกไตรมาส | L29: กองบริการการศึกษา | M29: คณะ/วิทยาลัย | O29: จำนวนนักศึกษา (ทุกระดับ) ที่นำรายวิชาการ Credit bank มาใช้ประกอบในการขอสำเร็จการศึกษา | P29: กลยุทธ์ที่ 1 | Q29: =Table3[[#This Row],[KPIsID]] -> S1C141
A30: กลยุทธ์ที่ 2: การวิจัยที่มีคุณภาพสูงและสร้างองค์ความรู้เพื่อพัฒนาคุณภาพชีวิตและเศรษฐกิจของพื้นที่ | B30: 2.1) เพิ่มผลงาน วิจัย/นวัตกรรมที่นำไปใช้ประโยชน์เพื่อพัฒนาคุณภาพชีวิตและเศรษฐกิจของพื้นที่ | C30: S2B5 | D30: ตัวชี้วัดเชิงกลยุทธ์ | E30: SI 2.1.1 รายได้จากทรัพย์สินทางปัญญา งานวิจัยหรือนวัตกรรมที่นำไปใช้ประโยชน์เชิงพาณิชย์ | F30: ล้านบาท | G30: 1. ทรัพย์สินทางปัญญา หมายถึง ผลงานอันเกิดจากการประดิษฐ์ คิดค้น หรือสร้างสรรค์ของมนุษย์ ซึ่งเน้นที่ผลผลิตของสติปัญญาและความชำนาญ โดยไม่คำนึงถึงชนิดของการสร้างสรรค์หรือวิธีในการแสดงออก ทรัพย์สินทางปัญญาอาจแสดงออกในรูปแบบของสิ่งที่จับต้องได้ เช่น สินค้าต่างๆ หรือในรูปของสิ่งที่จับต้องไม่ได้ เช่น บริการ แนวคิดในการดำเนินธุรกิจ กรรมวิธีการผลิตทางอุตสาหกรรม เป็นต้น โดยที่ได้รับการจดลิขสิทธิ์ หรือสิทธิบัตร เป็นของมหาวิทยาลัยอุบลราชธานีเรียบร้อยแล้ว 2. ผลงานวิจัยหรือนวัตกรรม หมายถึง คือ ผลงานวิจัยที่นำไปสู่การพัฒนาสิ่งประดิษฐ์ หรือผลิตภัณฑ์ซึ่งก่อให้เกิดรายได้ หรือนำไปสู่การเพิ่มประสิทธิภาพการผลิต เป็นต้น 3. รายได้จากทรัพย์สินทางปัญญาและงานวิจัยที่นำไปใช้ประโยชน์ หมายถึง รายได้ที่เกิดจาก ข้อ 1 และ 2 ในเชิงพานิชย์ โดยไม่หักค่าใช้จ่าย | H30: 1. ข้อมูลและรายละเอียดการจดลิขสิทธิ์ หรือสิทธิบัตรของทรัพย์สินทางปัญญาของมหาวิทยาลัยอุบลราชธานี 2. ข้อมูลงานวิจัยหรือนวัตกรรมการนำไปใช้ประโยชน์เชิงพณิชย์ 3. ข้อมูลรายได้จากทรัพย์สินทางปัญญาและงานวิจัยที่นำไปใช้ประโยชน์ | I30: รายได้จากทรัพย์สินทางปัญญาและงานวิจัยที่นำไปใช้ประโยชน์เชิงพาณิชย์ (Industry Income) ในรอบปีงบประมาณ | J30: - ไม่มี - | K30: ทุกไตรมาส | L30: สำนักงานส่งเสริมและบริหารงานวิจัยฯ | M30: กองแผนงาน : นางนิตยา ศรีใส โทร. 3043 | O30: รายได้จากทรัพย์สินทางปัญญา | P30: กลยุทธ์ที่ 2 | Q30: =Table3[[#This Row],[KPIsID]] -> S2B5
A31: กลยุทธ์ที่ 2: การวิจัยที่มีคุณภาพสูงและสร้างองค์ความรู้เพื่อพัฒนาคุณภาพชีวิตและเศรษฐกิจของพื้นที่ | B31: 2.1) เพิ่มผลงาน วิจัย/นวัตกรรมที่นำไปใช้ประโยชน์เพื่อพัฒนาคุณภาพชีวิตและเศรษฐกิจของพื้นที่ | C31: S2B6 | D31: ตัวชี้วัดเชิงกลยุทธ์ | E31: SI 2.1.2 ร้อยละของผลงานวิจัยหรือนวัตกรรมที่นำไปใช้เพื่อพัฒนาคุณภาพชีวิตและเศรษฐกิจของพื้นที่ | F31: ร้อยละ | G31: 1. ผลงานวิจัย หมายถึง ผลงานทางวิชาการที่เป็นงานศึกษาหรืองานค้นคว้าอย่างมีระบบด้วยวิธีวิจัยที่เป็น ที่ยอมรับในสาขาวิชานั้นๆ และมีวัตถุประสงค์ที่ชัดเจนเพื่อให้ได้มาซึ่งข้อมูล คำตอบหรือข้อสรุปรวมที่จะ นำไปสู่ความก้าวหน้าทางวิชาการ หรือเอื้อต่อการนำวิชาการนั้นไปประยุกต์ 2. นวัตกรรม หมายถึง ผลงานที่เกิดจากความคิด การปฏิบัติ หรือสิ่งประดิษฐ์ใหม่ ๆ ที่ยังไม่เคยมีใช้มาก่อน หรือเป็นการพัฒนาดัดแปลงมาจากของเดิมที่มีอยู่แล้ว ให้ทันสมัยและใช้ได้ผลดียิ่งขึ้น เมื่อนำนวัตกรรมมาใช้จะช่วยให้การทำงานนั้นได้ผลดีมีประสิทธิภาพและประสิทธิผลสูงกว่าเดิม ทั้งยังช่วย ประหยัดเวลาและแรงงานได้ด้วย 3. ผลงานวิจัยหรือนวัตกรรมที่นำไปใช้เพื่อพัฒนาคุณภาพชีวิตและเศรษฐกิจ เป็นการผลงานวิจัยหรือนวัตกรรมที่นำไปใช้เพื่อพัฒนาคุณภาพชีวิตและเศรษฐกิจ หรือไปใช้ประโยชน์อย่างเป็นรูปธรรม มีหลักฐานการนำผลงานวิจัยหรือนวัตกรรมไปใช้ประโยชน์ เช่น รูปถ่าย หนังสือเชิญ หนังสือแสดงความต้องการหรือเอกสารที่แสดงได้ว่ามีการนำผลงานวิจัยไปใช้จริงเพื่อพัฒนาคุณภาพชีวิตและเศรษฐกิจของพื้นที่ จำแนกได้ 4 มิติ ดังนี้ 1) การใช้ประโยชน์เชิงวิชาการ หมายถึง พิจารณาจากการอ้างอิงผลงานวิจัยที่มีการตีพิมพ์ในวารสารวิชาการ โดยไม่นับการตีพิมพ์วารสารวิชาการ ได้รับหนังสือเรียนเชิญเป็นวิทยากรเพื่อให้ความรู้ในกรอบของผลงานวิจัยจากหน่วยงานต่างๆ 2) การใช้ประโยชน์เชิงนโยบาย หมายถึง พิจารณาจากการมีหลักฐานการนำข้อมูลไปประกอบการตัดสินใจในการบริหาร/กำหนดนโยบาย 3) การใช้ประโยชน์เชิงชุมชน/สังคม หมายถึง พิจารณาจากการมีหลักฐานการถ่ายทอดเทคโนโลยีที่ได้จากงานวิจัยในชุมชน/ท้องถิ่น ได้รับหนังสือเรียนเชิญให้ความรู้จากชุมชน/องค์กร/ หน่วยงานในพื้นที่ต่าง ๆ 4) การใช้ประโยชน์เชิงพาณิชย์ หมายถึง พิจารณาจากการมีหลักฐานการเจรจาทางธุรกิจ ไม่นับการยื่น/จดทะเบียนคุ้มครองทรัพย์สินทางปัญญา 2. พื้นที่ หมายถึง พื้นที่ในเขตภาคตะวันออกเฉี่ยงเหนือตอนล่าง ชุมชนใกล้มหาวิทยาลัย หรือหน่วยงานหรือองค์กรที่ได้ทำความร่วมมือกัน | H31: 1. ข้อมูลและรายละเอียดโครงการวิจัยของมหาวิทยาลัย ทั้งหมด จำแนกปีงบประมาณ (ปีงบประมาณ 2562-ปีปัจจุบัน) 2. ข้อมูลและรายละเอียดโครงการวิจัยของมหาวิทยาลัย ที่แล้วเสร็จทั้งหมด (ปีงบประมาณ 2562-ปีปัจจุบัน) 3. ข้อมูลผลงานวิจัยที่นำไปใช้เพื่อพัฒนาคุณภาพชีวิตและเศรษฐกิจของพื้นที่ 4. ข้อมูลนวัตกรรมที่นำไปใช้เพื่อพัฒนาคุณภาพชีวิตและเศรษฐกิจของพื้นที่ จำแนกปีงบประมาณ | I31: (จำนวนผลงานวิจัยนำไปใช้ประโยชน์ + จำนวนวัตกรรมที่นำไปใช้ประโยชน์ใน ปีงบประมาณ) X 100 | J31: จำนวนโครงการวิจัยที่แล้วเสร็จ ในปีงบประมาณ | K31: ทุกไตรมาส | L31: สำนักงานส่งเสริมและบริหารงานวิจัยฯ | M31: คณะ/วิทยาลัย | O31: จำนวนผลงานวิจัยที่นำไปใช้ประโยชน์ ในรอบปีงบประมาณ; จำนวนผลงานวิจัยทั้งหมด | P31: กลยุทธ์ที่ 2 | Q31: =Table3[[#This Row],[KPIsID]] -> S2B6
A32: กลยุทธ์ที่ 2: การวิจัยที่มีคุณภาพสูงและสร้างองค์ความรู้เพื่อพัฒนาคุณภาพชีวิตและเศรษฐกิจของพื้นที่ | B32: 2.1) เพิ่มผลงาน วิจัย/นวัตกรรมที่นำไปใช้ประโยชน์เพื่อพัฒนาคุณภาพชีวิตและเศรษฐกิจของพื้นที่ | C32: S2B7 | D32: ตัวชี้วัดเชิงกลยุทธ์ | E32: SI 2.1.3 ร้อยละของผลงานวิจัยที่สามารถพัฒนาไปสู่ระดับ TRL (6-7) (TRL Technology Readiness Level ) | F32: ร้อยละ | G32: TRL คือการบ่งชี้ระดับความพร้อมและเสถียรภาพของเทคโนโลยีตามบริบทการใช้งาน ตั้งแต่เป็นวัตถุดิบองค์ประกอบสำคัญ อุปกรณ์ และกระบวนการทํางานทั้งระบบ ก่อนที่จะมีการบูรณาการเทคโนโลยีเป็นระบบ ระดับ 6 หมายถึง การทดลองโมเดลของระบบหลักและระบบย่อย หรือต้นแบบในสถานการณ์ที่เกี่ยวข้อง: โมเดลตัวอย่างหรือต้นแบบที่พัฒนาต่อจากขั้นที่ 5 ได้ถูกทดสอบในสถานการณ์ที่เกี่ยวข้อง และเป็นตัวแทนในการก้าวไปสู่เทคโนโลยีที่มีความพร้อมและผ่านการทดลองด้านต่างๆ เรียบร้อยแล้ว เช่น อาจรวมถึงการทดสอบต้นแบบในห้องปฏิบัติการที่มีความละเอียดสูง หรือการทดสอบในภาคสนาม ระดับ 7 การทดลองต้นแบบในภาคสนาม ต้นแบบที่มีความใกล้เคียงกับระบบที่จะใช้จริง โดยเป็นการพัฒนาต่อจากขั้นที่ 6 โดยการทดสอบต้นแบบในสถานการณ์การทำงานจริง ข้อมูลเพิ่มเติม: https://op.mahidol.ac.th/ra/contents/research_fund/GOVERN-2563/04_Technology%20Readiness%20Level-TRL.pdf | H32: 1. ข้อมูลและรายละเอียดโครงการวิจัยของมหาวิทยาลัย ทั้งหมด จำแนกปีงบประมาณ (ปีงบประมาณ 2562-ปีปัจจุบัน) 2. ข้อมูลและรายละเอียดผลงานวิจัยที่สามารถพัฒนาไปสู่ระดับการประเมินของ TRL (TRL Technology Readiness Level) (จำแนกระดับ) | I32: จำนวนผลงานวิจัย ระดับ RL (6-7) ในรอบปีงบประมาณ X 100 | J32: จำนวนโครงการวิจัยทั้งหมด ในรอบปีงบประมาณ | K32: ทุกไตรมาส | L32: สำนักงานส่งเสริมและบริหารงานวิจัยฯ | M32: - | O32: จำนวนผลงานวิจัย ระดับ RL (6-7); จำนวนผลงานวิจัยทั้งหมด | P32: กลยุทธ์ที่ 2 | Q32: =Table3[[#This Row],[KPIsID]] -> S2B7
A33: กลยุทธ์ที่ 2: การวิจัยที่มีคุณภาพสูงและสร้างองค์ความรู้เพื่อพัฒนาคุณภาพชีวิตและเศรษฐกิจของพื้นที่ | B33: 2.1) เพิ่มผลงาน วิจัย/นวัตกรรมที่นำไปใช้ประโยชน์เพื่อพัฒนาคุณภาพชีวิตและเศรษฐกิจของพื้นที่ | C33: S2C8 | D33: ตัวชี้วัดแผนปฏิบัติการ | E33: PI 2.1.1.1 ร้อยละของโครงการวิจัยที่เป็นผลงานวิจัยเชิงลึกที่มีศักยภาพเชิงพาณิชย์ต่อโครงการวิจัยทั้งหมด | F33: ร้อยละ | G33: ผลงานวิจัยเชิงลึก คือ ผลงานวิจัยที่เกิดจากโครงการวิจัยหรือจากการศึกษาในเชิงปริมาณ หรือเชิงคุณภาพ หรือทั้งสองแบบร่วมกัน เพื่อจะนำไปรวบรวมประมวลผลเป็นองค์ความรู้ และจะทำการการเผยแพร่งานการศึกษาดังกล่าว เพื่อประโยชน์ให้แก่ทั้งภาครัฐ ภาคเอกชน และทางสถาบันฯ เพื่อนำความรู้จากการศึกษาไปใช้ต่อยอดในการดำเนินงานด้านต่าง ๆ เชิงพาณิชย์ ต่อไปในอนาคต | H33: 1. ข้อมูลและรายละเอียดโครงการวิจัยของมหาวิทยาลัย ทั้งหมด ในปีงบประมาณ 2. ข้อมูลและรายละเอียดโครงการวิจัยที่เป็นผลงานวิจัยเชิงลึกที่มีศักยภาพเชิงพาณิชย์ ในปีงบประมาณ | I33: จำนวนโครงการวิจัยที่เป็นผลงานวิจัยเชิงลึกที่มีศักยภาพเชิงพาณิชย์ ในรอบปีงบประมาณ X 100 | J33: จำนวนโครงการวิจัยทั้งหมด ในรอบปีงบประมาณ | K33: ทุกไตรมาส | L33: สำนักงานส่งเสริมและบริหารงานวิจัยฯ | M33: - | O33: จำนวนโครงการวิจัยที่เป็นผลงานวิจัยเชิงลึกที่มีศักยภาพเชิงพาณิชย์; จำนวนโครงการวิจัยทั้งหมด | P33: กลยุทธ์ที่ 2 | Q33: =Table3[[#This Row],[KPIsID]] -> S2C8
A34: กลยุทธ์ที่ 2: การวิจัยที่มีคุณภาพสูงและสร้างองค์ความรู้เพื่อพัฒนาคุณภาพชีวิตและเศรษฐกิจของพื้นที่ | B34: 2.1) เพิ่มผลงาน วิจัย/นวัตกรรมที่นำไปใช้ประโยชน์เพื่อพัฒนาคุณภาพชีวิตและเศรษฐกิจของพื้นที่ | C34: S2C11 | D34: ตัวชี้วัดแผนปฏิบัติการ | E34: PI 2.1.2.1 ร้อยละโครงการวิจัยเพื่อพัฒนาคุณภาพชีวิต และเศรษฐกิจของพื้นที่ต่อโครงการวิจัยทั้งหมด | F34: ร้อยละ | G34: 1. คุณภาพชีวิต หมายถึง ชีวิตที่มีคุณภาพ มีความสมบูรณ์ทั้ง ด้านสุขภาพ ร่างกายและจิตใจ สามารถดำรงชีวิตให้สอดคล้องตามสภาวะทางสังคม เศรษฐกิจ การเมือง วัฒนธรรม สภาพแวดล้อมในการดำเนินชีวิตและทรัพยากรที่มีอยู่ 2. ด้านเศรษฐกิจ คือ กิจกรรม/โครงการที่เกี่ยวกับการผลิต การจำหน่าย จ่ายจาก และการบริโภคใช้สอย ๆ ของชุมชน ที่สามารถทำให้มีรายเพิ่มขึ้น 3. พื้นที่ หมายถึง พื้นที่ในเขตภาคตะวันออกเฉี่ยงเหนือตอนล่าง ชุมชนใกล้มหาวิทยาลัย หรือหน่วยงานหรือองค์กรที่ได้ทำความร่วมมือกัน | H34: 1. ข้อมูลและรายละเอียดโครงการวิจัยของมหาวิทยาลัย ทั้งหมด จำแนกปีงบประมาณ 2. ข้อมูลและรายละเอียดโครงการวิจัยเพื่อพัฒนาคุณภาพชีวิต 3. ข้อมูลและรายละเอียดโครงการวิจัยเพื่อพัฒนาเศรษฐกิจ | I34: (จำนวนโครงการวิจัยเพื่อพัฒนาคุณภาพชีวิต + จำนวนโครงการวิจัยเพื่อพัฒนาเศรษฐกิจ) ในรอบปีงบประมาณ X 100 | J34: จำนวนโครงการวิจัยทั้งหมด ในรอบปีงบประมาณ | K34: ทุกไตรมาส | L34: สำนักงานส่งเสริมและบริหารงานวิจัยฯ | M34: น.ส.นาวินี สุตัญตั้งใจ โทร. 3042 | O34: 1) จำนวนโครงการวิจัยเพื่อพัฒนาคุณภาพชีวิต; 2) จำนวนโครงการวิจัยเพื่อพัฒนาเศรษฐกิจ; 3) จำนวนโครงการวิจัยทั้งหมด | P34: กลยุทธ์ที่ 2 | Q34: =Table3[[#This Row],[KPIsID]] -> S2C11
A35: กลยุทธ์ที่ 2: การวิจัยที่มีคุณภาพสูงและสร้างองค์ความรู้เพื่อพัฒนาคุณภาพชีวิตและเศรษฐกิจของพื้นที่ | B35: 2.1) เพิ่มผลงาน วิจัย/นวัตกรรมที่นำไปใช้ประโยชน์เพื่อพัฒนาคุณภาพชีวิตและเศรษฐกิจของพื้นที่ | C35: S2C13 | D35: ตัวชี้วัดแผนปฏิบัติการ | E35: PI 2.1.3.1 จำนวนผลงานวิจัยจากความร่วมมือของภาคเอกชนหรืออุตสาหกรรม (นับรวมโครงการที่ผ่านอุทยานวิทยาศาสตร์/ITAP) | F35: ผลงาน | G35: ผลงานวิจัยที่เกิดจากความร่วมมือของภาคเอกชนและอุตสาหกรรม หมายถึง ผลงานทางวิชาการที่เป็นงานศึกษาหรืองานค้นคว้าอย่างมีระบบด้วยวิธีวิจัยที่เป็นที่ยอมรับในสาขาวิชานั้นๆ ซึ่งผลงานวิจัยดังกล่าว เกิดความร่วมมือของภาคเอกชนหรืออุตสาหกรรม เพื่อเสริมสร้างขีดความสามารถเชิงการแข่งขันของภาคอุตสาหกรรม ด้วยการพัฒนางานวิจัยที่มีมาตรฐานและสามารถใช้ประโยชน์จากทรัพย์สินทางปัญญา รวมทั้งนำนวัตกรรมองค์ความรู้มาต่อยอด และขยายผลสู่การใช้ประโยชน์ในเชิงพาณิชย์ | H35: 1. ข้อมูลและรายละเอียดโครงการวิจัยของมหาวิทยาลัยที่มีความร่วมมือของภาคเอกชนหรืออุตสาหกรรม 2. ข้อมูลและรายละเอียดผลงานวิจัยที่เกิดจากความร่วมมือของภาคเอกชนและอุตสาหกรรม | I35: ผลงานวิจัยที่เกิดจากความร่วมมือของภาคเอกชน ในรอบปีงบประมาณ | J35: -ไม่มี- | K35: ทุกไตรมาส | L35: สำนักงานส่งเสริมและบริหารงานวิจัยฯ | M35: อุทยานวิทยาศาสตร์มหาวิทยาลัยอุบลราชธานี | O35: จำนวนผลงานวิจัยที่เกิดจากความร่วมมือของภาคเอกชน | P35: กลยุทธ์ที่ 2 | Q35: =Table3[[#This Row],[KPIsID]] -> S2C13
A36: กลยุทธ์ที่ 2: การวิจัยที่มีคุณภาพสูงและสร้างองค์ความรู้เพื่อพัฒนาคุณภาพชีวิตและเศรษฐกิจของพื้นที่ | B36: 2.1) เพิ่มผลงาน วิจัย/นวัตกรรมที่นำไปใช้ประโยชน์เพื่อพัฒนาคุณภาพชีวิตและเศรษฐกิจของพื้นที่ | C36: S2C14 | D36: ตัวชี้วัดแผนปฏิบัติการ | E36: PI 2.1.3.2 จำนวนผลงานวิจัยที่ถูกพัฒนาเป็นต้นแบบภาคสนาม (Prototype) | F36: ผลงาน | G36: ผลงานวิจัยที่ถูกพัฒนาเป็นต้นแบบภาคสนาม หมายถึง ผลงานวิจัยต้นแบบ (Prototype) ที่มีระดับของเทคโนโลยีที่มีความพร้อมในระดับที่มีการสร้างต้นแบบหรือ Application แล้วเสร็จ มีผลการทดสอบจากต้นแบบในห้องปฏิบัติการ หรือผลทดสอบในสภาพแวดล้อมทั้งที่เป็นสถานการณ์จำลองของสถานที่ใช้งานเทคโนโลยีจริง ซึ่งอาจไม่มีความจำเป็นสำหรับการวิจัยและพัฒนาต่อในด้านองค์ความรู้ TRL Level 4 : Key elements demonstrated in laboratory environments เป็นการทดสอบในห้องปฏิบัติการ แล้วได้ผลตามที่คาดหวัง หลักฐาน คือ วิธีทดสอบที่เชื่อถือได้และผลการทดสอบตามห้องปฏิบัติการที่ยอมรับได้ทั้งทางสถิติและทำซ้ำได้ TRL Level 5 : Key elements demonstrated in relevant environments เป็นการทดสอบในสภาวะเลียนแบบใกล้เคียงสภาวะจริง แล้วได้ผลตามที่คาดหวัง ส่วนใหญ่ที่ระดับนี้ยังไม่ใช่ต้นแบบภาคสนาม สิ่งที่ได้ คือ องค์ประกอบสำคัญของต้นแบบผลิตภัณฑ์ใหม่ที่ผ่านการทดสอบ หลักฐาน คือ วิธีการทดสอบที่เชื่อถือได้ ทำซ้ำได้ และสอดคล้องความต้องการที่จะประยุกต์ใช้งานของกลุ่มเป้าหมาย | H36: 1. ข้อมูลและรายละเอียดโครงการวิจัยวิจัยเกี่ยวกับากรพัฒนาเป็นต้นแบบภาคสนาม (Prototype) 2. ข้อมูลและรายละเอียดผลงานผลงานวิจัยที่ถูกพัฒนาเป็นต้นแบบภาคสนาม (Prototype) | I36: จำนวนผลงานวิจัยที่ถูกพัฒนาเป็นต้นแบบภาคสนาม ในรอบปีงบประมาณ | J36: -ไม่มี- | K36: ทุกไตรมาส | L36: สำนักงานส่งเสริมและบริหารงานวิจัยฯ | M36: - | O36: จำนวนผลงานวิจัยที่ถูกพัฒนาเป็นต้นแบบภาคสนาม | P36: กลยุทธ์ที่ 2 | Q36: =Table3[[#This Row],[KPIsID]] -> S2C14
A37: กลยุทธ์ที่ 2: การวิจัยที่มีคุณภาพสูงและสร้างองค์ความรู้เพื่อพัฒนาคุณภาพชีวิตและเศรษฐกิจของพื้นที่ | B37: 2.1) เพิ่มผลงาน วิจัย/นวัตกรรมที่นำไปใช้ประโยชน์เพื่อพัฒนาคุณภาพชีวิตและเศรษฐกิจของพื้นที่ | C37: S2C15 | D37: ตัวชี้วัดแผนปฏิบัติการ | E37: PI 2.1.3.3 งบประมาณสนับสนุนการวิจัยที่ได้รับจากภาคเอกชนหรืออุตสาหกรรม (นับแค่ incash) | F37: ล้านบาท | G37: งบประมาณวิจัยที่ได้รับจากภาคเอกชนและอุตสาหกรรม หมายถึง เป็นงบประมาณด้านการวิจัยที่อาจารย์หรือนักวิจัยได้รับการสนับสนุนงบประมาณโดยตรงจากแหล่งทุนต่าง ๆ ที่เป็นหน่วยงานภายนอกมหาวิทยาลัย (แหล่งทุนภายนอก) | H37: 1. ข้อมูลและรายละเอียดโครงการวิจัยวิจัยที่ได้รับการสนับสนุนการวิจัยที่ได้รับจากภาคเอกชนและอุตสาหกรรม 2. ข้อมูลจำนวนงบประมาณที่ได้รับการสนับสนุนการวิจัยที่ได้รับจากภาคเอกชนและอุตสาหกรรม | I37: จำนวนงบประมาณที่ได้รับการสนับสนุนการวิจัยที่ได้รับจากภาคเอกชนและอุตสาหกรรม (งบประมาณวิจัยจากทุนภายนอก) ในรอบปีงบประมาณ | J37: -ไม่มี- | K37: ทุกไตรมาส | L37: สำนักงานส่งเสริมและบริหารงานวิจัยฯ | M37: น.ส.นาวินี สุตัญตั้งใจ โทร. 3042 | O37: จำนวนงบประมาณที่ได้รับการสนับสนุนการวิจัยที่ได้รับจากภาคเอกชนและอุตสาหกรรม | P37: กลยุทธ์ที่ 2 | Q37: =Table3[[#This Row],[KPIsID]] -> S2C15
A38: กลยุทธ์ที่ 2: การวิจัยที่มีคุณภาพสูงและสร้างองค์ความรู้เพื่อพัฒนาคุณภาพชีวิตและเศรษฐกิจของพื้นที่ | B38: 2.1) เพิ่มผลงาน วิจัย/นวัตกรรมที่นำไปใช้ประโยชน์เพื่อพัฒนาคุณภาพชีวิตและเศรษฐกิจของพื้นที่ | C38: S2C18 | D38: ตัวชี้วัดแผนปฏิบัติการ | E38: PI 2.1.4.1 จำนวนทรัพย์สินทางปัญญา (สิทธิบัตร อนุสิทธิบัตร) ในแต่ละปี | F38: ผลงาน | G38: ทรัพย์สินทางปัญญา หมายถึง ผลงานอันเกิดจากการประดิษฐ์ คิดค้น หรือสร้างสรรค์ของมนุษย์ ซึ่งเน้นที่ผลผลิตของสติปัญญาและความชำนาญ โดยไม่คำนึงถึงชนิดของการสร้างสรรค์หรือวิธีในการแสดงออก ทรัพย์สินทางปัญญาอาจแสดงออกในรูปแบบของสิ่งที่จับต้องได้ เช่น สินค้าต่างๆ หรือในรูปของสิ่งที่จับต้องไม่ได้ เช่น บริการ แนวคิดในการดำเนินธุรกิจ กรรมวิธีการผลิตทางอุตสาหกรรม เป็นต้น โดยที่ได้รับการจดลิขสิทธิ์ หรือสิทธิบัตร เป็นของมหาวิทยาลัยอุบลราชธานีเรียบร้อยแล้ว | H38: 1. ข้อมูลและรายละเอียดของทรัพย์สินทางปัญญา (สิทธิบัตร อนุสิทธิบัตร) ทั้งหมด | I38: จำนวนทรัพย์สินทางปัญญา (สิทธิบัตร อนุสิทธิบัตร) ที่ได้รับการขึ้นเทะเบียนเรียบร้อยแล้ว ในรอบปีงบประมาณ | J38: -ไม่มี- | K38: ทุกไตรมาส | L38: สำนักงานส่งเสริมและบริหารงานวิจัยฯ | M38: คณะ/วิทยาลัย | O38: จำนวนทรัพย์สินทางปัญญาทุกประเภท ที่ได้รับการขึ้นเทะเบียนเรียบร้อยแล้ว; จำนวนทรัพย์สินทางปัญญาทั้งหมด | P38: กลยุทธ์ที่ 2 | Q38: =Table3[[#This Row],[KPIsID]] -> S2C18
A39: กลยุทธ์ที่ 2: การวิจัยที่มีคุณภาพสูงและสร้างองค์ความรู้เพื่อพัฒนาคุณภาพชีวิตและเศรษฐกิจของพื้นที่ | B39: 2.1) เพิ่มผลงาน วิจัย/นวัตกรรมที่นำไปใช้ประโยชน์เพื่อพัฒนาคุณภาพชีวิตและเศรษฐกิจของพื้นที่ | C39: S2C19 | D39: ตัวชี้วัดแผนปฏิบัติการ | E39: PI 2.1.4.2 จำนวนผลงานวิจัยที่ยื่นขอทรัพย์สินทางปัญญา (สิทธิบัตร อนุสิทธิบัตร) | F39: ผลงาน | G39: ทรัพย์สินทางปัญญา หมายถึง ผลงานอันเกิดจากการประดิษฐ์ คิดค้น หรือสร้างสรรค์ของมนุษย์ ซึ่งเน้นที่ผลผลิตของสติปัญญาและความชำนาญ โดยไม่คำนึงถึงชนิดของการสร้างสรรค์หรือวิธีในการแสดงออก ทรัพย์สินทางปัญญาอาจแสดงออกในรูปแบบของสิ่งที่จับต้องได้ เช่น สินค้าต่างๆ หรือในรูปของสิ่งที่จับต้องไม่ได้ เช่น บริการ แนวคิดในการดำเนินธุรกิจ กรรมวิธีการผลิตทางอุตสาหกรรม เป็นต้น โดยที่ได้รับการจดลิขสิทธิ์ หรือสิทธิบัตร เป็นของมหาวิทยาลัยอุบลราชธานีเรียบร้อยแล้ว | H39: 1. ข้อมูลและรายละเอียดของทรัพย์สินทางปัญญา (สิทธิบัตร อนุสิทธิบัตร) ทั้งหมด | I39: จำนวนทรัพย์สินทางปัญญา (สิทธิบัตร อนุสิทธิบัตร) ที่ยื่นขอทรัพย์สินทางปัญญาทั้งหมด ในรอบปีงบประมาณ | J39: -ไม่มี- | K39: ทุกไตรมาส | L39: สำนักงานส่งเสริมและบริหารงานวิจัยฯ | M39: คณะ/วิทยาลัย | O39: จำนวนทรัพย์สินทางปัญญาทุกประเภท ที่ยื่นขอทรัพย์สินทางปัญญาทั้งหมด | P39: กลยุทธ์ที่ 2 | Q39: =Table3[[#This Row],[KPIsID]] -> S2C19
A40: กลยุทธ์ที่ 2: การวิจัยที่มีคุณภาพสูงและสร้างองค์ความรู้เพื่อพัฒนาคุณภาพชีวิตและเศรษฐกิจของพื้นที่ | B40: 2.1) เพิ่มผลงาน วิจัย/นวัตกรรมที่นำไปใช้ประโยชน์เพื่อพัฒนาคุณภาพชีวิตและเศรษฐกิจของพื้นที่ | C40: S2C22 | D40: ตัวชี้วัดแผนปฏิบัติการ | E40: PI 2.1.5.1 จำนวนผลงานวิจัย/นวัตกรรมที่ต่อยอดเชิงพาณิชย์ | F40: ผลงาน | G40: ผลงานวิจัยหรือนวัตกรรม หมายถึง คือ ผลงานวิจัยที่นำไปสู่การพัฒนาสิ่งประดิษฐ์ หรือผลิตภัณฑ์ซึ่งก่อให้เกิดรายได้ หรือนำไปสู่การเพิ่มประสิทธิภาพการผลิต เป็นต้น ซึ่งได้ที่นำไปใช้ประโยชน์ในเชิงพานิชย์ | H40: 1. ข้อมูลงานวิจัยหรือนวัตกรรมการนำไปใช้ประโยชน์เชิงพณิชย์ 2. ข้อมูลรายได้จากทรัพย์สินทางปัญญาและงานวิจัยที่นำไปใช้ประโยชน์ | I40: จำนวนผลงานวิจัยที่ต่อยอดเชิงพาณิชย์ + จำนวนนวัตกรรมที่ต่อยอดเชิงพาณิชย์ ในรอบปีงบประมาณ | J40: -ไม่มี- | K40: ทุกไตรมาส | L40: สำนักงานส่งเสริมและบริหารงานวิจัยฯ | M40: น.ส.นาวินี สุตัญตั้งใจ โทร. 3042 | O40: 1) จำนวนผลงานวิจัยที่ต่อยอดเชิงพาณิชย์; 2) จำนวนนวัตกรรมที่ต่อยอดเชิงพาณิชย์ ในรอบปีงบประมาณ; 3) จำนวนผลงานวิจัยที่ต่อยอดเชิงพาณิชย์; 4) จำนวนนวัตกรรมที่ต่อยอดเชิงพาณิชย์ ทั้งหมด | P40: กลยุทธ์ที่ 2 | Q40: =Table3[[#This Row],[KPIsID]] -> S2C22
A41: กลยุทธ์ที่ 2: การวิจัยที่มีคุณภาพสูงและสร้างองค์ความรู้เพื่อพัฒนาคุณภาพชีวิตและเศรษฐกิจของพื้นที่ | B41: 2.1) เพิ่มผลงาน วิจัย/นวัตกรรมที่นำไปใช้ประโยชน์เพื่อพัฒนาคุณภาพชีวิตและเศรษฐกิจของพื้นที่ | C41: S2C23 | D41: ตัวชี้วัดแผนปฏิบัติการ | E41: PI 2.1.5.2 จำนวนผลงานวิจัย/นวัตกรรมที่นำไปใช้ประโยชน์ในการพัฒนาคุณภาพชีวิต | F41: ผลงาน | G41: ผลงานวิจัยหรือนวัตกรรมที่นำไปใช้เพื่อพัฒนาคุณภาพชีวิตและเศรษฐกิจ เป็นการผลงานวิจัยหรือนวัตกรรมที่นำไปใช้เพื่อพัฒนาคุณภาพชีวิตและเศรษฐกิจ หรือไปใช้ประโยชน์อย่างเป็นรูปธรรม มีหลักฐานการนำผลงานวิจัยหรือนวัตกรรมไปใช้ประโยชน์ เช่น รูปถ่าย หนังสือเชิญ หนังสือแสดงความต้องการหรือเอกสารที่แสดงได้ว่ามีการนำผลงานวิจัยไปใช้จริงเพื่อพัฒนาคุณภาพชีวิตและเศรษฐกิจของพื้นที่ จำแนกได้ 4 มิติ ดังนี้ 1) การใช้ประโยชน์เชิงวิชาการ หมายถึง พิจารณาจากการอ้างอิงผลงานวิจัยที่มีการตีพิมพ์ในวารสารวิชาการ โดยไม่นับการตีพิมพ์วารสารวิชาการ ได้รับหนังสือเรียนเชิญเป็นวิทยากรเพื่อให้ความรู้ในกรอบของผลงานวิจัยจากหน่วยงานต่างๆ 2) การใช้ประโยชน์เชิงนโยบาย หมายถึง พิจารณาจากการมีหลักฐานการนำข้อมูลไปประกอบการตัดสินใจในการบริหาร/กำหนดนโยบาย 3) การใช้ประโยชน์เชิงชุมชน/สังคม หมายถึง พิจารณาจากการมีหลักฐานการถ่ายทอดเทคโนโลยีที่ได้จากงานวิจัยในชุมชน/ท้องถิ่น ได้รับหนังสือเรียนเชิญให้ความรู้จากชุมชน/องค์กร/ หน่วยงานในพื้นที่ต่าง ๆ 4) การใช้ประโยชน์เชิงพาณิชย์ หมายถึง พิจารณาจากการมีหลักฐานการเจรจาทางธุรกิจ ไม่นับการยื่น/จดทะเบียนคุ้มครองทรัพย์สินทางปัญญา | H41: 1. ข้อมูลผลงานวิจัยที่นำไปใช้เพื่อพัฒนาคุณภาพชีวิตและเศรษฐกิจของพื้นที่ 2. ข้อมูลนวัตกรรมที่นำไปใช้เพื่อพัฒนาคุณภาพชีวิตและเศรษฐกิจของพื้นที่ จำแนกปีงบประมาณ | I41: จำนวนผลงานวิจัยที่นำไปใช้ประโยชน์ในการพัฒนาคุณภาพชีวิต + จำนวนนวัตกรรมที่นำไปใช้ประโยชน์ในการพัฒนาคุณภาพชีวิต ในรอบปีงบประมาณ | J41: -ไม่มี- | K41: ทุกไตรมาส | L41: สำนักงานส่งเสริมและบริหารงานวิจัยฯ | M41: น.ส.นาวินี สุตัญตั้งใจ โทร. 3042 | O41: 1) จำนวนผลงานวิจัยที่นำไปใช้ประโยชน์ในการพัฒนาคุณภาพชีวิต; 2) จำนวนนวัตกรรมที่นำไปใช้ประโยชน์ในการพัฒนาคุณภาพชีวิต ในรอบปีงบประมาณ | P41: กลยุทธ์ที่ 2 | Q41: =Table3[[#This Row],[KPIsID]] -> S2C23
A42: กลยุทธ์ที่ 2: การวิจัยที่มีคุณภาพสูงและสร้างองค์ความรู้เพื่อพัฒนาคุณภาพชีวิตและเศรษฐกิจของพื้นที่ | B42: 2.1) เพิ่มผลงาน วิจัย/นวัตกรรมที่นำไปใช้ประโยชน์เพื่อพัฒนาคุณภาพชีวิตและเศรษฐกิจของพื้นที่ | C42: S2C26 | D42: ตัวชี้วัดแผนปฏิบัติการ | E42: PI 2.1.6.1 จำนวน Spin Off | F42: ผลงาน | G42: Spin Off คือ บริษัทที่เกิดจากมหาวิทยาลัยมหวิทยาลัยอุบลราชธานี เป็นการส่งเสริมให้นักวิจัยนำผลงานวิจัยทางด้านเทคโนโลยีที่มีศักยภาพและสามารถของมหาวิทยาลัย ไปผลิตเป็นสินค้าออกสู่ตลาดผ่านการจัดตั้งเป็นบริษัท (Start-up company) โดยมีกลไกการลงทุนที่เกื้อหนุน ไม่ว่าจะมาจากกองทุนร่วมทุน (Venture capital fund) นักลงทุนสายตาไกล (Angel investor) ให้มหาวิทยาลัยสามารถระดมทุนหรือจัดตั้งกองทุนส่งเสริมงานวิจัยให้กลายเป็นธุรกิจเทคโนโลยี (นับที่จดทะเบียนนิติบุคคลต่อปี จำแนกเป็น นักศึกษา ศิษย์เก่า บุคคลภายนอก) | H42: 1. ข้อมูลและรายละเอียดของ Spin Off ของมหาวิทยาลัย (นับที่จดทะเบียนนิติบุคคลต่อปี จำแนกเป็นนักศึกษา ศิษย์เก่า บุคคลภายนอก) | I42: จำนวน Spin Off จากผลงานวิจัย ในรอบปีงบประมาณ (นับสะสม) | J42: -ไม่มี- | K42: ทุกไตรมาส | L42: สำนักงานส่งเสริมและบริหารงานวิจัยฯ | M42: - | O42: จำนวน Spin Off จากผลงานวิจัย; จำนวน Spin Off จากผลงานวิจัยทั้งหมด | P42: กลยุทธ์ที่ 2 | Q42: =Table3[[#This Row],[KPIsID]] -> S2C26
A43: กลยุทธ์ที่ 2: การวิจัยที่มีคุณภาพสูงและสร้างองค์ความรู้เพื่อพัฒนาคุณภาพชีวิตและเศรษฐกิจของพื้นที่ | B43: 2.2) เพิ่มจำนวนผลงานวิจัยที่ตีพิมพ์ในระดับนานาชาติและมีคุณภาพในระดับ Q1-Q2 | C43: S2B29: | D43: ตัวชี้วัดเชิงกลยุทธ์ | E43: SI 2.2.1 ร้อยละจำนวนบทความวิจัยในฐาน SCOPUS ที่เป็น Q1-Q2 ต่อบทความวิจัยในฐาน SCOPUS ทั้งหมด | F43: ร้อยละ | G43: ผลงานวิจัยที่ตีพิมพ์ใน SCOPUS ที่เป็น Q1-Q2 ฐานข้อมูล https://www.scopus.com/ • เป็นเว็บไซต์ฐานข้อมูลที่รวบรวมวารสารและบทความวิจัย ระดับนานาชาติ • ใช้สืบค้นบทความวิจัย ข้อมูลการตีพิมพ์ของนักวิจัย และ ข้อมูลของวารสาร Quartile Score ก็คือรูปแบบการประเมินและจัดอันดับวารสารวิชาการประเภทหนึ่ง เป็นการแบ่งกลุ่มวารสารในแต่ละสาขาวิชาว่าใครอยู่ในกลุ่มอันดับที่เท่าไหร่ ซึ่ง Quartile Score แบ่งออกเป็นสี่กลุ่มคือ Q1 Q2 Q3 Q4 ตามลำดับ | H43: 1. ข้อมูลและรายละเอียดผลงานวิจัยที่ตีพิมพ์ในฐาน SCOPUS ทั้งหมด 2. จำนวนผลงานวิจัยที่ตีพิมพ์ใน SCOPUS ที่เป็น Q1-Q2 | I43: จำนวนผลงานวิจัยที่ตีพิมพ์ใน SCOPUS ที่เป็น Q1-Q2 ในรอบปีงบประมาณ X 100 | J43: ผลงานวิจัยที่ตีพิมพ์ในฐาน SCOPUSทั้งหมด ในรอบปีงบประมาณ | K43: ปี พ.ศ. (ปีปฏิทิน) | L43: สำนักงานส่งเสริมและบริหารงานวิจัยฯ | M43: น.ส.นาวินี สุตัญตั้งใจ โทร. 3042 | O43: จำนวนผลงานวิจัยที่ตีพิมพ์ในฐาน Scopus Q1-Q2; จำนวนผลงานวิจัยที่ตีพิมพ์ ทั้งหมด | P43: กลยุทธ์ที่ 2 | Q43: =Table3[[#This Row],[KPIsID]] -> S2B29:
A44: กลยุทธ์ที่ 2: การวิจัยที่มีคุณภาพสูงและสร้างองค์ความรู้เพื่อพัฒนาคุณภาพชีวิตและเศรษฐกิจของพื้นที่ | B44: 2.2) เพิ่มจำนวนผลงานวิจัยที่ตีพิมพ์ในระดับนานาชาติและมีคุณภาพในระดับ Q1-Q2 | C44: S2C32 | D44: ตัวชี้วัดแผนปฏิบัติการ | E44: PI 2.2.1.1 ร้อยละผลงานวิจัยที่ตีพิมพ์ในฐาน SCOPUS ต่อผลงานวิจัยที่ตีพิมพ์ทั้งหมด (รวมระดับชาติและนานาชาติที่พิมพ์ในฐาน SCOPUS) | F44: ร้อยละ | G44: บทความจากผลงานวิจัยที่ได้รับการตีพิมพ์ในวารสารวิชาการ (Journal) ที่มีชื่อปรากฏอยู่ในฐานข้อมูล Thai-Journal Citation Index Centre (TCI) หรือวารสารวิชาการระดับชาติตามประกาศของ สมศ. (รวมระดับชาติและนานาชาติที่พิมพ์ในฐาน SCOPUS) | H44: 1. ข้อมูลและรายละเอียดผลงานวิจัยหรือบทความวิชาการที่ตีพิมพ์ในวารสารวิชาการระดับชาติทั้งหมด 2. ข้อมูลและรายละเอียดผลงานวิจัยหรือบทความวิชาการที่ตีพิมพ์ในวารสารวิชาการระดับนานาชาติทั้งหมด | I44: จำนวนผลงานวิจัยหรือบทความวิชาการที่ตีพิมพ์ในวารสารวิชาการระดับนานาชาติทั้งหมด X 100 | J44: จำนวนผลงานวิจัยหรือบทความวิชาการที่ตีพิมพ์ในวารสารวิชาการระดับชาติทั้งหมด + จำนวนผลงานวิจัยหรือบทความวิชาการที่ตีพิมพ์ในวารสารวิชาการระดับนานาชาติทั้งหมด | K44: ปี พ.ศ. (ปีปฏิทิน) | L44: สำนักงานส่งเสริมและบริหารงานวิจัยฯ | M44: น.ส.นาวินี สุตัญตั้งใจ โทร. 3042 | O44: 1) จำนวนผลงานวิจัยที่ตีพิมพ์ในวารสารวิชาการระดับนานาชาติทั้งหมด; 2) จำนวนบทความวิชาการที่ตีพิมพ์ในวารสารวิชาการระดับนานาชาติทั้งหมด | P44: กลยุทธ์ที่ 2 | Q44: =Table3[[#This Row],[KPIsID]] -> S2C32
A45: กลยุทธ์ที่ 2: การวิจัยที่มีคุณภาพสูงและสร้างองค์ความรู้เพื่อพัฒนาคุณภาพชีวิตและเศรษฐกิจของพื้นที่ | B45: 2.2) เพิ่มจำนวนผลงานวิจัยที่ตีพิมพ์ในระดับนานาชาติและมีคุณภาพในระดับ Q1-Q2 | C45: S2C35 | D45: ตัวชี้วัดแผนปฏิบัติการ | E45: PI 2.2.2.1 จำนวนกลุ่มวิจัย (นับจำนวนในปีนั้น) | F45: กลุ่ม | G45: กลุ่มวิจัยที่ได้รับการรับรองตามประกาศของมหาวิทยาลัย | H45: 1. ข้อมูลและรายละเอียดขอกลุ่มวิจัยที่ได้รับการรับรองตามประกาศของมหาวิทยาลัย | I45: จำนวนกลุ่มวิจัยที่ได้รับการรับรองตามประกาศของมหาวิทยาลัย | J45: -ไม่มี- | K45: ทุกไตรมาส | L45: สำนักงานส่งเสริมและบริหารงานวิจัยฯ | M45: - | O45: จำนวนกลุ่มวิจัยที่ได้รับรองจากมหาวิทยาลัย ในรอบปีงบประมาณ; จำนวนกลุ่มวิจัยที่ได้รับรองจากมหาวิทยาลัย ทั้งหมด | P45: กลยุทธ์ที่ 2 | Q45: =Table3[[#This Row],[KPIsID]] -> S2C35
A46: กลยุทธ์ที่ 2: การวิจัยที่มีคุณภาพสูงและสร้างองค์ความรู้เพื่อพัฒนาคุณภาพชีวิตและเศรษฐกิจของพื้นที่ | B46: 2.2) เพิ่มจำนวนผลงานวิจัยที่ตีพิมพ์ในระดับนานาชาติและมีคุณภาพในระดับ Q1-Q2 | C46: S2C36 | D46: ตัวชี้วัดแผนปฏิบัติการ | E46: PI 2.2.2.2 ร้อยละของผลงานวิจัยของกลุ่มวิจัยเฉพาะทางที่ตีพิมพ์ในระดับนานาชาติ (ต่อผลงานวิจัยที่ตีพิมพ์ทั้งหมดของกลุ่มวิจัย) | F46: ร้อยละ | G46: จำนวนผลงานวิจัยของกลุ่มวิจัยเฉพาะทาง (กลุ่มวิจัยที่ได้รับการรับรองตามประกาศของมหาวิทยาลัย) ที่ได้รับตีพิมพ์ในระดับนานาชาติ | H46: 1. ข้อมูลและรายละเอียดโครงการวิจัยและผลงานวิจัยของกลุ่มวิจัยเฉพาะทาง (กลุ่มวิจัยที่ได้รับการรับรองตามประกาศของมหาวิทยาลัย) ที่ได้รับตีพิมพ์ในระดับนานาชาติ | I46: จำนวนผลงานวิจัยของกลุ่มวิจัยเฉพาะทาง (กลุ่มวิจัยที่ได้รับการรับรองตามประกาศของมหาวิทยาลัย) ที่ได้รับตีพิมพ์ในระดับนานาชาติ | J46: -ไม่มี- | K46: ทุกไตรมาส | L46: สำนักงานส่งเสริมและบริหารงานวิจัยฯ | M46: - | O46: จำนวนผลงานวิจัยของกลุ่มวิจัยเฉพาะทางที่ได้รับตีพิมพ์ในระดับนานาชาติ | P46: กลยุทธ์ที่ 2 | Q46: =Table3[[#This Row],[KPIsID]] -> S2C36
A47: กลยุทธ์ที่ 3: การบริการวิชาการเพื่อยกระดับคุณภาพชีวิตให้แก่สังคม | B47: 3.1) เพื่อพัฒนาคุณภาพชีวิตและเศรษฐกิจในชุมชนเป้าหมาย | C47: S3B5 | D47: ตัวชี้วัดเชิงกลยุทธ์ | E47: SI 3.1.1 รายได้ที่เพิ่มขึ้นเฉลี่ยต่อเดือนของครัวเรือนในชุมชนเป้าหมาย (บาท) | F47: บาท | G47: รายได้ของครัวเรือน : จำนวนครัวเรือนที่เข้าร่วมโครงการในชุมชนเป้าหมาย ที่มหาวิทยาลัยกำหนดและมีรายได้เพิ่มขึ้นภายหลังจากการเข้าร่วมโครงการ/กิจกรรมการให้บริการวิชาการที่มุ่งเน้นการเพิ่มรายได้ เช่น โครงการฝึกอบรม โครงการพัฒนาด้านการบริการ โครงการพัฒนาผลิตภัณฑ์ โครงการต่อยอดผลิตภัณฑ์ โครงการพัฒนาทักษะเชิงธุรกิจ เป็นต้น | H47: 1. ข้อมูลโครงการหรือชุมชนเป้าหมาย ที่ได้รับการบริการวิชาการที่มุ่งเน้นการเพิ่มรายได้ ในรอบปีงบประมาณ 2. จำนวนครัวเรือนที่เข้าร่วมโครงการที่มุ่งเน้นการเพิ่มรายได้ทั้งหมด 3. รายได้เฉลี่ยต่อเดือนของครัวเรือนที่เข้าร่วมโครงการก่อนเข้ารับบริการวิชาการที่มุ่งเน้นการเพิ่มรายได้ 4. รายได้เฉลี่ยต่อเดือนของครัวเรือนที่เข้าร่วมโครงการหลังเข้ารับบริการวิชาการที่มุ่งเน้นการเพิ่มรายได้ | I47: ผลรวมของ (รายได้เฉลี่ยต่อเดือนของครัวเรือนที่เข้าร่วมโครงการหลังเข้ารับบริการ - รายได้เฉลี่ยต่อเดือนของครัวเรือนที่ร่วมโครงการก่อนเข้าโครงการ) | J47: จำนวนครัวเรือนในชุมชนเป้าหมาย | K47: ทุกไตรมาส | L47: สำนักงานส่งเสริมและบริหารงานวิจัยฯ | M47: - | O47: 1) รายได้เฉลี่ยต่อเดือนของครัวเรือนที่เข้าร่วมโครงการก่อนรับบริการ; 2) รายได้เฉลี่ยต่อเดือนของครัวเรือนที่เข้าร่วมโครงการหลังรับบริการ; 3) จำนวนครัวเรือนในชุมชนเป้าหมาย | P47: กลยุทธ์ที่ 3 | Q47: =Table3[[#This Row],[KPIsID]] -> S3B5
A48: กลยุทธ์ที่ 3: การบริการวิชาการเพื่อยกระดับคุณภาพชีวิตให้แก่สังคม | B48: 3.1) เพื่อพัฒนาคุณภาพชีวิตและเศรษฐกิจในชุมชนเป้าหมาย | C48: S3B6 | D48: ตัวชี้วัดเชิงกลยุทธ์ | E48: SI 3.1.2 ร้อยละของประชากรในชุมชนเป้าหมายที่เป็นกลุ่มโรคไม่ติดต่อเรื้อรัง (NCDs) ที่มีสภาวะที่ควบคุมได้ | F48: ร้อยละ | G48: โรค NCDs หรือ non-communicable diseases เป็นกลุ่มโรคไม่ติดต่อเรื้อรัง คือ ไม่ได้เกิดจากเชื้อโรคและไม่สามารถแพร่กระจายจากคนสู่คนได้ แต่เป็นโรคที่เกิดจากนิสัยหรือพฤติกรรมการดำเนินชีวิต ซึ่งจะมีการดำเนินโรคอย่างช้าๆ ค่อยๆ สะสมอาการอย่างต่อเนื่อง และเมื่อมีอาการของโรคแล้วมักจะเกิดการเรื้อรังของโรคด้วย จึงอาจจัดว่าโรค NCDs เป็นกลุ่มโรคเรื้อรังได้ (focus: โรคเบาหวาน ความดัน และไตเรื้อรัง) | H48: 1. ข้อมูลโครงการหรือชุมชนเป้าหมายเป็นกลุ่มโรคไม่ติดต่อเรื้อรัง (NCDs) ในรอบปีงบประมาณ 2. จำนวนประชากรในชุมชนเป้าหมายที่เป็นกลุ่มโรคไม่ติดต่อเรื้อรัง (NCDs) ทั้งหมด 3. จำนวนผู้เข้าร่วมโครงการที่เป็นกลุ่มโรคไม่ติดต่อเรื้อรัง (NCDs) ที่มีสุขภาวะที่สามารถควบคุมได้ (เช่น ระดับน้ำตาลในเลือด ควบคุมระบบไต) | I48: จำนวนผู้เข้าร่วมโครงการที่เป็นกลุ่มโรคไม่ติดต่อเรื้อรัง (NCDs) ที่มีสุขภาวะที่ดีขึ้น (focus: โรคเบาหวาน ความดัน และไตเรื้อรัง เช่น ระดับน้ำตาลในเลือด ควบคุมระบบไต) X 100 | J48: จำนวนประชากรในชุมชนเป้าหมายที่ เป็นกลุ่มโรคไม่ติดต่อเรื้อรัง (NCDs) | K48: ทุกไตรมาส | L48: สำนักงานส่งเสริมและบริหารงานวิจัยฯ | M48: - | O48: 1) จำนวนผู้เข้าร่วมโครงการที่เป็นกลุ่มโรคไม่ติดต่อเรื้อรัง (NCDs) ที่มีสุขภาวะที่ดีขึ้น; 2) จำนวนประชากรในชุมชนเป้าหมายที่ เป็นกลุ่มโรคไม่ติดต่อเรื้อรัง (NCDs) | P48: กลยุทธ์ที่ 3 | Q48: =Table3[[#This Row],[KPIsID]] -> S3B6
A49: กลยุทธ์ที่ 3: การบริการวิชาการเพื่อยกระดับคุณภาพชีวิตให้แก่สังคม | B49: 3.1) เพื่อพัฒนาคุณภาพชีวิตและเศรษฐกิจในชุมชนเป้าหมาย | C49: S3B7 | D49: ตัวชี้วัดเชิงกลยุทธ์ | E49: SI 3.1.3 จำนวนชุมชนเป้าหมายที่มีการจัดการสิ่งแวดล้อมตามมาตรฐานหรือมีที่อยู่อาศัยที่ดีขึ้น | F49: ชุมชน | G49: 1. การจัดการสิ่งแวดล้อมตามมาตรฐาน: ชุมชนเป้าหมายได้รับความรู้และสามารถการจัดการสิ่งแวดล้อมตามมาตรฐาน เช่น ISO14000 หรือ ISO14001 ซึ่งเป็นมาตรฐานสำหรับระบบการบริหารจัดการสิ่งแวดล้อม หรือมาตรฐานอื่นๆ ที่เกี่ยวข้องกับการจัดการอยู่อาศัยที่ดีขึ้น เช่น 1) การสุขาภิบาลที่อยู่อาศัย เป็นการจัดการและควบคุมดูแลที่อยู่อาศัยหรือสถาบันให้สะอาดถูกสุขลักษณะ 2) หลักการสุขาภิบาลที่อยู่อาศัย ควรจัดให้เป็นไปตามความต้องการขั้นพื้นฐานของบ้านพักอาศัย 2. การจัดการที่อยู่อาศัยที่ดีขึ้น: ชุมชนเป้าหมายได้รับการพัฒนา การสร้าง ปรับปรุง หรือออกแบบที่พักอาศัยสำหรับผู้มีรายได้น้อย ผู้ด้อยโอกาส หรือผู้สูงอายุ | H49: 1. ข้อมูลโครงการเพื่อพัฒนาคุณภาพชีวิตและเศรษฐกิจในชุมชนเป้าหมาย (การจัดการสิ่งแวดล้อมตามมาตรฐาน เกี่ยวกับที่อยู่) ในรอบปีงบประมาณ 2. จำนวนชุมชนเป้าหมายที่มีการจัดการสิ่งแวดล้อมตามมาตรฐาน หรือมีที่อยู่อาศัยที่ดีขึ้น | I49: จำนวนชุมชนเป้าหมายที่มีการจัดการสิ่งแวดล้อมตามมาตรฐาน หรือมีที่อยู่อาศัยที่ดีขึ้น ในรอบปีงบประมาณ | J49: - ไม่มี - | K49: ทุกไตรมาส | L49: สำนักงานส่งเสริมและบริหารงานวิจัยฯ | M49: - | O49: จำนวนชุมชนเป้าหมายที่มีการจัดการสิ่งแวดล้อมตามมาตรฐาน หรือมีที่อยู่อาศัยที่ดีขึ้น ในรอบปีงบประมาณ | P49: กลยุทธ์ที่ 3 | Q49: =Table3[[#This Row],[KPIsID]] -> S3B7
A50: กลยุทธ์ที่ 3: การบริการวิชาการเพื่อยกระดับคุณภาพชีวิตให้แก่สังคม | B50: 3.1) เพื่อพัฒนาคุณภาพชีวิตและเศรษฐกิจในชุมชนเป้าหมาย | C50: S3C8 | D50: ตัวชี้วัดแผนปฏิบัติการ | E50: PI 3.1.1.1 จำนวนผู้เข้าร่วมโครงการที่มีรายได้เพิ่มขึ้นจากการรับบริการ (ด้านเศรษฐกิจ) | F50: คน | G50: จำนวนผู้เข้าร่วมโครงการบริการวิชาการของมหาวิทยาลัย โดยเน้นด้านเศรษฐกิจ เช่น กิจกรรม/โครงการที่เกี่ยวกับการผลิต การจำหน่าย จ่ายจาก และการบริโภคใช้สอย ๆ ของชุมชน ที่สามารถทำให้มีรายได้เฉลี่ยต่อเดือนเพิ่มขึ้นหลังเข้าร่วมโครงการ | H50: 1. ข้อมูลโครงการบริการวิชาการที่ให้บริการวิชาการ (ด้านเศรษฐกิจ) ในรอบปีงบประมาณ 2. จำนวนผู้เข้าร่วมโครงการบริการวิชาการของมหาวิทยาลัย โดยเน้นด้านเศรษฐกิจ 3. รายได้เฉลี่ยต่อเดือนของผู้ร่วมโครงการก่อนเข้ารับบริการวิชาการ 4. รายได้เฉลี่ยต่อเดือนของผู้เข้าร่วมโครงการหลังเข้ารับบริการวิชาการ | I50: จำนวนผู้เข้าร่วมโครงการที่มีรายได้เพิ่มขึ้นจากการรับบริการวิชาการ (รายได้เฉลี่ยต่อเดือนของผู้เข้าร่วมโครงการหลังเข้ารับบริการ - รายได้เฉลี่ยต่อเดือนผู้ร่วมโครงการก่อนเข้าโครงการ) ในรอบปีงบประมาณ | J50: - ไม่มี - | K50: ทุกไตรมาส | L50: สำนักงานส่งเสริมและบริหารงานวิจัยฯ | M50: คณะ/วิทยาลัย | O50: 1) จำนวนผู้เข้าร่วมโครงการที่มีรายได้เพิ่มขึ้นก่อนการเข้ารับบริการ; 2) จำนวนผู้เข้าร่วมโครงการที่มีรายได้เพิ่มขึ้นหลังการเข้ารับบริการ | P50: กลยุทธ์ที่ 3 | Q50: =Table3[[#This Row],[KPIsID]] -> S3C8
A51: กลยุทธ์ที่ 3: การบริการวิชาการเพื่อยกระดับคุณภาพชีวิตให้แก่สังคม | B51: 3.1) เพื่อพัฒนาคุณภาพชีวิตและเศรษฐกิจในชุมชนเป้าหมาย | C51: S3C9 | D51: ตัวชี้วัดแผนปฏิบัติการ | E51: PI 3.1.1.2 จำนวนผู้เข้าร่วมโครงการกลุ่มโรคไม่ติดต่อเรื้อรัง (NCDs) ที่มีสุขภาวะที่ควบคุมได้ | F51: คน | G51: โรค NCDs หรือ non-communicable diseases เป็นกลุ่มโรคไม่ติดต่อเรื้อรัง คือ ไม่ได้เกิดจากเชื้อโรคและไม่สามารถแพร่กระจายจากคนสู่คนได้ แต่เป็นโรคที่เกิดจากนิสัยหรือพฤติกรรมการดำเนินชีวิต ซึ่งจะมีการดำเนินโรคอย่างช้าๆ ค่อยๆ สะสมอาการอย่างต่อเนื่อง และเมื่อมีอาการของโรคแล้วมักจะเกิดการเรื้อรังของโรคด้วย จึงอาจจัดว่าโรค NCDs เป็นกลุ่มโรคเรื้อรังได้ (focus: โรคเบาหวาน ความดัน และไตเรื้อรัง) | H51: 1. ข้อมูลโครงการหรือชุมชนเป้าหมายเป็นกลุ่มโรคไม่ติดต่อเรื้อรัง (NCDs) ในรอบปีงบประมาณ 2. จำนวนผู้เข้าร่วมโครงการในชุมชนเป้าหมาย เป็นกลุ่มโรคไม่ติดต่อเรื้อรัง (NCDs) ที่ได้รับการบริการวิชาการ หรือการให้ความรู้เกี่ยวกับพฤติกรรมการดำเนินชีวิตที่ถูกต้องและเหมาะสมกับสภาพแวดล้อมของชุมชน ทั้งหมด 3. จำนวนผู้เข้าร่วมโครงการที่เป็นกลุ่มโรคไม่ติดต่อเรื้อรัง (NCDs) ที่มีสุขภาวะที่สามารถควบคุมได้ (เช่น ระดับน้ำตาลในเลือด ควบคุมระบบไต) | I51: จำนวนผู้เข้าร่วมโครงการที่เป็นกลุ่มโรคไม่ติดต่อเรื้อรัง (NCDs) ที่มีสุขภาวะที่ดีขึ้น (focus: โรคเบาหวาน ความดัน และไตเรื้อรัง เช่น ระดับน้ำตาลในเลือด ควบคุมระบบไต) | J51: - ไม่มี - | K51: ทุกไตรมาส | L51: สำนักงานส่งเสริมและบริหารงานวิจัยฯ | M51: วิทยาลัยแพทยศาสตร์ฯ/คณะพยาบาลศาสตร์/คณะเภสัชศาสตร์ | O51: จำนวนผู้เข้าร่วมโครงการที่เป็นกลุ่มโรคไม่ติดต่อเรื้อรัง (NCDs) ที่มีสุขภาวะที่ดีขึ้น | P51: กลยุทธ์ที่ 3 | Q51: =Table3[[#This Row],[KPIsID]] -> S3C9
A52: กลยุทธ์ที่ 3: การบริการวิชาการเพื่อยกระดับคุณภาพชีวิตให้แก่สังคม | B52: 3.1) เพื่อพัฒนาคุณภาพชีวิตและเศรษฐกิจในชุมชนเป้าหมาย | C52: S3C10 | D52: ตัวชี้วัดแผนปฏิบัติการ | E52: PI 3.1.1.3 จำนวนชุมชนที่เข้าร่วมโครงการที่มีการจัดการสิ่งแวดล้อม (ขยะ/น้ำเสีย) ที่ดีขึ้นเทียบก่อนและหลังเข้าร่วมโครงการ | F52: ร้อยละ | G52: จำนวนชุมชนที่เข้าร่วมโครงการได้รับความรู้และสามารถการจัดการสิ่งแวดล้อมตามมาตรฐาน เช่น ISO14000 ISO14001 หรือมาตรฐานอื่นๆ ที่เกี่ยวข้องกับการจัดการสิ่งแวดล้อมและการจัดการสุขาภิบาล (โดยเน้นเรื่อง ขยะ/น้ำเสีย) | H52: 1. ข้อมูลโครงการที่มีการจัดการสิ่งแวดล้อม (ขยะ/น้ำเสีย) ในรอบปีงบประมาณ 2. จำนวนชุมชนที่เข้าร่วมโครงการที่มีการจัดการสิ่งแวดล้อม (ขยะ/น้ำเสีย) ทั้งหมด 3. จำนวนชุมชนที่เข้าร่วมโครงการที่มีการจัดการสิ่งแวดล้อม (ขยะ/น้ำเสีย) ที่ดีขึ้นเทียบก่อนและหลังเข้าร่วมโครงการ โดยผ่านการประเมินผลประสิทธิภาพการบริหารจัดการระบบกำจัดขยะมูลฝอยและระบบน้ำเสียรวม | I52: จำนวนชุมชนที่เข้าร่วมโครงการที่มีการจัดการสิ่งแวดล้อม (ขยะ/น้ำเสีย) ที่ดีขึ้นเทียบก่อนและหลังเข้าร่วมโครงการ โดยผ่านการประเมินผลประสิทธิภาพการบริหารจัดการระบบกำจัดขยะมูลฝอยและระบบน้ำเสียรวม | J52: - ไม่มี - | K52: ทุกไตรมาส | L52: สำนักงานส่งเสริมและบริหารงานวิจัยฯ | M52: สำนักงานบริหารกายภาพและสิ่งแวดล้อม/คณะ/วิทยาลัย | O52: จำนวนชุมชนที่เข้าร่วมโครงการที่มีการจัดการสิ่งแวดล้อม (ขยะ/น้ำเสีย) | P52: กลยุทธ์ที่ 3 | Q52: =Table3[[#This Row],[KPIsID]] -> S3C10
A53: กลยุทธ์ที่ 3: การบริการวิชาการเพื่อยกระดับคุณภาพชีวิตให้แก่สังคม | B53: 3.1) เพื่อพัฒนาคุณภาพชีวิตและเศรษฐกิจในชุมชนเป้าหมาย | C53: S3C11 | D53: ตัวชี้วัดแผนปฏิบัติการ | E53: PI 3.1.1.4 จำนวนผลงานด้านการพัฒนาที่อยู่อาศัยสำหรับผู้มีรายได้น้อย ผู้ด้อยโอกาส หรือผู้สูงอายุที่ถูกนำไปขยายผล | F53: ผลงาน | G53: ผลงานด้านการพัฒนาที่อยู่อาศัย คือ ผลงานที่เกี่ยวกับที่อยู่อาศัย ที่ทำให้เกิดผลเจริญงอกงาม อันเป็นสิ่งยั่งยืนถาวร หรือที่ถูกนำไปขยายผลดีขึ้นจากเดิม สามารถตอบสนองผู้ที่ได้ใช้ประโยชน์ และได้รับการพึงพอใจต่อผลงานที่ได้รับการพัฒนา โดยผลงานด้านการพัฒนาที่อยู่อาศัยนี้ สำหรับผู้มีรายได้น้อย (รายได้ไม่เกิน 150,000 บาทต่อปี) ผู้ด้อยโอกาส หรือผู้สูงอายุ | H53: 1. ข้อมูลโครงการด้านการพัฒนาที่อยู่อาศัย สำหรับผู้มีรายได้น้อย ผู้ด้อยโอกาส หรือผู้สูงอายุ ในรอบปีงบประมาณ 2. ผลงานด้านการพัฒนาที่อยู่อาศัยสำหรับผู้มีรายได้น้อย (รายได้ไม่เกิน 150,000 บาทต่อปี) ผู้ด้อยโอกาส หรือผู้สูงอายุ จากโครงการฯ ที่ถูกนำไปขยายผล ในรอบปีงบประมาณ | I53: จำนวนผลงานด้านการพัฒนาที่อยู่อาศัยสำหรับผู้มีรายได้น้อย (รายได้ไม่เกิน 150,000 บาทต่อปี) ผู้ด้อยโอกาส หรือผู้สูงอายุ จากโครงการฯ ที่ถูกนำไปขยายผล | J53: - ไม่มี - | K53: ทุกไตรมาส | L53: สำนักงานส่งเสริมและบริหารงานวิจัยฯ | M53: สำนักงานบริหารกายภาพและสิ่งแวดล้อม/คณะ/วิทยาลัย | O53: จำนวนผลงานด้านการพัฒนาที่อยู่อาศัยสำหรับผู้มีรายได้น้อย (รายได้ไม่เกิน 150,000 บาทต่อปี) ผู้ด้อยโอกาส หรือผู้สูงอายุ จากโครงการฯ ที่ถูกนำไปขยายผล | P53: กลยุทธ์ที่ 3 | Q53: =Table3[[#This Row],[KPIsID]] -> S3C11
A54: กลยุทธ์ที่ 3: การบริการวิชาการเพื่อยกระดับคุณภาพชีวิตให้แก่สังคม | B54: 3.2) พัฒนาผู้ประกอบการเพื่อเพิ่มขีดความสามารถในการแข่งขัน | C54: S3B16 | D54: ตัวชี้วัดเชิงกลยุทธ์ | E54: SI 3.2.1 ร้อยละของผู้ประกอบการที่เข้ารับบริการมีรายได้เพิ่มขึ้นไม่น้อยกว่า 10% | F54: ร้อยละ | G54: ผู้ประกอบการ คือ บุคคลซึ่งขายสินค้าหรือให้บริการในทางธุรกิจหรือวิชาชีพ ที่เข้ารับบริการวิชาการที่มหาวิทยาลัยได้จัดให้บริการ เช่น โครงการฝึกอบรม โครงการพัฒนาด้านการบริการ โครงการพัฒนาผลิตภัณฑ์ โครงการต่อยอดผลิตภัณฑ์ โครงการเตรียมความพร้อมธุรกิจสู่สากล โครงการพัฒนาทักษะผู้ประกอบการด้านต่างๆ การเพิ่มยอดขาย เป็นต้น | H54: 1. ข้อมูลโครงการบริการวิชาการสำหรับผู้ประกอบการ ในรอบปีงบประมาณ 1. ข้อมูลผู้ประกอบการที่โครงการบริการวิชาการฯ 2. ข้อมูลการสำรวจรายได้ของผู้ประกอบการภายหลังที่โครงการบริการวิชาการฯ (ไม่น้อยกว่า 3 เดือน) | I54: จำนวนของผู้ประกอบการที่เข้ารับบริการมีรายได้เพิ่มขึ้นไม่น้อยกว่า 10% ในรอบปีงบประมาณ | J54: จำนวนผู้ประกอบการที่เข้ารับบริการทั้งหมด ในรอบปีงบประมาณ | K54: ทุกไตรมาส | L54: สำนักงานส่งเสริมและบริหารงานวิจัยฯ | M54: - | O54: 1) จำนวนของผู้ประกอบการที่เข้ารับบริการมีรายได้เพิ่มขึ้นไม่น้อยกว่า 10% ในรอบปีงบประมาณ; 2) จำนวนผู้ประกอบการที่เข้ารับบริการทั้งหมด ในรอบปีงบประมาณ | P54: กลยุทธ์ที่ 3 | Q54: =Table3[[#This Row],[KPIsID]] -> S3B16
A55: กลยุทธ์ที่ 3: การบริการวิชาการเพื่อยกระดับคุณภาพชีวิตให้แก่สังคม | B55: 3.2) พัฒนาผู้ประกอบการเพื่อเพิ่มขีดความสามารถในการแข่งขัน | C55: S3C19 | D55: ตัวชี้วัดแผนปฏิบัติการ | E55: PI 3.2.1.1 จำนวนผู้ประกอบการ Start Up ที่ได้รับการสร้าง | F55: คน | G55: จำนวนผู้ประกอบการ Startup ที่ได้รับการสร้าง คือ ผู้ประกอบการ Startup รายใหม่ หรือเปิดบริษัทขึ้นมาใหม่เพื่อรองรับธุรกิจต่างๆ และรวมถึงการทำธุรกิจให้เติบโต เช่น ธุรกิจเกี่ยวกับการนำเทคโนโลยี หรือนวัตกรรมมาใช้ในการประกอบธุกิจ เพื่อสร้างรายได้ โดยเกิดจากการพัฒนาผู้ประกอบการของมหาวิทยาลัย | H55: 1. ข้อมูลโครงการบริการวิชาการสำหรับการพัฒนาผู้ประกอบการ Startup ในรอบปีงบประมาณ 2. ข้อมูลผู้ประกอบการ Startup รายใหม่ ที่เกิดจากการพัฒนาของมหาวิทยาลัย ในรอบปีงบประมาณ | I55: จำนวนผู้ประกอบการ Startup รายใหม่ ที่เกิดจากการพัฒนาของมหาวิทยาลัย ในรอบปีงบประมาณ | J55: - ไม่มี - | K55: ทุกไตรมาส | L55: สำนักงานส่งเสริมและบริหารงานวิจัยฯ | M55: คณะ/วิทยาลัย/สำนัก | O55: จำนวนผู้ประกอบการ Startup รายใหม่ ที่เกิดจากการพัฒนาของมหาวิทยาลัย ในรอบปีงบประมาณ | P55: กลยุทธ์ที่ 3 | Q55: =Table3[[#This Row],[KPIsID]] -> S3C19
A56: กลยุทธ์ที่ 3: การบริการวิชาการเพื่อยกระดับคุณภาพชีวิตให้แก่สังคม | B56: 3.2) พัฒนาผู้ประกอบการเพื่อเพิ่มขีดความสามารถในการแข่งขัน | C56: S3C23 | D56: ตัวชี้วัดแผนปฏิบัติการ | E56: PI 3.2.2.1 จำนวนผู้ประกอบการที่ได้รับการยกระดับ | F56: คน | G56: จำนวนผู้ประกอบการที่ได้รับการยกระดับ คือ ผู้ประกอบการที่เข้าร่วม หรือได้รับการสนับสนุนให้สามารถผลิตผลิตภัณฑ์ต้นแบบ หรือได้รับการส่งเสริมมาตรฐานสินค้า โดยการให้ความรู้เกี่ยวกับมาตรฐานสินค้า การตรวจวิเคราะห์มาตรฐาน การตรวจฉลากโภชนาการ เพื่อสร้างความน่าเชื่อถือการสร้างมูลค่าเพิ่มให้กับผลิตภัณฑ์ รวมถึงการตรวจประเมินสถานประกอบการเพื่อเตรียมความพร้อมในการยื่นขอมาตรฐานผลิตภัณฑ์หรือบริการ ให้มีศักยภาพสามารถแข่งขันในตลาดได้อย่างยั่งยืน | H56: 1. ข้อมูลโครงการบริการวิชาการสำหรับผู้ประกอบการเพื่อยกระดับ เช่น การสร้างหรือการยกระดับมาตรฐานผลิตภัณฑ์/สินค้า หรือการยกระดับให้บริการไปสู่มาตรฐานต่างๆ การขยายตลาดสู่ระดับสากล เป็นตัน ในรอบปีงบประมาณ 2. ข้อมูลผู้ประกอบการที่ได้รับการพัฒนาหรือเข้าร่วมโครงการบริการวิชาการเพื่อยกระดับผลิตภัณฑ์ที่หรือบริการ | I56: ผู้ประกอบการที่ได้รับการยกระดับผลิตภัณฑ์หรือบริการ ในรอบปีงบประมาณ | J56: - ไม่มี - | K56: ทุกไตรมาส | L56: สำนักงานส่งเสริมและบริหารงานวิจัยฯ | M56: คณะ/วิทยาลัย/สำนัก | O56: 1) จำนวนผู้ประกอบการที่ได้รับการยกระดับผลิตภัณฑ์; 2) จำนวนผู้ประกอบการที่ได้รับการยกระดับการให้บริการ ในรอบปีงบประมาณ; 3) จำนวนผู้ประกอบการที่ได้รับการยกระดับผลิตภัณฑ์; 4) จำนวนผู้ประกอบการที่ได้รับการยกระดับการให้บริการ ทั้งหมด | P56: กลยุทธ์ที่ 3 | Q56: =Table3[[#This Row],[KPIsID]] -> S3C23
A57: กลยุทธ์ที่ 3: การบริการวิชาการเพื่อยกระดับคุณภาพชีวิตให้แก่สังคม | B57: 3.2) พัฒนาผู้ประกอบการเพื่อเพิ่มขีดความสามารถในการแข่งขัน | C57: S3C24 | D57: ตัวชี้วัดแผนปฏิบัติการ | E57: PI 3.2.2.2 จำนวนผลิตภัณฑ์ที่ได้รับการยกระดับ | F57: ชิ้น | G57: จำนวนผลิตภัณฑ์ที่ได้รับการยกระดับ คือ ผลิตภัณฑ์ที่ได้รับการพัฒนาให้เป็นผลิตภัณฑ์ต้นแบบ หรือได้รับการส่งเสริมมาตรฐาน ให้มีศักยภาพสามารถแข่งขันในตลาด | H57: 1. ข้อมูลโครงการบริการวิชาการสำหรับผู้ประกอบการเพื่อยกระดับ เช่น การสร้างหรือการยกระดับมาตรฐานผลิตภัณฑ์/สินค้า หรือการยกระดับให้บริการไปสู่มาตรฐานต่างๆ การขยายตลาด เป็นตัน ในรอบปีงบประมาณ 2. ข้อมูผลิตภัณฑ์หรือบริการ ที่ได้รับการสร้าง/ยกระดับ ในรอบปีงบประมาณ | I57: จำนวนผลิตภัณฑ์ที่ได้รับการสร้าง/ยกระดับ ในรอบปีงบประมาณ | J57: - ไม่มี - | K57: ทุกไตรมาส | L57: สำนักงานส่งเสริมและบริหารงานวิจัยฯ | M57: คณะ/วิทยาลัย | O57: 1) จำนวนผลิตภัณฑ์ที่ได้รับการสร้าง; 2) จำนวนผลิตภัณฑ์ที่ได้รับการยกระดับ ในรอบปีงบประมาณ | P57: กลยุทธ์ที่ 3 | Q57: =Table3[[#This Row],[KPIsID]] -> S3C24
A58: กลยุทธ์ที่ 3: การบริการวิชาการเพื่อยกระดับคุณภาพชีวิตให้แก่สังคม | B58: 3.3) เพื่อพัฒนาคุณภาพบริการให้ผ่านเกณฑ์มาตรฐานสากล และขยายขอบเขตการให้บริการทางการแพทย์ | C58: S3B29 | D58: ตัวชี้วัดเชิงกลยุทธ์ | E58: SI 3.3.1 รายได้สุทธิจากการให้บริการทางการแพทย์ (รายได้-ค่าใช้จ่ายทั้งหมด-ค่าเสื่อม) | F58: ล้านบาท | G58: รายได้สุทธิจากการให้บริการทางการแพทย์ คือ รายได้ที่เกิดจากการให้บริการทางแพทย์ของโรงพยาบาลมหาวิทยาลัยอุบลราชธานี หลังจากหักค่าใช้จ่ายหรือรายได้หลังจากหักค่าภาษี และค่าธรรมเนียมต่างๆ แล้ว ในรอบปีงบประมาณ หมายเหตุ: รายได้ทั้งหมด - ค่าใช้จ่ายทั้งหมด - ค่าเสื่อม | H58: 1. ข้อมูลรายได้ทั้งหมดที่มาจากการให้บริการทางแพทย์ของโรงพยาบาลมหาวิทยาลัยอุบลราชธานี ในปีงบประมาณ 2. ข้อมูลรายจ่ายทั้งหมดที่เกิดจากการให้บริการทางแพทย์ของโรงพยาบาลมหาวิทยาลัยอุบลราชธานี (ค่าใช้จ่ายทั้งหมด รวมค่าเสื่อม) ในรอบปีงบประมาณ | I58: รายได้ทั้งหมดที่มาจากการให้บริการทางแพทย์ ในรอบปีงบประมาณ - รายจ่ายทั้งหมดที่เกิดจากการให้บริการทางแพทย์ ในรอบปีงบประมาณ | J58: - ไม่มี - | K58: ทุกไตรมาส | L58: วิทยาลัยแพทยศาสตร์ฯ | M58: - | O58: 1) รายได้ทั้งหมดที่มาจากการให้บริการทางแพทย์ ในรอบปีงบประมาณ; 2) รายจ่ายทั้งหมดที่เกิดจากการให้บริการทางแพทย์ ในรอบปีงบประมาณ | P58: กลยุทธ์ที่ 3 | Q58: =Table3[[#This Row],[KPIsID]] -> S3B29
A59: กลยุทธ์ที่ 3: การบริการวิชาการเพื่อยกระดับคุณภาพชีวิตให้แก่สังคม | B59: 3.3) เพื่อพัฒนาคุณภาพบริการให้ผ่านเกณฑ์มาตรฐานสากล และขยายขอบเขตการให้บริการทางการแพทย์ | C59: S3B31 | D59: ตัวชี้วัดเชิงกลยุทธ์ | E59: SI 3.3.2.1 ร้อยละของผู้รับบริการทางการแพทย์ผู้ป่วยนอกที่เพิ่มขึ้น | F59: ร้อยละ | G59: ผู้ป่วยนอก (Out-Patient-Department: OPD) คือ ผู้ป่วยที่เข้ารับการรักษาในโรงพยาบาลมหาวิทยาลัยอุบลราชธานี โดยไม่ต้องนอนพักรักษาตัวในโรงพยาบาล สามารถกลับบ้านได้เลยในวันที่เข้ารับการรักษา โดยนับจำนวนที่เพิ่มขึ้นเป็น OPD visit หมายถึง จำนวนครั้ง (Visit) การใช้บริการผู้ป่วยนอกทุกสิทธิการรักษาที่มารับบริการที่โรงพยาบาล | H59: 1. ข้อมูลผู้ป่วยนอก OPD visit (Out-Patient-Department: OPD) ในรอบปีงบประมาณปัจจุบัน 2. ข้อมูลผู้ป่วยนอก OPD visit (Out-Patient-Department: OPD) ในรอบปีงบประมาณก่อน | I59: (จำนวนผู้ป่วยนอก ในรอบปีงบประมาณปัจจุบัน - จำนวนผู้ป่วยนอก ในรอบปีงบประมาณก่อน) X 100 | J59: จำนวนผู้ป่วยนอก ในรอบปีงบประมาณก่อน | K59: ทุกไตรมาส | L59: วิทยาลัยแพทยศาสตร์ฯ | M59: - | O59: จำนวนผู้ป่วยนอกในรอบปีงบประมาณ | P59: กลยุทธ์ที่ 3 | Q59: =Table3[[#This Row],[KPIsID]] -> S3B31
A60: กลยุทธ์ที่ 3: การบริการวิชาการเพื่อยกระดับคุณภาพชีวิตให้แก่สังคม | B60: 3.3) เพื่อพัฒนาคุณภาพบริการให้ผ่านเกณฑ์มาตรฐานสากล และขยายขอบเขตการให้บริการทางการแพทย์ | C60: S3B32 | D60: ตัวชี้วัดเชิงกลยุทธ์ | E60: SI 3.3.2.2 ร้อยละของผู้รับบริการทางการแพทย์ผู้ป่วยในที่เพิ่มขึ้น | F60: ร้อยละ | G60: ผู้ป่วยใน (Out-Patient-Department: IPD) หมายถึง ผู้ที่ลงทะเบียนเข้ารักษาตัวในหอผู้ป่วยของโรงพยาบาลมหาวิทยาลัยอุบลราชธานี โดยคำสั่งจากแพทย์และให้รวมถึงการรับตัวไว้เป็นผู้ป่วยในแต่ทรุดลงส่งต่อหรือเสียชีวิตก่อน 6 ชั่วโมงด้วย | H60: 1. ข้อมูลผู้ป่วยใน (Out-Patient-Department: IPD) ในรอบปีงบประมาณปัจจุบัน 2. ข้อมูลผู้ป่วยใน (Out-Patient-Department: IPD) ในรอบปีงบประมาณก่อน | I60: (จำนวนผู้ป่วยใน ในรอบปีงบประมาณปัจจุบัน - จำนวนผู้ป่วยใน ในรอบปีงบประมาณก่อน) X 100 | J60: จำนวนผู้ป่วยใน ในรอบปีงบประมาณก่อน | K60: ทุกไตรมาส | L60: วิทยาลัยแพทยศาสตร์ฯ | M60: - | O60: จำนวนผู้ป่วยในในรอบปีงบประมาณ | P60: กลยุทธ์ที่ 3 | Q60: =Table3[[#This Row],[KPIsID]] -> S3B32
A61: กลยุทธ์ที่ 3: การบริการวิชาการเพื่อยกระดับคุณภาพชีวิตให้แก่สังคม | B61: 3.3) เพื่อพัฒนาคุณภาพบริการให้ผ่านเกณฑ์มาตรฐานสากล และขยายขอบเขตการให้บริการทางการแพทย์ | C61: S3B34 | D61: ตัวชี้วัดเชิงกลยุทธ์ | E61: SI 3.3.3.1 ระดับความพึงพอใจของผู้รับบริการผู้ป่วยนอก | F61: ระดับ | G61: ความรู้สึกและความพึงพอใจของผู้ป่วยนอกต่อบริการทางการแพทย์ของโรงพยาบาลมหาวิทยาลัยอุบลราชธานี เพื่อใช้เป็นเครื่องมือในการติดตามประเมินผลการให้บริการในภาพรวมและปรับปรุงคุณภาพการให้บริการของโรงพยาบาลมหาวิทยาลัยอุบลราชธานี (คะแนนความพึงพอใจ 1-5 คะแนน) | H61: 1. คะแนนความพึงพอใจของผู้ป่วยนอกต่อการรับบริการทางการแพทย์ของโรงพยาบาลมหาวิทยาลัยอุบลราชธานี (จำแนกประเด็นการให้บริการ) (ระดับ 1-5 คะแนน) 2. จำนวนผู้ป่วยนอกทั้งหมด OPD visit 3. จำนวนผู้ป่วยภายนอกที่ตอบแบบประเมินความพึงพอใจ | I61: ผลรวมคะแนนเฉลี่ยความพึงพอใจของผู้ป่วยนอกต่อการรับบริการทางการแพทย์ของโรงพยาบาลมหาวิทยาลัยอุบลราชธานี (จำแนกประเด็นการให้บริการ) ทั้งหมด | J61: จำนวนผู้ป่วยภายนอกที่ตอบแบบประเมินความพึงพอใจ | K61: ทุกไตรมาส | L61: วิทยาลัยแพทยศาสตร์ฯ | M61: - | O61: จำนวนผู้ป่วยภายนอกที่ตอบแบบประเมินความพึงพอใจ | P61: กลยุทธ์ที่ 3 | Q61: =Table3[[#This Row],[KPIsID]] -> S3B34
A62: กลยุทธ์ที่ 3: การบริการวิชาการเพื่อยกระดับคุณภาพชีวิตให้แก่สังคม | B62: 3.3) เพื่อพัฒนาคุณภาพบริการให้ผ่านเกณฑ์มาตรฐานสากล และขยายขอบเขตการให้บริการทางการแพทย์ | C62: S3B35 | D62: ตัวชี้วัดเชิงกลยุทธ์ | E62: SI 3.3.3.2 ระดับความพึงพอใจของผู้รับบริการผู้ป่วยใน | F62: ระดับ | G62: ความรู้สึกและความพึงพอใจของผู้ป่วยในต่อบริการทางการแพทย์ของโรงพยาบาลมหาวิทยาลัยอุบลราชธานี เพื่อใช้เป็นเครื่องมือในการติดตามประเมินผลการให้บริการในภาพรวมและปรับปรุงคุณภาพการให้บริการของโรงพยาบาลมหาวิทยาลัยอุบลราชธานี (คะแนนความพึงพอใจ 1-5 คะแนน) | H62: 1. คะแนนความพึงพอใจของผู้ป่วยในต่อการรับบริการทางการแพทย์ของโรงพยาบาลมหาวิทยาลัยอุบลราชธานี (จำแนกประเด็นการให้บริการ) (ระดับ 1-5 คะแนน) 2. จำนวนผู้ป่วยในทั้งหมด 3. จำนวนผู้ป่วยภายในที่ตอบแบบประเมินความพึงพอใจ | I62: ผลรวมคะแนนเฉลี่ยความพึงพอใจของผู้ป่วยในต่อการรับบริการทางการแพทย์ของโรงพยาบาลมหาวิทยาลัยอุบลราชธานี (จำแนกประเด็นการให้บริการ) ทั้งหมด | J62: จำนวนผู้ป่วยภายในที่ตอบแบบประเมินความพึงพอใจ | K62: ทุกไตรมาส | L62: วิทยาลัยแพทยศาสตร์ฯ | M62: - | O62: จำนวนผู้ป่วยภายในที่ตอบแบบประเมินความพึงพอใจ | P62: กลยุทธ์ที่ 3 | Q62: =Table3[[#This Row],[KPIsID]] -> S3B35
A63: กลยุทธ์ที่ 3: การบริการวิชาการเพื่อยกระดับคุณภาพชีวิตให้แก่สังคม | B63: 3.3) เพื่อพัฒนาคุณภาพบริการให้ผ่านเกณฑ์มาตรฐานสากล และขยายขอบเขตการให้บริการทางการแพทย์ | C63: S3B36 | D63: ตัวชี้วัดเชิงกลยุทธ์ | E63: SI 3.3.3.3 ระดับความพึงพอใจของผู้รับบริการตรวจสุขภาพ | F63: ระดับ | G63: ความรู้สึกและความพึงพอใจขอผู้รับบริการตรวจสุขภาพต่อบริการทางการแพทย์ของโรงพยาบาลมหาวิทยาลัยอุบลราชธานี เพื่อใช้เป็นเครื่องมือในการติดตามประเมินผลการให้บริการในภาพรวมและปรับปรุงคุณภาพการให้บริการของโรงพยาบาลมหาวิทยาลัยอุบลราชธานี (คะแนนความพึงพอใจ 1-5 คะแนน) | H63: 1. คะแนนความพึงพอใจของผู้รับบริการตรวจสุขภาพต่อการรับบริการทางการแพทย์ของโรงพยาบาลมหาวิทยาลัยอุบลราชธานี (จำแนกประเด็นการให้บริการ) (ระดับ 1-5 คะแนน) 2. จำนวนผู้รับบริการตรวจสุขภาพทั้งหมด 3. จำนวนผู้รับบริการตรวจสุขภาพที่ตอบแบบประเมินความพึงพอใจ | I63: ผลรวมคะแนนเฉลี่ยความพึงพอใจขอผู้รับบริการตรวจสุขภาพต่อการรับบริการทางการแพทย์ของโรงพยาบาลมหาวิทยาลัยอุบลราชธานี (จำแนกประเด็นการให้บริการ) ทั้งหมด | J63: จำนวนผู้รับบริการตรวจสุขภาพที่ตอบแบบประเมินความพึงพอใจ | K63: ทุกไตรมาส | L63: วิทยาลัยแพทยศาสตร์ฯ | M63: - | O63: จำนวนผู้รับบริการตรวจสุขภาพที่ตอบแบบประเมินความพึงพอใจ | P63: กลยุทธ์ที่ 3 | Q63: =Table3[[#This Row],[KPIsID]] -> S3B36
A64: กลยุทธ์ที่ 3: การบริการวิชาการเพื่อยกระดับคุณภาพชีวิตให้แก่สังคม | B64: 3.3) เพื่อพัฒนาคุณภาพบริการให้ผ่านเกณฑ์มาตรฐานสากล และขยายขอบเขตการให้บริการทางการแพทย์ | C64: S3C37 | D64: ตัวชี้วัดแผนปฏิบัติการ | E64: PI 3.3.1.1 จำนวนเตียงผู้ป่วยใน (Active Bed) | F64: เตียง | G64: เตียง (Bed) หมายถึง เตียงสำหรับให้ผู้ป่วยที่แพทย์สั่งให้นอนรักษา (admit) ในตึกผู้ป่วย/แผนกผู้ป่วย (Ward) พักนอน เพื่อการดูแลรักษาแบบผู้ป่วยใน (In Patient Care) ไม่รวมเตียงรอคลอด เตียงทารกแรกเกิดที่มีอาการผิดปกติเตียงตรวจโรคและเตียงสังเกตอาการ | H64: 1. ข้อมูลจำนวนเตียงที่ให้บริการหรือเตียงผู้ป่วยของโรงพยาบาลมหาวิทยาลัยอุบลราชธานี ที่ผ่านการรับรองมาตรฐานสถานพยาบาลจากสำนักงานหลักประกันสุขภาพแห่งชาติ เขต 10 และสำนักงานสาธารณสุขจังหวัดอุบลราชธานี | I64: จำนวนเตียงผู้ป่วยใน (Active Bed) ของโรงพยบาลมหาวิทยาลัยอุบลราชธานี | J64: - ไม่มี - | K64: ทุกไตรมาส | L64: วิทยาลัยแพทยศาสตร์ฯ | M64: - | O64: จำนวนเตียงผู้ป่วยใน (Active Bed) ของโรงพยาบาลมหาวิทยาลัยอุบลราชธานี | P64: กลยุทธ์ที่ 3 | Q64: =Table3[[#This Row],[KPIsID]] -> S3C37
A65: กลยุทธ์ที่ 3: การบริการวิชาการเพื่อยกระดับคุณภาพชีวิตให้แก่สังคม | B65: 3.3) เพื่อพัฒนาคุณภาพบริการให้ผ่านเกณฑ์มาตรฐานสากล และขยายขอบเขตการให้บริการทางการแพทย์ | C65: S3C38 | D65: ตัวชี้วัดแผนปฏิบัติการ | E65: PI 3.3.2.1 จำนวนศูนย์ความเป็นเลิศการให้บริการทางการแพทย์ (นับสะสม) | F65: จำนวน | G65: หลักการจัดตั้ง “ศูนย์ความเป็นเลิศการให้บริการทางการแพทย์” 1. Super-tertiary Care คือ มีการพัฒนาศักยภาพให้มีความสามารถบริการตรวจ วินิจฉัย ค้นหา คัดกรอง วางแผนบำบัดรักษาผู้ป่วยโรคในระดับที่ยุ่งยาก ซับซ้อน สูงกว่าระดับตติยภูมิทั่วไป โดยทีมผู้เชี่ยวชาญ และเป็นผู้นำเทคโนโลยีทางการแพทย์ที่เหมาะสม และสามารถถ่ายทอดให้หน่วยงานอื่นได้อย่างมีประสิทธิภาพ 2. Referral Center คือ มีการพัฒนาความพร้อมของบุคลากร เครื่องมือ และระบบงานให้สามารถรองรับการส่งต่อผู้ป่วยจากโรงพยาบาลอื่น ที่มีศักยภาพไม่เพียงพอต่อการดูแลรักษา 3. Research and Development Center มีการวิจัยและพัฒนาเพื่อแก้ไขปัญหา พัฒนารูปแบบการจัดบริการ และเสนอแนะเชิงนโยบายที่สาคัญในการลดปัญหาสุขภาพของประชาชน 4. Training Center มีการพัฒนาเพื่อศูนย์การถ่ายทอดความรู้ให้แก่บุคลากรสุขภาพ สามารถขยายผลให้เกิดประโยชน์ต่อประชาชนต่อไป 5. Reference Center มีการพัฒนาเพื่อเป็นแหล่งอ้างอิงเฉพาะด้าน เช่น ด้านข้อมูล ด้านวิชาการ ด้านมาตรฐาน ด้านบุคลากร เป็นต้น 6. National Body and Policy Advocacy มีการพัฒนาเป็นหน่วยงานระดับชาติเพื่อให้เป็นแหล่งอ้างอิงโดยขยายการพัฒนาให้เกิดคุณลักษณะตาม ข้อ 1-5 7. Network มีการพัฒนาศักยภาพตามข้อกาหนดข้างต้น ทั้ง 6 ข้อ จนเกิดประสิทธิภาพ และเป็นประโยชน์สูงสุด โดยดำเนินการในลักษณะเครือข่าย ตั้งแต่ระดับภูมิภาค ระดับกรม ระดับกระทรวง ระดับประเทศ และระหว่างประเทศ | H65: ระดับความเป็นเลิศ ระดับ 1 : สามารถจัดการองค์ความรู้ได้อย่างครบวงจร (Knowledge Management) และสร้างความรู้ด้วยตนเอง มีผลงานเป็นที่ประจักษ์ในระดับชาติ (Generate Knowledge) ระดับ 2 : สามารถทำ Model Development +Technology Assessment +Technology Transfer ระดับ 3 : สามารถเป็น National (Monitor & Evaluation: M&E) หมายเหตุ ศูนย์ความเป็นเลิศการให้บริการทางการแพทย์จะต้องประกอบด้วยหลักเกณฑ์ทั้ง 7 และการแบ่งความเป็นเลิศนั้น ถ้าหากมีคุณสมบัติ 1 ใน 3 ของระดับความเป็นเลิศ จะจัดไว้เป็นระดับกระทรวง ถ้ามีองค์ประกอบของระดับความเป็นเลิศครบทั้ง 3 ระดับ ถือเป็นระดับประเทศ | I65: จำนวนศูนย์ความเป็นเลิศทางการแพทย์ ที่สามารถเปิดให้บริการแก่ประชาชน ในรอบปีงบประมาณ | J65: - ไม่มี - | K65: ไตรมาส 3, 4 | L65: วิทยาลัยแพทยศาสตร์ฯ | M65: - | O65: จำนวนศูนย์ความเป็นเลิศทางด้านการแพทย์ | P65: กลยุทธ์ที่ 3 | Q65: =Table3[[#This Row],[KPIsID]] -> S3C38
A66: กลยุทธ์ที่ 3: การบริการวิชาการเพื่อยกระดับคุณภาพชีวิตให้แก่สังคม | B66: 3.3) เพื่อพัฒนาคุณภาพบริการให้ผ่านเกณฑ์มาตรฐานสากล และขยายขอบเขตการให้บริการทางการแพทย์ | C66: S3C40 | D66: ตัวชี้วัดแผนปฏิบัติการ | E66: PI 3.3.3.1 ผลการรับรองคุณภาพ HA | F66: ระดับ | G66: HA (Hospital Accreditation) หมายถึง กระบวนการรับรองระบบคุณภาพของ สถานพยาบาล จากสถาบันรับรองคุณภาพสถานพยาบาล (องค์การมหาชน) (สรพ.) โดยมีกระบวนการรับรอง 3 ขั้น ดังนี้ HA ขั้น 1 หมายถึง โรงพยาบาลมีคุณภาพการสำรวจและป้องกันความเสี่ยง นำปัญหา มาทบทวนเพื่อแก้ไขป้องกัน ปฏิบัติตามแนวทางป้องกันปัญหาครอบคลุมปัญหาที่เคยเกิด/ มีโอกาสเกิดสูง HA ขั้น 2 หมายถึง โรงพยาบาลมีการประกันและพัฒนาคุณภาพ วิเคราะห์เป้าหมาย/ กระบวนการ/พัฒนาคุณภาพที่สอดคล้องกับเป้าหมาย/ครอบคลุมกระบวนการสำคัญ ทั้งหมด ปฏิบัติตามมาตรฐาน HA ในส่วนที่ไม่ยากเกินไป HA ขั้น 3 หมายถึง โรงพยาบาลมีวัฒนธรรมคุณภาพ เริ่มด้วยการประเมินตนเองตาม มาตรฐาน HA พัฒนาอย่างเชื่อมโยง เป็นองค์กรเรียนรู้/ผลลัพธ์ที่ดีขึ้น ปฏิบัติตาม มาตรฐาน HA ได้ครบถ้วน | H66: ระดับผลการประเมินมาตรฐาน HA (HA ขั้น 1, HA ขั้น 2, HA ขั้น 3) | I66: ระดับการประเมินมาตรฐาน HA ในรอบปีงบประมาณ | J66: - ไม่มี - | K66: ไตรมาส 3, 4 | L66: วิทยาลัยแพทยศาสตร์ฯ | M66: - | O66: ผลการรับรองคุณภาพ HA | P66: กลยุทธ์ที่ 3 | Q66: =Table3[[#This Row],[KPIsID]] -> S3C40
A67: กลยุทธ์ที่ 3: การบริการวิชาการเพื่อยกระดับคุณภาพชีวิตให้แก่สังคม | B67: 3.3) เพื่อพัฒนาคุณภาพบริการให้ผ่านเกณฑ์มาตรฐานสากล และขยายขอบเขตการให้บริการทางการแพทย์ | C67: S3C41 | D67: ตัวชี้วัดแผนปฏิบัติการ | E67: PI 3.3.4.1 จำนวนห้องปฏิบัติการที่ผ่านการรับรองคุณภาพตามมาตรฐาน ISO 15189 (นับสะสม) | F67: ห้อง | G67: ห้องปฏิบัติการที่ผ่านการรับรองมาตรฐาน ISO 15189 เป็นมาตรฐานการรับรองความสามารถห้องปฏิบัติการด้านการแพทย์หรือชันสูตรสาธารณสุข เริ่มนำมาใช้ตั้งแต่ พ.ศ. 2548 สำหรับห้องปฏิบัติการที่ให้บริการทางการแพทย์ หรือมาตรฐานห้องปฏิบัติการทางการแพทย์ ที่ดำเนินการรับรองโดยกรมวิทยาศาสตร์การแพทย์ หรือมาตรฐานงานเทคนิคการแพทย์ โดยสภาเทคนิคการแพทย์ (Laboratory Accreditation) หรือมาตรฐานทางวิชาการของห้องปฏิบัติการโดยราชวิทยาลัยพยาธิแพทย์แห่งประเทศไทย หรือมาตรฐานอื่นที่เทียบเคียงได้ในระดับเดียวกัน | H67: 1. ข้อมูลห้องปฏิบัติการที่ผ่านการรับรองคุณภาพตามมาตรฐาน ISO 15189 | I67: จำนวนห้องปฏิบัติการที่ผ่านการรับรองคุณภาพตามมาตรฐาน ISO 15189 ในรอบปีงบประมาณ (นับสะสม) | J67: - ไม่มี - | K67: ทุกไตรมาส | L67: วิทยาลัยแพทยศาสตร์ฯ | M67: - | O67: จำนวนห้องปฏิบัติการที่ผ่านการรับรองคุณภาพตามมาตรฐาน ISO 15189 | P67: กลยุทธ์ที่ 3 | Q67: =Table3[[#This Row],[KPIsID]] -> S3C41
A68: กลยุทธ์ที่ 4: อนุรักษ์ สืบสานและสร้างมูลค่าให้แก่ศิลปวัฒนธรรม และภูมิปัญญาท้องถิ่น | B68: 4.1) ศิลปวัฒนธรรม และภูมิปัญญาท้องถิ่น ได้รับการอนุรักษ์ สืบสานและสร้างมูลค่า | C68: S4B5 | D68: ตัวชี้วัดเชิงกลยุทธ์ | E68: SI 4.1.1 ร้อยละการเพิ่มขึ้นของผู้เข้าเรียนรู้ เยี่ยมชมแหล่งเรียนรู้ด้านศิลปวัฒนธรรมและภูมิปัญญาท้องถิ่น (เทียบกับปีที่ผ่านมา) | F68: ร้อยละ | G68: 1. ผู้เข้าเรียนรู้ เยี่ยมชม หมายถึง นักเรียน นักศึกษา บุคลากร ประชาชนทั่วไป ที่เข้าเยี่ยมชม ศึกษาเรียนรู้ข้อมูลศิลปวัฒนธรรม จากแหล่งเรียนรู้ที่มหาวิทยาลัยพัฒนาหรือมีส่วนร่วมในการพัฒนา 2. แหล่งเรียนรู้ด้านศิลปวัฒนธรรม หมายถึง สถานที่หรือศูนย์รวมข้อมูล ข่าวสาร ความรู้ และกิจกรรมที่มีกระบวนการเรียนรู้ ด้านศิลปวัฒนธรรม ภูมิปัญญาท้องถิ่น ทั้งนี้ แหล่งเรียนรู้ครอบคลุมแหล่งเรียนรู้ภายใน มหาวิทยาลัย ภายนอกมหาวิทยาลัย แหล่งเรียนรู้สถานที่จริง แหล่งเรียนรู้แบบออนไลน์ | H68: 1. ข้อมูลผู้เข้าเรียนรู้เยี่ยมชมแหล่งเรียนรู้ด้านศิลปวัฒนธรรม ในรอบปีงบประมาณก่อน 2. ข้อมูลผู้เข้าเรียนรู้เยี่ยมชมแหล่งเรียนรู้ด้านศิลปวัฒนธรรม ในรอบปีงบประมาณปัจจุบัน | I68: (จำนวนผู้เข้าเยี่ยมชมแหล่งเรียนรู้ด้านศิลปวัฒนธรรมปีปัจจุบัน - จำนวนผู้เข้าเยี่ยมชมแหล่งเรียนรู้ด้านศิลปวัฒนธรรมปีก่อน) x 100 | J68: จำนวนผู้เข้าเยี่ยมชมแหล่งเรียนรู้ด้านศิลปวัฒนธรรมปีก่อน | K68: ทุกไตรมาส | L68: สำนักงานส่งเสริมและบริหารงานวิจัยฯ | M68: น.ส.ณัชชา อักษรศรี โทร. 3035 E-mail: natcha.a@ubu.ac.th | O68: จำนวนผู้เยี่ยมชมแหล่งเรียนรู้ด้านศิลปวัฒนธรรม ในปีงบประมาณ; จำนวนผู้เยี่ยมชมแหล่งเรียนรู้ด้านศิลปวัฒนธรรม ในปีงบประมาณที่ผ่านมา | P68: กลยุทธ์ที่ 4 | Q68: =Table3[[#This Row],[KPIsID]] -> S4B5
A69: กลยุทธ์ที่ 4: อนุรักษ์ สืบสานและสร้างมูลค่าให้แก่ศิลปวัฒนธรรม และภูมิปัญญาท้องถิ่น | B69: 4.1) ศิลปวัฒนธรรม และภูมิปัญญาท้องถิ่น ได้รับการอนุรักษ์ สืบสานและสร้างมูลค่า | C69: S4B6 | D69: ตัวชี้วัดเชิงกลยุทธ์ | E69: SI 4.1.2 จำนวนผลงานด้านศิลปวัฒนธรรมและภูมิปัญญาที่ได้รับการสืบสานและสร้างมูลค่า (นับจำนวนผลงานที่เกิดขึ้นต่อปี) | F69: ผลงาน | G69: ผลงานด้านศิลปวัฒนธรรมที่ได้รับการสืบสานและสร้างมูลค่า หมายถึง ศิลปวัฒนธรรม/ภูมิปัญญาท้องถิ่น ได้รับการจัดกระทำในรูปแบบ 1) การรวบรวม การพัฒนาและเผยแพร่ การถ่ายทอด ประยุกต์ใช้ในกลุ่มเป้าหมายใหม่ ๆ 2) การพัฒนาผลิตภัณฑ์ต่อยอดหรือสร้างผลิตภัณฑ์ใหม่ ที่เกิดจากศิลปวัฒนธรรม/ภูมิปัญญาเดิมของชุมชน | H69: 1. ข้อมูลโครงการที่เกี่ยวกับการพัฒนา/สืบสาน และสร้างมูลค่าให้ผลงานด้านศิลปวัฒนธรรมและภูมิปัญญา 2. ข้อมูลรายละเอียดผลงานด้านศิลปวัฒนธรรม ที่ได้รับการสืบสานและสร้างมูลค่า ในรอบปีงบประมาณ | I69: จำนวนผลงานด้านศิลปวัฒนธรรม ที่ได้รับการสืบสานและสร้างมูลค่า ในรอบปีงบประมาณ | J69: - ไม่มี - | K69: ทุกไตรมาส | L69: สำนักงานส่งเสริมและบริหารงานวิจัยฯ | M69: น.ส.ณัชชา อักษรศรี โทร. 3035 E-mail: natcha.a@ubu.ac.th | O69: จำนวนผลงานด้านศิลปวัฒนธรรม ที่ได้รับการสืบสานและสร้างมูลค่าในรอบปี; จำนวนผลงานด้านศิลปวัฒนธรรม ที่ได้รับการสืบสานและสร้างมูลค่า ทั้งหมดของมหาวิทยาลัย | P69: กลยุทธ์ที่ 4 | Q69: =Table3[[#This Row],[KPIsID]] -> S4B6
A70: กลยุทธ์ที่ 4: อนุรักษ์ สืบสานและสร้างมูลค่าให้แก่ศิลปวัฒนธรรม และภูมิปัญญาท้องถิ่น | B70: 4.1) ศิลปวัฒนธรรม และภูมิปัญญาท้องถิ่น ได้รับการอนุรักษ์ สืบสานและสร้างมูลค่า | C70: S4B7 | D70: ตัวชี้วัดเชิงกลยุทธ์ | E70: SI 4.1.3 รายได้ที่เพิ่มขึ้นเฉลี่ยต่อเดือนของครัวเรือนในชุมชนเป้าหมายที่ได้รับการอนุรักษ์หรือต่อยอดศิลปวัฒนธรรม และภูมิปัญญาท้องถิ่น | F70: บาท | G70: ครัวเรือนในชุมชนเป้าหมาย หมายถึง ครอบครัว หมู่บ้าน ตำบล อำเภอ จังหวัด กลุ่มวิสาหกิจ ผู้ประกอบการ หรือการรวมกลุ่มในลักษณะอื่น ๆ ที่ได้รับการอนุรักษ์หรือต่อยอดศิลปวัฒนธรรมจากมหาวิทยาลัย รายได้เฉลี่ยต่อเดือนของครัวเรือนที่เพิ่มขึ้น หมายถึง เงินหรือมูลค่าของรายได้ต่อเดือนของครัวเรือนในชุมชน หลังจากได้รับการอนุรักษ์หรือต่อยอดศิลปวัฒนธรรมจากมหาวิทยาลัย | H70: 1. ข้อมูลโครงการที่เกี่ยวกับการอนุรักษ์หรือต่อยอดศิลปวัฒนธรรม และภูมิปัญญาท้องถิ่น โดยมีชุมชนเป็นกลุ่มเป้าหมาย 2. ข้อมูลและรายละเอียดครัวเรือนในชุมชนเป้าหมายที่ได้รับการอนุรักษ์หรือต่อยอดศิลปวัฒนธรรม 3. ข้อมูลรายได้เฉลี่ยต่อเดือนของครัวเรือนในชุมชนก่อนเข้าร่วมโครงการกับมหาวิทยาลัย 4. ข้อมูลรายได้เฉลี่ยต่อเดือนของครัวเรือนในชุมชนหลังจากเข้าโครงการกับมหาวิทยาลัย | I70: ผลรวมของ (รายได้เฉลี่ยต่อเดือนของชุมชนหลังจากเข้าโครงการกับมหาวิทยาลัย - รายได้เฉลี่ยต่อเดือนของชุมชนก่อนเข้าร่วมโครงการกับมหาวิทยาลัย) ในรอบปีงบประมาณ | J70: จำนวนครัวเรือนในชุมชนเป้าหมาย | K70: ทุกไตรมาส | L70: สำนักงานส่งเสริมและบริหารงานวิจัยฯ | M70: น.ส.ณัชชา อักษรศรี โทร. 3035 E-mail: natcha.a@ubu.ac.th | O70: จำนวนครัวเรือนในชุมชนเป้าหมาย | P70: กลยุทธ์ที่ 4 | Q70: =Table3[[#This Row],[KPIsID]] -> S4B7
A71: กลยุทธ์ที่ 4: อนุรักษ์ สืบสานและสร้างมูลค่าให้แก่ศิลปวัฒนธรรม และภูมิปัญญาท้องถิ่น | B71: 4.1) ศิลปวัฒนธรรม และภูมิปัญญาท้องถิ่น ได้รับการอนุรักษ์ สืบสานและสร้างมูลค่า | C71: S4C9 | D71: ตัวชี้วัดแผนปฏิบัติการ | E71: PI 4.1.1.1 จำนวนแหล่งเรียนรู้ด้านศิลปวัฒนธรรรมและภูมิปัญญาท้องถิ่น (นับสะสมทั้งภายในภายนอก) | F71: แหล่ง | G71: แหล่งเรียนรู้ด้านศิลปวัฒนธรรม หมายถึง สถานที่หรือศูนย์รวมข้อมูล ข่าวสาร ความรู้ และกิจกรรมที่มีกระบวนการเรียนรู้ ด้านศิลปวัฒนธรรม ภูมิปัญญาท้องถิ่น ทั้งนี้ แหล่งเรียนรู้ครอบคลุมแหล่งเรียนรู้ภายใน และภายนอกมหาวิทยาลัย แหล่งเรียนรู้สถานที่จริง แหล่งเรียนรู้แบบออนไลน์ | H71: 1. ข้อมูลและรายละเอียดแหล่งเรียนรู้/ศูนย์การเรียนรู้ด้านศิลปวัฒนธรรม เช่น สถานที่ตั้ง/เว็บไซต์ วัตถุประสงค์ กลุ่มเป้าหมาย เป็นต้น 2. ข้อมูลองค์ความรู้/กิจกรรม ด้านศิลปวัฒนธรรมที่เผยแพร่/ให้บริการ | I71: จำนวนแหล่งเรียนรู้ด้านศิลปวัฒนธรรม ในรอบปีงบประมาณ (นับสะสมทั้งภายในภายนอกมหาวิทยาลัย) | J71: - ไม่มี - | K71: ทุกไตรมาส | L71: สำนักงานส่งเสริมและบริหารงานวิจัยฯ | M71: น.ส.ณัชชา อักษรศรี โทร. 3035 E-mail: natcha.a@ubu.ac.th | O71: จำนวนแหล่งเรียนรู้ด้านศิลปวัฒนธรรม ในรอบปี; จำนวนแหล่งเรียนรู้ด้านศิลปวัฒนธรรม ทั้งหมด | P71: กลยุทธ์ที่ 4 | Q71: =Table3[[#This Row],[KPIsID]] -> S4C9
A72: กลยุทธ์ที่ 4: อนุรักษ์ สืบสานและสร้างมูลค่าให้แก่ศิลปวัฒนธรรม และภูมิปัญญาท้องถิ่น | B72: 4.1) ศิลปวัฒนธรรม และภูมิปัญญาท้องถิ่น ได้รับการอนุรักษ์ สืบสานและสร้างมูลค่า | C72: S4C10 | D72: ตัวชี้วัดแผนปฏิบัติการ | E72: PI 4.1.1.2 จำนวนฐานข้อมูลสารสนเทศด้านศิลปวัฒนธรรมและภูมิปัญญาท้องถิ่น (นับสะสม) | F72: ฐาน ข้อมูล | G72: ฐานข้อมูลสารสนเทศด้านศิลปวัฒนธรรม หมายถึง ชุดของข้อมูลหรือองค์ความรู้ด้านศิลปวัฒนธรรม ที่นำมารวบรวมจัดเก็บโดยใช้เทคโนโลยีสารสนเทศ สามารถศึกษา เรียนรู้ ค้นคว้าได้โดยใช้คอมพิวเตอร์หรืออุปกรณ์อิเล็กทรอนิกส์ชนิดอื่น ๆ | H72: 1. ข้อมูลและรายละเอียดฐานข้อมูลสารสนเทศด้านศิลปวัฒนธรรม 2. ข้อมูลองค์ความรู้ที่เผยแพร่/ให้บริการ | I72: จำนวนฐานข้อมูลสารสนเทศด้านศิลปวัฒนธรรม ในรอบปีงบประมาณ (นับสะสม) | J72: - ไม่มี - | K72: ทุกไตรมาส | L72: สำนักงานส่งเสริมและบริหารงานวิจัยฯ | M72: น.ส.ณัชชา อักษรศรี โทร. 3035 E-mail: natcha.a@ubu.ac.th | O72: จำนวนฐานข้อมูลสารสนเทศด้านศิลปวัฒนธรรม ในรอบปี; จำนวนฐานข้อมูลสารสนเทศด้านศิลปวัฒนธรรม ทั้งหมด | P72: กลยุทธ์ที่ 4 | Q72: =Table3[[#This Row],[KPIsID]] -> S4C10
A73: กลยุทธ์ที่ 4: อนุรักษ์ สืบสานและสร้างมูลค่าให้แก่ศิลปวัฒนธรรม และภูมิปัญญาท้องถิ่น | B73: 4.1) ศิลปวัฒนธรรม และภูมิปัญญาท้องถิ่น ได้รับการอนุรักษ์ สืบสานและสร้างมูลค่า | C73: S4C14 | D73: ตัวชี้วัดแผนปฏิบัติการ | E73: PI 4.1.2.1 จำนวนผลิตภัณฑ์ที่พัฒนาจากศิลปวัฒนธรรมและภูมิปัญญาท้องถิ่น (นับจำนวนผลิตภัณฑ์ต่อปี) | F73: ชิ้น | G73: ผลิตภัณฑ์ที่พัฒนาจากศิลปวัฒนธรรม หมายถึง สินค้า หรือบริการ ที่พัฒนาต่อยอดหรือสร้างขึ้นใหม่ โดยใช้ศิลปวัฒนธรรม/ภูมิปัญญา | H73: 1. ข้อมูลโครงการ/กิจกรรมเกี่ยวกับการพัฒนาผลิตภัณฑ์จากศิลปวัฒนธรรมและภูมิปัญญาท้องถิ่น 2. ข้อมูลและรายละเอียดเกี่ยวกับผลิตภัณฑ์ที่พัฒนาจากศิลปวัฒนธรรมและภูมิปัญญาท้องถิ่น | I73: จำนวนผลิตภัณฑ์ที่พัฒนาจากศิลปวัฒนธรรม ในรอบปีงบประมาณ | J73: - ไม่มี - | K73: ทุกไตรมาส | L73: สำนักงานส่งเสริมและบริหารงานวิจัยฯ | M73: น.ส.ณัชชา อักษรศรี โทร. 3035 E-mail: natcha.a@ubu.ac.th | O73: จำนวนผลิตภัณฑ์ที่พัฒนาจากศิลปวัฒนธรรม ในรอบปี; จำนวนผลิตภัณฑ์ที่พัฒนาจากศิลปวัฒนธรรม ทั้งหมด | P73: กลยุทธ์ที่ 4 | Q73: =Table3[[#This Row],[KPIsID]] -> S4C14
A74: กลยุทธ์ที่ 4: อนุรักษ์ สืบสานและสร้างมูลค่าให้แก่ศิลปวัฒนธรรม และภูมิปัญญาท้องถิ่น | B74: 4.1) ศิลปวัฒนธรรม และภูมิปัญญาท้องถิ่น ได้รับการอนุรักษ์ สืบสานและสร้างมูลค่า | C74: S4C15 | D74: ตัวชี้วัดแผนปฏิบัติการ | E74: PI 4.1.2.2 จำนวนแหล่งท่องเที่ยวเชิงวัฒนธรรมที่เกิดจากการยกระดับ (นับสะสม) | F74: แหล่ง | G74: แหล่งท่องเที่ยวเชิงวัฒนธรรม หมายถึง แหล่งท่องเที่ยวที่แสดงความเป็นวัฒนธรรม เช่น พระราชวัง ปราสาทหิน วัด โบราณสถาน โบราณวัตถุ ศิลปะ ขนบธรรมเนียม ประเพณี และวิถีชีวิตที่แสดงถึงความรุ่งเรืองและมีการพัฒนาให้เหมาะสมกับการดำเนินชีวิตและสภาพแวดล้อมในแต่ละยุค (กระทรวงการท่องเที่ยวและกีฬา 2553) การยกระดับ หมายถึง การสร้างและหรือพัฒนาแหล่งท่องเที่ยวให้มีคุณภาพดีขึ้น ซึ่งส่งผลให้เกิดการเปลี่ยนแปลงในทางที่ดีต่อแหล่งท่องเที่ยว | H74: 1. ข้อมูลโครงการ/กิจกรรมเกี่ยวกับการพัฒนาหรือเพื่อการยกระดับแหล่งท่องเที่ยวเชิงวัฒนธรรม 2. ข้อมูลและรายละเอียดเกี่ยวกับแหล่งท่องเที่ยวเชิงวัฒนธรรมที่เกิดจากการยกระดับ | I74: จำนวนแหล่งท่องเที่ยวเชิงวัฒนธรรมที่ได้รับการยกระดับ ในรอบปีงบประมาณ (นับสะสม) | J74: - ไม่มี - | K74: ทุกไตรมาส | L74: สำนักงานส่งเสริมและบริหารงานวิจัยฯ | M74: น.ส.ณัชชา อักษรศรี โทร. 3035 E-mail: natcha.a@ubu.ac.th | O74: จำนวนแหล่งท่องเที่ยวเชิงวัฒนธรรมที่ได้รับการยกระดับ ในรอบปี; จำนวนแหล่งท่องเที่ยวเชิงวัฒนธรรมที่ได้รับการยกระดับ ทั้งหมด | P74: กลยุทธ์ที่ 4 | Q74: =Table3[[#This Row],[KPIsID]] -> S4C15
A75: กลยุทธ์ที่ 5: การบริหารจัดการองค์กรที่มีประสิทธิภาพและประสิทธิผล | B75: 5.1) Digital University | C75: S5B5 | D75: ตัวชี้วัดเชิงกลยุทธ์ | E75: SI 5.1.1 ความพึงพอใจของผู้รับบริการต่อการใช้ระบบ Digital plaltform (เลือกระบบเพื่อประเมินผล) | F75: ระดับ | G75: ความรู้สึกและความพึงพอใจของผู้รับบริการต่อการใช้ระบบ Digital plaltform ที่พัฒนาขึ้นตามแผนพัฒนาระบบ Digital plaltform ของมหาวิทยาลัยที่ได้กำหนดขึ้นในแต่ละปีงบประมาณ หลังการใช้งานในหน่วยงานนั้นๆ หรือผู้ที่มีส่วนเกี่ยวข้องในการใช้งานระบบ ใช้งานข้อมูลของระบบ ทั้งผู้บริหาร ผู้ใช้งานในแต่ละระดับ (ระดับคะแนนความพึงพอใจ 1-5 คะแนน) | H75: 1. ข้อมูลระบบ Digital plaltform ที่ให้บริการในรอบปีงบประมาณ 2. คะแนนความพึงพอใจขอของผู้รับบริการต่อการใช้ระบบ Digital plaltform (1-5 คะแนน) 3. จำนวนผู้รับบริการต่อการใช้ระบบ Digital plaltform ทั้งหมด 4. จำนวนผู้รับบริการต่อการใช้ระบบ Digital plaltform ตอบแบบประเมินความพึงพอใจ | I75: ผลรวมคะแนนเฉลี่ยของผู้รับบริการต่อการใช้ระบบ Digital plaltform ทั้งหมด ในรอบปีงบประมาณ | J75: จำนวนผู้จำนวนผู้รับบริการต่อการใช้ระบบ Digital plaltform ตอบแบบประเมินความพึงพอใจ ในรอบปีงบประมาณ | K75: ทุกไตรมาส | L75: สำนักคอมพิวเตอร์และเครือข่าย | M75: - | O75: ความพึงพอใจของผู้รับบริการต่อการใช้ระบบ Digital plaltform | P75: กลยุทธ์ที่ 5 | Q75: =Table3[[#This Row],[KPIsID]] -> S5B5
A76: กลยุทธ์ที่ 5: การบริหารจัดการองค์กรที่มีประสิทธิภาพและประสิทธิผล | B76: 5.1) Digital University | C76: S5B6: | D76: ตัวชี้วัดเชิงกลยุทธ์ | E76: SI 5.1.2 ร้อยละของต้นทุนโดยรวมที่ลดลงจากการนำระบบ Digital plaltform ที่ได้รับการพัฒนามาใช้ (ใช้ฐานต้นทุนของปี 2565) | F76: ร้อยละ | G76: การพัฒนาระบบ Digital platform สามารถเป็นได้ในรูปแบบ online และ offline ซึ่งอาศัยเทคโนโลยีสารสนเทศ (IT: Information Technology) เป็นส่วนสำคัญที่ทำให้เกิดการนำแพลตฟอร์มมาใช้ได้ง่ายในการบริหารจัดการองค์กรและการฏิบัติงานด้านต่าง ๆ ให้มีประสิทธิภาพเพิ่มมากขึ้น โดยเฉพาะเพื่อการลดต้นทุนในการดำเนินงานของมหาวิทยาลัย ในการพัฒนาระบบ Digital platform ต้องอาศัยการเชื่อมต่อและการสร้างโครงข่ายของความสัมพันธ์ให้ดำเนินการได้ง่ายขึ้นทำให้การเข้าถึง แลกเปลี่ยน และวิเคราะห์ข้อมูล สามารถทำได้อย่างมีประสิทธิภาพกว่าการทำปฏิบัติงานในรูปแบบเดิมหลายเท่าตัว และสร้างโอกาสเชิงธุรกิจที่สามารถตอบโจทย์ของผู้รับบริการหรือลูกค้าได้อย่างตรงจุดประสงค์ พร้อมต่อยอดช่องทางการดำเนินงานขององค์กร ซึ่งจะเป็นส่วนสำคัญในการเพิ่มขีดความสามารถทางการแข่งขันทางด้านการศึกษาไปพร้อม ๆ กับการเพิ่มรายได้จากแหล่งอื่นๆ ในเชิงธุรกิจ ได้อีกทางหนึ่งเช่นกัน | H76: 1. ข้อมูลระบบ Digital platform ที่ได้รับการพัฒนาและนำมาใช้ในรอบปีงบประมาณ 2. รายงานค่าใข้จ่าย (ต้นทุน) ปีงบประมาณก่อน 3. รายงานค่าใข้จ่าย (ต้นทุน) ปีงบประมาณปัจจุบัน | I76: (รายงานค่าใข้จ่าย (ต้นทุน) ปีงบประมาณปัจจุบัน - รายงานค่าใข้จ่าย (ต้นทุน) ปีงบประมาณก่อน) X 100 | J76: รายงานค่าใข้จ่าย (ต้นทุน) ปีงบประมาณก่อน | K76: ทุกไตรมาส | L76: สำนักคอมพิวเตอร์และเครือข่าย | M76: กองแผนงาน | O76: ต้นทุนทั้งหมดในการพัฒนาระบบ;ทุนต้นที่เหลือจากการพัฒนาระบบ | P76: กลยุทธ์ที่ 5 | Q76: =Table3[[#This Row],[KPIsID]] -> S5B6:
A77: กลยุทธ์ที่ 5: การบริหารจัดการองค์กรที่มีประสิทธิภาพและประสิทธิผล | B77: 5.1) Digital University | C77: S5B8 | D77: ตัวชี้วัดเชิงกลยุทธ์ | E77: SI 5.1.3 คะแนน UI Green Metric (คะแนนเต็ม 10,000 คะแนน) | F77: คะแนน | G77: UI GreenMetric World University Rankings เป็นการวัดและจัดอันดับโดย มหาวิทยาลัยอินโดนีเซีย (University of Indonesia: UI) เป็นการจัดอันดับสถาบันการศึกษาสีเขียวที่เป็นมิตรกับสิ่งแวดล้อมระดับโลก โดยมีมหาวิทยาลัยหลายประเทศให้ความสนใจ เพราะเป็นการวัดความสำเร็จของมหาวิทยาลัยต่างๆ ที่ได้พัฒนาปรับปรุงสภาพแวดล้อมภายในมหาวิทยาลัยให้เขียวสะอาดและเป็นมิตรกับสิ่งแวดล้อม | H77: ผลคะแนนจากการประเมินตามเกณฑ์ของ UI Green Metric โดยมีเกณฑ์การประเมิน 6 ด้าน คือ 1. Setting And Infrastructure (ที่ตั้งและโครงสร้างพื้นฐาน) 15% 2. Energy and Climate Change (การจัดการพลังงานและการเปลี่ยนแปลงสภาพภูมิอากาศ) 21% 3. Waste management (การจัดการของเสีย) 18% 4. Water usage (การจัดการน้ำ) 10% 5. Transportation (การขนส่งที่เป็นมิตรกับสิ่งแวดล้อม) 18% 6. Education (ความสามารถในการให้การศึกษาด้านสิ่งแวดล้อมและการพัฒนาที่ยั่งยืน) 18% | I77: คะแนนประเมิน UI Green Metric จากการประกาศผลโดย University of Indonesia (UI) | J77: - ไม่มี - | K77: ปี พ.ศ. (ปีปฏิทิน) | L77: สำนักงานบริหารกายภาพและสิ่งแวดล้อม | M77: กองแผนงาน : น.ส.ทัศนีย์ สาคะริชานนท์ โทร. 3046 | O77: คะแนนประเมิน UI Green Metric ในรอบปี; คะแนนประเมิน UI Green Metric ในรอบปีที่ผ่านมา | P77: กลยุทธ์ที่ 5 | Q77: =Table3[[#This Row],[KPIsID]] -> S5B8
A78: กลยุทธ์ที่ 5: การบริหารจัดการองค์กรที่มีประสิทธิภาพและประสิทธิผล | B78: 5.1) Digital University | C78: S5C9 | D78: ตัวชี้วัดแผนปฏิบัติการ | E78: PI 5.1.1.1 ร้อยละกระบวนการทำงานที่พัฒนาให้เป็น Digital plaltform | F78: ร้อยละ | G78: กระบวนการทำงานที่พัฒนาให้เป็น Digital platform เป็นการสร้าง Platform ที่รองรับผู้บริโภคหรือผู้รับบริการ/ลูกค้า และการเข้าถึงลูกค้าในยุค Digital ซึ่งสามารถเป็นได้ในรูปแบบ online และ offline ซึ่งอาศัยเทคโนโลยีสารสนเทศ (IT: Information Technology) เป็นส่วนสำคัญที่ทำให้เกิดการนำแพลตฟอร์มมาใช้ได้ง่ายในกระบวนการทำงานต่าง ๆ เพื่อการลดค่าใช้จ่าย ลดเวลา เพิ่มประสิทธิภาพในการปฏิบัติงาน และสร้างความพึงพอใจต่อการรับบริการดังกล่าว | H78: 1. ข้อมูลกระบวนการทำงานตามแผนการพัฒนาระบบ Digital platform ในรอบปีงบประมาณ 2. ข้อมูลกระบวนการทำงานที่พัฒนาให้เป็น Digital platform ดำเนินการแล้วเสร็จ ในรอบปีงบประมาณ | I78: จำนวนกระบวนการทำงานที่พัฒนาให้เป็น Digital platform ดำเนินการแล้วเสร็จ ในรอบปีงบประมาณ X 100 | J78: จำนวนกระบวนการทำงานตามแผนการพัฒนาระบบ Digital platform ในรอบปีงบประมาณ | K78: ทุกไตรมาส | L78: สำนักคอมพิวเตอร์และเครือข่าย | M78: - | O78: จำนวนกระบวนการที่พัฒนาให้เป็น Digital platform ในรอบปี; จำนวนกระบวนการที่พัฒนาให้เป็น Digital platform ทั้งหมด | P78: กลยุทธ์ที่ 5 | Q78: =Table3[[#This Row],[KPIsID]] -> S5C9
A79: กลยุทธ์ที่ 5: การบริหารจัดการองค์กรที่มีประสิทธิภาพและประสิทธิผล | B79: 5.1) Digital University | C79: S5C35 | D79: ตัวชี้วัดแผนปฏิบัติการ | E79: PI 5.1.2.1 ผลการรับรองมาตรฐาน ISO 38500 | F79: ระดับ | G79: ISO 38500 เป็นมาตรฐานที่เน้นการวางแนวทางด้านอุปสงค์ หรือกำหนดความต้องการที่ควรจะเป็นจากด้านของคณะกรรมการบริหารและผู้บริหารต่อ IT เพื่อให้เกิดประโยชน์สูงสุดแก่องค์กร ซึ่งมาตรฐานนี้ให้หลักการชี้นำสำหรับกรรมการขององค์กรเกี่ยวกับการใช้เทคโนโลยีสารสนเทศ (IT) อย่างมีประสิทธิผล และเป็นที่ยอมรับภายในองค์กร ได้กำหนดหลักการ 6 ประการสำหรับการกำกับดูแลกิจการที่ดีของไอที 1) ความรับผิดชอบ 2) กลยุทธ์ 3) การเข้าซื้อกิจการ 4) ประสิทธิภาพ 5) ความสอดคล้อง 6) พฤติกรรมมนุษย์ | H79: ผลการรับรองมาตรฐาน ISO 38500 ในรอบปีงบประมาณ | I79: ผลการรับรองมาตรฐาน ISO 38500 ในรอบปีงบประมาณ | J79: - ไม่มี - | K79: ไตรมาส 4 | L79: สำนักคอมพิวเตอร์และเครือข่าย | M79: - | O79: ผลการรับรองมาตรฐาน ISO 38500 | P79: กลยุทธ์ที่ 5 | Q79: =Table3[[#This Row],[KPIsID]] -> S5C35
A80: กลยุทธ์ที่ 5: การบริหารจัดการองค์กรที่มีประสิทธิภาพและประสิทธิผล | B80: 5.1) Digital University | C80: S5C36 | D80: ตัวชี้วัดแผนปฏิบัติการ | E80: PI 5.1.2.2 ผลการรับรองมาตรฐาน ISO 27001 | F80: ระดับ | G80: ISO 27001 คือมาตรฐานหลักในหมวดระบบมาตรฐานความปลอดภัยสารสนเทศ ซึ่งแนะแนวทางและสนับสนุนให้องค์กรเข้าใจความเสี่ยงและจุดอ่อนด้านการคุ้มครองข้อมูลอย่างเป็นระบบ การดำเนินการให้สอดคล้องกับ ISO 27001 ช่วยเพิ่มความแข็งแกร่งให้กับระบบความปลอดภัยของข้อมูล ลดความเสี่ยง และปกป้องข้อมูลจากการถูกโจรกรรม โดยมี 4 องค์ประกอบใหญ่คือ 1. จัดทำระบบ (Establish) การจัดการความมั่นคงปลอดภัยของ สารสนเทศ (Information Security Management System -ISMS) คือ การเตรียมการ วางแผนเพื่อปกป้องสารสนเทศ 2. นำไปปฏิบัติ (Implement) คือ นำแผนจากขั้นตอนการจัดทำระบบ(Establish) ไปปฏิบัติจริงหน้างาน ทำตามเอกสารคู่มือและลงบันทึกในแบบฟอร์ม 3. รักษาไว้ (Maintain) คือปฏิบัติควบคู่ไปกับการทำงานปกติ (ไม่ใช่ทำเฉพาะก่อนจะโดนตรวจAudit) 4.ปรับปรุงอย่างต่อเนื่อง (Continual Improvement) คือ ทบทวนผลการทำระบบและหาจุดปรับปรุงอย่างต่อเนื่อง ไม่ใช่ทำครั้งเดียวจบ | H80: ผลการรับรองมาตรฐาน ISO 27001 ในรอบปีงบประมาณ | I80: ผลการรับรองมาตรฐาน ISO 27001 ในรอบปีงบประมาณ | J80: - ไม่มี - | K80: ไตรมาส 4 | L80: สำนักคอมพิวเตอร์และเครือข่าย | M80: - | O80: ผลการรับรองมาตรฐาน ISO 27001 | P80: กลยุทธ์ที่ 5 | Q80: =Table3[[#This Row],[KPIsID]] -> S5C36
A81: กลยุทธ์ที่ 5: การบริหารจัดการองค์กรที่มีประสิทธิภาพและประสิทธิผล | B81: 5.1) Digital University | C81: S5C38 | D81: ตัวชี้วัดแผนปฏิบัติการ | E81: PI 5.1.3.1 ร้อยละของปริมาณน้ำที่ผ่านการบำบัดและนำมาใช้ประโยชน์ | F81: ร้อยละ | G81: ระบบบำบัดน้ำเสีย (Wastewater Treatment Plant) คือ การกำจัดสิ่งปนเปื้อนในน้ำที่เกิดจากกิจวัตรประจำวันภายในมหาวิทยาลัยอุบลราชธานี ของบุคลากรและของนักศึกษา ตามแหล่งอาคารเรียน ห้องปฏิบัติ หรือสถานที่แหล่งต่างๆ ให้หมดไป หรือมีปริมาณสิ่งปนเปื้อนในน้ำลดลงจนมีคุณภาพเป็นไปตามมาตรฐานน้ำทิ้งน้ำเสียที่เกิดขึ้นจากแหล่งกำเนิดต่างๆ ซึ่งการบำบัดน้ำเสียเพื่อนำกลับมาใช้ใหม่สามารถช่วยให้มหาวิทยาลัยลดค่าใช้จ่ายเกี่ยวกับน้ำให้มีอัตราที่ลดลงได้ นอกจากนี้ การนำน้ำเสียมาบำบัดและนำกลับมาใช้ใหม่ยังเป็นการช่วยอนุรักษ์สิ่งแวดล้อมและเป็นการลดปริมาณการใช้น้ำจากแหล่งน้ำธรรมชาติอีกด้วย | H81: 1. ข้อมูลปริมาณน้ำเสีย ในรอบปีงบประมาณ 2. ข้อมูลปริมาณน้ำที่ผ่านการบำบัดและนำมาใช้ประโยชน์ ในรอบปีงบประมาณ | I81: จำนวนปริมาณน้ำที่ผ่านการบำบัดและนำมาใช้ประโยชน์ ในรอบปีงบประมาณ x 100 | J81: จำนวนปริมาณน้ำเสีย ทั้งหมด ในรอบปีงบประมาณ | K81: ทุกไตรมาส | L81: สำนักงานบริหารกายภาพและสิ่งแวดล้อม | M81: - | O81: จำนวนปริมาณน้ำที่ผ่านการบำบัดและนำมาใช้ประโยชน์ ในรอบปีงบประมาณ | P81: กลยุทธ์ที่ 5 | Q81: =Table3[[#This Row],[KPIsID]] -> S5C38
A82: กลยุทธ์ที่ 5: การบริหารจัดการองค์กรที่มีประสิทธิภาพและประสิทธิผล | B82: 5.1) Digital University | C82: S5C39 | D82: ตัวชี้วัดแผนปฏิบัติการ | E82: PI 5.1.3.2 รายได้ที่เกิดจากการบริหารจัดการขยะ | F82: แสนบาท | G82: ขยะ ที่นำมาใช้ประโยชน์ 2 ประเภท ได้แก่ 1. ขยะรีไซเคิล คัดแยกและรวบรวมจากแหล่งต่างๆ จากอาคารเรียน สำนักงาน และสถานประกอบการต่างๆ ภายในมหาวิทยาลัย เช่น ขวดพลาสติก กระดาษ วัสดุต่างๆ แล้วขายหรือบริจาค 2. ขยะอินทรีย์ เช่น เศษอาหาร กิ่งไม้ใบไม้ เศษผักเปลือกผลไม้ คัดแยกรวบรวม จากสถานประกอบการต่างๆ ภายในมหาวิทยาลัย และนำไปใช้ประโยชน์ เช่น ปุ๋ยอินทรีย์, น้ำจุลินทรีย์ชีวภาพ (EM) เป็นต้น | H82: 1. ข้อมูลปริมาณขยะทั้งหมด ในรอบปีงบประมาณ 2. รายได้ที่เกิดจากการบริหารจัดการขยะ เช่น คัดแยกขาย หรือสร้างผลงานหรือนวัตกรรมเพื่อการจำหน่าย เป็นต้น ในรอบปีงบประมาณ | I82: รายได้ที่เกิดจากการบริหารจัดการขยะ ในรอบปีงบประมาณ | J82: - ไม่มี - | K82: ทุกไตรมาส | L82: สำนักงานบริหารกายภาพและสิ่งแวดล้อม | M82: - | O82: รายได้ที่เกิดจากการบริหารจัดการขยะ ในรอบปีงบประมาณ | P82: กลยุทธ์ที่ 5 | Q82: =Table3[[#This Row],[KPIsID]] -> S5C39
A83: กลยุทธ์ที่ 5: การบริหารจัดการองค์กรที่มีประสิทธิภาพและประสิทธิผล | B83: 5.1) Digital University | C83: S5C42 | D83: ตัวชี้วัดแผนปฏิบัติการ | E83: PI 5.1.4.1 ร้อยละของพลังงานทดแทนที่ผลิตได้ | F83: Kwp | G83: พลังงานทดแทน หมายถึง พลังงานไฟฟ้าที่ได้จากการผลิตไฟฟ้าจากโรงไฟฟ้าย่อยของมหาวิทยาลัยอุบลราชานี ที่สามารถผลิตใช้เอง และช่วยลดการใช้ปริมาณกระแสไฟฟ้าจากการไฟฟ้าฝ่ายผลิตแห่งประเทศไทย | H83: 1. ข้อมูลปริมาณการใช้กระแสไฟฟ้าทั้งหมด ของมหาวิทยาลัยอุบลราชธานี ในรอบปีงบประมาณ 2. ข้อมูลปริมาณการผลิตกระแสไฟฟ้าจากโรงไฟฟ้าย่อยของมหาวิทยาลัยอุบลราชานี และนำไปใช้ในรอบปีงบประมาณ | I83: จำนวนปริมาณการผลิตกระแสไฟฟ้าจากโรงไฟฟ้าย่อยของมหาวิทยาลัยอุบลราชานี และนำไปใช้ในรอบปีงบประมาณ X 100 | J83: จำนวนปริมาณการใช้กระแสไฟฟ้าทั้งหมด ของมหาวิทยาลัยอุบลราชธานี ในรอบปีงบประมาณ | K83: ทุกไตรมาส | L83: สำนักงานบริหารกายภาพและสิ่งแวดล้อม | M83: - | O83: จำนวนปริมาณการใช้กระแสไฟฟ้าทั้งหมด ของมหาวิทยาลัย ในรอบปีงบประมาณ | P83: กลยุทธ์ที่ 5 | Q83: =Table3[[#This Row],[KPIsID]] -> S5C42
A84: กลยุทธ์ที่ 5: การบริหารจัดการองค์กรที่มีประสิทธิภาพและประสิทธิผล | B84: 5.1) Digital University | C84: S5C43 | D84: ตัวชี้วัดแผนปฏิบัติการ | E84: PI 5.1.4.2 ร้อยละของค่าไฟฟ้าที่ลดลงจากการใช้พลังงานทดแทน | F84: ร้อยละ | G84: ค่าไฟฟ้าที่ลดลงจากการใช้พลังงานทดแทน หมายถึง ค่ากระแสไฟฟ้าทั้งหมด ของมหาวิทยาลัยอุบลราชธานี ในรอบปีงบประมาณ ลดลงเนื่องจาก มหาวิทยาลัยสามารถผลิตไฟฟ้าเองจากโรงไฟฟ้าย่อยของมหาวิทยาลัยอุบลราชานี และช่วยลดค่าใช้จ่ายจากการซื้อกระแสไฟฟ้าจากการไฟฟ้าฝ่ายผลิตแห่งประเทศไทย | H84: 1. ข้อมูลค่ากระแสไฟฟ้าทั้งหมด ของมหาวิทยาลัยอุบลราชธานี ในรอบปีงบประมาณก่อน 2. ข้อมูลค่ากระแสไฟฟ้าทั้งหมด ของมหาวิทยาลัยอุบลราชธานี ในรอบปีงบประมาณปัจจุบัน | I84: (ค่ากระแสไฟฟ้าทั้งหมด ในรอบปีงบประมาณก่อน - ค่ากระแสไฟฟ้าทั้งหมด ในรอบปีงบประมาณปัจจุบัน) X 100 | J84: ค่ากระแสไฟฟ้าทั้งหมด ในรอบปีงบประมาณก่อน | K84: ทุกไตรมาส | L84: สำนักงานบริหารกายภาพและสิ่งแวดล้อม | M84: - | O84: พลังงานทดแทนที่ผลิตได้;พลังงานทั้งหมด | P84: กลยุทธ์ที่ 5 | Q84: =Table3[[#This Row],[KPIsID]] -> S5C43
A85: กลยุทธ์ที่ 5: การบริหารจัดการองค์กรที่มีประสิทธิภาพและประสิทธิผล | B85: 5.1) Digital University | C85: S5C45 | D85: ตัวชี้วัดแผนปฏิบัติการ | E85: PI 5.1.5.1 จำนวน zero emission vehicles ต่อจำนวนประชากรทั้งหมด | F85: ตัน CO2/ คน | G85: 1. ยานยนต์ไร้มลพิษ (ZEV, Zero Emissions Vehicle) หรือรถยนต์ที่ปล่อยมลพิษเป็นศูนย์ หมายถึง ยานยนต์ที่ขับเคลื่อนด้วยมอเตอร์เป็นต้นกำลัง โดยไม่มีเครื่องยนต์ทำให้ไม่มีการปล่อยไอเสียในระหว่างการขับขี่ยานยนต์อีกด้วย ได้แก่ ยานยนต์ไฟฟ้าแบตเตอรี่ BEV และยานยนต์ไฟฟ้าเซลเชื้อเพลิง FCEV จัดอยู่ในกลุ่มนี้ ซึ่งเป็นนโยบายของกระทรวงพลังงาน 2. ประชากรทั้งหมด หมายถึง นักศึกษาและบุคลากร มหาวิทยาลัยทั้งหมด | H85: 1. ปริมาณคารบ์อนฟุตพริ้นท์ (การปล่อยก๊าซคาร์บอนไดออกไซด์ในช่วง 12 เดือนที่ผ่านมา เป็น เมตริกตัน) 2. ข้อมูลจำนวนยานพาหนะที่ปล่อยมลพิษเป็นศูนย์ (ZEV) 3. ข้อมูลจำนวนนักศึกษาทั้งหมด ในรอบปีงบประมาณ 4. ข้อมูลจำนวนบุคลากรทั้งหมด ในรอบปีงบประมาณ | I85: ปริมาณคารบ์อนฟุตพริ้นท์ (การปล่อยก๊าซคาร์บอนไดออกไซด์ในช่วง 12 เดือนที่ผ่านมา เป็น เมตริกตัน) | J85: ประชากรทั้งหมด (นักศึกษาและบุคลากร มหาวิทยาลัยทั้งหมด) | K85: ทุกไตรมาส | L85: สำนักงานบริหารกายภาพและสิ่งแวดล้อม | M85: - | O85: 1) จำนวนนักศึกษาทั้งหมด ทุกระดับ; 2) จำนวนบุคลากรทั้งหมด | P85: กลยุทธ์ที่ 5 | Q85: =Table3[[#This Row],[KPIsID]] -> S5C45
A86: กลยุทธ์ที่ 5: การบริหารจัดการองค์กรที่มีประสิทธิภาพและประสิทธิผล | B86: 5.2) มหาวิทยาลัยมีความยั่งยืนด้านการเงิน | C86: S5B48 | D86: ตัวชี้วัดเชิงกลยุทธ์ | E86: SI 5.2.1 กำไรสุทธิ (ล้านบาท) (รายได้-ค่าใช้จ่ายทั้งหมด-ค่าเสื่อม) | F86: ล้านบาท | G86: 1. รายได้ หมายถึง รายรับรวมทั้งหมดของมหาวิทยาลัย จากแหล่งเงินต่างๆ ได้แก่ เงินงบประมาณแผ่นดิน และเงินรายได้มหาวิทยาลัยทุกประเภท รวมทั้งดอกเบี้ยต่างๆ 2. ค่าใช้จ่าย หมายถึง รายจ่ายรวมทั้งหมดของมหาวิทยาลัย ทุกหมวดและประเภทรายจ่าย จากแหล่งเงินต่างๆ ได้แก่ เงินงบประมาณแผ่นดิน และเงินรายได้มหาวิทยาลัยทุกประเภท รวมถึงค่าปรับอื่น ๆ ที่จากการดำเนินงานของมหาวิทยาลัย (รายได้-ค่าใช้จ่ายทั้งหมด-ค่าเสื่อม) | H86: 1. ข้อมูลรายได้ จากแหล่งเงินต่างๆ ได้แก่ เงินงบประมาณแผ่นดิน และเงินรายได้มหาวิทยาลัย แยกตามหมวดเงิน และประเภทบัญชี ในรอบปีงบประมาณ 2. ข้อมูลค่าใช้จ่าย จากแหล่งเงินต่างๆ ได้แก่ เงินงบประมาณแผ่นดิน และเงินรายได้มหาวิทยาลัย แยกตามหมวดเงิน และประเภทบัญชี (ค่าใช้จ่ายทั้งหมด-ค่าเสื่อม) ในรอบปีงบประมาณ | I86: จำนวนเงินรายได้รวมทั้งหมด ในรอบปีงบประมาณ - จำนวนค่าใช้จ่ายรวมทั้งหมด (ค่าใช้จ่ายทั้งหมด-ค่าเสื่อม) ในรอบปีงบประมาณ | J86: - ไม่มี - | K86: ไตรมาส 4 | L86: กองคลัง | M86: กองคลัง : นางสาวเพ็ญนภา สีดา โทร. 1064 | O86: 1) จำนวนเงินรายได้รวมทั้งหมด ในรอบปีงบประมาณ; 2) จำนวนค่าใช้จ่ายรวมทั้งหมด (ค่าใช้จ่ายทั้งหมด-ค่าเสื่อม) ในรอบปีงบประมาณ | P86: กลยุทธ์ที่ 5 | Q86: =Table3[[#This Row],[KPIsID]] -> S5B48
A87: กลยุทธ์ที่ 5: การบริหารจัดการองค์กรที่มีประสิทธิภาพและประสิทธิผล | B87: 5.2) มหาวิทยาลัยมีความยั่งยืนด้านการเงิน | C87: S5B49: | D87: ตัวชี้วัดเชิงกลยุทธ์ | E87: SI 5.2.2 จำนวนเงินทุนสำรองสะสม (ล้านบาท) | F87: ล้านบาท | G87: เงินทุนสำรองสะสม "เงินสำรอง หมายถึง เงินส่วนที่สภามหาวิทยาลัยกำหนดให้จัดสรรไว้ตามระเบียบข้อ 24 ของระเบียบมหาวิทยาลัยอุบลราชธานี ว่าด้วยการเงินและทรัพย์สิน พ.ศ. 2560" | H87: 1. ข้อมูลเงินทุนสำรองสะสม ตามระเบียบข้อ 24 ของระเบียบมหาวิทยาลัยอุบลราชธานี ว่าด้วยการเงินและทรัพย์สิน พ.ศ. 2560 ในรอบปีงบประมาณ | I87: เงินทุนสำรองมหาวิทยาลัย | J87: - ไม่มี - | K87: ไตรมาส 4 | L87: กองคลัง | M87: กองคลัง : นางสาวเพ็ญนภา สีดา โทร. 1064 | O87: จำนวนเงินทุนสำรองมหาวิทยาลัย | P87: กลยุทธ์ที่ 5 | Q87: =Table3[[#This Row],[KPIsID]] -> S5B49:
A88: กลยุทธ์ที่ 5: การบริหารจัดการองค์กรที่มีประสิทธิภาพและประสิทธิผล | B88: 5.2) มหาวิทยาลัยมีความยั่งยืนด้านการเงิน | C88: S5B51 | D88: ตัวชี้วัดเชิงกลยุทธ์ | E88: SI 5.2.3 รายได้ทั้งหมดต่อจำนวนบุคลากรทั้งหมด (ล้านบาท) | F88: ล้านบาท | G88: 1. รายได้ทั้งหมด หมายถึง รายได้จากค่าธรรมเนียมการศึกษา และรายได้จากแหล่งอื่นทั้งหมดของมหาวิทยาลัย ทุกประเภท รวมทั้งดอกเบี้ยรับต่างๆ 2. บุคลากร หมายถึง อาจารย์ประจำ นักวิจัย และบุคลากรสายสนับสนุนวิชาการ (ข้าราชการ และพนักงานมหาวิทยาลัย) ที่มีหน้าที่รับผิดชอบ ตามพันธกิจของมหาวิทยาลัย และปฏิบัติหน้าที่เต็มเวลา | H88: 1. ข้อมูลค่าธรรมเนียมการศึกษา ในรอบปีงบประมาณ 2. ข้อมูลรายได้ จากแหล่งเงินต่างๆ ได้แก่ เงินงบประมาณแผ่นดิน และเงินรายได้มหาวิทยาลัย แยกตามหมวดเงิน และประเภทบัญชี ในรอบปีงบประมาณ 3. ข้อมูลจำนวนอาจารย์ประจำและนักวิจัยทั้งหมด 4. ข้อมูลจำนวนบุคลากรสายสนับสนุนวิชาการทั้งหมด | I88: ค่าธรรมเนียมการศึกษา +รายได้จากแหล่งเงินต่างๆ ในรอบปีงบประมาณ | J88: จำนวนอาจารย์ประจำและนักวิจัยทั้งหมด + จำนวนบุคลากรสายสนับสนุนวิชาการ | K88: ทุกไตรมาส | L88: กองแผนงาน | M88: - | O88: 1) ค่าธรรมเนียมการศึกษา ในรอบปีงบประมาณ; 2) รายได้จากแหล่งเงินต่าง ๆ ในรอบปีงบประมาณ; 3) จำนวนอาจารย์ทั้งหมด; 4) จำนวนนักวิจัยทั้งหมด; 5) จำนวนบุคลากรสายสนับสนุนทั้งหมด | P88: กลยุทธ์ที่ 5 | Q88: =Table3[[#This Row],[KPIsID]] -> S5B51
A89: กลยุทธ์ที่ 5: การบริหารจัดการองค์กรที่มีประสิทธิภาพและประสิทธิผล | B89: 5.2) มหาวิทยาลัยมีความยั่งยืนด้านการเงิน | C89: S5C52 | D89: ตัวชี้วัดแผนปฏิบัติการ | E89: PI 5.2.1.1 รายได้สุทธิจากการบริหารธุรกิจและสินทรัพย์ | F89: ล้านบาท | G89: รายได้สุทธิจากการบริหารธุรกิจและสินทรัพย์ หมายถึง รายได้จากการบริหารทรัพยากร และการดำเนินงานด้านต่างๆ ของมหาวิทยาลัย เช่นค่าเช่าต่างๆ รายรับจริงจากการจำหน่ายผลิตผลทางการเรียนการสอน และรายรับจริงจากดอกเบี้ยรับ และจากดอกผลจากการลงทุน โดยหักค่าใช้จ่ายเรียบร้อยแล้ว | H89: 1. ข้อมูลรายได้จากการบริหารทรัพยากรและการดำเนินงานด้านต่างๆ ของมหาวิทยาลัย เช่นค่าเช่าต่างๆ รายรับจริงจากการจำหน่ายผลิตผลทางการเรียนการสอน และรายรับจริงจากดอกเบี้ยรับ และจากดอกผลจากการลงทุน 2. ข้อมูลรายจ่ายที่เกิดจากการบริหารทรัพยากรและการดำเนินงานด้านต่างๆ ของมหาวิทยาลัย | I89: รายได้จากการบริหารทรัพยากรและการดำเนินงานด้านต่างๆ ของมหาวิทยาลัย - รายจ่ายที่เกิดจากการบริหารทรัพยากรและการดำเนินงานด้านต่างๆ ของมหาวิทยาลัย | J89: - ไม่มี - | K89: ทุกไตรมาส | L89: กองคลัง | M89: กองคลัง : นางสาวเพ็ญนภา สีดา โทร. 1064 | O89: 1) รายได้จากการบริหารทรัพยากรและการดำเนินงานด้านต่าง ๆ ของมหาวิทยาลัย ในรอบปีงบประมาณ; 2) รายจ่ายที่เกิดจากการบริหารทรัพยากรและการดำเนินงานด้านต่าง ๆ ของมหาวิทยาลัย ในรอบปีงบประมาณ | P89: กลยุทธ์ที่ 5 | Q89: =Table3[[#This Row],[KPIsID]] -> S5C52
A90: กลยุทธ์ที่ 5: การบริหารจัดการองค์กรที่มีประสิทธิภาพและประสิทธิผล | B90: 5.3) การบริหารทรัพยากรบุคคลมีประสิทธิภาพ | C90: S5B57 | D90: ตัวชี้วัดเชิงกลยุทธ์ | E90: SI 5.3.1 ร้อยละของอาจารย์ที่มีผลงานตีพิมพ์หรือสร้างสรรค์เทียบกับอาจารย์ทั้งหมด | F90: ร้อยละ | G90: 1. ผลงานตีพิมพ์หรือสร้างสรรค์ หมายถึง ผลงานทางวิชาการเป็นข้อมูลที่สำคัญในการแสดงให้เห็นว่าอาจารย์ประจำและนักวิจัยได้สร้างสรรค์ขึ้นเพื่อแสดงให้เห็นถึงความก้าวหน้าทางวิชาการและการพัฒนาองค์ความรู้อย่างต่อเนื่อง เป็นผลงานที่มีคุณค่า สมควรส่งเสริมให้มีการเผยแพร่และนำไปใช้ประโยชน์ทั้งเชิงวิชาการและการแข่งขันของประเทศ ผลงานทางวิชาการ อยู่ในรูปของบทความวิจัยหรือบทความทางวิชาการที่ตีพิมพ์ในรายงานสืบเนื่องจากการประชุมวิชาการ ตีพิมพ์ในวารสารวิชาการที่ปรากฏในฐานข้อมูล TCI หรือ Scopus หรือตามประกาศ ก.พ.อ. 2. อาจารย์ หมายถึง อาจารย์ประจำหรือบุคคลที่ดํารงตําแหน่งอาจารย์ ผู้ช่วยศาสตราจารย์ รองศาสตราจารย์ และศาสตราจารย์ ในมหาวิทยาลัยอุบลราชธานี ที่เปิดสอนหลักสูตรนั้น ที่มีหน้าที่รับผิดชอบ ตามพันธกิจของมหาวิทยาลัย และปฏิบัติหน้าที่เต็มเวลา | H90: 1. ข้อมูลผลงานตีพิมพ์หรือสร้างสรรค์ของอาจารย์ ในวารสารระดับชาติ 2. ข้อมูลผลงานตีพิมพ์หรือสร้างสรรค์ของอาจารย์ ในวารสารระดับนานาชาติ 3. ข้อมูลจำนวนอาจารย์ประจำทั้งหมด | I90: จำนวนอาจารย์ประจำที่มีผลงานตีพิมพ์ ในรอบปีงบประมาณ X 100 | J90: จำนวนอาจารย์ประจำทั้งหมด ในรอบปีงบประมาณ | K90: ทุกไตรมาส | L90: กองการเจ้าหน้าที่ | M90: 1) กองการเจ้าหน้าที่ : น.ส.ภาวิตา ก้อนด้วง โทร. 1032 2) สำนักงานส่งเสริมและบริหารงานวิจัยฯ : น.ส.นาวินี สุตัญตั้งใจ โทร. 3042 | O90: จำนวนอาจารย์ประจำที่มีผลงานตีพิมพ์ ในรอบปีงบประมาณ; จำนวนอาจารย์ทั้งหมด | P90: กลยุทธ์ที่ 5 | Q90: =Table3[[#This Row],[KPIsID]] -> S5B57
A91: กลยุทธ์ที่ 5: การบริหารจัดการองค์กรที่มีประสิทธิภาพและประสิทธิผล | B91: 5.3) การบริหารทรัพยากรบุคคลมีประสิทธิภาพ | C91: S5B58 | D91: ตัวชี้วัดเชิงกลยุทธ์ | E91: SI 5.3.2 ร้อยละของอาจารย์ที่มีผลงานนวัตกรรมเทียบกับอาจารย์ทั้งหมด | F91: ร้อยละ | G91: 1. ผลงานนวัตกรรม หมายถึง ความคิด การปฏิบัติ หรือสิ่งประดิษฐ์ใหม่ ๆ ที่ยังไม่เคยมีใช้มาก่อน หรือเป็นการพัฒนาดัดแปลงมาจากของเดิมที่มีอยู่แล้ว ให้ทันสมัยและใช้ได้ผลดียิ่งขึ้น เมื่อนำนวัตกรรมมาใช้จะช่วยให้การทำงานนั้นได้ผลดีมีประสิทธิภาพและประสิทธิผลสูงกว่าเดิม ทั้งยังช่วย ประหยัดเวลาและแรงงานได้ด้วย 2. อาจารย์ หมายถึง อาจารย์ประจำหรือบุคคลที่ดํารงตําแหน่งอาจารย์ ผู้ช่วยศาสตราจารย์ รองศาสตราจารย์ และศาสตราจารย์ ในมหาวิทยาลัยอุบลราชธานี ที่เปิดสอนหลักสูตรนั้น ที่มีหน้าที่รับผิดชอบ ตามพันธกิจของมหาวิทยาลัย และปฏิบัติหน้าที่เต็มเวลา | H91: 1. ข้อมูลผลงานนวัตกรรมของอาจารย์ ในรอบปีงบประมาณ 2. ข้อมูลจำนวนอาจารย์ประจำทั้งหมด | I91: ผลงานนวัตกรรมของอาจารย์ ในรอบปีงบประมาณ X 100 | J91: จำนวนอาจารย์ประจำทั้งหมด ในรอบปีงบประมาณ | K91: ทุกไตรมาส | L91: สำนักงานส่งเสริมและบริหารงานวิจัยฯ | M91: - | O91: ผลงานนวัตกรรมของอาจารย์ ในรอบปี; ผลงานนวัตกรรมของอาจารย์ ในรอบปีที่ผ่านมา | P91: กลยุทธ์ที่ 5 | Q91: =Table3[[#This Row],[KPIsID]] -> S5B58
A92: กลยุทธ์ที่ 5: การบริหารจัดการองค์กรที่มีประสิทธิภาพและประสิทธิผล | B92: 5.3) การบริหารทรัพยากรบุคคลมีประสิทธิภาพ | C92: S5B59 | D92: ตัวชี้วัดเชิงกลยุทธ์ | E92: SI 5.3.3 รายได้อื่นของมหาวิทยาลัยนอกเหนือจากค่าธรรมเนียมการศึกษา (วงเงินรวม) ต่อจำนวนบุคลากร | F92: แสนบาท | G92: 1. รายได้อื่น หมายถึง รายได้จากแหล่งอื่นทั้งหมดของมหาวิทยาลัย ทุกประเภท รวมทั้งดอกเบี้ยรับต่างๆ นอกเหนือจากค่าธรรมเนียมการศึกษา 2. บุคลากร หมายถึง อาจารย์ประจำ นักวิจัย และบุคลากรสายสนับสนุนวิชาการ (ข้าราชการ และพนักงานมหาวิทยาลัย) ที่มีหน้าที่รับผิดชอบ ตามพันธกิจของมหาวิทยาลัย และปฏิบัติหน้าที่เต็มเวลา | H92: 1. ข้อมูลรายได้อื่น หมายถึง รายได้จากแหล่งอื่นทั้งหมดของมหาวิทยาลัย ทุกประเภท รวมทั้งดอกเบี้ยรับต่างๆ นอกเหนือจากค่าธรรมเนียมการศึกษา 2. ข้อมูลจำนวนอาจารย์ประจำทั้งหมด 3. ข้อมูลจำนวนบุคลากรสายสนับสนุนวิชาการทั้งหมด | I92: รายได้อื่นของมหาวิทยาลัยนอกเหนือจากค่าธรรมเนียมการศึกษา ในรอบปีงบประมาณ | J92: จำนวนบุคลากรทั้งหมด (จำนวนอาจารย์ประจำทั้งหมด + จำนวนบุคลากรสายสนับสนุนวิชาการทั้งหมด) ในรอบปีงบประมาณ | K92: ทุกไตรมาส | L92: กองคลัง | M92: 1) กองคลัง : นางสาวเพ็ญนภา สีดา โทร. 1064 2) กองแผนงาน : นางสาวสายใจ จันเวียง โทร. 3046 | O92: 1) รายได้อื่นของมหาวิทยาลัยนอกเหนือจากค่าธรรมเนียมการศึกษา ในรอบปีงบประมาณ; 2) จำนวนบุคลากรทั้งหมด; 3) จำนวนบุคลากรสายสนับสนุนทั้งหมด ในรอบปีงบประมาณ | P92: กลยุทธ์ที่ 5 | Q92: =Table3[[#This Row],[KPIsID]] -> S5B59
A93: กลยุทธ์ที่ 5: การบริหารจัดการองค์กรที่มีประสิทธิภาพและประสิทธิผล | B93: 5.3) การบริหารทรัพยากรบุคคลมีประสิทธิภาพ | C93: S5B60 | D93: ตัวชี้วัดเชิงกลยุทธ์ | E93: SI 5.3.4 ระดับความผูกพันของบุคลากร | F93: ระดับ | G93: ความผูกพันของบุคลากร หมายถึง ระดับความมุ่งมั่นของบุคลากรทั้งในด้านความรู้สึกและสติปัญญา เพื่อให้งาน พันธกิจ และวิสัยทัศน์ของส่วนราชการบรรลุผล ส่วนราชการที่มีระดับความผูกพันของ บุคลากรสูงแสดงให้เห็นเด่นชัดด้วยสภาพแวดล้อมในการปฏิบัติงานที่ดี ซึ่งทำให้บุคลากรมีแรงจูงใจที่จะ ปฏิบัติงานอย่างเต็มกำลัง เพื่อผลประโยชน์ของผู้รับบริการและผู้มีส่วนได้ส่วนเสีย และความสำเร็จของส่วนราชการ บุคลากรในส่วนราชการรู้สึกมีความผูกพัน เมื่อพวกเขาพบว่าได้ทำในสิ่งที่ต้องการ และได้รับแรงจูงใจในการปฏิบัติงาน เมื่อเขาได้รับการสนับสนุนเป็นอย่างดีจากเพื่อนร่วมงาน และจากสถานที่ทำงาน ประโยชน์ของความผูกพันของบุคลากรคือทำให้เกิดความไว้ใจซึ่งกันและกัน ความปลอดภัยและสภาพแวดล้อม ที่ร่วมกันปฏิบัติงาน การสื่อสารที่ดี การรับและให้ข้อมูลมีความคล่องตัว การเอื้ออำนาจในการตัดสินใจ และความรับผิดชอบต่อผลการดำเนินการ ปัจจัยแห่งความสำเร็จที่จะนำมาซึ่งความผูกพัน รวมถึงการฝึกอบรมและการพัฒนาความก้าวหน้าในการงาน ระบบการยกย่องชมเชย และระบบการให้รางวัลที่มีประสิทธิผลโอกาส และการดูแลที่เท่าเทียมกันและการมีมิตรไมตรีกับครอบครัวของบุคลากร | H93: 1. ข้อมูลผลการสำรวจความผูกพันของบุคลากรทุกระดับภายในมหาวิทยาลัยอุบลราชธานี ผ่านระบบแบบสำรวจออนไลน์ 2. ข้อมูลจำนวนอาจารย์ประจำทั้งหมด 3. ข้อมูลจำนวนบุคลากรสายสนับสนุนวิชาการทั้งหมด 4. ข้อมูลจำนวนผู้ตอบแบบสำรวจความผูกพันทั้งหมดทุกระดับ | I93: ผลรวมของระดับความผูกพันเฉลี่ยของบุคลากรทั้งหมดทุกระดับ ในรอบปีงบประมาณ | J93: จำนวนผู้ตอบแบบสำรวจความผูกพันทั้งหมดทุกระดับ ในรอบปีงบประมาณ | K93: ไตรมาส 4 | L93: กองการเจ้าหน้าที่ | M93: กองการเจ้าหน้าที่ : นางยุวดี แสนสีดา โทร. 3032 | O93: ระดับความผูกพันของบุคลากรต่อมหาวิทยาลัย ในรอบปี; ระดับความผูกพันของบุคลากรต่อมหาวิทยาลัย ในรอบปีที่ผ่านมา | P93: กลยุทธ์ที่ 5 | Q93: =Table3[[#This Row],[KPIsID]] -> S5B60
A94: กลยุทธ์ที่ 5: การบริหารจัดการองค์กรที่มีประสิทธิภาพและประสิทธิผล | B94: 5.3) การบริหารทรัพยากรบุคคลมีประสิทธิภาพ | C94: S5C61 | D94: ตัวชี้วัดแผนปฏิบัติการ | E94: PI 5.3.1.1 ร้อยละของอาจารย์ที่มีคุณวุฒิปริญญาเอก | F94: ร้อยละ | G94: อาจารย์ที่มีคุณวุฒิปริญญาเอก พิจารณาจากระดับคุณวุฒิที่ได้รับหรือเทียบเท่าตามหลักเกณฑ์การพิจารณาคุณวุฒิของกระทรวง อว. กรณีที่มีการปรับวุฒิการศึกษาให้มีหลักฐานการสำเร็จการศึกษาภายในรอบงบประมาณนั้น | H94: 1. ข้อมูลอาจารย์ที่มีคุณวุฒิปริญญาเอก ในรอบปีงบประมาณ 2. ข้อมูลจำนวนอาจารย์ประจำทั้งหมด | I94: จำนวนอาจารย์ประจำที่มีคุณวุฒิปริญญาเอก ในรอบปีงบประมาณ X 100 | J94: จำนวนอาจารย์ประจำทั้งหมด ในรอบปีงบประมาณ | K94: ทุกไตรมาส | L94: กองการเจ้าหน้าที่ | M94: กองการเจ้าหน้าที่ : น.ส.ภาวิตา ก้อนด้วง โทร. 1032 | O94: จำนวนอาจารย์ประจำที่มีคุณวุฒิปริญญาเอก ในรอบปี; จำนวนอาจารย์ประจำที่มีคุณวุฒิปริญญาเอก ทั้งหมด | P94: กลยุทธ์ที่ 5 | Q94: =Table3[[#This Row],[KPIsID]] -> S5C61
A95: กลยุทธ์ที่ 5: การบริหารจัดการองค์กรที่มีประสิทธิภาพและประสิทธิผล | B95: 5.3) การบริหารทรัพยากรบุคคลมีประสิทธิภาพ | C95: S5C62 | D95: ตัวชี้วัดแผนปฏิบัติการ | E95: PI 5.3.1.2 ร้อยละของอาจารย์ที่มีตำแหน่งทางวิชาการ | F95: ร้อยละ | G95: อาจารย์ที่มีตำแหน่งทางวิชาการ คือ ตำแหน่งของบุคคลที่มีหน้าที่สอนและวิจัย หรือทำหน้าที่วิจัยโดยเฉพาะในสถาบันอุดมศึกษา ดังนี้ ผู้ช่วยศาสตราจารย์ (ผศ.) รองศาสตราจารย์ (รศ.) ศาสตราจารย์ (ศ.) | H95: 1. ข้อมูลอาจารย์ที่มีตำแหน่งทางวิชาการ ในรอบปีงบประมาณ 2. ข้อมูลจำนวนอาจารย์ประจำทั้งหมด | I95: จำนวนอาจารย์ประจำที่ดำรงตำแหน่งทางวิชาการ (ผศ. รศ. ศ.) ในรอบปีงบประมาณ X 100 | J95: จำนวนอาจารย์ประจำทั้งหมด ในรอบปีงบประมาณ | K95: ทุกไตรมาส | L95: กองการเจ้าหน้าที่ | M95: กองการเจ้าหน้าที่ : น.ส.ภาวิตา ก้อนด้วง โทร. 1032 | O95: จำนวนอาจารย์ประจำที่ดำรงตำแหน่งทางวิชาการ (ผศ. รศ. ศ.) ในรอบปี; จำนวนอาจารย์ประจำที่ดำรงตำแหน่งทางวิชาการ (ผศ. รศ. ศ.) ทั้งหมด | P95: กลยุทธ์ที่ 5 | Q95: =Table3[[#This Row],[KPIsID]] -> S5C62
A96: กลยุทธ์ที่ 5: การบริหารจัดการองค์กรที่มีประสิทธิภาพและประสิทธิผล | B96: 5.3) การบริหารทรัพยากรบุคคลมีประสิทธิภาพ | C96: S5C69 | D96: ตัวชี้วัดแผนปฏิบัติการ | E96: PI 5.3.2.1 ร้อยละของบุคลากรที่มี Future Skill ตามระดับที่คาดหวังและครบตามที่กำหนด | F96: ร้อยละ | G96: บุคลากรสายสนับสนุนวิชาการ มีทักษะ Future Skill (ทักษะแห่งอนาคต) เพื่อรองรับสถานการณ์การเปลี่ยนแปลงอย่างรวดเร็ว (Disruption) ของมหาวิทยาลัย โดยทักษะ Future Skill (ทักษะแห่งอนาคต) ประกอบด้วย 8 ด้านคือ 1) ทักษะการประสานความร่วมมือ (Collaborations at Work) 2) ความสามารถในการปรับตัวยุคดิจิทัล (Adaptability Skills) 3) ทักษะการโน้มน้าวใจในการทำงาน (Influencing At Work) 4) ทักษะการคิดเชิงวิเคราะห์ (Analytical Thinking) 5) เทคนิคการแก้ไขปัญหาที่ซับซ้อน (Complex Problem Solving) 6) จุดประกายความคิดสร้างสรรค์ (Creative Thinking) 7) ลับความคิด พัฒนาความคิดเชิงตรรกะ (Logical Thinking) 8) การใช้ภาษาอังกฤษระดับ B1 ขึ้นไป ทั้งนี้ให้เป็นไปตามประกาศของมหาวิทยาลัย เรื่องการกำหนดทักษะ Future Skill (ทักษะแห่งอนาคต) ของบุคลากรสายสนับสนุนวิชาการ | H96: 1. ข้อมูลการทดสอบหรือวัดประเมินทักษะ Future Skill ตามที่มหาวิทยาลัยกำหนด 3. ข้อมูลจำนวนบุคลากรสายสนับสนุนวิชาการทั้งหมด | I96: จำนวนบุคลากรที่มี Future Skill ตามกำหนด ในรอบปีงบประมาณ X 100 | J96: จำนวนบุคลากรสายสนับสนุนวิชาการทั้งหมด ในรอบปีงบประมาณ | K96: ทุกไตรมาส | L96: กองการเจ้าหน้าที่ | M96: - | O96: จำนวนบุคลากรที่ผ่านเกณฑ์ Future Skill; จำนวนบุคลากรทั้งหมด | P96: กลยุทธ์ที่ 5 | Q96: =Table3[[#This Row],[KPIsID]] -> S5C69
A97: EdPEx | B97: 7.2 ผลลัพธ์ด้านลูกค้า ก (1) ความพึงพอใจของผู้เรียนและลูกค้ากลุ่มอื่น | C97: 7.2-1 | D97: หมวด 7 | E97: ระดับความพึงพอใจ นร. ม.ปลาย ต่อการเข้าถึงข้อมูลการรับสมัคร | F97: ระดับ | K97: ทุกไตรมาส | L97: กองบริการการศึกษา | M97: - | O97: ระดับความพึงพอใจ นร. ม.ปลาย ต่อการเข้าถึงข้อมูลการรับสมัคร; จำนวนนักเรียน ม.ปลาย ที่เข้าถึงข้อมูลการรับสมัคร | P97: หมวด 7 | Q97: =Table3[[#This Row],[KPIsID]] -> 7.2-1
A98: EdPEx | B98: 7.2 ผลลัพธ์ด้านลูกค้า ก (1) ความพึงพอใจของผู้เรียนและลูกค้ากลุ่มอื่น | C98: 7.2-2 | D98: หมวด 7 | E98: ระดับความพึงพอใจของ นศ.ต่อการจัดการเรียนการสอนในหลักสูตร | F98: ระดับ | K98: ทุกไตรมาส | L98: กองบริการการศึกษา | M98: - | O98: ระดับความพึงพอใจของนักศึกษาต่อการจัดการเรียนการสอนในหลักสูตร; จำนวนนักศึกษาที่ตอบแบบสอบถามต่อการจัดการเรียนการสอนในหลักสูตร | P98: หมวด 7 | Q98: =Table3[[#This Row],[KPIsID]] -> 7.2-2
A99: EdPEx | B99: 7.2 ผลลัพธ์ด้านลูกค้า ก (1) ความพึงพอใจของผู้เรียนและลูกค้ากลุ่มอื่น | C99: 7.2-3 | D99: หมวด 7 | E99: ระดับความพึงพอใจของนศ.ต่อสิ่งสนับสนุนการเรียนรู้ | F99: ระดับ | K99: ทุกไตรมาส | L99: กองบริการการศึกษา | M99: - | O99: ระดับความพึงพอใจของนักศึกษาต่อสิ่งสนับสนุนการเรียนรู้; จำนวนนักศึกษาที่ตอบแบบสอบถามต่อสิ่งสนับสนุนการเรียนรู้ | P99: หมวด 7 | Q99: =Table3[[#This Row],[KPIsID]] -> 7.2-3
A100: EdPEx | B100: 7.2 ผลลัพธ์ด้านลูกค้า ก (1) ความพึงพอใจของผู้เรียนและลูกค้ากลุ่มอื่น | C100: 7.2.-4 | D100: หมวด 7 | E100: ระดับความพึงพอใจของนักศึกษาต่อกระบวนการพัฒนานศ. | F100: ระดับ | K100: ทุกไตรมาส | L100: กองบริการการศึกษา | M100: - | O100: ระดับความพึงพอใจของนักศึกษาต่อกระบวนการพัฒนานักศึกษา; จำนวนนักศึกษาที่ตอบแบบสอบถามต่อกระบวนการพัฒนานักศึกษา | P100: หมวด 7 | Q100: =Table3[[#This Row],[KPIsID]] -> 7.2.-4
A101: EdPEx | B101: 7.2 ผลลัพธ์ด้านลูกค้า ก (1) ความพึงพอใจของผู้เรียนและลูกค้ากลุ่มอื่น | C101: 7.2-5 | D101: หมวด 7 | E101: ระดับความพึงพอใจของผู้รับบริการและบุคลากรต่อการบริหารจัดการด้านประสิทธิภาพและความคล่องตัว | F101: ระดับ | K101: ทุกไตรมาส | L101: กองบริการการศึกษา | M101: - | O101: ระดับความพึงพอใจของผู้รับบริการและบุคลากรต่อการบริหารจัดการด้านประสิทธิภาพและความคล่องตัว; จำนวนผู้รับบริการและบุคลากรที่มีความพึงพอใจต่อการบริหารจัดการด้านประสิทธิภาพและความคล่องตัว | P101: หมวด 7 | Q101: =Table3[[#This Row],[KPIsID]] -> 7.2-5
A102: EdPEx | B102: 7.2 ผลลัพธ์ด้านลูกค้า ก (1) ความพึงพอใจของผู้เรียนและลูกค้ากลุ่มอื่น | C102: 7.2-6 | D102: หมวด 7 | E102: จำนวนข้อร้องเรียนของผู้เรียน ลูกค้ากลุ่มอื่นและผู้มีส่วนได้เสีย | F102: ระดับ | K102: ทุกไตรมาส | L102: กองบริการการศึกษา | M102: - | O102: จำนวนข้อร้องเรียนของผู้เรียน; จำนวนข้อร้องเรียนของลูกค้ากลุ่มอื่น; จำนวนข้อร้องเรียนของผู้มีส่วนได้เสีย | P102: หมวด 7 | Q102: =Table3[[#This Row],[KPIsID]] -> 7.2-6
A103: EdPEx | B103: 7.2 ผลลัพธ์ด้านลูกค้า ก (1) ความพึงพอใจของผู้เรียนและลูกค้ากลุ่มอื่น | C103: 7.2-7 | D103: หมวด 7 | E103: ระดับความพึงพอใจของบัณฑิตต่อคุณภาพของหลักสูตร | F103: ระดับ | K103: ไตรมาส 2, 4 | L103: กองบริการการศึกษา | M103: - | O103: ระดับความพึงพอใจของบัณฑิตต่อคุณภาพของหลักสูตร; จำนวนผู้ใช้บัณฑิตที่ตอบแบบสอบถาม | P103: หมวด 7 | Q103: =Table3[[#This Row],[KPIsID]] -> 7.2-7
A104: EdPEx | B104: 7.2 ผลลัพธ์ด้านลูกค้า ก (1) ความพึงพอใจของผู้เรียนและลูกค้ากลุ่มอื่น | C104: 7.2-8 | D104: หมวด 7 | E104: ระดับความพึงพอใจของศิษย์เก่าต่อการรับข้อมูลข่าวสารของ UBU | F104: ระดับ | K104: ไตรมาส 2, 4 | L104: กองบริการการศึกษา | M104: - | O104: ระดับความพึงพอใจของศิษย์เก่าต่อการรับข้อมูลข่าวสารของมหาวิทยาลัย; จำนวนศิษย์เก่าที่รับข้อมูลข่าวสารของมหาวิทยาลัย | P104: หมวด 7 | Q104: =Table3[[#This Row],[KPIsID]] -> 7.2-8
A105: EdPEx | B105: 7.2 ผลลัพธ์ด้านลูกค้า ก ผู้รับบริการด้านการวิจัย | C105: 7.2-9 | D105: หมวด 7 | E105: ระดับความพึงพอใจของผู้ใช้บริการต่อสิ่งสนับสนุนการวิจัย | F105: ระดับ | K105: ไตรมาส 2, 4 | L105: สำนักงานส่งเสริมและบริหารงานวิจัยฯ | O105: ระดับความพึงพอใจของผู้ใช้บริการต่อสิ่งสนับสนุนการวิจัย;จำนวนผู้ใช้บริการสิ่งสนับสนุน | P105: หมวด 7 | Q105: 7.2-9
A106: EdPEx | B106: 7.2 ผลลัพธ์ด้านลูกค้า ก ผู้รับบริการด้านการวิจัย | C106: 7.2-10 | D106: หมวด 7 | E106: ระดับความพึงพอใจของแหล่งทุนด้านการวิจัย | F106: ระดับ | K106: ไตรมาส 2, 4 | L106: สำนักงานส่งเสริมและบริหารงานวิจัยฯ | O106: ระดับความพึงพอใจของแหล่งทุนด้านการวิจัย | P106: หมวด 7 | Q106: 7.2-10
A107: EdPEx | B107: 7.2 ผลลัพธ์ด้านลูกค้า ก ผู้รับบริการด้านการบริการวิชาการ | C107: 7.2-11 | D107: หมวด 7 | E107: ระดับความพึงพอใจของผู้เข้าร่วมโครงการบริการวิชาการ | F107: ระดับ | K107: ไตรมาส 2, 4 | L107: สำนักงานส่งเสริมและบริหารงานวิจัยฯ | O107: ระดับความพึงพอใจของผู้เข้าร่วมโครงการบริการวิชาการ;จำนวนผู้เข้าร่วมโครงการบริการวิชาการ | P107: หมวด 7 | Q107: =Table3[[#This Row],[KPIsID]] -> 7.2-11
A108: EdPEx | B108: 7.2 ผลลัพธ์ด้านลูกค้า ก ผู้รับบริการด้านการบริการวิชาการ | C108: 7.2-12 | D108: หมวด 7 | E108: ระดับความพึงพอใจของผู้ป่วย/ผู้รับบริการด้านสุขภาพ | F108: ระดับ | K108: ไตรมาส 2, 4 | L108: วิทยาลัยแพทยศาสตร์ฯ | O108: ระดับความพึงพอใจของผู้ป่วย/ผู้รับบริการด้านสุขภาพ;จำนวนผู้ป่วยนอก;จำนวนผู้ป่วยใน | P108: หมวด 7 | Q108: =Table3[[#This Row],[KPIsID]] -> 7.2-12
A109: EdPEx | B109: 7.2 ผลลัพธ์ด้านลูกค้า ก ผู้รับบริการด้านการบริการวิชาการ | C109: 7.2-13 | D109: หมวด 7 | E109: ระดับความพึงพอใจของผู้รับบริการโรงพิมพ์ | F109: ระดับ | K109: ไตรมาส 2, 4 | L109: โรงพิมพ์มหาวิทยาลัย | O109: ระดับความพึงพอใจของผู้รับบริการโรงพิมพ์;จำนวนผู้ใช้บริการโรงพิมพ์มหาวิทยาลัย | P109: หมวด 7 | Q109: =Table3[[#This Row],[KPIsID]] -> 7.2-13
A110: EdPEx | B110: 7.2 ผลลัพธ์ด้านลูกค้า ก ผู้รับบริการด้านการบริการวิชาการ | C110: 7.2-14 | D110: หมวด 7 | E110: ระดับความพึงพอใจของผู้รับบริการโรงแรม | F110: ระดับ | K110: ไตรมาส 2, 4 | L110: สถานปฏิบัติการโรงแรมฯ | O110: ระดับความพึงพอใจของผู้รับบริการโรงแรม;จำนวนผู้ใช้บริการโรงแรมมหาวิทยาลัย | P110: หมวด 7 | Q110: =Table3[[#This Row],[KPIsID]] -> 7.2-14
A111: EdPEx | B111: 7.2 ผลลัพธ์ด้านลูกค้า ก ผู้รับบริการด้านทำนุบำรุงศิลปวัฒนธรรม | C111: 7.2-15 | D111: หมวด 7 | E111: ระดับความพึงพอใจของผู้รับบริการด้านศิลปวัฒนธรรม | F111: ระดับ | K111: ไตรมาส 2, 4 | L111: สำนักงานส่งเสริมและบริหารงานวิจัยฯ | O111: ระดับความพึงพอใจของผู้รับบริการด้านศิลปวัฒนธรรม;จำนวนผู้รับบริการด้านศิลปวัฒนธรรม | P111: หมวด 7 | Q111: =Table3[[#This Row],[KPIsID]] -> 7.2-15
A112: EdPEx | B112: 7.2 ผลลัพธ์ด้านลูกค้า ก (2) ความผูกพันของผู้เรียนและลูกค้ากลุ่มอื่น | C112: 7.2-16 | D112: หมวด 7 | E112: จำนวนเงินบริจาคจากศิษย์เก่าที่บริจาคให้กับมหาวิทยาลัย (ลบ.) | F112: ล้านบาท | K112: ทุกไตรมาส | L112: สำนักงานพัฒนานักศึกษา | O112: จำนวนเงินบริจาคจากศิษย์เก่าที่บริจาคให้กับมหาวิทยาลัย (ลบ.) | P112: หมวด 7 | Q112: =Table3[[#This Row],[KPIsID]] -> 7.2-16
A113: EdPEx | B113: 7.2 ผลลัพธ์ด้านลูกค้า ก (2) ความผูกพันของผู้เรียนและลูกค้ากลุ่มอื่น | C113: 7.2-17 | D113: หมวด 7 | E113: ร้อยละของบัณฑิตที่แนะนำ/ญาติ/คนที่รู้จักมาศึกษาต่อ | F113: ร้อยละ | K113: ไตรมาส 2 | L113: กองแผนงาน | O113: จำนวนผู้แนะนำ;จำนวนผู้ไม่แนะนำ | P113: หมวด 7 | Q113: =Table3[[#This Row],[KPIsID]] -> 7.2-17
A114: EdPEx | B114: 7.2 ผลลัพธ์ด้านลูกค้า ก (2) ความผูกพันของผู้เรียนและลูกค้ากลุ่มอื่น | C114: 7.2-18 | D114: หมวด 7 | E114: ร้อยละของผู้รับบริการที่ใช้บริการซ้ำ | F114: ร้อยละ | K114: ไตรมาส 2 | L114: กองแผนงาน | O114: จำนวนผู้รับบริการที่ใช้ซ้ำ;จำนวนผู้รับบริการที่ไม่ใช้ซ้ำ | P114: หมวด 7 | Q114: =Table3[[#This Row],[KPIsID]] -> 7.2-18
A115: EdPEx | B115: 7.3 ผลลัพธ์ด้านบุคลากร ก (1) ผลลัพธ์ขีดความสามารถและอัตรากำลังบุคลากร | C115: 7.3-1 | D115: หมวด 7 | E115: ร้อยละของอาจารย์ที่ได้รับการทุนวิจัยจากภายนอก | F115: ร้อยละ | K115: ทุกไตรมาส | L115: กองการเจ้าหน้าที่ | O115: จำนวนอาจารย์ที่ได้รับทุนวิจัยทั้งหมด;จำนวนอาจารย์ที่ได้รับทุนจากภายนอก | P115: หมวด 7 | Q115: =Table3[[#This Row],[KPIsID]] -> 7.3-1
A116: EdPEx | B116: 7.3 ผลลัพธ์ด้านบุคลากร ก (1) ผลลัพธ์ขีดความสามารถและอัตรากำลังบุคลากร | C116: 7.3-2 | D116: หมวด 7 | E116: ร้อยละของอาจารย์ที่มีผลงานตีพิมพ์ระดับนานาชาติ | F116: ร้อยละ | K116: ทุกไตรมาส | L116: กองการเจ้าหน้าที่ | O116: จำนวนอาจารย์ทั้งหมด;จำนวนอาจารย์ที่มีผลงานตีพิมพ์ระดับนานาชาติ | P116: หมวด 7 | Q116: =Table3[[#This Row],[KPIsID]] -> 7.3-2
A117: EdPEx | B117: 7.3 ผลลัพธ์ด้านบุคลากร ก (1) ผลลัพธ์ขีดความสามารถและอัตรากำลังบุคลากร | C117: 7.3-3 | D117: หมวด 7 | E117: สัดส่วนผลงานที่ตีพิมพ์ในฐานข้อมูลระดับนานานาชาติต่อจำนวนอาจารย์ประจำทั้งหมด Q1-Q2 (Scopus) | F117: ร้อยละ | K117: ทุกไตรมาส | L117: กองการเจ้าหน้าที่ | O117: จำนวนอาจารย์ทั้งหมด;จำนวนผลงานวิจัยที่ตีพิมพ์ในฐาน Scopus Q1-Q2 | P117: หมวด 7 | Q117: =Table3[[#This Row],[KPIsID]] -> 7.3-3
A118: EdPEx | B118: 7.3 ผลลัพธ์ด้านบุคลากร ก (1) ผลลัพธ์ขีดความสามารถและอัตรากำลังบุคลากร | C118: 7.3-4 | D118: หมวด 7 | E118: สัดส่วนของบุคลากรสายวิชาการ/สายสนับสนุน | F118: ร้อยละ | K118: ทุกไตรมาส | L118: กองการเจ้าหน้าที่ | O118: จำนวนบุคลากรสายวิชาการทั้งหมด;จำนวนบุคลากรสายสนับสนุนทั้งหมด | P118: หมวด 7 | Q118: =Table3[[#This Row],[KPIsID]] -> 7.3-4
A119: EdPEx | B119: 7.3 ผลลัพธ์ด้านบุคลากร ก (1) ผลลัพธ์ขีดความสามารถและอัตรากำลังบุคลากร | C119: 7.3-5 | D119: หมวด 7 | E119: เงินทุนวิจัยจากภายนอกต่ออาจารย์ประจำ (หมื่นบาท) | F119: หมื่นบาท | K119: ทุกไตรมาส | L119: กองการเจ้าหน้าที่ | O119: จำนวนอาจารย์ทั้งหมด;จำนวนเงินทุนวิจัยจากภายนอกทั้งหมด | P119: หมวด 7 | Q119: =Table3[[#This Row],[KPIsID]] -> 7.3-5
A120: EdPEx | B120: 7.3 ผลลัพธ์ด้านบุคลากร ก (1) ผลลัพธ์ขีดความสามารถและอัตรากำลังบุคลากร | C120: 7.3-6 | D120: หมวด 7 | E120: จำนวนรางวัลระดับชาติที่บุคลากรได้รับทั้งหมด | F120: ผลงาน | K120: ทุกไตรมาส | L120: กองการเจ้าหน้าที่ | O120: จำนวนบุคลากรทั้งหมด;จำนวนรางัลระดับชาติที่ได้รับทั้งหมด | P120: หมวด 7 | Q120: =Table3[[#This Row],[KPIsID]] -> 7.3-6
A121: EdPEx | B121: 7.3 ผลลัพธ์ด้านบุคลากร ก (1) ผลลัพธ์ขีดความสามารถและอัตรากำลังบุคลากร | C121: 7.3-7 | D121: หมวด 7 | E121: ร้อยละของอาจารย์ที่มีคุณวุฒิปริญญาเอก | F121: ร้อยละ | K121: ทุกไตรมาส | L121: กองการเจ้าหน้าที่ | O121: จำนวนอาจารย์ทั้งหมด;จำนวนอาจารย์ที่มีคุณวุฒิปริญญาเอก | P121: หมวด 7 | Q121: =Table3[[#This Row],[KPIsID]] -> 7.3-7
A122: EdPEx | B122: 7.3 ผลลัพธ์ด้านบุคลากร ก (1) ผลลัพธ์ขีดความสามารถและอัตรากำลังบุคลากร | C122: 7.3-8 | D122: หมวด 7 | E122: ร้อยละของอาจารย์ที่มีตำแหน่งทางวิชาการ | F122: ร้อยละ | K122: ทุกไตรมาส | L122: กองการเจ้าหน้าที่ | O122: จำนวนอาจารย์ทั้งหมด;จำนวนอาจารย์ที่มีตำแหน่งทางวิชาการทั้งหมด | P122: หมวด 7 | Q122: =Table3[[#This Row],[KPIsID]] -> 7.3-8
A123: EdPEx | B123: 7.3 ผลลัพธ์ด้านบุคลากร ก (1) ผลลัพธ์ขีดความสามารถและอัตรากำลังบุคลากร | C123: 7.3-9 | D123: หมวด 7 | E123: ร้อยละของผู้บริหารที่มี Competency Gap ลดลง | F123: ร้อยละ | K123: ทุกไตรมาส | L123: กองการเจ้าหน้าที่ | O123: ร้อยละของผู้บริหารที่มี Competency Gap ลดลง;จำนวนผู้บริหารมหาวิทยาลัยทั้งหมด | P123: หมวด 7 | Q123: =Table3[[#This Row],[KPIsID]] -> 7.3-9
A124: EdPEx | B124: 7.3 ผลลัพธ์ด้านบุคลากร ก (1) ผลลัพธ์ขีดความสามารถและอัตรากำลังบุคลากร | C124: 7.3-10 | D124: หมวด 7 | E124: ร้อยละของบุคลากรที่มีช่องว่าง Future Skill ลดลง | F124: ร้อยละ | K124: ทุกไตรมาส | L124: กองการเจ้าหน้าที่ | O124: จำนวนบุคลากรทั้งหมด;จำนวนบุคลากรที่มีทักษะ Future skill ลดลง | P124: หมวด 7 | Q124: =Table3[[#This Row],[KPIsID]] -> 7.3-10
A125: EdPEx | B125: 7.3 ผลลัพธ์ด้านบุคลากร ก (2) ผลลัพธ์ด้านบรรยากาศการทำงาน | C125: 7.3-11 | D125: หมวด 7 | E125: ร้อยละบุคลากรทางการแพทย์ที่ปฏิบัติงานในรพ.ที่ได้รับการฉีดวัคซีน | F125: ร้อยละ | K125: ไตรมาส 2, 4 | L125: กองการเจ้าหน้าที่ | O125: บุคลากรทางการแพทย์ที่ปฏิบัติงานในรพ.ทั้งหมด;บุคลากรทางการแพทย์ที่ปฏิบัติงานในรพ.ที่ได้รับวัคซีนป้องกันไข้หวัดใหญ่;บุคลากรทางการแพทย์ที่ปฏิบัติงานในรพ.ที่ได้รับวัคซีนไวรัสตับอักเสบบี | P125: หมวด 7 | Q125: =Table3[[#This Row],[KPIsID]] -> 7.3-11
A126: EdPEx | B126: 7.3 ผลลัพธ์ด้านบุคลากร ก (2) ผลลัพธ์ด้านบรรยากาศการทำงาน | C126: 7.3-12 | D126: หมวด 7 | E126: ร้อยละของบุคลากรที่ได้รับการฉีดวัคซีน Covid -19 | F126: ร้อยละ | K126: ไตรมาส 2, 4 | L126: กองการเจ้าหน้าที่ | O126: จำนวนบุคลากรทั้งหมด;จำนวนบุคลากรที่ได้รับการฉีดวัคซีน Covid-19 | P126: หมวด 7 | Q126: =Table3[[#This Row],[KPIsID]] -> 7.3-12
A127: EdPEx | B127: 7.3 ผลลัพธ์ด้านบุคลากร ก (2) ผลลัพธ์ด้านบรรยากาศการทำงาน | C127: 7.3-13 | D127: หมวด 7 | E127: ระดับความพึงพอใจต่อระบบสาธารณูปโภค | F127: ระดับ | K127: ไตรมาส 2, 4 | L127: สำนักงานบริหารกายภาพและสิ่งแวดล้อม | O127: ระดับความพึงพอใจต่อระบบสาธารณูปโภค | P127: หมวด 7 | Q127: =Table3[[#This Row],[KPIsID]] -> 7.3-13
A128: EdPEx | B128: 7.3 ผลลัพธ์ด้านบุคลากร ก (2) ผลลัพธ์ด้านบรรยากาศการทำงาน | C128: 7.3-14 | D128: หมวด 7 | E128: ระดับความพึงพอใจของบุคลากรต่อการใช้ฐานข้อมูลสารสนเทศ | F128: ระดับ | K128: ไตรมาส 2, 4 | L128: สำนักคอมพิวเตอร์และเครือข่าย | O128: ระดับความพึงพอใจของบุคลากรต่อการใช้ฐานข้อมูลสารสนเทศ | P128: หมวด 7 | Q128: =Table3[[#This Row],[KPIsID]] -> 7.3-14
A129: EdPEx | B129: 7.3 ผลลัพธ์ด้านบุคลากร ก (2) ผลลัพธ์ด้านบรรยากาศการทำงาน | C129: 7.3-15 | D129: หมวด 7 | E129: ระดับความพึงพอใจของผู้บริหารทุกระดับต่อการใช้ฐานข้อมูล | F129: ระดับ | K129: ไตรมาส 2, 4 | L129: สำนักคอมพิวเตอร์และเครือข่าย | O129: ระดับความพึงพอใจของผู้บริหารทุกระดับต่อการใช้ฐานข้อมูล | P129: หมวด 7 | Q129: =Table3[[#This Row],[KPIsID]] -> 7.3-15
A130: EdPEx | B130: 7.3 ผลลัพธ์ด้านบุคลากร ก (2) ผลลัพธ์ด้านบรรยากาศการทำงาน | C130: 7.3-16 | D130: หมวด 7 | E130: ระดับของความพึงพอใจของผู้ใช้บริการระบบเครือข่าย | F130: ระดับ | K130: ไตรมาส 2, 4 | L130: สำนักคอมพิวเตอร์และเครือข่าย | O130: ระดับของความพึงพอใจของผู้ใช้บริการระบบเครือข่าย | P130: หมวด 7 | Q130: =Table3[[#This Row],[KPIsID]] -> 7.3-16
A131: EdPEx | B131: 7.3 ผลลัพธ์ด้านบุคลากร ก (2) ผลลัพธ์ด้านบรรยากาศการทำงาน | C131: 7.3-17 | D131: หมวด 7 | E131: ระดับความพึงพอใจของบุคลากรต่อแผนพัฒนาบุคลากร | F131: ระดับ | K131: ไตรมาส 2, 4 | L131: กองแผนงาน | O131: ระดับความพึงพอใจของบุคลากรต่อแผนพัฒนาบุคลากร | P131: หมวด 7 | Q131: =Table3[[#This Row],[KPIsID]] -> 7.3-17
A132: EdPEx | B132: 7.3 ผลลัพธ์ด้านบุคลากร ก (3) ผลลัพธ์ด้านความผูกพันของบุคลากร | C132: 7.3-18 | D132: หมวด 7 | E132: ระดับความผูกพันของบุคลากรต่อมหาวิทยาลัย | F132: ระดับ | K132: ไตรมาส 2, 4 | L132: กองการเจ้าหน้าที่ | O132: ระดับความผูกพันของบุคลากรต่อมหาวิทยาลัย | P132: หมวด 7 | Q132: =Table3[[#This Row],[KPIsID]] -> 7.3-18
A133: EdPEx | B133: 7.3 ผลลัพธ์ด้านบุคลากร ก (3) ผลลัพธ์ด้านความผูกพันของบุคลากร | C133: 7.3-19 | D133: หมวด 7 | E133: อัตราการคงอยู่ (Retention rate) ของบุคลากร | F133: ร้อยละ | K133: ไตรมาส 2, 4 | L133: กองการเจ้าหน้าที่ | O133: จำนวนบุคลากรทั้งหมด;จำนวนบุคลากรที่ลาออก | P133: หมวด 7 | Q133: =Table3[[#This Row],[KPIsID]] -> 7.3-19
A134: EdPEx | B134: 7.3 ผลลัพธ์ด้านบุคลากร ก (3) ผลลัพธ์ด้านความผูกพันของบุคลากร | C134: 7.3-20 | D134: หมวด 7 | E134: อัตราการลาออก 3 ปีแรก ของบุคลากร | F134: ร้อยละ | K134: ไตรมาส 2, 4 | L134: กองการเจ้าหน้าที่ | O134: จำนวนบุคลากรที่ลาออก 3 ปี แรก | P134: หมวด 7 | Q134: =Table3[[#This Row],[KPIsID]] -> 7.3-20
A135: EdPEx | B135: 7.3 ผลลัพธ์ด้านบุคลากร ก (4) ผลลัพธ์ด้านการพัฒนาบุคลากรและผู้นำ | C135: 7.3-21 | D135: หมวด 7 | E135: ร้อยละของผู้บริหารทุกระดับที่ได้รับการพัฒนาทักษะการบริหาร | F135: ร้อยละ | K135: ไตรมาส 2, 4 | L135: กองการเจ้าหน้าที่ | O135: จำนวนผู้บริหารทั้งหมด;จำนวนผู้บริหารที่ได้รับการพัฒนาทักษะการบริหาร | P135: หมวด 7 | Q135: =Table3[[#This Row],[KPIsID]] -> 7.3-21
A136: EdPEx | B136: 7.3 ผลลัพธ์ด้านบุคลากร ก (4) ผลลัพธ์ด้านการพัฒนาบุคลากรและผู้นำ | C136: 7.3-22 | D136: หมวด 7 | E136: ร้อยละของอาจารย์ประจำที่มีตำแหน่งทางวิชาการ | F136: ร้อยละ | K136: ไตรมาส 2, 4 | L136: กองการเจ้าหน้าที่ | O136: จำนวนอาจารย์ทั้งหมด;จำนวนอาจารย์ที่มีตำแหน่งทางวิชาการทั้งหมด | P136: หมวด 7 | Q136: =Table3[[#This Row],[KPIsID]] -> 7.3-22
A137: EdPEx | B137: 7.3 ผลลัพธ์ด้านบุคลากร ก (4) ผลลัพธ์ด้านการพัฒนาบุคลากรและผู้นำ | C137: 7.3-23 | D137: หมวด 7 | E137: ร้อยละของอาจารย์ที่มีคุณวุฒิปริญญาเอก | F137: ร้อยละ | K137: ไตรมาส 2, 4 | L137: กองการเจ้าหน้าที่ | O137: จำนวนอาจารย์ทั้งหมด;จำนวนอาจารย์ที่มีคุณวุฒิปริญญาเอก | P137: หมวด 7 | Q137: =Table3[[#This Row],[KPIsID]] -> 7.3-23
A138: EdPEx | B138: 7.4 ผลลัพธ์ด้านการนำองค์กรและการกำกับดูแลองค์กร ก (1) ผลลัพธ์ด้านการสื่อสารและสร้างความผูกพันกับบุคลากร ผู้เรียน และลูกค้ากลุ่มอื่น | C138: 7.4-1 | D138: หมวด 7 | E138: ร้อยละของบุคลากรที่เข้าใจทิศทางองค์กร | F138: ร้อยละ | K138: ทุกไตรมาส | L138: กองการเจ้าหน้าที่ | O138: จำนวนบุคลากรทั้งหมด;จำนวนบุคลากรที่เข้าใจทิศทางขององค์กร | P138: หมวด 7 | Q138: =Table3[[#This Row],[KPIsID]] -> 7.4-1
A139: EdPEx | B139: 7.4 ผลลัพธ์ด้านการนำองค์กรและการกำกับดูแลองค์กร ก (2) ผลลัพธ์ด้านภาระรับผิดชอบของการกำกับดูแล | C139: 7.4-2 | D139: หมวด 7 | E139: ผลการประเมินคุณธรรม/ความโปร่งใสในหน่วยงานภาครัฐ (ITA) | F139: คะแนน | K139: ไตรมาส 3 | L139: กองแผนงาน | O139: ระดับคะแนนผลการประเมินคุณธรรมและความโปร่งใสในหน่วยงานภาครัฐ ITA | P139: หมวด 7 | Q139: =Table3[[#This Row],[KPIsID]] -> 7.4-2
A140: EdPEx | B140: 7.4 ผลลัพธ์ด้านการนำองค์กรและการกำกับดูแลองค์กร ก (2) ผลลัพธ์ด้านภาระรับผิดชอบของการกำกับดูแล | C140: 7.4-3 | D140: หมวด 7 | E140: ร้อยละความสำเร็จของตัวชี้วัดตามแผนบริหารความเสี่ยงฯ | F140: ร้อยละ | K140: ไตรมาส 2, 3, 4 | L140: กองแผนงาน | O140: ร้อยละความสำเร็จของตัวชี้วัดตามแผนบริหารความเสี่ยงฯ | P140: หมวด 7 | Q140: =Table3[[#This Row],[KPIsID]] -> 7.4-3
A141: EdPEx | B141: 7.4 ผลลัพธ์ด้านการนำองค์กรและการกำกับดูแลองค์กร ก (2) ผลลัพธ์ด้านภาระรับผิดชอบของการกำกับดูแล | C141: 7.4-4 | D141: หมวด 7 | E141: ร้อยละของผู้บริหารทุกระดับที่ดำเนินการบรรลุเป้าหมายตาม OKRs | F141: ร้อยละ | K141: ไตรมาส 2, 3, 4 | L141: กองแผนงาน | O141: ร้อยละของผู้บริหารทุกระดับที่ดำเนินการบรรลุเป้าหมายตาม OKRs | P141: หมวด 7 | Q141: =Table3[[#This Row],[KPIsID]] -> 7.4-4
A142: EdPEx | B142: 7.4 ผลลัพธ์ด้านการนำองค์กรและการกำกับดูแลองค์กร ก (3) ผลลัพธ์ด้านกฎหมาย กฎระเบียบข้อบังคับ และการรับรองคุณภาพ | C142: 7.4-5 | D142: หมวด 7 | E142: ร้อยละของหลักสูตรที่ผ่านเกณฑ์มาตรฐานหลักสูตร | F142: ร้อยละ | K142: ไตรมาส 2, 3, 4 | L142: กองแผนงาน | O142: จำนวนหลักสูตรที่ผ่านเกณฑ์มาตรฐานหลักสูตร;จำนวนหลักสูตรทั้งหมด | P142: หมวด 7 | Q142: =Table3[[#This Row],[KPIsID]] -> 7.4-5
A143: EdPEx | B143: 7.4 ผลลัพธ์ด้านการนำองค์กรและการกำกับดูแลองค์กร ก (3) ผลลัพธ์ด้านกฎหมาย กฎระเบียบข้อบังคับ และการรับรองคุณภาพ | C143: 7.4-6 | D143: หมวด 7 | E143: ร้อยละของหลักสูตรที่ผ่านการรับรองโดยสภาวิชาชีพ | F143: ร้อยละ | K143: ไตรมาส 2, 3, 4 | L143: กองแผนงาน | O143: ร้อยละของหลักสูตรที่ผ่านการรับรองโดยสภาวิชาชีพ | P143: หมวด 7 | Q143: =Table3[[#This Row],[KPIsID]] -> 7.4-6
A144: EdPEx | B144: 7.4 ผลลัพธ์ด้านการนำองค์กรและการกำกับดูแลองค์กร ก (3) ผลลัพธ์ด้านกฎหมาย กฎระเบียบข้อบังคับ และการรับรองคุณภาพ | C144: 7.4-7 | D144: หมวด 7 | E144: ร้อยละของหลักสูตรที่มีผลประเมินคุณภาพภายใน ระดับ ≥3.01 | F144: ร้อยละ | K144: ไตรมาส 2, 3, 4 | L144: กองแผนงาน | O144: ร้อยละของหลักสูตรที่มีผลประเมินคุณภาพภายใน ระดับ ≥3.01 | P144: หมวด 7 | Q144: =Table3[[#This Row],[KPIsID]] -> 7.4-7
A145: EdPEx | B145: 7.4 ผลลัพธ์ด้านการนำองค์กรและการกำกับดูแลองค์กร ก (3) ผลลัพธ์ด้านกฎหมาย กฎระเบียบข้อบังคับ และการรับรองคุณภาพ | C145: 7.4-8 | D145: หมวด 7 | E145: จำนวนครั้งของการกระทำผิดความผิดเกี่ยวกับ พรบ.คอมพิวเตอร์ | F145: ครั้ง | K145: ไตรมาส 2, 3, 4 | L145: สำนักคอมพิวเตอร์และเครือข่าย | O145: จำนวนครั้งของการกระทำผิดความผิดเกี่ยวกับ พรบ.คอมพิวเตอร์ | P145: หมวด 7 | Q145: =Table3[[#This Row],[KPIsID]] -> 7.4-8
A146: EdPEx | B146: 7.4 ผลลัพธ์ด้านการนำองค์กรและการกำกับดูแลองค์กร ก (3) ผลลัพธ์ด้านกฎหมาย กฎระเบียบข้อบังคับ และการรับรองคุณภาพ | C146: 7.4-9 | D146: หมวด 7 | E146: จำนวนข้อร้องเรียนหรืออุทธรณ์เกี่ยวกับการจัดซื้อจัดจ้าง | F146: ครั้ง | K146: ไตรมาส 2, 3, 4 | L146: กองคลัง | O146: จำนวนข้อร้องเรียนหรืออุทธรณ์เกี่ยวกับการจัดซื้อจัดจ้าง | P146: หมวด 7 | Q146: =Table3[[#This Row],[KPIsID]] -> 7.4-9
A147: EdPEx | B147: 7.4 ผลลัพธ์ด้านการนำองค์กรและการกำกับดูแลองค์กร ก (3) ผลลัพธ์ด้านกฎหมาย กฎระเบียบข้อบังคับ และการรับรองคุณภาพ | C147: 7.4-10 | D147: หมวด 7 | E147: จำนวนข้อสำคัญที่ตรวจพบจากการกำกับดูแลของกรรมการตรวจสอบประจำมหาวิทยาลัยที่รายงานต่อสภามหาวิทยาลัย | F147: ครั้ง | K147: ไตรมาส 2, 3, 4 | L147: สำนักงานตรวจสอบภายใน | O147: จำนวนข้อสำคัญที่ตรวจพบจากการกำกับดูแลของกรรมการตรวจสอบประจำมหาวิทยาลัยที่รายงานต่อสภามหาวิทยาลัย | P147: หมวด 7 | Q147: =Table3[[#This Row],[KPIsID]] -> 7.4-10
A148: EdPEx | B148: 7.4 ผลลัพธ์ด้านการนำองค์กรและการกำกับดูแลองค์กร ก (3) ผลลัพธ์ด้านกฎหมาย กฎระเบียบข้อบังคับ และการรับรองคุณภาพ | C148: 7.4-11 | D148: หมวด 7 | E148: ร้อยละการเบิกจ่ายงบประมาณแผ่นดินเป็นไปตามที่รัฐบาลกำหนด | F148: ร้อยละ | K148: ไตรมาส 2, 3, 4 | L148: กองคลัง | O148: งบประมาณทั้งหมด;งบประมาณที่ได้รับการเบิกจ่าย | P148: หมวด 7 | Q148: =Table3[[#This Row],[KPIsID]] -> 7.4-11
A149: EdPEx | B149: 7.4 ผลลัพธ์ด้านการนำองค์กรและการกำกับดูแลองค์กร ก (3) ผลลัพธ์ด้านกฎหมาย กฎระเบียบข้อบังคับ และการรับรองคุณภาพ | C149: 7.4-12 | D149: หมวด 7 | E149: จำนวนข้อร้องเรียนของร้องเรียนของบุคลากร | F149: ครั้ง | K149: ไตรมาส 2, 3, 4 | L149: กองการเจ้าหน้าที่ | O149: จำนวนข้อร้องเรียนของร้องเรียนของบุคลากร | P149: หมวด 7 | Q149: =Table3[[#This Row],[KPIsID]] -> 7.4-12
A150: EdPEx | B150: 7.4 ผลลัพธ์ด้านการนำองค์กรและการกำกับดูแลองค์กร ก (4) ผลลัพธ์ด้านการประพฤติปฏิบัติอย่างมีจริยธรรม | C150: 7.4-13 | D150: หมวด 7 | E150: ร้อยละของงานวิจัยที่ทำผิดมาตรฐานการวิจัย | F150: ร้อยละ | K150: ไตรมาส 2, 3, 4 | L150: สำนักงานส่งเสริมและบริหารงานวิจัยฯ | O150: ผลงานวิจัยทั้งหมด;ผลงานวิจัยที่ทำผิดมาตรฐานการวิจัย | P150: หมวด 7 | Q150: =Table3[[#This Row],[KPIsID]] -> 7.4-13
A151: EdPEx | B151: 7.4 ผลลัพธ์ด้านการนำองค์กรและการกำกับดูแลองค์กร ก (4) ผลลัพธ์ด้านการประพฤติปฏิบัติอย่างมีจริยธรรม | C151: 7.4-14 | D151: หมวด 7 | E151: จำนวนบุคลากรที่ทำผิดจริยธรรมและจรรยาบรรณ | F151: คน | K151: ไตรมาส 2, 3, 4 | L151: กองการเจ้าหน้าที่ | O151: จำนวนบุคลากรที่ทำผิดจริยธรรมและจรรยาบรรณ | P151: หมวด 7 | Q151: =Table3[[#This Row],[KPIsID]] -> 7.4-14
A152: EdPEx | B152: 7.4 ผลลัพธ์ด้านการนำองค์กรและการกำกับดูแลองค์กร ก (4) ผลลัพธ์ด้านการประพฤติปฏิบัติอย่างมีจริยธรรม | C152: 7.4-15 | D152: หมวด 7 | E152: จำนวนข้อร้องเรียนของผู้รับบริการ รพ. และร้านยา | F152: ครั้ง | K152: ไตรมาส 2, 3, 4 | L152: วิทยาลัยแพทยศาสตร์ฯ | O152: จำนวนข้อร้องเรียนของผู้รับบริการ รพ. และร้านยา | P152: หมวด 7 | Q152: =Table3[[#This Row],[KPIsID]] -> 7.4-15
A153: EdPEx | B153: 7.4 ผลลัพธ์ด้านการนำองค์กรและการกำกับดูแลองค์กร ก (5) ผลลัพธ์ด้านความความผาสุกของสังคมและการสนับสนุนชุมชน | C153: 7.4-16 | D153: หมวด 7 | E153: คะแนน UI Green Metric | F153: คะแนน | K153: ไตรมาส 2, 3, 4 | L153: สำนักงานบริหารกายภาพและสิ่งแวดล้อม | O153: คะแนนประเมิน UI Green Metric ในรอบปี | P153: หมวด 7 | Q153: =Table3[[#This Row],[KPIsID]] -> 7.4-16
A154: EdPEx | B154: 7.4 ผลลัพธ์ด้านการนำองค์กรและการกำกับดูแลองค์กร ก (5) ผลลัพธ์ด้านความความผาสุกของสังคมและการสนับสนุนชุมชน | C154: 7.4-17 | D154: หมวด 7 | E154: ร้อยละของปริมาณน้ำที่ผ่านการบำบัดและนำมาใช้ประโยชน์ | F154: ร้อยละ | K154: ไตรมาส 2, 3, 4 | L154: สำนักงานบริหารกายภาพและสิ่งแวดล้อม | O154: ร้อยละของปริมาณน้ำที่ผ่านการบำบัดและนำมาใช้ประโยชน์ | P154: หมวด 7 | Q154: =Table3[[#This Row],[KPIsID]] -> 7.4-17
A155: EdPEx | B155: 7.4 ผลลัพธ์ด้านการนำองค์กรและการกำกับดูแลองค์กร ก (5) ผลลัพธ์ด้านความความผาสุกของสังคมและการสนับสนุนชุมชน | C155: 7.4-18 | D155: หมวด 7 | E155: ร้อยละของพลังงานทดแทนที่ผลิตได้ | F155: ร้อยละ | K155: ไตรมาส 2, 3, 4 | L155: สำนักงานบริหารกายภาพและสิ่งแวดล้อม | O155: พลังงานทดแทนที่ผลิตได้;พลังงานทั้งหมด | P155: หมวด 7 | Q155: =Table3[[#This Row],[KPIsID]] -> 7.4-18
A156: EdPEx | B156: 7.4 ผลลัพธ์ด้านการนำองค์กรและการกำกับดูแลองค์กร ก (5) ผลลัพธ์ด้านความความผาสุกของสังคมและการสนับสนุนชุมชน | C156: 7.4-19 | D156: หมวด 7 | E156: ร้อยละของค่าไฟฟ้าที่ลดลงจากการใช้พลังงานทดแทน | F156: ร้อยละ | K156: ไตรมาส 2, 3, 4 | L156: สำนักงานบริหารกายภาพและสิ่งแวดล้อม | O156: ร้อยละของค่าไฟฟ้าที่ลดลงจากการใช้พลังงานทดแทน | P156: หมวด 7 | Q156: =Table3[[#This Row],[KPIsID]] -> 7.4-19
A157: EdPEx | B157: 7.4 ผลลัพธ์ด้านการนำองค์กรและการกำกับดูแลองค์กร ก (5) ผลลัพธ์ด้านความความผาสุกของสังคมและการสนับสนุนชุมชน | C157: 7.4-20 | D157: หมวด 7 | E157: จำนวน zero emission vehicles/จำนวนประชากรทั้งหมด | F157: ตัน CO2/คน | K157: ไตรมาส 2, 3, 4 | L157: สำนักงานบริหารกายภาพและสิ่งแวดล้อม | O157: จำนวนนักศึกษาทั้งหมด ทุกระดับ;จำนวนบุคลากรทั้งหมด;จำนวน zero emission vehicles | P157: หมวด 7 | Q157: =Table3[[#This Row],[KPIsID]] -> 7.4-20
A158: EdPEx | B158: 7.4 ผลลัพธ์ด้านการนำองค์กรและการกำกับดูแลองค์กร ก (5) ผลลัพธ์ด้านความความผาสุกของสังคมและการสนับสนุนชุมชน | C158: 7.4-21 | D158: หมวด 7 | E158: ระดับความเชื่อมั่นของบุคลากร/นศ.ต่อระบบรักษาความปลอดภัย | F158: ระดับ | K158: ไตรมาส 2, 3, 4 | L158: สำนักงานบริหารกายภาพและสิ่งแวดล้อม | O158: ระดับความเชื่อมั่นของบุคลากร/นศ.ต่อระบบรักษาความปลอดภัย | P158: หมวด 7 | Q158: =Table3[[#This Row],[KPIsID]] -> 7.4-21
A159: EdPEx | B159: 7.5 ผลลัพธ์ด้านงบประมาณ การเงิน ตลาด และกลยุทธ์ ก (1) ผลลัพธ์การดำเนินการด้านงบประมาณและการเงิน | C159: 7.5-1 | D159: หมวด 7 | E159: รายได้สุทธิจากการบริหารธุรกิจและสินทรัพย์ | F159: ล้านบาท | K159: ไตรมาส 2, 3, 4 | L159: กองคลัง | O159: รายได้สุทธิจากการบริหารธุรกิจและสินทรัพย์ | P159: หมวด 7 | Q159: =Table3[[#This Row],[KPIsID]] -> 7.5-1
A160: EdPEx | B160: 7.5 ผลลัพธ์ด้านงบประมาณ การเงิน ตลาด และกลยุทธ์ ก (1) ผลลัพธ์การดำเนินการด้านงบประมาณและการเงิน | C160: 7.5-2 | D160: หมวด 7 | E160: รายได้ของมหาวิทยาลัยต่อจำนวนบุคลากร | F160: ล้านบาท | K160: ไตรมาส 2, 3, 4 | L160: กองคลัง | O160: รายได้ของมหาวิทยาลัยทั้งหมด;จำนวนบุคลากรทั้งหมด | P160: หมวด 7 | Q160: =Table3[[#This Row],[KPIsID]] -> 7.5-2
A161: EdPEx | B161: 7.5 ผลลัพธ์ด้านงบประมาณ การเงิน ตลาด และกลยุทธ์ ก (1) ผลลัพธ์การดำเนินการด้านงบประมาณและการเงิน | C161: 7.5-3 | D161: หมวด 7 | E161: จำนวนเงินทุนสำรองสะสม | F161: ล้านบาท | K161: ไตรมาส 2, 3, 4 | L161: กองคลัง | O161: จำนวนเงินทุนสำรองสะสม | P161: หมวด 7 | Q161: =Table3[[#This Row],[KPIsID]] -> 7.5-3
A162: EdPEx | B162: 7.5 ผลลัพธ์ด้านงบประมาณ การเงิน ตลาด และกลยุทธ์ ก (1) ผลลัพธ์การดำเนินการด้านงบประมาณและการเงิน | C162: 7.5-4 | D162: หมวด 7 | E162: รายได้สุทธิ | F162: ล้านบาท | K162: ไตรมาส 2, 3, 4 | L162: กองคลัง | O162: รายได้สุทธิ | P162: หมวด 7 | Q162: =Table3[[#This Row],[KPIsID]] -> 7.5-4
A163: EdPEx | B163: 7.5 ผลลัพธ์ด้านงบประมาณ การเงิน ตลาด และกลยุทธ์ ก (1) ผลลัพธ์การดำเนินการด้านงบประมาณและการเงิน | C163: 7.5-5 | D163: หมวด 7 | E163: รายได้จากการบริการวิชาการ (แยกประเภท) | F163: ล้านบาท | K163: ไตรมาส 2, 3, 4 | L163: กองคลัง | O163: รายได้จากการบริการวิชาการ | P163: หมวด 7 | Q163: =Table3[[#This Row],[KPIsID]] -> 7.5-5
A164: EdPEx | B164: 7.5 ผลลัพธ์ด้านงบประมาณ การเงิน ตลาด และกลยุทธ์ ก (1) ผลลัพธ์การดำเนินการด้านงบประมาณและการเงิน | C164: 7.5-6 | D164: หมวด 7 | E164: รายได้จากโรงพยาบาล | F164: ล้านบาท | K164: ไตรมาส 2, 3, 4 | L164: กองคลัง | O164: รายได้จากโรงพยาบาล | P164: หมวด 7 | Q164: =Table3[[#This Row],[KPIsID]] -> 7.5-6
A165: EdPEx | B165: 7.5 ผลลัพธ์ด้านงบประมาณ การเงิน ตลาด และกลยุทธ์ ก (1) ผลลัพธ์การดำเนินการด้านงบประมาณและการเงิน | C165: 7.5-7 | D165: หมวด 7 | E165: รายได้จาก ร้านยา | F165: ล้านบาท | K165: ไตรมาส 2, 3, 4 | L165: กองคลัง | O165: รายได้จาก ร้านยา | P165: หมวด 7 | Q165: =Table3[[#This Row],[KPIsID]] -> 7.5-7
A166: EdPEx | B166: 7.5 ผลลัพธ์ด้านงบประมาณ การเงิน ตลาด และกลยุทธ์ ก (1) ผลลัพธ์การดำเนินการด้านงบประมาณและการเงิน | C166: 7.5-8 | D166: หมวด 7 | E166: รายได้สจาก โรงพิมพ์ | F166: ล้านบาท | K166: ไตรมาส 2, 3, 4 | L166: กองคลัง | O166: รายได้ จากโรงพิมพ์ | P166: หมวด 7 | Q166: =Table3[[#This Row],[KPIsID]] -> 7.5-8
A167: EdPEx | B167: 7.5 ผลลัพธ์ด้านงบประมาณ การเงิน ตลาด และกลยุทธ์ ก (1) ผลลัพธ์การดำเนินการด้านงบประมาณและการเงิน | C167: 7.5-9 | D167: หมวด 7 | E167: รายได้ โรงแรม U-Place | F167: ล้านบาท | K167: ไตรมาส 2, 3, 4 | L167: กองคลัง | O167: รายได้ โรงแรม U-Place | P167: หมวด 7 | Q167: =Table3[[#This Row],[KPIsID]] -> 7.5-9
A168: EdPEx | B168: 7.5 ผลลัพธ์ด้านงบประมาณ การเงิน ตลาด และกลยุทธ์ ก (1) ผลลัพธ์การดำเนินการด้านงบประมาณและการเงิน | C168: 7.5-10 | D168: หมวด 7 | E168: รายได้จาก IP และงานวิจัยที่นำไปใช้เชิงพาณิชย์ | F168: แสนบาท | K168: ไตรมาส 2, 3, 4 | L168: กองคลัง | O168: รายได้จากทรัพย์สินทางปัญญา;รายได้จากผลงานวิจัยที่นำมาใช้ประโยชน์ในเชิงพาณิชย์ | P168: หมวด 7 | Q168: =Table3[[#This Row],[KPIsID]] -> 7.5-10
A169: EdPEx | B169: 7.5 ผลลัพธ์ด้านงบประมาณ การเงิน ตลาด และกลยุทธ์ ก (1) ผลลัพธ์การดำเนินการด้านงบประมาณและการเงิน | C169: 7.5-11 | D169: หมวด 7 | E169: รายได้ที่เกิดจากการบริหารจัดการขยะ | F169: แสนบาท | K169: ไตรมาส 2, 3, 4 | L169: กองคลัง | O169: รายได้ที่เกิดจากการบริหารจัดการขยะ | P169: หมวด 7 | Q169: =Table3[[#This Row],[KPIsID]] -> 7.5-11
A170: EdPEx | B170: 7.5 ผลลัพธ์ด้านงบประมาณ การเงิน ตลาด และกลยุทธ์ ก (1) ผลลัพธ์การดำเนินการด้านงบประมาณและการเงิน | C170: 7.5-12 | D170: หมวด 7 | E170: อัตราส่วนค่าธรรมการศึกษาต่อเงินรายได้ | F170: ร้อยละ | K170: ไตรมาส 2, 3, 4 | L170: กองคลัง | O170: ค่าธรรมเนียมการศึกษา ในรอบปีงบประมาณ;เงินรายได้ของมหาวิทยาลัย | P170: หมวด 7 | Q170: =Table3[[#This Row],[KPIsID]] -> 7.5-12
A171: EdPEx | B171: 7.5 ผลลัพธ์ด้านงบประมาณ การเงิน ตลาด และกลยุทธ์ ก (1) ผลลัพธ์การดำเนินการด้านงบประมาณและการเงิน | C171: 7.5-13 | D171: หมวด 7 | E171: จำนวนเงินทุนการศึกษา | F171: ล้านบาท | K171: ไตรมาส 2, 3, 4 | L171: สำนักงานพัฒนานักศึกษา | O171: จำนวนเงินทุนการศึกษา | P171: หมวด 7 | Q171: =Table3[[#This Row],[KPIsID]] -> 7.5-13
A172: EdPEx | B172: 7.5 ผลลัพธ์ด้านงบประมาณ การเงิน ตลาด และกลยุทธ์ ก (1) ผลลัพธ์การดำเนินการด้านงบประมาณและการเงิน | C172: 7.5-14 | D172: หมวด 7 | E172: จำนวนงบประมาณบริการวิชาการจากแหล่งทุนภายนอก | F172: ล้านบาท | K172: ไตรมาส 2, 3, 4 | L172: สำนักงานส่งเสริมและบริหารงานวิจัยฯ | O172: จำนวนงบประมาณบริการวิชาการจากแหล่งทุนภายนอก | P172: หมวด 7 | Q172: =Table3[[#This Row],[KPIsID]] -> 7.5-14
A173: EdPEx | B173: 7.5 ผลลัพธ์ด้านงบประมาณ การเงิน ตลาด และกลยุทธ์ ก (1) ผลลัพธ์การดำเนินการด้านงบประมาณและการเงิน | C173: 7.5-15 | D173: หมวด 7 | E173: จำนวนเงินทุนวิจัยที่ได้รับทั้งหมด | F173: ล้านบาท | K173: ไตรมาส 2, 3, 4 | L173: สำนักงานส่งเสริมและบริหารงานวิจัยฯ | O173: จำนวนเงินทุนวิจัยที่ได้รับทั้งหมด | P173: หมวด 7 | Q173: =Table3[[#This Row],[KPIsID]] -> 7.5-15
A174: EdPEx | B174: 7.5 ผลลัพธ์ด้านงบประมาณ การเงิน ตลาด และกลยุทธ์ ก (1) ผลลัพธ์การดำเนินการด้านงบประมาณและการเงิน | C174: 7.5-16 | D174: หมวด 7 | E174: เงินหมุนเวียนคงเหลือ | F174: ล้านบาท | K174: ไตรมาส 2, 3, 4 | L174: กองคลัง | O174: เงินหมุนเวียนคงเหลือ | P174: หมวด 7 | Q174: =Table3[[#This Row],[KPIsID]] -> 7.5-16
A175: EdPEx | B175: 7.5 ผลลัพธ์ด้านงบประมาณ การเงิน ตลาด และกลยุทธ์ ก (1) ผลลัพธ์การดำเนินการด้านงบประมาณและการเงิน | C175: 7.5-17 | D175: หมวด 7 | E175: สภาพคล่องเงินสดย่อยรายได้ (Day cash on hand) | K175: ไตรมาส 2, 3, 4 | L175: กองคลัง | O175: สภาพคล่องเงินสดย่อยรายได้ (Day cash on hand) | P175: หมวด 7 | Q175: =Table3[[#This Row],[KPIsID]] -> 7.5-17
A176: EdPEx | B176: 7.5 ผลลัพธ์ด้านงบประมาณ การเงิน ตลาด และกลยุทธ์ ก (1) ผลลัพธ์การดำเนินการด้านงบประมาณและการเงิน | C176: 7.5-18 | D176: หมวด 7 | E176: ประสิทธิภาพการใช้สินทรัพย์ (Return On Asset) | K176: ไตรมาส 2, 3, 4 | L176: กองคลัง | O176: ประสิทธิภาพการใช้สินทรัพย์ (Return On Asset) | P176: หมวด 7 | Q176: =Table3[[#This Row],[KPIsID]] -> 7.5-18
A177: EdPEx | B177: 7.5 ผลลัพธ์ด้านงบประมาณ การเงิน ตลาด และกลยุทธ์ ก (1) ผลลัพธ์การดำเนินการด้านงบประมาณและการเงิน | C177: 7.5-19 | D177: หมวด 7 | E177: ร้อยละของรายรับจริงเทียบกับประมาณการรายรับประจำปี | F177: ร้อยละ | K177: ไตรมาส 2, 3, 4 | L177: กองแผนงาน | O177: รายรับจริงทั้งหมด;ประมาณการรายรับประจำปี | P177: หมวด 7 | Q177: =Table3[[#This Row],[KPIsID]] -> 7.5-19
A178: EdPEx | B178: 7.5 ผลลัพธ์ด้านงบประมาณ การเงิน ตลาด และกลยุทธ์ ก (1) ผลลัพธ์การดำเนินการด้านงบประมาณและการเงิน | C178: 7.5-20 | D178: หมวด 7 | E178: งบประมาณที่ใช้ในการพัฒนา นักศึกษา | F178: ล้านบาท | K178: ไตรมาส 2, 3, 4 | L178: กองแผนงาน | O178: งบประมาณที่ใช้ในการพัฒนา นักศึกษา | P178: หมวด 7 | Q178: =Table3[[#This Row],[KPIsID]] -> 7.5-20
A179: EdPEx | B179: 7.5 ผลลัพธ์ด้านงบประมาณ การเงิน ตลาด และกลยุทธ์ ก (2) ผลลัพธ์การดำเนินการด้านตลาด | C179: 7.5-20 | D179: หมวด 7 | E179: จำนวน นศ.ต่างชาติ | F179: คน | K179: ไตรมาส 2, 3, 4 | L179: กองบริการการศึกษา | O179: จำนวนนักศึกษาต่างชาติทั้งหมด ทุกระดับ | P179: หมวด 7 | Q179: =Table3[[#This Row],[KPIsID]] -> 7.5-20
A180: EdPEx | B180: 7.5 ผลลัพธ์ด้านงบประมาณ การเงิน ตลาด และกลยุทธ์ ก (2) ผลลัพธ์การดำเนินการด้านตลาด | C180: 7.5-21 | D180: หมวด 7 | E180: อัตราการคงอยู่ นศ.ชั้นปีที่ 2 | F180: ร้อยละ | K180: ไตรมาส 2, 3, 4 | L180: กองบริการการศึกษา | O180: จำนวนนักศึกษาทั้งหมด ทุกระดับ;จำนวนนักศึกษาคงอยู่ทั้งหมดชั้นปีที่ 2 | P180: หมวด 7 | Q180: =Table3[[#This Row],[KPIsID]] -> 7.5-21
A181: EdPEx | B181: 7.5 ผลลัพธ์ด้านงบประมาณ การเงิน ตลาด และกลยุทธ์ ก (2) ผลลัพธ์การดำเนินการด้านตลาด | C181: 7.5-22 | D181: หมวด 7 | E181: สัดส่วนผู้สมัครเข้าศึกษาต่อระดับป.ตรี/ที่เปิดรับ | F181: ร้อยละ | K181: ไตรมาส 2, 3, 4 | L181: กองบริการการศึกษา | O181: จำนวนผู้สมัครเข้าศึกษาต่อระดับ ป.ตรี;จำนวนที่เปิดรับระดับปริญญาตรี | P181: หมวด 7 | Q181: =Table3[[#This Row],[KPIsID]] -> 7.5-22
A182: EdPEx | B182: 7.5 ผลลัพธ์ด้านงบประมาณ การเงิน ตลาด และกลยุทธ์ ก (2) ผลลัพธ์การดำเนินการด้านตลาด | C182: 7.5-23 | D182: หมวด 7 | E182: สัดส่วนผู้สมัครเข้าศึกษาต่อระดับบัณฑิตศึกษา/จำนวนที่เปิดรับ (107/411) | F182: ร้อยละ | K182: ไตรมาส 2, 3, 4 | L182: กองบริการการศึกษา | O182: จำนวนผู้สมัครเข้าศึกษาต่อระดับบัณฑิตศึกษา;จำนวนที่เปิดรับระดับบัณฑิตศึกษา | P182: หมวด 7 | Q182: =Table3[[#This Row],[KPIsID]] -> 7.5-23
A183: EdPEx | B183: 7.5 ผลลัพธ์ด้านงบประมาณ การเงิน ตลาด และกลยุทธ์ ก (2) ผลลัพธ์การดำเนินการด้านตลาด | C183: 7.5-24 | D183: หมวด 7 | E183: จำนวนผู้มารับบริการโรงพิมพ์ | F183: คน | K183: ทุกไตรมาส | L183: โรงพิมพ์มหาวิทยาลัย | O183: จำนวนผู้มารับบริการโรงพิมพ์ | P183: หมวด 7 | Q183: =Table3[[#This Row],[KPIsID]] -> 7.5-24
A184: EdPEx | B184: 7.5 ผลลัพธ์ด้านงบประมาณ การเงิน ตลาด และกลยุทธ์ ก (2) ผลลัพธ์การดำเนินการด้านตลาด | C184: 7.5-25 | D184: หมวด 7 | E184: จำนวนผู้มารับบริการโรงแรม | F184: คน | K184: ทุกไตรมาส | L184: สถานปฏิบัติการโรงแรมฯ | O184: จำนวนผู้มารับบริการโรงแรม | P184: หมวด 7 | Q184: =Table3[[#This Row],[KPIsID]] -> 7.5-25
A185: EdPEx | B185: 7.5 ผลลัพธ์ด้านงบประมาณ การเงิน ตลาด และกลยุทธ์ ก (2) ผลลัพธ์การดำเนินการด้านตลาด | C185: 7.5-26 | D185: หมวด 7 | E185: จำนวนผู้มารับบริการโรงพยาบาล | F185: คน | K185: ทุกไตรมาส | L185: วิทยาลัยแพทยศาสตร์ฯ | O185: จำนวนผู้มารับบริการโรงพยาบาล | P185: หมวด 7 | Q185: =Table3[[#This Row],[KPIsID]] -> 7.5-26
A186: EdPEx | B186: 7.5 ผลลัพธ์ด้านงบประมาณ การเงิน ตลาด และกลยุทธ์ ก (2) ผลลัพธ์การดำเนินการด้านตลาด | C186: 7.5-27 | D186: หมวด 7 | E186: จำนวนผู้มารับบริการจากร้านยา | F186: คน | K186: ทุกไตรมาส | L186: วิทยาลัยแพทยศาสตร์ฯ | O186: จำนวนผู้มารับบริการจากร้านยา | P186: หมวด 7 | Q186: =Table3[[#This Row],[KPIsID]] -> 7.5-27
A187: EdPEx | B187: 7.5 ผลลัพธ์ด้านงบประมาณ การเงิน ตลาด และกลยุทธ์ ก (2) ผลลัพธ์การดำเนินการด้านตลาด | C187: 7.5-28 | D187: หมวด 7 | E187: จำนวนผู้มารับบริการวิชาการ สร้าง/ยกระดับผลิตภัณฑ์ | F187: คน | K187: ทุกไตรมาส | L187: สำนักงานส่งเสริมและบริหารงานวิจัยฯ | O187: จำนวนผู้มารับบริการวิชาการสร้างผลิตภัณฑ์ใหม่;จำนวนผู้มารับบริการวิชาการยกระดับผลิตภัณฑ์ | P187: หมวด 7 | Q187: =Table3[[#This Row],[KPIsID]] -> 7.5-28
A188: EdPEx | B188: 7.5 ผลลัพธ์ด้านงบประมาณ การเงิน ตลาด และกลยุทธ์ ก (2) ผลลัพธ์การดำเนินการด้านตลาด | C188: 7.5-29 | D188: หมวด 7 | E188: จำนวนแหล่งทุนภายนอก | F188: คน | K188: ทุกไตรมาส | L188: สำนักงานส่งเสริมและบริหารงานวิจัยฯ | O188: จำนวนแหล่งทุนภายนอก | P188: หมวด 7 | Q188: =Table3[[#This Row],[KPIsID]] -> 7.5-29
A189: EdPEx | B189: 7.5 ผลลัพธ์ด้านงบประมาณ การเงิน ตลาด และกลยุทธ์ ข ผลลัพธ์ด้านการนำกลยุทธ์ไปปฏิบัติ | C189: 7.5-30 | D189: หมวด 7 | E189: ร้อยละความสำเร็จในการดำเนินการตามตัววัดในแผนกลยุทธ์ | F189: ร้อยละ | K189: ไตรมาส 2, 3, 4 | L189: กองแผนงาน | O189: ร้อยละความสำเร็จในการดำเนินการตามตัววัดในแผนกลยุทธ์ | P189: หมวด 7 | Q189: =Table3[[#This Row],[KPIsID]] -> 7.5-30
A190: EdPEx | B190: 7.5 ผลลัพธ์ด้านงบประมาณ การเงิน ตลาด และกลยุทธ์ ข ผลลัพธ์ด้านการนำกลยุทธ์ไปปฏิบัติ | C190: 7.5-31 | D190: หมวด 7 | E190: ร้อยละความสำเร็จในการดำเนินการตามตัววัดในแผนปฏิบัติการ | F190: ร้อยละ | K190: ไตรมาส 2, 3, 4 | L190: กองแผนงาน | O190: ร้อยละความสำเร็จในการดำเนินการตามตัววัดในแผนปฏิบัติการ | P190: หมวด 7 | Q190: =Table3[[#This Row],[KPIsID]] -> 7.5-31

Sheet แยกสรุป (hidden)
A1: แยก1 | B1: แยก2 | C1: ประเภท | D1: KPIsID
A2: จำนวนบัณฑิตระดับปริญญาตรี ที่มีงานทำในองค์กรขนาดใหญ่หรือต่างชาติ | B2: จำนวนบัณฑิตระดับปริญญาตรีทั้งหมดในปีการศึกษา | C2: กลยุทธ์ที่ 1 | D2: S1B5
A3: จำนวนบัณฑิตปริญญาตรี ที่เป็นผู้ประกอบการหรือประกอบอาชีพอิสระใน 1 ปี | B3: จำนวนบัณฑิตระดับปริญญาตรีทั้งหมดในปีการศึกษา | C3: กลยุทธ์ที่ 1 | D3: S1B6
A4: จำนวนนักศึกษาที่ได้รับรางวัลระดับชาติและนานาชาติ ในรอบปีงบประมาณ | B4: จำนวนศิษย์เก่าที่ได้รับรางวัลระดับชาติและนานาชาติ ในรอบปีงบประมาณ | C4: กลยุทธ์ที่ 1 | D4: S1B7:
A5: จำนวนบทความระดับบัณฑิตศึกษาระดับ Q1-Q2 | B5: จำนวนบทความระดับบัณฑิตศึกษาทั้งหมด | C5: กลยุทธ์ที่ 1 | D5: S1B10
A6: จำนวนบัณฑิตระดับปริญญาตรีที่มีรายได้เฉลี่ยเกินเกณฑ์อัตรามาตรฐาน | B6: จำนวนบัณฑิตระดับปริญญาตรีทั้งหมดในปีการศึกษา | C6: กลยุทธ์ที่ 1 | D6: S1B11:
A7: จำนวนหลักสูตรที่ตอบโจทย์อุตสาหกรรมทุกระดับในรอบปีงบประมาณ | B7: จำนวนหลักสูตรทั้งหมดทุกระดับในรอบปีงบประมาณ | C7: กลยุทธ์ที่ 1 | D7: S1C15
A8: จำนวนหลักสูตร Dual Program/Double Degree ทุกระดับ | B8: - | C8: กลยุทธ์ที่ 1 | D8: S1C16
A9: จำนวนหลักสูตร sandbox ของมหาวิทยาลัย ทุกระดับ | B9: - | C9: กลยุทธ์ที่ 1 | D9: S1C17
A10: จำนวนหลักสูตรประกาศนียบัตรสำหรับนักศึกษาปริญญาตรี | B10: - | C10: กลยุทธ์ที่ 1 | D10: S1C41
A11: จำนวนหลักสูตรที่จัดการศึกษาแบบ Technology-enhanced Learning ทุกระดับ | B11: จำนวนหลักสูตรทั้งหมดทุกระดับในรอบปีงบประมาณ | C11: กลยุทธ์ที่ 1 | D11: S1C47
A12: จำนวนหลักสูตรระดับปริญญาตรี ที่มีรายวิชาที่ส่งเสริมการเป็นผู้ประกอบการ | B12: จำนวนหลักสูตรทั้งหมดทุกระดับในรอบปีงบประมาณ | C12: กลยุทธ์ที่ 1 | D12: S1C48
A13: จำนวนนักศึกษาระดับปริญญาตรี ที่เข้าร่วมการอบรมการส่งเสริมการเป็นผู้ประกอบการ | B13: จำนวนนักศึกษาทั้งหมด ทุกระดับ | C13: กลยุทธ์ที่ 1 | D13: S1C51
A14: จำนวนนักศึกษาระดับบัณฑิตศึกษาที่มีบทความระดับบัณฑิตศึกษาระดับ Q1-Q2 | B14: จำนวนผู้สำเร็จการศึกษา ระดับบัณฑิตศึกษา | C14: กลยุทธ์ที่ 1 | D14: S1C66
A15: จำนวนนักศึกษาใหม่ระดับบัณฑิตศึกษา | B15: จำนวนนักศึกษาทั้งหมดระดับบัณฑิตศึกษา ในปีที่ผ่านมา | C15: กลยุทธ์ที่ 1 | D15: S1C67
A16: จำนวนนักศึกษาปริญญาตรี ที่สอบผ่านการทดสอบทักษะทภาษาต่างประเทศ ในระดับ B1 ขึ้นไป ในปีการศึกษา | B16: จำนวนนักศึกษาปริญญาตรี ที่เข้าทดสอบทักษะทภาษาต่างประเทศทั้งหมดในปีการศึกษา | C16: กลยุทธ์ที่ 1 | D16: S1C72
A17: จำนวนนักศึกษาปริญญาตรี ที่ผ่านการอบรมพัฒนาทักษะ Future Skills ในปีการศึกษานั้น | B17: จำนวนนักศึกษาปริญญาตรี ที่เข้าอบรมพัฒนาทักษะ Future Skills ในปีการศึกษานั้น | C17: กลยุทธ์ที่ 1 | D17: S1C81
A18: จำนวนนักศึกษา (ทุกระดับ) ที่ได้รับการสนับสนุนการเข้าร่วมแข่งขันระดับชาติหรือนานาชาติ | B18: - | C18: กลยุทธ์ที่ 1 | D18: S1C84
A19: จำนวนศิษย์เก่า (ทุกระดับ) ที่ได้เข้าร่วมแข่งขันระดับชาติหรือนานาชาติ | B19: - | C19: กลยุทธ์ที่ 1 | D19: S1C85
A20: ข้อมูลจากผลการจัดอันดับ Academic Reputation ของ QS Ranking | B20: - | C20: กลยุทธ์ที่ 1 | D20: S1B87
A21: จำนวนหลักสูตรทุกระดับที่ได้รับการรับรองตามมาตรฐานสากล | B21: - | C21: กลยุทธ์ที่ 1 | D21: S1C88
A22: จำนวนหลักสูตรที่พัฒนาร่วมกันต่างประเทศ ในรอบปีการศึกษา | B22: - | C22: กลยุทธ์ที่ 1 | D22: S1C91
A23: จำนวนนักศึกษา inbound ทุกระดับ | B23: จำนวนนักศึกษา outbound ทุกระดับ | C23: กลยุทธ์ที่ 1 | D23: S1C92
A24: จำนวนนักศึกษาต่างชาติทั้งหมด ทุกระดับ | B24: - | C24: กลยุทธ์ที่ 1 | D24: S1C96
A25: จำนวนหลักสูตรหลักสูตรระยะสั้น Up skill/Re-skilll/New-skill | B25: - | C25: กลยุทธ์ที่ 1 | D25: S1C104
A26: จำนวนรายวิชาที่เป็น Credit bank | B26: - | C26: กลยุทธ์ที่ 1 | D26: S1C140
A27: รายได้จากทรัพย์สินทางปัญญา | B27: - | C27: กลยุทธ์ที่ 2 | D27: S2B5
A28: จำนวนผลงานวิจัยที่นำไปใช้ประโยชน์ ในรอบปีงบประมาณ | B28: จำนวนผลงานวิจัยทั้งหมด | C28: กลยุทธ์ที่ 2 | D28: S2B6
A29: จำนวนผลงานวิจัย ระดับ RL (6-7) | B29: จำนวนผลงานวิจัยทั้งหมด | C29: กลยุทธ์ที่ 2 | D29: S2B7
A30: จำนวนโครงการวิจัยที่เป็นผลงานวิจัยเชิงลึกที่มีศักยภาพเชิงพาณิชย์ | B30: จำนวนโครงการวิจัยทั้งหมด | C30: กลยุทธ์ที่ 2 | D30: S2C8
A31: 1) จำนวนโครงการวิจัยเพื่อพัฒนาคุณภาพชีวิต 2) จำนวนโครงการวิจัยเพื่อพัฒนาเศรษฐกิจ | B31: จำนวนโครงการวิจัยทั้งหมด | C31: กลยุทธ์ที่ 2 | D31: S2C11
A32: จำนวนผลงานวิจัยที่เกิดจากความร่วมมือของภาคเอกชน | B32: - | C32: กลยุทธ์ที่ 2 | D32: S2C13
A33: จำนวนผลงานวิจัยที่ถูกพัฒนาเป็นต้นแบบภาคสนาม | B33: - | C33: กลยุทธ์ที่ 2 | D33: S2C14
A34: จำนวนงบประมาณที่ได้รับการสนับสนุนการวิจัยที่ได้รับจากภาคเอกชนและอุตสาหกรรม | B34: - | C34: กลยุทธ์ที่ 2 | D34: S2C15
A35: จำนวนทรัพย์สินทางปัญญาทุกประเภท ที่ได้รับการขึ้นเทะเบียนเรียบร้อยแล้ว | B35: จำนวนทรัพย์สินทางปัญญาทั้งหมด | C35: กลยุทธ์ที่ 2 | D35: S2C18
A36: จำนวนทรัพย์สินทางปัญญาทุกประเภท ที่ยื่นขอทรัพย์สินทางปัญญาทั้งหมด | B36: - | C36: กลยุทธ์ที่ 2 | D36: S2C19
A37: 1) จำนวนผลงานวิจัยที่ต่อยอดเชิงพาณิชย์ 2) จำนวนนวัตกรรมที่ต่อยอดเชิงพาณิชย์ ในรอบปีงบประมาณ | B37: 1) จำนวนผลงานวิจัยที่ต่อยอดเชิงพาณิชย์ 2) จำนวนนวัตกรรมที่ต่อยอดเชิงพาณิชย์ ทั้งหมด | C37: กลยุทธ์ที่ 2 | D37: S2C22
A38: 1) จำนวนผลงานวิจัยที่นำไปใช้ประโยชน์ในการพัฒนาคุณภาพชีวิต 2) จำนวนนวัตกรรมที่นำไปใช้ประโยชน์ในการพัฒนาคุณภาพชีวิต ในรอบปีงบประมาณ | B38: 1) จำนวนผลงานวิจัยที่นำไปใช้ประโยชน์ในการพัฒนาคุณภาพชีวิต 2) จำนวนนวัตกรรมที่นำไปใช้ประโยชน์ในการพัฒนาคุณภาพชีวิต ทั้งหมด | C38: กลยุทธ์ที่ 2 | D38: S2C23
A39: จำนวน Spin Off จากผลงานวิจัย | B39: จำนวน Spin Off จากผลงานวิจัยทั้งหมด | C39: กลยุทธ์ที่ 2 | D39: S2C26
A40: จำนวนผลงานวิจัยที่ตีพิมพ์ในระดับ Q1-Q2 | B40: จำนวนผลงานวิจัยที่ตีพิมพ์ ทั้งหมด | C40: กลยุทธ์ที่ 2 | D40: S2B29:
A41: 1) จำนวนผลงานวิจัยที่ตีพิมพ์ในวารสารวิชาการระดับนานาชาติทั้งหมด 2) จำนวนบทความวิชาการที่ตีพิมพ์ในวารสารวิชาการระดับนานาชาติทั้งหมด | B41: - | C41: กลยุทธ์ที่ 2 | D41: S2C32
A42: จำนวนกลุ่มวิจัยที่ได้รับรองจากมหาวิทยาลัย ในรอบปีงบประมาณ | B42: จำนวนกลุ่มวิจัยที่ได้รับรองจากมหาวิทยาลัย ทั้งหมด | C42: กลยุทธ์ที่ 2 | D42: S2C35
A43: จำนวนผลงานวิจัยของกลุ่มวิจัยเฉพาะทางที่ได้รับตีพิมพ์ในระดับนานาชาติ | B43: - | C43: กลยุทธ์ที่ 2 | D43: S2C36
A44: จำนวนผู้ป่วยนอก | B44: - | C44: กลยุทธ์ที่ 3 | D44: S3B31
A45: จำนวนผู้ป่วยใน | B45: - | C45: กลยุทธ์ที่ 3 | D45: S3B32
A46: จำนวนเตียงผู้ป่วยใน (Active Bed) ของโรงพยาบาลมหาวิทยาลัยอุบลราชธานี | B46: - | C46: กลยุทธ์ที่ 3 | D46: S3C37
A47: จำนวนผู้เยี่ยมชมแหล่งเรียนรู้ด้านศิลปวัฒนธรรม ในปีงบประมาณ | B47: จำนวนผู้เยี่ยมชมแหล่งเรียนรู้ด้านศิลปวัฒนธรรม ในปีงบประมาณที่ผ่านมา | C47: กลยุทธ์ที่ 4 | D47: S4B5
A48: จำนวนผลงานด้านศิลปวัฒนธรรม ที่ได้รับการสืบสานและสร้างมูลค่าในรอบปี | B48: จำนวนผลงานด้านศิลปวัฒนธรรม ที่ได้รับการสืบสานและสร้างมูลค่า ทั้งหมดของมหาวิทยาลัย | C48: กลยุทธ์ที่ 4 | D48: S4B6
A49: จำนวนแหล่งเรียนรู้ด้านศิลปวัฒนธรรม ในรอบปี | B49: จำนวนแหล่งเรียนรู้ด้านศิลปวัฒนธรรม ทั้งหมด | C49: กลยุทธ์ที่ 4 | D49: S4C9
A50: จำนวนฐานข้อมูลสารสนเทศด้านศิลปวัฒนธรรม ในรอบปี | B50: จำนวนฐานข้อมูลสารสนเทศด้านศิลปวัฒนธรรม ทั้งหมด | C50: กลยุทธ์ที่ 4 | D50: S4C10
A51: จำนวนผลิตภัณฑ์ที่พัฒนาจากศิลปวัฒนธรรม ในรอบปี | B51: จำนวนผลิตภัณฑ์ที่พัฒนาจากศิลปวัฒนธรรม ทั้งหมด | C51: กลยุทธ์ที่ 4 | D51: S4C14
A52: จำนวนแหล่งท่องเที่ยวเชิงวัฒนธรรมที่ได้รับการยกระดับ ในรอบปี | B52: จำนวนแหล่งท่องเที่ยวเชิงวัฒนธรรมที่ได้รับการยกระดับ ทั้งหมด | C52: กลยุทธ์ที่ 4 | D52: S4C15
A53: คะแนนประเมิน UI Green Metric ในรอบปี | B53: คะแนนประเมิน UI Green Metric ในรอบปีที่ผ่านมา | C53: กลยุทธ์ที่ 5 | D53: S5B8
A54: จำนวนกระบวนการที่พัฒนาให้เป็น Digital platform ในรอบปี | B54: จำนวนกระบวนการที่พัฒนาให้เป็น Digital platform ทั้งหมด | C54: กลยุทธ์ที่ 5 | D54: S5C9
A55: ผลงานนวัตกรรมของอาจารย์ ในรอบปี | B55: ผลงานนวัตกรรมของอาจารย์ ในรอบปีที่ผ่านมา | C55: กลยุทธ์ที่ 5 | D55: S5B58
A56: ระดับความผูกพันของบุคลากรต่อมหาวิทยาลัย ในรอบปี | B56: ระดับความผูกพันของบุคลากรต่อมหาวิทยาลัย ในรอบปีที่ผ่านมา | C56: กลยุทธ์ที่ 5 | D56: S5B60
A57: จำนวนอาจารย์ประจำที่มีคุณวุฒิปริญญาเอก ในรอบปี | B57: จำนวนอาจารย์ประจำที่มีคุณวุฒิปริญญาเอก ทั้งหมด | C57: กลยุทธ์ที่ 5 | D57: S5C61
A58: จำนวนอาจารย์ประจำที่ดำรงตำแหน่งทางวิชาการ (ผศ. รศ. ศ.) ในรอบปี | B58: จำนวนอาจารย์ประจำที่ดำรงตำแหน่งทางวิชาการ (ผศ. รศ. ศ.) ทั้งหมด | C58: กลยุทธ์ที่ 5 | D58: S5C62
A59: จำนวนบุคลากรที่ผ่านเกณฑ์ Future Skill | B59: จำนวนบุคลากรทั้งหมด | C59: กลยุทธ์ที่ 5 | D59: S5C69

Sheet BASEแผน66-70 (print) (24062022) (hidden)
A1: ชื่อตัวชี้วัด | B1: หน่วย นับ | C1: เป้าหมาย ปี 66 | D1: รองฝ่ายวิชาการ | E1: รองฝ่ายวิจัย | F1: รองฝ่ายบริหาร | G1: รองฝ่ายแผน | H1: รองฝ่ายพัฒนานักศึกษา | I1: รองฝ่ายบริหารทรัพยากรมนุษย์ | J1: รองฝ่ายบริหารกายภาพ | K1: ผู้ช่วยฝ่ายคลัง | L1: ผู้ช่วยฝ่ายวิเทศสัมพันธ์ | M1: ผู้ช่วยฝ่ายสื่อสารองค์กร | N1: ผู้ช่วยฝ่ายบริการวิชาการ | O1: ผู้ช่วยฝ่ายวิชาการ | P1: ผู้ช่วยฝ่ายพัฒนาโครงสร้างพื้นฐานและภูมิทัศน์ | Q1: คณะเกษตรศาสตร์ | R1: คณะวิทยาศาสตร์ | S1: คณะวิศวกรรมศาสตร์ | T1: คณะศิลปประยุกต์ฯ | U1: คณะเภสัชศาสตร์ | V1: วิทยาลัยแพทย์ฯ | W1: คณะพยาบาลศาสตร์ | X1: คณะศิลปศาสตร์ | Y1: คณะบริหารศาสตร์ | Z1: คณะนิติศาสตร์ | AA1: คณะรัฐศาสตร์ | AB1: สำนักคอมพิวเตอร์ฯ | AC1: สำนักบริหารทรัพย์สินฯ | AD1: สำนักวิทยบริการ | AE1: ภาพ รวม
A2: 1. ร้อยละบัณฑิต ป.ตรี ที่ได้งานทำในองค์กรขนาดใหญ่หรือต่างชาติ | B2: ร้อยละ | C2: 10 | D2: H | Q2: =Q3/200*100 -> 12.5 | R2: =R3/312*100 -> 16.02564103 | S2: =S3/400*100 -> 20 | T2: =T3/42*100 -> 4.761904762 | U2: =U3/100*100 -> 15 | V2: =V3/180*100 -> 5.555555556 | W2: =W3/99*100 -> 2.02020202 | X2: =X3/444*100 -> 13.51351351 | Y2: =Y3/571*100 -> 12.2591944 | Z2: =Z3/259*100 -> 1.930501931 | AA2: =AA3/274*100 -> 5.474452555 | AE2: =(AE3*100/C3)-100 -> 11.33333333
B3: คน | C3: 300 | D3: H | Q3: 25 | R3: 50 | S3: 80 | T3: 2 | U3: 15 | V3: 10 | W3: 2 | X3: 60 | Y3: 70 | Z3: 5 | AA3: 15 | AE3: =SUM(Q3:AA3) -> 334
A4: 2. ร้อยละของบัณฑิต ป.ตรี ที่เป็นผู้ประกอบการภายใน 1 ปี หลังสำเร็จการศึกษา | B4: ร้อยละ | C4: 20 | D4: H | Q4: =Q5/200*100 -> 20 | R4: =R5/312*100 -> 12.82051282 | S4: =S5/400*100 -> 10 | T4: =T5/42*100 -> 71.42857143 | U4: =U5/100*100 -> 5 | V4: =V5/180*100 -> 8.333333333 | W4: =W5/99*100 -> 0 | X4: =X5/444*100 -> 27.02702703 | Y4: =Y5/571*100 -> 21.01576182 | Z4: =Z5/259*100 -> 15.44401544 | AA4: =AA5/274*100 -> 36.49635036 | AE4: =AVERAGE(Q4:V4,X4:AA4) -> 22.75655722
B5: คน | C5: =3000*20% -> 600 | D5: H | Q5: 40 | R5: 40 | S5: 40 | T5: 30 | U5: 5 | V5: 15 | X5: 120 | Y5: 120 | Z5: 40 | AA5: 100 | AE5: =SUM(Q5:AA5) -> 550
A6: 3. จำนวนนักศึกษาและศิษย์เก่า ที่ได้รับรางวัลระดับชาติหรือนานาชาติ | B6: คน | C6: =42+32 -> 74 | H6: H | Q6: 5 | R6: 10 | S6: 70 | T6: 8 | U6: 5 | V6: 3 | W6: 2 | X6: 5 | Y6: 20 | Z6: 2 | AA6: 5 | AE6: =SUBTOTAL(9,Q6:AA6) -> 135
A7: 4. ร้อยละของบทความวิทยานิพนธ์ที่ได้รับการตีพิมพ์ในระดับนานาชาติ (Scopus Q1-Q2) ต่อจำนวนวิทยานิพนธ์ทั้งหมด | B7: ร้อยละ | C7: 10 | D7: H | O7: C | Q7: 10 | R7: 20 | S7: - | T7: - | U7: 1 | V7: - | W7: - | X7: - | Y7: - | Z7: - | AA7: - | AE7: =AVERAGE(Q7:AA7) -> 10.33333333
B8: เรื่อง | C8: 12 | D8: H | O8: C | Q8: 1 | R8: 10 | S8: 5 | U8: 1 | V8: 1 | X8: 1 | Y8: - | Z8: - | AA8: - | AE8: =SUBTOTAL(9,Q8:AA8) -> 19
A9: 5. ร้อยละของบัณฑิตที่มีเงินเดือนเกินเกณฑ์อัตรามาตรฐานระดับปริญญาตรี โดยแยกตามกลุ่มสาขาวิชา | B9: ร้อยละ | C9: 25 | D9: H | Q9: =Q10/200*100 -> 20 | R9: =R10/312*100 -> 41.66666667 | S9: =S10/400*100 -> 40 | T9: =T10/42*100 -> 47.61904762 | U9: =U10/100*100 -> 89 | V9: =V10/180*100 -> 20 | W9: =W10/99*100 -> 39.39393939 | X9: =X10/444*100 -> 13.96396396 | Y9: =Y10/571*100 -> 25.21891419 | Z9: =Z10/259*100 -> 3.861003861 | AA9: =AA10/274*100 -> 7.299270073 | AE9: =AVERAGE(Q9:AA9) -> 31.63843689
B10: คน | C10: =3000*C9% -> 750 | D10: H | Q10: 40 | R10: 130 | S10: 160 | T10: 20 | U10: 89 | V10: 36 | W10: 39 | X10: 62 | Y10: 144 | Z10: 10 | AA10: 20 | AE10: =SUBTOTAL(9,Q10:AA10) -> 750
A11: ร้อยละรายได้เกินเกณฑ์ BASE | B11: ร้อยละ | C11: =AVERAGE(Q11:AA11) -> 25.76545455 | D11: H | Q11: 10 | R11: 32.37 | S11: 35.25 | T11: 11.9 | U11: 89 | V11: 20 | W11: 39.39 | X11: 13.96 | Y11: 25.22 | Z11: 2.32 | AA11: 4.01 | AE11: =AVERAGE(Q11:AA11) -> 25.76545455
A12: รายได้เกินเกณฑ์ BASE | B12: คน | C12: =SUM(Q12:AA12) -> 654 | D12: H | Q12: 20 | R12: 101 | S12: 141 | T12: 5 | U12: 89 | V12: 36 | W12: 39 | X12: 62 | Y12: 144 | Z12: 6 | AA12: 11 | AE12: =SUBTOTAL(9,Q12:AA12) -> 654
A13: 1. จำนวนหลักสูตรที่ตอบโจทย์อุตสาหกรรม (ไม่นับรวม sandbox) | B13: หลักสูตร | C13: 10 | D13: H | Q13: 3 | R13: 3 | S13: 6 | T13: - | U13: - | V13: - | W13: - | X13: 2 | Y13: 2 | Z13: - | AA13: - | AE13: =SUBTOTAL(9,Q13:AA13) -> 16
A14: 2. จำนวนหลักสูตร Dual Program/Double Degree | B14: หลักสูตร | C14: 0 | D14: H | Q14: เริ่มดำเนินการ ปี 2567 | AE14: =SUBTOTAL(9,Q14:AA14) -> 0
A15: 3. จำนวนหลักสูตร sandbox (นับสะสม) | B15: หลักสูตร | C15: 1 | D15: H | Q15: - | R15: - | S15: 1 | T15: - | U15: - | V15: - | W15: - | X15: - | Y15: - | Z15: - | AA15: - | AE15: =SUBTOTAL(9,Q15:AA15) -> 1
A16: 1. จำนวนหลักสูตรประกาศนียบัตรสำหรับนักศึกษาปริญญาตรี (นับสะสม) | B16: จำนวน | C16: 10 | D16: H | Q16: 2 | R16: 6 | S16: 2 | T16: 3 | U16: - | V16: - | W16: - | X16: 1 | Y16: 1 | Z16: 1 | AA16: - | AE16: =SUBTOTAL(9,Q16:AA16) -> 16
A17: 1. ร้อยละของหลักสูตรที่มีการจัดการเรียนการสอนโดยใช้ Technology-enhanced Learning หรือการใช้เทคโนโลยีในอนาคต (ปริญญาตรี) | B17: ร้อยละ | C17: 20 | D17: H | Q17: =Q18/44*100 -> 2.272727273 | R17: =R18/44*100 -> 4.545454545 | S17: 13.63636364 | T17: 4.545454545 | U17: 2.272727273 | V17: 2.272727273 | W17: 2.272727273 | X17: 0 | Y17: 0 | Z17: 0 | AA17: 0 | AE17: =AE18/44*100 -> 31.81818182
B18: หลักสูตร | C18: 10 | D18: H | Q18: 1 | R18: 2 | S18: 6 | T18: 2 | U18: 1 | V18: 1 | W18: 1 | X18: 0 | Y18: 0 | Z18: 0 | AA18: 0 | AE18: =SUBTOTAL(9,Q18:AA18) -> 14
A19: 1. ร้อยละของหลักสูตรระดับปริญญาตรีที่มีรายวิชาที่ส่งเสริมการเป็นผู้ประกอบการ | B19: ร้อยละ | C19: 5 | D19: H | Q19: - | R19: - | S19: - | T19: - | U19: - | V19: - | W19: - | X19: - | Y19: - | Z19: - | AA19: - | AE19: =AE20/44*100 -> 43.18181818
B20: หลักสูตร | C20: 2 | D20: H | Q20: 3 | R20: 1 | S20: 1 | T20: 1 | U20: 1 | V20: - | W20: - | X20: 3 | Y20: 7 | Z20: 1 | AA20: 1 | AE20: =SUM(Q20:AA20) -> 19
A21: 1. ร้อยละของนักศึกษาระดับปริญญาตรีที่เข้าร่วมกิจกรรมเสริมหลักสูตรเพื่อการเป็นผู้ประกอบการ | B21: ร้อยละ | C21: 5 | D21: H | Q21: รองอธิการบดีฝ่ายวิจัย นวัตกรรมและบริการวิชาการ รับผิดชอบหลัก | AE21: 5
A22: 1. ร้อยละของนักศึกษาบัณฑิตศึกษาที่มีผลงานวิทยานิพนธ์ที่ตีพิมพ์ในฐานข้อมูลนานาชาติต่อนักศึกษาระดับบัณฑิตศึกษาที่สำเร็จการศึกษาในปีนั้น | B22: ร้อยละ | C22: 30 | D22: H | Q22: 40 | R22: 40 | S22: 50 | T22: - | U22: 30 | V22: 5 | W22: - | X22: - | Y22: - | Z22: - | AA22: - | AE22: =AVERAGE(Q22:AA22) -> 33
A23: 2. ร้อยละของนักศึกษาระดับบัณฑิตศึกษาที่เพิ่มขึ้นเมื่อเทียบกับปีที่ผ่านมา | B23: ร้อยละ | C23: 10 | D23: H | Q23: - | R23: - | S23: - | T23: - | U23: - | V23: - | W23: - | X23: - | Y23: - | Z23: - | AA23: - | AE23: 10
B24: คน | C24: =SUM(Q24:AA24) -> 117 | D24: H | Q24: =Q25+Q26 -> 20 | R24: =R25+R26 -> 25 | S24: 18 | T24: 0 | U24: 7 | V24: 25 | W24: 0 | X24: 3 | Y24: 19 | Z24: 0 | AA24: 0 | AE24: =SUM(Q24:AA24) -> 117
A25: ผลการรับเทอมต้น | B25: คน | C25: 160 | D25: H | Q25: =12 -> 12 | R25: 20 | S25: 8 | T25: 0 | U25: 7 | V25: 23 | W25: 0 | X25: 1 | Y25: 14 | Z25: 0 | AA25: 0 | AE25: =SUM(Q25:AA25) -> 85
A26: ผลการรับเทอมปลาย | B26: คน | D26: H | Q26: 8 | R26: 5 | S26: 10 | T26: 0 | U26: 0 | V26: 2 | W26: 0 | X26: 2 | Y26: 5 | Z26: 0 | AA26: 0 | AE26: =SUM(Q26:AA26) -> 32
A27: 1. ร้อยละของนักศึกษาระดับ ป.ตรี ที่มีทักษะทางภาษาอังกฤษระดับ B1 ขึ้นไป | B27: ร้อยละ | C27: 35 | D27: H | L27: C | Q27: 35 | R27: 35 | S27: 35 | T27: 35 | U27: 60 | V27: 35 | W27: 35 | X27: 35 | Y27: 35 | Z27: 35 | AA27: 35 | AE27: =SUM(Q27:AA27)/11 -> 37.27272727
A28: 1. ร้อยละของนักศึกษาที่มี Future Skill ตามระดับที่คาดหวังและครบตามที่กำหนด | B28: ร้อยละ | C28: 80 | H28: H | Q28: 80 | R28: 80 | S28: 80 | T28: 80 | U28: 80 | V28: 80 | W28: 80 | X28: 80 | Y28: 80 | Z28: 80 | AA28: 80 | AE28: 80
A29: 1. จำนวนนักศึกษาที่ได้รับการสนับสนุนการเข้าร่วมแข่งขันระดับชาติหรือนานาชาติ | B29: คน | C29: 75 | H29: H | Q29: 25 | R29: 60 | S29: 100 | T29: 15 | U29: 60 | V29: 10 | W29: 10 | X29: 20 | Y29: 40 | Z29: 20 | AA29: 20 | AE29: =SUBTOTAL(9,Q29:AA29) -> 380
A30: 2. จำนวนศิษย์เก่าที่เข้าร่วมแข่งขันระดับชาติหรือนานาชาติ | B30: คน | C30: 30 | H30: H | Q30: รองอธิการบดีฝ่ายพัฒนานักศึกษาและศิษย์เก่าสัมพันธ์ รับผิดชอบหลัก | AE30: 30
A31: 1. Academic Reputation ของ QS Ranking | B31: คะแนน | C31: 10 | M31: H | Q31: ผู้ช่วยอธิการบดีฝ่ายสื่อสารองค์กรและพันธกิจสัมพันธ์ รับผิดชอบหลัก | AE31: 10
A32: 1. จำนวนหลักสูตรที่ได้รับการรับรองตามมาตรฐานสากล (นับสะสม) | B32: หลักสูตร | C32: 1 | D32: H | L32: C | Q32: - | R32: - | S32: - | T32: - | U32: - | V32: 1 | W32: - | X32: - | Y32: - | Z32: - | AA32: - | AE32: =AVERAGE(Q32:AA32) -> 1
A33: 1. จำนวนหลักสูตรที่พัฒนาร่วมกันกับต่างประเทศ | B33: หลักสูตร | C33: - | D33: H | Q33: เริ่มดำเนินการ ปี 2567 | AE33: -
A34: 2. จำนวนนักศึกษาแลกเปลี่ยน (inbound/outbound student) | B34: คน | C34: 20 | L34: H | Q34: =+Q35+Q36 -> 10 | R34: =+R35+R36 -> 5 | S34: 0 | T34: 0 | U34: 1 | V34: 0 | W34: 0 | X34: 5 | Y34: 5 | Z34: 0 | AA34: 5 | AE34: =SUM(Q34:AA34) -> 31
A35: inbound student (3 เดือนขึ้นไป) | B35: คน | C35: 10 | L35: H | Q35: 0 | R35: 0 | S35: 0 | T35: 0 | U35: 0 | V35: 0 | W35: 0 | X35: 0 | Y35: 0 | Z35: 0 | AA35: 0 | AE35: =SUM(Q35:AA35) -> 0
A36: outbound student (3 เดือนขึ้นไป) | B36: คน | C36: 10 | L36: H | Q36: 10 | R36: 5 | S36: 0 | T36: 0 | U36: 1 | V36: 0 | W36: 0 | X36: 5 | Y36: 5 | Z36: 0 | AA36: 5 | AE36: 31
A37: 1. จำนวนนักศึกษาต่างชาติ (ไม่นับสะสม) | B37: คน | C37: 15 | L37: H | Q37: 3 | R37: 0 | S37: 0 | T37: 0 | U37: 0 | V37: 1 | W37: 0 | X37: 1 | Y37: 2 | Z37: 0 | AA37: 0 | AE37: =SUBTOTAL(9,Q37:AA37) -> 7
A38: 1. ร้อยละรายได้ที่เพิ่มขึ้นจากการจัดการศึกษาทุกช่วงวัย | B38: ร้อยละ | C38: 5 | D38: H | Q38: 10 | R38: 5 | S38: 5 | T38: 5 | U38: 5 | V38: 10 | W38: 2 | X38: 5 | Y38: 5 | Z38: 5 | AA38: 5 | AE38: =SUM(Q38:AA38)/11 -> 5.636363636
B39: ล้านบาท | C39: 9.6 | D39: H | Q39: 0.5 | R39: 0.2 | S39: 0.3 | T39: 0.2 | U39: 1 | V39: 0.1 | W39: 4 | X39: 0.5 | Y39: 0.3 | Z39: 2 | AA39: 0.5 | AE39: =SUBTOTAL(9,Q39:AA39) -> 9.6
A40: 2. ร้อยละของผู้เข้าศึกษาหลักสูตรระยะสั้นหรือ Credit bank ที่เพิ่มขึ้น (เทียบกับปีที่ผ่านมา) | B40: ร้อยละ | C40: 20 | D40: H | Q40: รองอธิการบดีฝ่ายวิชาการ รับผิดชอบหลัก | AE40: =SUM(Q40:AA40)/11 -> 0
A41: 1. จำนวนหลักสูตรระยะสั้น (นับสะสม) | B41: หลักสูตร | C41: 50 | D41: H | N41: H | Q41: 8 | R41: 6 | S41: 5 | T41: 5 | U41: 8 | V41: 1 | W41: 3 | X41: 5 | Y41: 1 | Z41: 2 | AA41: 2 | AE41: =SUBTOTAL(9,Q41:AA41) -> 46
A42: 1. จำนวนรายวิชาที่เป็น Credit bank | B42: รายวิชา | C42: 30 | D42: H | Q42: - | R42: 6 | S42: - | T42: 5 | U42: - | V42: - | W42: - | X42: 2 | Y42: 14 | Z42: - | AA42: 7 | AE42: =SUBTOTAL(9,Q42:AA42) -> 34
A43: 2. จำนวนนักศึกษาที่นำรายวิชา Credit bank มาใช้ในการจบหลักสูตร | B43: คน | C43: - | D43: H | Q43: เริ่มดำเนินการ ปี 2567 | AE43: -
A44: 1. รายได้จากทรัพย์สินทางปัญญา งานวิจัยหรือนวัตกรรมที่นำไปใช้ประโยชน์เชิงพาณิชย์ | B44: ล้านบาท | C44: 4 | E44: H | Q44: รองอธิการบดีฝ่ายวิจัย นวัตกรรมและบริการวิชาการ รับผิดชอบหลัก | AE44: 4
A45: 2. ร้อยละของผลงานวิจัยหรือนวัตกรรมที่นำไปใช้เพื่อพัฒนาคุณภาพชีวิตและเศรษฐกิจของพื้นที่ | B45: ร้อยละ | C45: 40 | E45: H | AE45: 40
A46: 3. ร้อยละของผลงานวิจัยที่สามารถพัฒนาไปสู่ระดับ TRL (6-7) (TRL Technology Readiness Level) | B46: ร้อยละ | C46: 5 (6 ชิ้น) | E46: H | AE46: 5 (6 ชิ้น)
A47: 1. ร้อยละของโครงการวิจัยที่เป็นผลงานวิจัยเชิงลึกที่มีศักยภาพเชิงพาณิชย์ต่อโครงการวิจัยทั้งหมด | B47: ร้อยละ | C47: 2 | E47: H | AE47: 2
A48: 1. ร้อยละโครงการวิจัยเพื่อพัฒนาคุณภาพชีวิต และเศรษฐกิจของพื้นที่ต่อโครงการวิจัยทั้งหมด | B48: ร้อยละ | C48: 55 | E48: H | AE48: 55
A49: 1. จำนวนผลงานวิจัยจากความร่วมมือของภาคเอกชนหรืออุตสาหกรรม | B49: ผลงาน | C49: 25 | E49: H | Q49: 1 | R49: 2 | S49: 9 | T49: 2 | U49: - | V49: - | W49: - | X49: 1 | Y49: 2 | Z49: - | AA49: - | AE49: 17 (8 ผลงาน รองวิจัยฯ)
